Workbook

Sheet General Information
H3: Cornell Nutrient Management Spear Program
H4: Nutrient Mass Balance Calculator Input Sheet
H5: N, P and K imports and exports: 1/1/2025 to 12/31/2025
H6: This document can be opened in Excel or Excel Online | V6: Each cell describes any missing data. Magenta cells indicate missing data.
V7: Data Completion
C8: Balance year: | D8: 2025 | I8: Assessments: | J8: Nutrient mass balance: | K8: TRUE | M8: Greenhouse gases: | N8: TRUE | V8: Herd info | X8: Crop production | Z8: Feed imports | AB8: Animal imports | AD8: Misc imports
V9: =IF(COUNTA('Herd Information'!Z9:Z13)=0, "Good", _xlfn.TEXTJOIN(CHAR(10), TRUE, 'Herd Information'!Z9:Z13)) -> Lactating cows: Missing animal numbers , Missing animal weights Dry cows: Missing animal numbers , Missing animal weights Heifers: breeding to first calving: Missing animal numbers , Missing animal weights Heifers: weaning to breeding: Missing animal numbers , Missing animal weights Calves (pre-weaning): Missing animal numbers , Missing animal weights | X9: =IF(COUNTA('Farm Crop Production'!AV21:AV50)=0, "Good", _xlfn.TEXTJOIN(CHAR(10), TRUE, 'Farm Crop Production'!AV21:AV50)) ->  | Z9: =IF(COUNTA('Feed imports and diets'!AO17:AO36)=0, "Good", _xlfn.TEXTJOIN(CHAR(10), TRUE, 'Feed imports and diets'!AO17:AO36)) ->  | AB9: =IF(COUNTA('Animal imports'!T8:T18)=0, "Good", _xlfn.TEXTJOIN(CHAR(10), TRUE,'Animal imports'!T8:T18)) ->  | AD9: =IF(COUNTA('Miscellaneous imports'!X7:X14,'Miscellaneous imports'!X20:X33)=0, "Good", _xlfn.TEXTJOIN(CHAR(10), TRUE, 'Miscellaneous imports'!X7:X14,'Miscellaneous imports'!X20:X33)) -> 
C10: General Information
C11: Producer Contact Information | I11: Data Collection
C12: Producer name | I12: By
C13: Farm name | I13: Email
C14: Address
C15: County
C16: State
C17: Phone
C18: E-mail
C20: Farm Information
C21: Total farm acres | I21: Include all tillable and pasture acres (owned and/or rented), non-productive land, and buildings.
C22: All tillable owned and rented crop and pasture acres | I22: =IF(G22>G21, "Tillable acres should be less than or equal to total farm acres.", "") ->  | V22: Milk exports | X22: Animal exports | Z22: Crop exports | AB22: Misc exports | AD22: Manure mgmt
C23: Legume acres (perennial and annual) >10% legume | I23: =IF(AND(NOT(ISBLANK(G22)), NOT(ISBLANK(G23)), G22<G23), "Tillable acres should be greater than or equal to legume acres.", "") ->  | V23: =IF(COUNTA('Milk exports'!U9)=0, "Good", _xlfn.TEXTJOIN(CHAR(10), TRUE,'Milk exports'!U9)) -> Milk: Missing lbs milk exported , Missing milk protein % , Missing milk fat % , Missing milk MUN | X23: =IF(COUNTA('Animal exports'!T8:T18)=0, "Good", _xlfn.TEXTJOIN(CHAR(10), TRUE,'Animal exports'!T8:T18)) ->  | Z23: =IF(COUNTA('Crop exports'!AA7:AA29)=0, "Good", _xlfn.TEXTJOIN(CHAR(10), TRUE,'Crop exports'!AA7:AA29)) ->  | AB23: =IF(COUNTA('Miscellaneous exports'!AB8:AB25)=0, "", _xlfn.TEXTJOIN(CHAR(10), TRUE,'Miscellaneous exports'!AB8:AB25)) ->  | AD23: =IF( LEN(TRIM(CLEAN(_xlfn.TEXTJOIN("", TRUE, 'Manure management'!V7:V16))))=0, "", _xlfn.TEXTJOIN(CHAR(10), TRUE, 'Manure management'!V7:V16) ) -> 
C24: Acres receiving manure (crop and pasture) | I24: How many acres received manure in the assessment year?
C25: Milk marketing co-operative | I25: =IF(G22<G24, "Tillable acres should be greater than or equal to acres receiving manure.", "") -> 
C27: Watershed | I27: Soil Type
C28: Primary watershed | I28: Primary soil type
C29: Secondary watershed | I29: Secondary soil type
C31: Have you completed a Cornell Dairy Farm Business Summary (DFBS) for the balance year? | K31: FALSE
C32: Did you complete the Dairy Profit Monitor for the balance year? | K32: FALSE
C33: Have you completed a Farm Credit Business Summary for the balance year? | K33: FALSE
C34: Are you a Certified Organic producer? | K34: FALSE
C35: Intensive grazing (grazed at least 3 months/yr, moved to a new pen every 3 days or more)? | K35: FALSE
C36: Do you have a Comprehensive Nutrient Management Plan (CNMP) for the balance year? | K36: FALSE
C37: Do you have a Cropware plan for the balance year? | K37: FALSE
C39: Notes (any information relevant to the assessment year):
P40: Any notes, such as new barn, growing herd, reducing milkings per day, severe flood damage, animals lost, heifers no longer raised on farm, etc.

Sheet CFT_ESHelper_HERD (hidden)
A1: Weighted average for Milking and Dry (NMB)
A2: Use this sheet to convert animal units from the input sheet into the CFT required categories. | F2: Input sheet animals #s
G3: Cow #s | H3: Weight
F4: Lactating | G4: ='Herd Information'!G10 -> 0 | H4: ='Herd Information'!H10 -> 0
F5: Dry | G5: ='Herd Information'!G11 -> 0 | H5: ='Herd Information'!H11 -> 0
F6: Total | G6: =G4+G5 -> 0 | H6: =((G4*H4)+(G5*H5))/(G6) -> 
A7: Input sheet animal numbers | D7: Number | E7: Weight | F7: AU | H7: Animals sold | L7: Number | M7: weight | N7: AU | P7: Animals purchased | T7: Number | U7: Weight | V7: AU
A8: Milking and Dry Cows | D8: =G6 -> 0 | E8: =H6 ->  | F8: =D8*E8 ->  | H8: Cows | J8: MANUAL INPUT NEEDED | N8: =L8*M8 -> 0 | R8: MANUAL INPUT NEEDED | V8: =T8*U8 -> 0
A9: Heifers: 1-2 yr | D9: ='Herd Information'!G12 -> 0 | E9: ='Herd Information'!H12 -> 0 | F9: =D9*E9 -> 0 | H9: Heifers | N9: 0 | V9: =T9*U9 -> 0
A10: Heifers: 0-1 yr | D10: ='Herd Information'!G13 -> 0 | E10: ='Herd Information'!H13 -> 0 | F10: =D10*E10 -> 0 | H10: Calves | N10: 0 | V10: 0
A11: Heifer Calves: | D11: ='Herd Information'!G14 -> 0 | E11: ='Herd Information'!H14 -> 0 | F11: =D11*E11 -> 0 | N11: 0 | T11: =SUM(T8) -> 0 | V11: =SUM(V8) -> 0
A12: Bulls and Steers | D12: ='Herd Information'!G15 -> 0 | E12: ='Herd Information'!H15 -> 0 | F12: =D12*E12 -> 0 | N12: 0
D13: =SUM(D8:D12) -> 0 | F13: =SUM(F8:F12) ->  | N13: 0
L14: =SUM(L8:L10,L13) -> 0 | N14: =SUM(N8:N10,N13) -> 0
D15: ↓ Use these in CFT: ↓
A16: CFT animal numbers | D16: Number | E16: Weight | F16: AU | H16: CFT Sold animal numbers | L16: Number | M16: Weight | N16: AU | P16: CFT Purchased animal numbers | T16: Number | U16: Weight | V16: AU
A17: Dairy calves | D17: =SUM(D10:D11) -> 0 | E17: =F17/D17 ->  | F17: =SUM(F10:F11) -> 0 | H17: Dairy calves | M17: =N17/L17 ->  | P17: Dairy calves | U17: =V17/T17 -> 
A18: Heifers | D18: =SUM(D9) -> 0 | E18: =F18/D18 ->  | F18: =SUM(F9) -> 0 | H18: Heifers | L18: =SUM(L9) -> 0 | M18: =N18/L18 ->  | N18: =SUM(N9) -> 0 | P18: Heifers | U18: =V18/T18 -> 
A19: Milk cows | D19: =G4 -> 0 | E19: =H4 -> 0 | F19: =F8*0.85 ->  | H19: Milk cows | L19: =L8 -> 0 | M19: =N19/L19 ->  | N19: =N8 -> 0 | P19: Milk cows | U19: =V19/T19 -> 
A20: Dry cows | D20: =G5 -> 0 | E20: =H5 -> 0 | F20: =F8*0.15 ->  | H20: Dry cows | M20: =N20/L20 ->  | P20: Dry cows | U20: =V20/T20 -> 
A21: Meat calves | D21: =L10/365*3 -> 0 | E21: =M10 -> 0 | F21: =E21*D21 -> 0 | H21: Meat calves | L21: =L10 -> 0 | M21: =N21/L21 ->  | N21: =N10 -> 0 | P21: Meat calves | U21: =V21/T21 ->  | V21: =N20 -> 0
D22: =SUM(D17:D20) -> 0 | F22: =SUM(F17:F20) ->  | L22: =SUM(L17:L21) -> 0 | N22: =SUM(N17:N21) -> 0 | T22: =SUM(T17:T21) -> 0 | V22: =SUM(V17:V21) -> 0
A24: FARMES Conversion | J24: Herd Helper instructions
A25: Group | C25: Number | D25: Average adult weight | J25: This sheet is used to determine the adjusted herd numbers for CFT and Farm ES. This is due to the differences in animal categories between the input sheet, CFT, and Farm ES- all define animal categories slightly different. Use the animal numbers and weights in the blue boxes(CFT) and purple boxes (ES). The sheet autofills from the Herd Info sheet, but if the farm has sold or imported animals, you will need to enter the animal #s and weights in the white boxes above. Make sure to check that the autofilled herd info (green box) is correct.
A26: Lactating and Dry Cows | C26: =D8 -> 0 | D26: =E8 -> 
A27: Heifers | C27: =SUM(D9:D10) -> 0 | D27: -
A28: Calves | C28: =D11 -> 0 | D28: -

Sheet Herd Information
C5: Herd Information
C6: Average number and weight of farm livestock
C7: Are any off-farm animals included in animal numbers? | G7: FALSE | H7: =IF(G7=TRUE, "Please remove off-farm heifers from herd totals and add to the 'Are animals raised off-farm?' section below.", "") -> 
C8: Animal group | G8: Number | H8: Weight | I8: Max pen stocking density % | V8: Flowchart for choosing where to include off-farm animals: | W8: Group | X8: Number | Y8: Weughts | Z8: Concat
H9: lb / head | W9: =D10 -> Lactating cows | X9: =IF(ISBLANK(G10), "Missing animal numbers", "Good") -> Missing animal numbers | Y9: =IF(ISBLANK(H10), "Missing animal weights", "Good") -> Missing animal weights | Z9: =IF(SUMPRODUCT(--ISNUMBER(SEARCH("No animals imported", X9:Y9)))>0, "", IF(SUMPRODUCT(--ISNUMBER(SEARCH("missing", X9:Y9)))>0, W9 & ": " & _xlfn.TEXTJOIN(" , ", TRUE, _xlfn._xlws.FILTER(X9:Y9, ISNUMBER(SEARCH("missing", X9:Y9)))), "")) -> Lactating cows: Missing animal numbers , Missing animal weights
C10: Cattle | D10: Lactating cows | K10: =IF(AND(ISBLANK(G10), ISBLANK(H10)), "", IF(OR(H10<800, H10>2000), "Lactating cow weights correct?", "")) ->  | L10: Dairy cow breed(s) | W10: =D11 -> Dry cows | X10: =IF(ISBLANK(G11), "Missing animal numbers", "Good") -> Missing animal numbers | Y10: =IF(ISBLANK(H11), "Missing animal weights", "Good") -> Missing animal weights | Z10: =IF(SUMPRODUCT(--ISNUMBER(SEARCH("No animals imported", X10:Y10)))>0, "", IF(SUMPRODUCT(--ISNUMBER(SEARCH("missing", X10:Y10)))>0, W10 & ": " & _xlfn.TEXTJOIN(" , ", TRUE, _xlfn._xlws.FILTER(X10:Y10, ISNUMBER(SEARCH("missing", X10:Y10)))), "")) -> Dry cows: Missing animal numbers , Missing animal weights
D11: Dry cows | K11: =IF(AND(ISBLANK(G11),ISBLANK(H11)),"",IF(OR(H11<800,H11>2000),"Dry cow weights correct?","")) ->  | W11: Heifers: breeding to first calving | X11: Missing animal numbers | Y11: =IF(ISBLANK(H12), "Missing animal weights", "Good") -> Missing animal weights | Z11: =IF(SUMPRODUCT(--ISNUMBER(SEARCH("No animals imported", X11:Y11)))>0, "", IF(SUMPRODUCT(--ISNUMBER(SEARCH("missing", X11:Y11)))>0, W11 & ": " & _xlfn.TEXTJOIN(" , ", TRUE, _xlfn._xlws.FILTER(X11:Y11, ISNUMBER(SEARCH("missing", X11:Y11)))), "")) -> Heifers: breeding to first calving: Missing animal numbers , Missing animal weights
D12: Heifers: breeding to first calving | K12: =IF(AND(ISBLANK(G12), ISBLANK(H12)), "", IF(OR(H12<450, H12>1200), "Heifer weights correct?", "")) ->  | L12: Cull rate (%) | N12: Death rate (%) | W12: Heifers: weaning to breeding | X12: Missing animal numbers | Y12: Missing animal weights | Z12: =IF(SUMPRODUCT(--ISNUMBER(SEARCH("No animals imported", X12:Y12)))>0, "", IF(SUMPRODUCT(--ISNUMBER(SEARCH("missing", X12:Y12)))>0, W12 & ": " & _xlfn.TEXTJOIN(" , ", TRUE, _xlfn._xlws.FILTER(X12:Y12, ISNUMBER(SEARCH("missing", X12:Y12)))), "")) -> Heifers: weaning to breeding: Missing animal numbers , Missing animal weights
D13: Heifers: weaning to breeding | K13: =IF(AND(ISBLANK(G13), ISBLANK(H13)), "", IF(OR(H13<150, H13>600), "Heifer weights correct?", "")) ->  | L13: Average SCC | W13: Calves (pre-weaning) | X13: Missing animal numbers | Y13: Missing animal weights | Z13: =IF(SUMPRODUCT(--ISNUMBER(SEARCH("No animals imported", X13:Y13)))>0, "", IF(SUMPRODUCT(--ISNUMBER(SEARCH("missing", X13:Y13)))>0, W13 & ": " & _xlfn.TEXTJOIN(" , ", TRUE, _xlfn._xlws.FILTER(X13:Y13, ISNUMBER(SEARCH("missing", X13:Y13)))), "")) -> Calves (pre-weaning): Missing animal numbers , Missing animal weights
D14: Calves (pre-weaning) | K14: =IF(AND(ISBLANK(G14), ISBLANK(H14)), "", IF(OR(H14<50, H14>300), "Calf weights correct?", "")) ->  | W14: Bulls and steers | X14: Missing animal numbers | Y14: Missing animal weights | Z14: =IF(SUMPRODUCT(--ISNUMBER(SEARCH("No animals imported", X14:Y14)))>0, "", IF(SUMPRODUCT(--ISNUMBER(SEARCH("missing", X14:Y14)))>0, W14 & ": " & _xlfn.TEXTJOIN(" , ", TRUE, _xlfn._xlws.FILTER(X14:Y14, ISNUMBER(SEARCH("missing", X14:Y14)))), "")) -> Bulls and steers: Missing animal numbers , Missing animal weights
D15: Bulls and steers
C16: Other livestock | I16: Animal density: | K16: =IFERROR( _xlfn.CONCAT( ROUND(SUMPRODUCT(G10:G20,H10:H20)/1000/'General Information'!G22, 2), " animal units per tillable acre" ), " " ) -> 
K17: =IFERROR( _xlfn.CONCAT( ROUND('General Information'!G22/(SUMPRODUCT(G10:G20,H10:H20)/1000), 2), " acres per animal unit" ), " " ) -> 
I19: Does animal density look correct? | K19: If not, check animal numbers and weights, and total tillable acres (General Information).
I20: 1 animal unit = 1000 lb live animal weight. One cow and her replacement = 2 animal units.
C22: Are animals raised off-farm? | E22: TRUE
C23: =IF($E$22=TRUE,"Age range","") -> Age range | D23: =IF($E$22=TRUE,"Number","") -> Number | E23: =IF($E$22=TRUE,"Period of time off-farm(months)","") -> Period of time off-farm(months) | H23: =IF($E$22=TRUE, "Do you supply feed?","") -> Do you supply feed? | I23: =IF($E$22=TRUE, "Do you handle manure?","") -> Do you handle manure? | J23: Are these animals included in your herd inventory above?
H25: FALSE | I25: FALSE | J25: FALSE | L25: Notes on how heifers are raised off farm or extra information:
H26: FALSE | I26: FALSE
H27: FALSE | I27: FALSE
H28: FALSE | I28: FALSE
H29: FALSE | I29: FALSE
C30: Note:Any heifers leaving and/or returning to the farm need to be listed as animal exports and/or imports.
H31: *please ensure that off-farm animal manure is inputted in the manure sections

Sheet Farm Crop Production
C5: Farm Crop Production - all crops grown on the farm, including double crops, cover crops and sold crops
C6: Crop | E6: Type | F6: Legume % | H6: Area | I6: Approx. plant date | J6: Approx harvest date | K6: Manure applied? | L6: If corn grain: Stover removed? | M6: Use book values? | N6: CP | O6: P | P6: K | Q6: SUM | R6: %NDF | V6: Yield | X6: Units | Y6: Total tons or bu -> tons or bu/ac | Z6: Tons/ac (conversion) | AA6: DM | AB6: Any crop sold? | AC6: Beginning Year | AD6: End Year
H7: acres | N7: %DM | O7: %DM | P7: %DM | AA7: % | AC7: DM tons | AD7: DM tons
K8: FALSE | L8: FALSE | M8: FALSE | N8: =IF($M8=TRUE, _xlfn.XLOOKUP("*"&$C8&"*",'Feed book values'!$A$2:$A$159,'Feed book values'!$C$2:$C$159,"Book value not found",2,1), "") ->  | O8: =IF($M8=TRUE, _xlfn.XLOOKUP("*"&$C8&"*",Table3[Crop], Table3[P],"Book value not found",2,1), "") ->  | P8: =IF($M8=TRUE, _xlfn.XLOOKUP("*"&$C8&"*",Table3[Crop], Table3[K],"Book value not found",2,1), "") ->  | Q8: =SUM(N8:P8) -> 0 | Y8: =IF(OR(X8="total tons", X8="total bushels"), V8/H8,V8) -> 0 | Z8: =IF(AND(OR(C8="Corn silage",C8="Wheat",C8="Triticale", C8= "Rye", C8="Corn grain", C8="Oats"), OR(X8="bu/ac",X8="bushels/ac")), (Y8*56)/2000, Y8) -> 0 | AA8: =IF($M8=TRUE, _xlfn.XLOOKUP("*"&$C8&"*",Table3[Crop], Table3[DM],"Book value not found",2,1), "") ->  | AB8: FALSE | AE8: =IF((V8*H8)<(AD8-AC8), "Is yeild and/or inventory correct?","") ->  | AF8: Comments:
K9: FALSE | L9: FALSE | M9: FALSE | N9: =IF($M9=TRUE, _xlfn.XLOOKUP("*"&$C9&"*",'Feed book values'!$A$2:$A$159,'Feed book values'!$C$2:$C$159,"Book value not found",2,1), "") ->  | O9: =IF($M9=TRUE, _xlfn.XLOOKUP("*"&$C9&"*",Table3[Crop], Table3[P],"Book value not found",2,1), "") ->  | P9: =IF($M9=TRUE, _xlfn.XLOOKUP("*"&$C9&"*",Table3[Crop], Table3[K],"Book value not found",2,1), "") ->  | Q9: 0 | Y9: =IF(OR(X9="total tons", X9="total bushels"), V9/H9,V9) -> 0 | Z9: =IF(AND(OR(C9="Corn silage",C9="Wheat",C9="Triticale", C9= "Rye", C9="Corn grain", C9="Oats"), OR(X9="bu/ac",X9="bushels/ac")), (Y9*56)/2000, Y9) -> 0 | AA9: =IF($M9=TRUE, _xlfn.XLOOKUP("*"&$C9&"*",Table3[Crop], Table3[DM],"Book value not found",2,1), "") ->  | AB9: FALSE | AE9: =IF((V9*H9)<(AD9-AC9), "Is yeild and/or inventory correct?","") ->  | AL9: bu/ac
K10: FALSE | L10: FALSE | M10: FALSE | N10: =IF($M10=TRUE, _xlfn.XLOOKUP("*"&$C10&"*",'Feed book values'!$A$2:$A$159,'Feed book values'!$C$2:$C$159,"Book value not found",2,1), "") ->  | O10: =IF($M10=TRUE, _xlfn.XLOOKUP("*"&$C10&"*",Table3[Crop], Table3[P],"Book value not found",2,1), "") ->  | P10: =IF($M10=TRUE, _xlfn.XLOOKUP("*"&$C10&"*",Table3[Crop], Table3[K],"Book value not found",2,1), "") ->  | Q10: 0 | Y10: 0 | Z10: 0 | AA10: =IF($M10=TRUE, _xlfn.XLOOKUP("*"&$C10&"*",Table3[Crop], Table3[DM],"Book value not found",2,1), "") ->  | AB10: FALSE | AL10: tons/ac
K11: FALSE | L11: FALSE | M11: FALSE | N11: =IF($M11=TRUE, _xlfn.XLOOKUP("*"&$C11&"*",'Feed book values'!$A$2:$A$159,'Feed book values'!$C$2:$C$159,"Book value not found",2,1), "") ->  | O11: =IF($M11=TRUE, _xlfn.XLOOKUP("*"&$C11&"*",Table3[Crop], Table3[P],"Book value not found",2,1), "") ->  | P11: =IF($M11=TRUE, _xlfn.XLOOKUP("*"&$C11&"*",Table3[Crop], Table3[K],"Book value not found",2,1), "") ->  | Q11: 0 | Y11: 0 | Z11: 0 | AA11: =IF($M11=TRUE, _xlfn.XLOOKUP("*"&$C11&"*",Table3[Crop], Table3[DM],"Book value not found",2,1), "") ->  | AB11: FALSE | AL11: total tons
K12: FALSE | L12: FALSE | M12: FALSE | N12: =IF($M12=TRUE, _xlfn.XLOOKUP("*"&$C12&"*",'Feed book values'!$A$2:$A$159,'Feed book values'!$C$2:$C$159,"Book value not found",2,1), "") ->  | O12: =IF($M12=TRUE, _xlfn.XLOOKUP("*"&$C12&"*",Table3[Crop], Table3[P],"Book value not found",2,1), "") ->  | P12: =IF($M12=TRUE, _xlfn.XLOOKUP("*"&$C12&"*",Table3[Crop], Table3[K],"Book value not found",2,1), "") ->  | Q12: 0 | Y12: 0 | Z12: 0 | AA12: =IF($M12=TRUE, _xlfn.XLOOKUP("*"&$C12&"*",Table3[Crop], Table3[DM],"Book value not found",2,1), "") ->  | AB12: FALSE | AL12: total bushels
K13: FALSE | L13: FALSE | M13: FALSE | N13: =IF($M13=TRUE, _xlfn.XLOOKUP("*"&$C13&"*",'Feed book values'!$A$2:$A$159,'Feed book values'!$C$2:$C$159,"Book value not found",2,1), "") ->  | O13: =IF($M13=TRUE, _xlfn.XLOOKUP("*"&$C13&"*",Table3[Crop], Table3[P],"Book value not found",2,1), "") ->  | P13: =IF($M13=TRUE, _xlfn.XLOOKUP("*"&$C13&"*",Table3[Crop], Table3[K],"Book value not found",2,1), "") ->  | Q13: 0 | Y13: 0 | Z13: 0 | AA13: =IF($M13=TRUE, _xlfn.XLOOKUP("*"&$C13&"*",Table3[Crop], Table3[DM],"Book value not found",2,1), "") ->  | AB13: FALSE
K14: FALSE | L14: FALSE | M14: FALSE | N14: =IF($M14=TRUE, _xlfn.XLOOKUP("*"&$C14&"*",'Feed book values'!$A$2:$A$159,'Feed book values'!$C$2:$C$159,"Book value not found",2,1), "") ->  | O14: =IF($M14=TRUE, _xlfn.XLOOKUP("*"&$C14&"*",Table3[Crop], Table3[P],"Book value not found",2,1), "") ->  | P14: =IF($M14=TRUE, _xlfn.XLOOKUP("*"&$C14&"*",Table3[Crop], Table3[K],"Book value not found",2,1), "") ->  | Q14: 0 | Y14: 0 | Z14: 0 | AA14: =IF($M14=TRUE, _xlfn.XLOOKUP("*"&$C14&"*",Table3[Crop], Table3[DM],"Book value not found",2,1), "") ->  | AB14: FALSE
K15: FALSE | L15: FALSE | M15: FALSE | N15: =IF($M15=TRUE, _xlfn.XLOOKUP("*"&$C15&"*",'Feed book values'!$A$2:$A$159,'Feed book values'!$C$2:$C$159,"Book value not found",2,1), "") ->  | O15: =IF($M15=TRUE, _xlfn.XLOOKUP("*"&$C15&"*",Table3[Crop], Table3[P],"Book value not found",2,1), "") ->  | P15: =IF($M15=TRUE, _xlfn.XLOOKUP("*"&$C15&"*",Table3[Crop], Table3[K],"Book value not found",2,1), "") ->  | Q15: 0 | Y15: 0 | Z15: 0 | AA15: =IF($M15=TRUE, _xlfn.XLOOKUP("*"&$C15&"*",Table3[Crop], Table3[DM],"Book value not found",2,1), "") ->  | AB15: FALSE
K16: FALSE | L16: FALSE | M16: FALSE | N16: =IF($M16=TRUE, _xlfn.XLOOKUP("*"&$C16&"*",'Feed book values'!$A$2:$A$159,'Feed book values'!$C$2:$C$159,"Book value not found",2,1), "") ->  | O16: =IF($M16=TRUE, _xlfn.XLOOKUP("*"&$C16&"*",Table3[Crop], Table3[P],"Book value not found",2,1), "") ->  | P16: =IF($M16=TRUE, _xlfn.XLOOKUP("*"&$C16&"*",Table3[Crop], Table3[K],"Book value not found",2,1), "") ->  | Q16: 0 | Y16: 0 | Z16: 0 | AA16: =IF($M16=TRUE, _xlfn.XLOOKUP("*"&$C16&"*",Table3[Crop], Table3[DM],"Book value not found",2,1), "") ->  | AB16: FALSE
K17: FALSE | L17: FALSE | M17: FALSE | N17: =IF($M17=TRUE, _xlfn.XLOOKUP("*"&$C17&"*",'Feed book values'!$A$2:$A$159,'Feed book values'!$C$2:$C$159,"Book value not found",2,1), "") ->  | O17: =IF($M17=TRUE, _xlfn.XLOOKUP("*"&$C17&"*",Table3[Crop], Table3[P],"Book value not found",2,1), "") ->  | P17: =IF($M17=TRUE, _xlfn.XLOOKUP("*"&$C17&"*",Table3[Crop], Table3[K],"Book value not found",2,1), "") ->  | Q17: 0 | Y17: 0 | Z17: 0 | AA17: =IF($M17=TRUE, _xlfn.XLOOKUP("*"&$C17&"*",Table3[Crop], Table3[DM],"Book value not found",2,1), "") ->  | AB17: FALSE
K18: FALSE | L18: FALSE | M18: FALSE | N18: =IF($M18=TRUE, _xlfn.XLOOKUP("*"&$C18&"*",'Feed book values'!$A$2:$A$159,'Feed book values'!$C$2:$C$159,"Book value not found",2,1), "") ->  | O18: =IF($M18=TRUE, _xlfn.XLOOKUP("*"&$C18&"*",Table3[Crop], Table3[P],"Book value not found",2,1), "") ->  | P18: =IF($M18=TRUE, _xlfn.XLOOKUP("*"&$C18&"*",Table3[Crop], Table3[K],"Book value not found",2,1), "") ->  | Q18: 0 | Y18: 0 | Z18: 0 | AA18: =IF($M18=TRUE, _xlfn.XLOOKUP("*"&$C18&"*",Table3[Crop], Table3[DM],"Book value not found",2,1), "") ->  | AB18: FALSE
K19: FALSE | L19: FALSE | M19: FALSE | N19: =IF($M19=TRUE, _xlfn.XLOOKUP("*"&$C19&"*",'Feed book values'!$A$2:$A$159,'Feed book values'!$C$2:$C$159,"Book value not found",2,1), "") ->  | O19: =IF($M19=TRUE, _xlfn.XLOOKUP("*"&$C19&"*",Table3[Crop], Table3[P],"Book value not found",2,1), "") ->  | P19: =IF($M19=TRUE, _xlfn.XLOOKUP("*"&$C19&"*",Table3[Crop], Table3[K],"Book value not found",2,1), "") ->  | Q19: 0 | Y19: 0 | Z19: 0 | AA19: =IF($M19=TRUE, _xlfn.XLOOKUP("*"&$C19&"*",Table3[Crop], Table3[DM],"Book value not found",2,1), "") ->  | AB19: FALSE
K20: FALSE | L20: FALSE | M20: FALSE | N20: =IF($M20=TRUE, _xlfn.XLOOKUP("*"&$C20&"*",'Feed book values'!$A$2:$A$159,'Feed book values'!$C$2:$C$159,"Book value not found",2,1), "") ->  | O20: =IF($M20=TRUE, _xlfn.XLOOKUP("*"&$C20&"*",Table3[Crop], Table3[P],"Book value not found",2,1), "") ->  | P20: =IF($M20=TRUE, _xlfn.XLOOKUP("*"&$C20&"*",Table3[Crop], Table3[K],"Book value not found",2,1), "") ->  | Q20: 0 | Y20: 0 | Z20: 0 | AA20: =IF($M20=TRUE, _xlfn.XLOOKUP("*"&$C20&"*",Table3[Crop], Table3[DM],"Book value not found",2,1), "") ->  | AB20: FALSE | AN20: Crop | AO20: Acres | AP20: CP | AQ20: P | AR20: K | AS20: NDF | AT20: YIELD | AU20: DM | AV20: Concat
K21: FALSE | L21: FALSE | M21: FALSE | N21: =IF($M21=TRUE, _xlfn.XLOOKUP("*"&$C21&"*",'Feed book values'!$A$2:$A$159,'Feed book values'!$C$2:$C$159,"Book value not found",2,1), "") ->  | O21: =IF($M21=TRUE, _xlfn.XLOOKUP("*"&$C21&"*",Table3[Crop], Table3[P],"Book value not found",2,1), "") ->  | P21: =IF($M21=TRUE, _xlfn.XLOOKUP("*"&$C21&"*",Table3[Crop], Table3[K],"Book value not found",2,1), "") ->  | Q21: 0 | Y21: =IF(OR(X21="total tons", X21="total bushels"), V21/H21,V21) -> 0 | Z21: 0 | AA21: =IF($M21=TRUE, _xlfn.XLOOKUP("*"&$C21&"*",Table3[Crop], Table3[DM],"Book value not found",2,1), "") ->  | AB21: FALSE | AN21: =C8 -> 0 | AO21: =IF($C8="","No crop", IF($H8="","%K missing","Good")) -> No crop | AP21: =IF($C8="","No crop", IF($N8="","%CP missing","Good")) -> No crop | AQ21: =IF($C8="","No crop", IF($O8="","%P missing","Good")) -> No crop | AR21: =IF($C8="","No crop", IF($P8="","%K missing","Good")) -> No crop | AS21: =IF($C8="","No crop", IF($R8="","%NDF missing","Good")) -> No crop | AT21: =IF($C8="","No crop", IF($V8="","Yield missing","Good")) -> No crop | AU21: =IF($C8="","No crop", IF($AA8="","DM missing","Good")) -> No crop | AV21: =IF(SUMPRODUCT(--ISNUMBER(SEARCH("No crop", AO21:AU21)))>0, "", IF(SUMPRODUCT(--ISNUMBER(SEARCH("missing", AO21:AU21)))>0, AN21 & ": " & _xlfn.TEXTJOIN(" ,", TRUE, _xlfn._xlws.FILTER(AO21:AU21, ISNUMBER(SEARCH("missing", AO21:AU21)))), "")) -> 
K22: FALSE | L22: FALSE | M22: FALSE | N22: =IF($M22=TRUE, _xlfn.XLOOKUP("*"&$C22&"*",'Feed book values'!$A$2:$A$159,'Feed book values'!$C$2:$C$159,"Book value not found",2,1), "") ->  | O22: =IF($M22=TRUE, _xlfn.XLOOKUP("*"&$C22&"*",Table3[Crop], Table3[P],"Book value not found",2,1), "") ->  | P22: =IF($M22=TRUE, _xlfn.XLOOKUP("*"&$C22&"*",Table3[Crop], Table3[K],"Book value not found",2,1), "") ->  | Q22: 0 | Y22: 0 | Z22: 0 | AA22: =IF($M22=TRUE, _xlfn.XLOOKUP("*"&$C22&"*",Table3[Crop], Table3[DM],"Book value not found",2,1), "") ->  | AB22: FALSE | AN22: 0 | AO22: =IF($C9="","No crop", IF($H9="","%K missing","Good")) -> No crop | AP22: =IF($C9="","No crop", IF($N9="","%CP missing","Good")) -> No crop | AQ22: =IF($C9="","No crop", IF($O9="","%P missing","Good")) -> No crop | AR22: =IF($C9="","No crop", IF($P9="","%K missing","Good")) -> No crop | AS22: =IF($C9="","No crop", IF($R9="","%NDF missing","Good")) -> No crop | AT22: =IF($C9="","No crop", IF($V9="","Yield missing","Good")) -> No crop | AU22: =IF($C9="","No crop", IF($AA9="","DM missing","Good")) -> No crop | AV22: =IF(SUMPRODUCT(--ISNUMBER(SEARCH("No crop", AO22:AU22)))>0, "", IF(SUMPRODUCT(--ISNUMBER(SEARCH("missing", AO22:AU22)))>0, AN22 & ": " & _xlfn.TEXTJOIN(" ,", TRUE, _xlfn._xlws.FILTER(AO22:AU22, ISNUMBER(SEARCH("missing", AO22:AU22)))), "")) ->  | AZ22: =_xlfn.CONCAT(AW21:AW50) -> 
K23: FALSE | L23: FALSE | M23: FALSE | N23: =IF($M23=TRUE, _xlfn.XLOOKUP("*"&$C23&"*",'Feed book values'!$A$2:$A$159,'Feed book values'!$C$2:$C$159,"Book value not found",2,1), "") ->  | O23: =IF($M23=TRUE, _xlfn.XLOOKUP("*"&$C23&"*",Table3[Crop], Table3[P],"Book value not found",2,1), "") ->  | P23: =IF($M23=TRUE, _xlfn.XLOOKUP("*"&$C23&"*",Table3[Crop], Table3[K],"Book value not found",2,1), "") ->  | Q23: 0 | Y23: 0 | Z23: 0 | AA23: =IF($M23=TRUE, _xlfn.XLOOKUP("*"&$C23&"*",Table3[Crop], Table3[DM],"Book value not found",2,1), "") ->  | AB23: FALSE | AN23: 0 | AO23: No crop | AP23: No crop | AQ23: No crop | AR23: No crop | AS23: No crop | AT23: No crop | AU23: No crop | AV23: =IF(SUMPRODUCT(--ISNUMBER(SEARCH("No crop", AO23:AU23)))>0, "", IF(SUMPRODUCT(--ISNUMBER(SEARCH("missing", AO23:AU23)))>0, AN23 & ": " & _xlfn.TEXTJOIN(" ,", TRUE, _xlfn._xlws.FILTER(AO23:AU23, ISNUMBER(SEARCH("missing", AO23:AU23)))), "")) -> 
K24: FALSE | L24: FALSE | M24: FALSE | N24: =IF($M24=TRUE, _xlfn.XLOOKUP("*"&$C24&"*",'Feed book values'!$A$2:$A$159,'Feed book values'!$C$2:$C$159,"Book value not found",2,1), "") ->  | O24: =IF($M24=TRUE, _xlfn.XLOOKUP("*"&$C24&"*",Table3[Crop], Table3[P],"Book value not found",2,1), "") ->  | P24: =IF($M24=TRUE, _xlfn.XLOOKUP("*"&$C24&"*",Table3[Crop], Table3[K],"Book value not found",2,1), "") ->  | Q24: 0 | Y24: 0 | Z24: 0 | AA24: =IF($M24=TRUE, _xlfn.XLOOKUP("*"&$C24&"*",Table3[Crop], Table3[DM],"Book value not found",2,1), "") ->  | AB24: FALSE | AN24: 0 | AO24: No crop | AP24: No crop | AQ24: No crop | AR24: No crop | AS24: No crop | AT24: No crop | AU24: No crop | AV24: =IF(SUMPRODUCT(--ISNUMBER(SEARCH("No crop", AO24:AU24)))>0, "", IF(SUMPRODUCT(--ISNUMBER(SEARCH("missing", AO24:AU24)))>0, AN24 & ": " & _xlfn.TEXTJOIN(" ,", TRUE, _xlfn._xlws.FILTER(AO24:AU24, ISNUMBER(SEARCH("missing", AO24:AU24)))), "")) -> 
K25: FALSE | L25: FALSE | M25: FALSE | N25: =IF($M25=TRUE, _xlfn.XLOOKUP("*"&$C25&"*",'Feed book values'!$A$2:$A$159,'Feed book values'!$C$2:$C$159,"Book value not found",2,1), "") ->  | O25: =IF($M25=TRUE, _xlfn.XLOOKUP("*"&$C25&"*",Table3[Crop], Table3[P],"Book value not found",2,1), "") ->  | P25: =IF($M25=TRUE, _xlfn.XLOOKUP("*"&$C25&"*",Table3[Crop], Table3[K],"Book value not found",2,1), "") ->  | Q25: 0 | Y25: 0 | Z25: 0 | AA25: =IF($M25=TRUE, _xlfn.XLOOKUP("*"&$C25&"*",Table3[Crop], Table3[DM],"Book value not found",2,1), "") ->  | AB25: FALSE | AN25: 0 | AO25: No crop | AP25: No crop | AQ25: No crop | AR25: No crop | AS25: No crop | AT25: No crop | AU25: No crop | AV25: =IF(SUMPRODUCT(--ISNUMBER(SEARCH("No crop", AO25:AU25)))>0, "", IF(SUMPRODUCT(--ISNUMBER(SEARCH("missing", AO25:AU25)))>0, AN25 & ": " & _xlfn.TEXTJOIN(" ,", TRUE, _xlfn._xlws.FILTER(AO25:AU25, ISNUMBER(SEARCH("missing", AO25:AU25)))), "")) -> 
K26: FALSE | L26: FALSE | M26: FALSE | N26: =IF($M26=TRUE, _xlfn.XLOOKUP("*"&$C26&"*",'Feed book values'!$A$2:$A$159,'Feed book values'!$C$2:$C$159,"Book value not found",2,1), "") ->  | O26: =IF($M26=TRUE, _xlfn.XLOOKUP("*"&$C26&"*",Table3[Crop], Table3[P],"Book value not found",2,1), "") ->  | P26: =IF($M26=TRUE, _xlfn.XLOOKUP("*"&$C26&"*",Table3[Crop], Table3[K],"Book value not found",2,1), "") ->  | Q26: 0 | Y26: 0 | Z26: 0 | AA26: =IF($M26=TRUE, _xlfn.XLOOKUP("*"&$C26&"*",Table3[Crop], Table3[DM],"Book value not found",2,1), "") ->  | AB26: FALSE | AN26: 0 | AO26: No crop | AP26: No crop | AQ26: No crop | AR26: No crop | AS26: No crop | AT26: No crop | AU26: No crop | AV26: =IF(SUMPRODUCT(--ISNUMBER(SEARCH("No crop", AO26:AU26)))>0, "", IF(SUMPRODUCT(--ISNUMBER(SEARCH("missing", AO26:AU26)))>0, AN26 & ": " & _xlfn.TEXTJOIN(" ,", TRUE, _xlfn._xlws.FILTER(AO26:AU26, ISNUMBER(SEARCH("missing", AO26:AU26)))), "")) -> 
K27: FALSE | L27: FALSE | M27: FALSE | N27: =IF($M27=TRUE, _xlfn.XLOOKUP("*"&$C27&"*",'Feed book values'!$A$2:$A$159,'Feed book values'!$C$2:$C$159,"Book value not found",2,1), "") ->  | O27: =IF($M27=TRUE, _xlfn.XLOOKUP("*"&$C27&"*",Table3[Crop], Table3[P],"Book value not found",2,1), "") ->  | P27: =IF($M27=TRUE, _xlfn.XLOOKUP("*"&$C27&"*",Table3[Crop], Table3[K],"Book value not found",2,1), "") ->  | Q27: 0 | Y27: 0 | Z27: 0 | AA27: =IF($M27=TRUE, _xlfn.XLOOKUP("*"&$C27&"*",Table3[Crop], Table3[DM],"Book value not found",2,1), "") ->  | AB27: FALSE | AN27: 0 | AO27: No crop | AP27: No crop | AQ27: No crop | AR27: No crop | AS27: No crop | AT27: No crop | AU27: No crop | AV27: =IF(SUMPRODUCT(--ISNUMBER(SEARCH("No crop", AO27:AU27)))>0, "", IF(SUMPRODUCT(--ISNUMBER(SEARCH("missing", AO27:AU27)))>0, AN27 & ": " & _xlfn.TEXTJOIN(" ,", TRUE, _xlfn._xlws.FILTER(AO27:AU27, ISNUMBER(SEARCH("missing", AO27:AU27)))), "")) -> 
K28: FALSE | L28: FALSE | M28: FALSE | N28: =IF($M28=TRUE, _xlfn.XLOOKUP("*"&$C28&"*",'Feed book values'!$A$2:$A$159,'Feed book values'!$C$2:$C$159,"Book value not found",2,1), "") ->  | O28: =IF($M28=TRUE, _xlfn.XLOOKUP("*"&$C28&"*",Table3[Crop], Table3[P],"Book value not found",2,1), "") ->  | P28: =IF($M28=TRUE, _xlfn.XLOOKUP("*"&$C28&"*",Table3[Crop], Table3[K],"Book value not found",2,1), "") ->  | Q28: 0 | Y28: 0 | Z28: 0 | AA28: =IF($M28=TRUE, _xlfn.XLOOKUP("*"&$C28&"*",Table3[Crop], Table3[DM],"Book value not found",2,1), "") ->  | AB28: FALSE | AN28: 0 | AO28: No crop | AP28: No crop | AQ28: No crop | AR28: No crop | AS28: No crop | AT28: No crop | AU28: No crop | AV28: =IF(SUMPRODUCT(--ISNUMBER(SEARCH("No crop", AO28:AU28)))>0, "", IF(SUMPRODUCT(--ISNUMBER(SEARCH("missing", AO28:AU28)))>0, AN28 & ": " & _xlfn.TEXTJOIN(" ,", TRUE, _xlfn._xlws.FILTER(AO28:AU28, ISNUMBER(SEARCH("missing", AO28:AU28)))), "")) -> 
K29: FALSE | L29: FALSE | M29: FALSE | N29: =IF($M29=TRUE, _xlfn.XLOOKUP("*"&$C29&"*",'Feed book values'!$A$2:$A$159,'Feed book values'!$C$2:$C$159,"Book value not found",2,1), "") ->  | O29: =IF($M29=TRUE, _xlfn.XLOOKUP("*"&$C29&"*",Table3[Crop], Table3[P],"Book value not found",2,1), "") ->  | P29: =IF($M29=TRUE, _xlfn.XLOOKUP("*"&$C29&"*",Table3[Crop], Table3[K],"Book value not found",2,1), "") ->  | Q29: 0 | Y29: 0 | Z29: 0 | AA29: =IF($M29=TRUE, _xlfn.XLOOKUP("*"&$C29&"*",Table3[Crop], Table3[DM],"Book value not found",2,1), "") ->  | AB29: FALSE | AN29: 0 | AO29: No crop | AP29: No crop | AQ29: No crop | AR29: No crop | AS29: No crop | AT29: No crop | AU29: No crop | AV29: =IF(SUMPRODUCT(--ISNUMBER(SEARCH("No crop", AO29:AU29)))>0, "", IF(SUMPRODUCT(--ISNUMBER(SEARCH("missing", AO29:AU29)))>0, AN29 & ": " & _xlfn.TEXTJOIN(" ,", TRUE, _xlfn._xlws.FILTER(AO29:AU29, ISNUMBER(SEARCH("missing", AO29:AU29)))), "")) -> 
K30: FALSE | L30: FALSE | M30: FALSE | N30: =IF($M30=TRUE, _xlfn.XLOOKUP("*"&$C30&"*",'Feed book values'!$A$2:$A$159,'Feed book values'!$C$2:$C$159,"Book value not found",2,1), "") ->  | O30: =IF($M30=TRUE, _xlfn.XLOOKUP("*"&$C30&"*",Table3[Crop], Table3[P],"Book value not found",2,1), "") ->  | P30: =IF($M30=TRUE, _xlfn.XLOOKUP("*"&$C30&"*",Table3[Crop], Table3[K],"Book value not found",2,1), "") ->  | Q30: 0 | Y30: 0 | Z30: 0 | AA30: =IF($M30=TRUE, _xlfn.XLOOKUP("*"&$C30&"*",Table3[Crop], Table3[DM],"Book value not found",2,1), "") ->  | AB30: FALSE | AN30: 0 | AO30: No crop | AP30: No crop | AQ30: No crop | AR30: No crop | AS30: No crop | AT30: No crop | AU30: No crop | AV30: =IF(SUMPRODUCT(--ISNUMBER(SEARCH("No crop", AO30:AU30)))>0, "", IF(SUMPRODUCT(--ISNUMBER(SEARCH("missing", AO30:AU30)))>0, AN30 & ": " & _xlfn.TEXTJOIN(" ,", TRUE, _xlfn._xlws.FILTER(AO30:AU30, ISNUMBER(SEARCH("missing", AO30:AU30)))), "")) -> 
K31: FALSE | L31: FALSE | M31: FALSE | N31: =IF($M31=TRUE, _xlfn.XLOOKUP("*"&$C31&"*",'Feed book values'!$A$2:$A$159,'Feed book values'!$C$2:$C$159,"Book value not found",2,1), "") ->  | O31: =IF($M31=TRUE, _xlfn.XLOOKUP("*"&$C31&"*",Table3[Crop], Table3[P],"Book value not found",2,1), "") ->  | P31: =IF($M31=TRUE, _xlfn.XLOOKUP("*"&$C31&"*",Table3[Crop], Table3[K],"Book value not found",2,1), "") ->  | Q31: 0 | Y31: 0 | Z31: 0 | AA31: =IF($M31=TRUE, _xlfn.XLOOKUP("*"&$C31&"*",Table3[Crop], Table3[DM],"Book value not found",2,1), "") ->  | AB31: FALSE | AN31: 0 | AO31: No crop | AP31: No crop | AQ31: No crop | AR31: No crop | AS31: No crop | AT31: No crop | AU31: No crop | AV31: =IF(SUMPRODUCT(--ISNUMBER(SEARCH("No crop", AO31:AU31)))>0, "", IF(SUMPRODUCT(--ISNUMBER(SEARCH("missing", AO31:AU31)))>0, AN31 & ": " & _xlfn.TEXTJOIN(" ,", TRUE, _xlfn._xlws.FILTER(AO31:AU31, ISNUMBER(SEARCH("missing", AO31:AU31)))), "")) -> 
F32: Total acres: | H32: =SUM(H8:H31) -> 0 | I32: Total tillable acres | J32: ='General Information'!$H$32 -> 0 | M32: - Please check that any highlighted values are entered correctly. | P32: Note: If you are trying to enter a number less than 1%, make sure you enter it as 0.XX instead of .XX (ex: enter 0.42 instead of .42). | AN32: =C19 -> 0 | AO32: No crop | AP32: No crop | AQ32: No crop | AR32: No crop | AS32: No crop | AT32: No crop | AU32: No crop | AV32: =IF(SUMPRODUCT(--ISNUMBER(SEARCH("No crop", AO32:AU32)))>0, "", IF(SUMPRODUCT(--ISNUMBER(SEARCH("missing", AO32:AU32)))>0, AN32 & ": " & _xlfn.TEXTJOIN(" ,", TRUE, _xlfn._xlws.FILTER(AO32:AU32, ISNUMBER(SEARCH("missing", AO32:AU32)))), "")) -> 
E33: =IF(H32 <> 'General Information'!G22, "- Please check areas entered here, and Total Tillable Acres on General Information tab.", " ") ->  | AN33: 0 | AO33: No crop | AP33: No crop | AQ33: No crop | AR33: No crop | AS33: No crop | AT33: No crop | AU33: No crop | AV33: =IF(SUMPRODUCT(--ISNUMBER(SEARCH("No crop", AO33:AU33)))>0, "", IF(SUMPRODUCT(--ISNUMBER(SEARCH("missing", AO33:AU33)))>0, AN33 & ": " & _xlfn.TEXTJOIN(" ,", TRUE, _xlfn._xlws.FILTER(AO33:AU33, ISNUMBER(SEARCH("missing", AO33:AU33)))), "")) -> 
AN34: 0 | AO34: No crop | AP34: No crop | AQ34: No crop | AR34: No crop | AS34: No crop | AT34: No crop | AU34: No crop | AV34: =IF(SUMPRODUCT(--ISNUMBER(SEARCH("No crop", AO34:AU34)))>0, "", IF(SUMPRODUCT(--ISNUMBER(SEARCH("missing", AO34:AU34)))>0, AN34 & ": " & _xlfn.TEXTJOIN(" ,", TRUE, _xlfn._xlws.FILTER(AO34:AU34, ISNUMBER(SEARCH("missing", AO34:AU34)))), "")) -> 
AN35: 0 | AO35: No crop | AP35: No crop | AQ35: No crop | AR35: No crop | AS35: No crop | AT35: No crop | AU35: No crop | AV35: =IF(SUMPRODUCT(--ISNUMBER(SEARCH("No crop", AO35:AU35)))>0, "", IF(SUMPRODUCT(--ISNUMBER(SEARCH("missing", AO35:AU35)))>0, AN35 & ": " & _xlfn.TEXTJOIN(" ,", TRUE, _xlfn._xlws.FILTER(AO35:AU35, ISNUMBER(SEARCH("missing", AO35:AU35)))), "")) -> 
E36: =IF(H32 <> 'General Information'!G22, "- Differences due to multiple cuttings being entered separately can be ignored.", " ") ->  | AN36: 0 | AO36: No crop | AP36: No crop | AQ36: No crop | AR36: No crop | AS36: No crop | AT36: No crop | AU36: No crop | AV36: =IF(SUMPRODUCT(--ISNUMBER(SEARCH("No crop", AO36:AU36)))>0, "", IF(SUMPRODUCT(--ISNUMBER(SEARCH("missing", AO36:AU36)))>0, AN36 & ": " & _xlfn.TEXTJOIN(" ,", TRUE, _xlfn._xlws.FILTER(AO36:AU36, ISNUMBER(SEARCH("missing", AO36:AU36)))), "")) -> 
AN37: 0 | AO37: No crop | AP37: No crop | AQ37: No crop | AR37: No crop | AS37: No crop | AT37: No crop | AU37: No crop | AV37: =IF(SUMPRODUCT(--ISNUMBER(SEARCH("No crop", AO37:AU37)))>0, "", IF(SUMPRODUCT(--ISNUMBER(SEARCH("missing", AO37:AU37)))>0, AN37 & ": " & _xlfn.TEXTJOIN(" ,", TRUE, _xlfn._xlws.FILTER(AO37:AU37, ISNUMBER(SEARCH("missing", AO37:AU37)))), "")) -> 
AN38: =C20 -> 0 | AO38: No crop | AP38: No crop | AQ38: No crop | AR38: No crop | AS38: No crop | AT38: No crop | AU38: No crop | AV38: =IF(SUMPRODUCT(--ISNUMBER(SEARCH("No crop", AO38:AU38)))>0, "", IF(SUMPRODUCT(--ISNUMBER(SEARCH("missing", AO38:AU38)))>0, AN38 & ": " & _xlfn.TEXTJOIN(" ,", TRUE, _xlfn._xlws.FILTER(AO38:AU38, ISNUMBER(SEARCH("missing", AO38:AU38)))), "")) -> 
AN39: =C21 -> 0 | AO39: No crop | AP39: No crop | AQ39: No crop | AR39: No crop | AS39: No crop | AT39: No crop | AU39: No crop | AV39: =IF(SUMPRODUCT(--ISNUMBER(SEARCH("No crop", AO39:AU39)))>0, "", IF(SUMPRODUCT(--ISNUMBER(SEARCH("missing", AO39:AU39)))>0, AN39 & ": " & _xlfn.TEXTJOIN(" ,", TRUE, _xlfn._xlws.FILTER(AO39:AU39, ISNUMBER(SEARCH("missing", AO39:AU39)))), "")) -> 
C40: Check here if a document with land-use change information is attached: | J40: FALSE | AO40: No crop | AP40: No crop | AQ40: No crop | AR40: No crop | AS40: No crop | AT40: No crop | AU40: No crop
C41: Land use change in the last 20 years | AN41: =C22 -> 0 | AO41: No crop | AP41: No crop | AQ41: No crop | AR41: No crop | AS41: No crop | AT41: No crop | AU41: No crop | AV41: =IF(SUMPRODUCT(--ISNUMBER(SEARCH("No crop", AO41:AU41)))>0, "", IF(SUMPRODUCT(--ISNUMBER(SEARCH("missing", AO41:AU41)))>0, AN41 & ": " & _xlfn.TEXTJOIN(" ,", TRUE, _xlfn._xlws.FILTER(AO41:AU41, ISNUMBER(SEARCH("missing", AO41:AU41)))), "")) -> 
C42: Previous land use | H42: Current land use | N42: Number of acres | AN42: 0 | AO42: No crop | AP42: No crop | AQ42: No crop | AR42: No crop | AS42: No crop | AT42: No crop | AU42: No crop | AV42: =IF(SUMPRODUCT(--ISNUMBER(SEARCH("No crop", AO42:AU42)))>0, "", IF(SUMPRODUCT(--ISNUMBER(SEARCH("missing", AO42:AU42)))>0, AN42 & ": " & _xlfn.TEXTJOIN(" ,", TRUE, _xlfn._xlws.FILTER(AO42:AU42, ISNUMBER(SEARCH("missing", AO42:AU42)))), "")) -> 
AN43: 0 | AO43: No crop | AP43: No crop | AQ43: No crop | AR43: No crop | AS43: No crop | AT43: No crop | AU43: No crop | AV43: =IF(SUMPRODUCT(--ISNUMBER(SEARCH("No crop", AO43:AU43)))>0, "", IF(SUMPRODUCT(--ISNUMBER(SEARCH("missing", AO43:AU43)))>0, AN43 & ": " & _xlfn.TEXTJOIN(" ,", TRUE, _xlfn._xlws.FILTER(AO43:AU43, ISNUMBER(SEARCH("missing", AO43:AU43)))), "")) -> 
AN44: 0 | AO44: No crop | AP44: No crop | AQ44: No crop | AR44: No crop | AS44: No crop | AT44: No crop | AU44: No crop | AV44: =IF(SUMPRODUCT(--ISNUMBER(SEARCH("No crop", AO44:AU44)))>0, "", IF(SUMPRODUCT(--ISNUMBER(SEARCH("missing", AO44:AU44)))>0, AN44 & ": " & _xlfn.TEXTJOIN(" ,", TRUE, _xlfn._xlws.FILTER(AO44:AU44, ISNUMBER(SEARCH("missing", AO44:AU44)))), "")) -> 
AN45: 0 | AO45: No crop | AP45: No crop | AQ45: No crop | AR45: No crop | AS45: No crop | AT45: No crop | AU45: No crop | AV45: =IF(SUMPRODUCT(--ISNUMBER(SEARCH("No crop", AO45:AU45)))>0, "", IF(SUMPRODUCT(--ISNUMBER(SEARCH("missing", AO45:AU45)))>0, AN45 & ": " & _xlfn.TEXTJOIN(" ,", TRUE, _xlfn._xlws.FILTER(AO45:AU45, ISNUMBER(SEARCH("missing", AO45:AU45)))), "")) -> 
AN46: 0 | AO46: No crop | AP46: No crop | AQ46: No crop | AR46: No crop | AS46: No crop | AT46: No crop | AU46: No crop | AV46: =IF(SUMPRODUCT(--ISNUMBER(SEARCH("No crop", AO46:AU46)))>0, "", IF(SUMPRODUCT(--ISNUMBER(SEARCH("missing", AO46:AU46)))>0, AN46 & ": " & _xlfn.TEXTJOIN(" ,", TRUE, _xlfn._xlws.FILTER(AO46:AU46, ISNUMBER(SEARCH("missing", AO46:AU46)))), "")) -> 
AN47: 0 | AO47: No crop | AP47: No crop | AQ47: No crop | AR47: No crop | AS47: No crop | AT47: No crop | AU47: No crop | AV47: =IF(SUMPRODUCT(--ISNUMBER(SEARCH("No crop", AO47:AU47)))>0, "", IF(SUMPRODUCT(--ISNUMBER(SEARCH("missing", AO47:AU47)))>0, AN47 & ": " & _xlfn.TEXTJOIN(" ,", TRUE, _xlfn._xlws.FILTER(AO47:AU47, ISNUMBER(SEARCH("missing", AO47:AU47)))), "")) -> 
AN48: 0 | AO48: No crop | AP48: No crop | AQ48: No crop | AR48: No crop | AS48: No crop | AT48: No crop | AU48: No crop | AV48: =IF(SUMPRODUCT(--ISNUMBER(SEARCH("No crop", AO48:AU48)))>0, "", IF(SUMPRODUCT(--ISNUMBER(SEARCH("missing", AO48:AU48)))>0, AN48 & ": " & _xlfn.TEXTJOIN(" ,", TRUE, _xlfn._xlws.FILTER(AO48:AU48, ISNUMBER(SEARCH("missing", AO48:AU48)))), "")) -> 
AN49: 0 | AO49: No crop | AP49: No crop | AQ49: No crop | AR49: No crop | AS49: No crop | AT49: No crop | AU49: No crop | AV49: =IF(SUMPRODUCT(--ISNUMBER(SEARCH("No crop", AO49:AU49)))>0, "", IF(SUMPRODUCT(--ISNUMBER(SEARCH("missing", AO49:AU49)))>0, AN49 & ": " & _xlfn.TEXTJOIN(" ,", TRUE, _xlfn._xlws.FILTER(AO49:AU49, ISNUMBER(SEARCH("missing", AO49:AU49)))), "")) -> 
AN50: 0 | AO50: No crop | AP50: No crop | AQ50: No crop | AR50: No crop | AS50: No crop | AT50: No crop | AU50: No crop | AV50: =IF(SUMPRODUCT(--ISNUMBER(SEARCH("No crop", AO50:AU50)))>0, "", IF(SUMPRODUCT(--ISNUMBER(SEARCH("missing", AO50:AU50)))>0, AN50 & ": " & _xlfn.TEXTJOIN(" ,", TRUE, _xlfn._xlws.FILTER(AO50:AU50, ISNUMBER(SEARCH("missing", AO50:AU50)))), "")) -> 
C51: Crop rotation 1. | E51: Total acres: | I51: Check here if a document containing crop rotation information is attached: | N51: FALSE
C52: Year of rotation | D52: Crop name | F52: Most intensive tillage practice | H52: Tillage method | I52: % cover cropped | J52: Cover crop type | K52: Cover crop height | L52: Termination method | N52: Termination date
C54: 1 | P54: Describe a typical crop rotation on your farm. If you have different rotations at different locations, enter each one separately and state the number of acres that rotation includes. Cover crop information and dates can be approximate.
C55: 2
C56: 3
C57: 4
C58: 5
C59: 6
C60: 7 | P60: Need help with tillage classification? Click here for factsheet #126 on tillage classification for GHG tools.
C61: 8
C62: 9
C63: 10
C64: 11
C65: 12
C67: Crop rotation 2. | E67: Total acres: | I67: Check here if a document containing crop rotation information is attached: | N67: FALSE
C68: Year of rotation | D68: Crop name | F68: Most intensive tillage practice | H68: Tillage method | I68: % cover cropped | J68: Cover crop type | K68: Cover crop height | L68: Termination method | N68: Termination date
C70: 1
C71: 2
C72: 3
C73: 4
C74: 5
C75: 6
C76: 7
C77: 8
C78: 9
C79: 10
C80: 11
C81: 12
C83: Crop rotation 3. | E83: Total acres: | I83: Check here if a document containing crop rotation information is attached: | N83: FALSE
C84: Year of rotation | D84: Crop name | F84: Most intensive tillage practice | H84: Tillage method | I84: % cover cropped | J84: Cover crop type | K84: Cover crop height | L84: Termination method | N84: Termination date
C86: 1
C87: 2
C88: 3
C89: 4
C90: 5
C91: 6
C92: 7
C93: 8
C94: 9
C95: 10
C96: 11
C97: 12

Sheet CFTHelper_CROPY (hidden)
A1: Correcting DM of crops: | K1: Alfalfa-grass split
A2: When imported as a feed to the livestock assessment, feed production emissions are calculated on a %DM. Therefore the fresh weight needs to be standardized to the book value for %DM of that crop.
A3: NOTE: Macro "alfalfagrasssplit" will auto-split alfalfa and grass mixed haylages. You will need to manually update the CFT feed and crop name. If used, check to ensure it is correct
A4: Crop | B4: CFT feed | C4: Acres | D4: Asjusted acres | E4: Tons/ac | F4: Legume adj. | G4: Tons | H4: Reported DM | I4: CFT DM | J4: Standardized yield
A5: Autofill | B5: Autofill or enter | C5: Autofill | D5: Use this: acres | E5: Autofill | F5: Autofill | G5: Use this: harvested amount | H5: Autofill | I5: Autofill | J5: Use this: farm-gate ready | L5: Instructions
A6: ='Farm Crop Production'!C8 -> 0 | B6: =IF(ISBLANK(A6), "Feed item", _xlfn.XLOOKUP("*"&A6&"*",CFT_DM_ref[Crop],CFT_DM_ref[Crop], "Not found, check", 2, 1)) -> Not found, check | C6: ='Farm Crop Production'!H8 -> 0 | D6: =IF(F6>0,C6*F6,C6) -> 0 | E6: ='Farm Crop Production'!Z8 -> 0 | F6: ='Farm Crop Production'!F8 -> 0 | G6: =IF(F6>0, C6*E6*F6, C6*E6) -> 0 | H6: ='Farm Crop Production'!AA8 ->  | I6: =_xlfn.XLOOKUP(B6,CFT_DM_ref[Crop],CFT_DM_ref[DM %], "Not found, please reference table",0,1) -> Not found, please reference table | J6: =G6*H6/I6 ->  | L6: This sheet autofills information from the Crop Production sheet. Make sure to check that the correct feed is selected for CFT feed. If a crop is a legume, enter as two separate crops- muliply the yeilds and acres by the legume factor (col F) to prevent double counting of acres and yields. Remember to enter the harvested amount from column G
A7: ='Farm Crop Production'!C9 -> 0 | B7: =IF(ISBLANK(A7), "Feed item", _xlfn.XLOOKUP("*"&A7&"*",CFT_DM_ref[Crop],CFT_DM_ref[Crop], "Not found, check", 2, 1)) -> Not found, check | C7: ='Farm Crop Production'!H9 -> 0 | D7: =IF(F7>0,C7*F7,C7) -> 0 | E7: ='Farm Crop Production'!Z9 -> 0 | F7: ='Farm Crop Production'!F9 -> 0 | G7: =IF(F7>0, C7*E7*F7, C7*E7) -> 0 | H7: ='Farm Crop Production'!AA9 ->  | I7: =_xlfn.XLOOKUP(B7,CFT_DM_ref[Crop],CFT_DM_ref[DM %], "Not found, please reference table",0,1) -> Not found, please reference table | J7: =G7*H7/I7 -> 
A8: ='Farm Crop Production'!C10 -> 0 | B8: =IF(ISBLANK(A8), "Feed item", _xlfn.XLOOKUP("*"&A8&"*",CFT_DM_ref[Crop],CFT_DM_ref[Crop], "Not found, check", 2, 1)) -> Not found, check | C8: ='Farm Crop Production'!H10 -> 0 | D8: =IF(F8>0,C8*F8,C8) -> 0 | E8: ='Farm Crop Production'!Z10 -> 0 | F8: ='Farm Crop Production'!F10 -> 0 | G8: 0 | H8: ='Farm Crop Production'!AA10 ->  | I8: =_xlfn.XLOOKUP(B8,CFT_DM_ref[Crop],CFT_DM_ref[DM %], "Not found, please reference table",0,1) -> Not found, please reference table
A9: ='Farm Crop Production'!C11 -> 0 | B9: =IF(ISBLANK(A9), "Feed item", _xlfn.XLOOKUP("*"&A9&"*",CFT_DM_ref[Crop],CFT_DM_ref[Crop], "Not found, check", 2, 1)) -> Not found, check | C9: ='Farm Crop Production'!H11 -> 0 | D9: 0 | E9: ='Farm Crop Production'!Z11 -> 0 | F9: ='Farm Crop Production'!F11 -> 0 | G9: 0 | H9: ='Farm Crop Production'!AA11 ->  | I9: =_xlfn.XLOOKUP(B9,CFT_DM_ref[Crop],CFT_DM_ref[DM %], "Not found, please reference table",0,1) -> Not found, please reference table
A10: ='Farm Crop Production'!C12 -> 0 | B10: =IF(ISBLANK(A10), "Feed item", _xlfn.XLOOKUP("*"&A10&"*",CFT_DM_ref[Crop],CFT_DM_ref[Crop], "Not found, check", 2, 1)) -> Not found, check | C10: ='Farm Crop Production'!H12 -> 0 | D10: 0 | E10: ='Farm Crop Production'!Z12 -> 0 | F10: ='Farm Crop Production'!F12 -> 0 | G10: 0 | H10: ='Farm Crop Production'!AA12 ->  | I10: =_xlfn.XLOOKUP(B10,CFT_DM_ref[Crop],CFT_DM_ref[DM %], "Not found, please reference table",0,1) -> Not found, please reference table
A11: ='Farm Crop Production'!C13 -> 0 | B11: =IF(ISBLANK(A11), "Feed item", _xlfn.XLOOKUP("*"&A11&"*",CFT_DM_ref[Crop],CFT_DM_ref[Crop], "Not found, check", 2, 1)) -> Not found, check | C11: ='Farm Crop Production'!H13 -> 0 | D11: 0 | E11: ='Farm Crop Production'!Z13 -> 0 | F11: ='Farm Crop Production'!F13 -> 0 | G11: 0 | H11: ='Farm Crop Production'!AA13 ->  | I11: =_xlfn.XLOOKUP(B11,CFT_DM_ref[Crop],CFT_DM_ref[DM %], "Not found, please reference table",0,1) -> Not found, please reference table
A12: ='Farm Crop Production'!C14 -> 0 | B12: =IF(ISBLANK(A12), "Feed item", _xlfn.XLOOKUP("*"&A12&"*",CFT_DM_ref[Crop],CFT_DM_ref[Crop], "Not found, check", 2, 1)) -> Not found, check | C12: ='Farm Crop Production'!H14 -> 0 | D12: 0 | E12: ='Farm Crop Production'!Z14 -> 0 | F12: ='Farm Crop Production'!F14 -> 0 | G12: 0 | H12: ='Farm Crop Production'!AA14 ->  | I12: =_xlfn.XLOOKUP(B12,CFT_DM_ref[Crop],CFT_DM_ref[DM %], "Not found, please reference table",0,1) -> Not found, please reference table
A13: ='Farm Crop Production'!C15 -> 0 | B13: =IF(ISBLANK(A13), "Feed item", _xlfn.XLOOKUP("*"&A13&"*",CFT_DM_ref[Crop],CFT_DM_ref[Crop], "Not found, check", 2, 1)) -> Not found, check | C13: ='Farm Crop Production'!H15 -> 0 | D13: 0 | E13: ='Farm Crop Production'!Z15 -> 0 | F13: ='Farm Crop Production'!F15 -> 0 | G13: 0 | H13: ='Farm Crop Production'!AA15 ->  | I13: =_xlfn.XLOOKUP(B13,CFT_DM_ref[Crop],CFT_DM_ref[DM %], "Not found, please reference table",0,1) -> Not found, please reference table
A14: ='Farm Crop Production'!C16 -> 0 | B14: =IF(ISBLANK(A14), "Feed item", _xlfn.XLOOKUP("*"&A14&"*",CFT_DM_ref[Crop],CFT_DM_ref[Crop], "Not found, check", 2, 1)) -> Not found, check | C14: ='Farm Crop Production'!H16 -> 0 | D14: 0 | E14: ='Farm Crop Production'!Z16 -> 0 | F14: ='Farm Crop Production'!F16 -> 0 | G14: 0 | H14: ='Farm Crop Production'!AA16 ->  | I14: =_xlfn.XLOOKUP(B14,CFT_DM_ref[Crop],CFT_DM_ref[DM %], "Not found, please reference table",0,1) -> Not found, please reference table
A15: ='Farm Crop Production'!C17 -> 0 | B15: =IF(ISBLANK(A15), "Feed item", _xlfn.XLOOKUP("*"&A15&"*",CFT_DM_ref[Crop],CFT_DM_ref[Crop], "Not found, check", 2, 1)) -> Not found, check | C15: ='Farm Crop Production'!H17 -> 0 | D15: 0 | E15: ='Farm Crop Production'!Z17 -> 0 | F15: ='Farm Crop Production'!F17 -> 0 | G15: 0 | H15: ='Farm Crop Production'!AA17 ->  | I15: =_xlfn.XLOOKUP(B15,CFT_DM_ref[Crop],CFT_DM_ref[DM %], "Not found, please reference table",0,1) -> Not found, please reference table
A16: ='Farm Crop Production'!C18 -> 0 | B16: =IF(ISBLANK(A16), "Feed item", _xlfn.XLOOKUP("*"&A16&"*",CFT_DM_ref[Crop],CFT_DM_ref[Crop], "Not found, check", 2, 1)) -> Not found, check | C16: ='Farm Crop Production'!H18 -> 0 | D16: 0 | E16: ='Farm Crop Production'!Z18 -> 0 | F16: ='Farm Crop Production'!F18 -> 0 | G16: 0 | H16: ='Farm Crop Production'!AA18 ->  | I16: =_xlfn.XLOOKUP(B16,CFT_DM_ref[Crop],CFT_DM_ref[DM %], "Not found, please reference table",0,1) -> Not found, please reference table
A17: ='Farm Crop Production'!C19 -> 0 | B17: =IF(ISBLANK(A17), "Feed item", _xlfn.XLOOKUP("*"&A17&"*",CFT_DM_ref[Crop],CFT_DM_ref[Crop], "Not found, check", 2, 1)) -> Not found, check | C17: ='Farm Crop Production'!H19 -> 0 | D17: 0 | E17: ='Farm Crop Production'!Z19 -> 0 | F17: ='Farm Crop Production'!F19 -> 0 | G17: 0 | H17: ='Farm Crop Production'!AA19 ->  | I17: =_xlfn.XLOOKUP(B17,CFT_DM_ref[Crop],CFT_DM_ref[DM %], "Not found, please reference table",0,1) -> Not found, please reference table
A18: ='Farm Crop Production'!C20 -> 0 | B18: =IF(ISBLANK(A18), "Feed item", _xlfn.XLOOKUP("*"&A18&"*",CFT_DM_ref[Crop],CFT_DM_ref[Crop], "Not found, check", 2, 1)) -> Not found, check | C18: ='Farm Crop Production'!H20 -> 0 | D18: 0 | E18: ='Farm Crop Production'!Z20 -> 0 | F18: ='Farm Crop Production'!F20 -> 0 | G18: 0 | H18: ='Farm Crop Production'!AA20 ->  | I18: =_xlfn.XLOOKUP(B18,CFT_DM_ref[Crop],CFT_DM_ref[DM %], "Not found, please reference table",0,1) -> Not found, please reference table
A19: ='Farm Crop Production'!C21 -> 0 | B19: =IF(ISBLANK(A19), "Feed item", _xlfn.XLOOKUP("*"&A19&"*",CFT_DM_ref[Crop],CFT_DM_ref[Crop], "Not found, check", 2, 1)) -> Not found, check | C19: ='Farm Crop Production'!H21 -> 0 | D19: 0 | E19: ='Farm Crop Production'!Z21 -> 0 | F19: ='Farm Crop Production'!F21 -> 0 | G19: 0 | H19: ='Farm Crop Production'!AA21 ->  | I19: =_xlfn.XLOOKUP(B19,CFT_DM_ref[Crop],CFT_DM_ref[DM %], "Not found, please reference table",0,1) -> Not found, please reference table | L19: Naming convention
A20: ='Farm Crop Production'!C22 -> 0 | B20: =IF(ISBLANK(A20), "Feed item", _xlfn.XLOOKUP("*"&A20&"*",CFT_DM_ref[Crop],CFT_DM_ref[Crop], "Not found, check", 2, 1)) -> Not found, check | C20: ='Farm Crop Production'!H22 -> 0 | D20: 0 | E20: ='Farm Crop Production'!Z22 -> 0 | F20: ='Farm Crop Production'!F22 -> 0 | G20: 0 | H20: ='Farm Crop Production'!AA22 ->  | I20: =_xlfn.XLOOKUP(B20,CFT_DM_ref[Crop],CFT_DM_ref[DM %], "Not found, please reference table",0,1) -> Not found, please reference table | L20: Name crop footprints as the following:
A21: ='Farm Crop Production'!C23 -> 0 | B21: =IF(ISBLANK(A21), "Feed item", _xlfn.XLOOKUP("*"&A21&"*",CFT_DM_ref[Crop],CFT_DM_ref[Crop], "Not found, check", 2, 1)) -> Not found, check | C21: ='Farm Crop Production'!H23 -> 0 | D21: 0 | E21: ='Farm Crop Production'!Z23 -> 0 | F21: ='Farm Crop Production'!F23 -> 0 | G21: 0 | H21: ='Farm Crop Production'!AA23 ->  | I21: =_xlfn.XLOOKUP(B21,CFT_DM_ref[Crop],CFT_DM_ref[DM %], "Not found, please reference table",0,1) -> Not found, please reference table | L21: farm_crop_type_year where: farm = the NMB name for a farm from the 2nd software/zip file EX: FarmA -> FarmAInc FarmB- FarmBDairyLLC crop_type = the crop and then the type EX: corn silage -> corn_silage BMR corn -> corn_silage_BMR HMC -> corn_hm alfalfa grass (non-legume) part -> alfalfagrass_grass_haylage alfalfa alfalfa (legume) part -> alfalfagrass_alfalfa_haylage grass (just grass) -> grass_hayalge alfalfa (just alfalfa) -> alfalfa_haylage triticale -> triticale_silage oat grain -> oats_grain wheat straw -> wheat_straw
A22: ='Farm Crop Production'!C24 -> 0 | B22: =IF(ISBLANK(A22), "Feed item", _xlfn.XLOOKUP("*"&A22&"*",CFT_DM_ref[Crop],CFT_DM_ref[Crop], "Not found, check", 2, 1)) -> Not found, check | C22: ='Farm Crop Production'!H24 -> 0 | D22: 0 | E22: ='Farm Crop Production'!Z24 -> 0 | F22: ='Farm Crop Production'!F24 -> 0 | G22: 0 | H22: ='Farm Crop Production'!AA24 ->  | I22: =_xlfn.XLOOKUP(B22,CFT_DM_ref[Crop],CFT_DM_ref[DM %], "Not found, please reference table",0,1) -> Not found, please reference table
A23: ='Farm Crop Production'!C25 -> 0 | B23: =IF(ISBLANK(A23), "Feed item", _xlfn.XLOOKUP("*"&A23&"*",CFT_DM_ref[Crop],CFT_DM_ref[Crop], "Not found, check", 2, 1)) -> Not found, check | C23: ='Farm Crop Production'!H25 -> 0 | D23: 0 | E23: ='Farm Crop Production'!Z25 -> 0 | F23: ='Farm Crop Production'!F25 -> 0 | G23: 0 | H23: ='Farm Crop Production'!AA25 ->  | I23: =_xlfn.XLOOKUP(B23,CFT_DM_ref[Crop],CFT_DM_ref[DM %], "Not found, please reference table",0,1) -> Not found, please reference table
A24: ='Farm Crop Production'!C26 -> 0 | B24: =IF(ISBLANK(A24), "Feed item", _xlfn.XLOOKUP("*"&A24&"*",CFT_DM_ref[Crop],CFT_DM_ref[Crop], "Not found, check", 2, 1)) -> Not found, check | C24: ='Farm Crop Production'!H26 -> 0 | D24: 0 | E24: ='Farm Crop Production'!Z26 -> 0 | F24: ='Farm Crop Production'!F26 -> 0 | G24: 0 | H24: ='Farm Crop Production'!AA26 ->  | I24: =_xlfn.XLOOKUP(B24,CFT_DM_ref[Crop],CFT_DM_ref[DM %], "Not found, please reference table",0,1) -> Not found, please reference table
A25: ='Farm Crop Production'!C27 -> 0 | B25: =IF(ISBLANK(A25), "Feed item", _xlfn.XLOOKUP("*"&A25&"*",CFT_DM_ref[Crop],CFT_DM_ref[Crop], "Not found, check", 2, 1)) -> Not found, check | C25: ='Farm Crop Production'!H27 -> 0 | D25: 0 | E25: ='Farm Crop Production'!Z27 -> 0 | F25: ='Farm Crop Production'!F27 -> 0 | G25: 0 | H25: ='Farm Crop Production'!AA27 ->  | I25: =_xlfn.XLOOKUP(B25,CFT_DM_ref[Crop],CFT_DM_ref[DM %], "Not found, please reference table",0,1) -> Not found, please reference table
A26: ='Farm Crop Production'!C28 -> 0 | B26: =IF(ISBLANK(A26), "Feed item", _xlfn.XLOOKUP("*"&A26&"*",CFT_DM_ref[Crop],CFT_DM_ref[Crop], "Not found, check", 2, 1)) -> Not found, check | C26: ='Farm Crop Production'!H28 -> 0 | D26: 0 | E26: ='Farm Crop Production'!Z28 -> 0 | F26: ='Farm Crop Production'!F28 -> 0 | G26: 0 | H26: ='Farm Crop Production'!AA28 ->  | I26: =_xlfn.XLOOKUP(B26,CFT_DM_ref[Crop],CFT_DM_ref[DM %], "Not found, please reference table",0,1) -> Not found, please reference table
A27: ='Farm Crop Production'!C29 -> 0 | B27: =IF(ISBLANK(A27), "Feed item", _xlfn.XLOOKUP("*"&A27&"*",CFT_DM_ref[Crop],CFT_DM_ref[Crop], "Not found, check", 2, 1)) -> Not found, check | C27: ='Farm Crop Production'!H29 -> 0 | D27: 0 | E27: ='Farm Crop Production'!Z29 -> 0 | F27: ='Farm Crop Production'!F29 -> 0 | G27: 0 | H27: ='Farm Crop Production'!AA29 ->  | I27: =_xlfn.XLOOKUP(B27,CFT_DM_ref[Crop],CFT_DM_ref[DM %], "Not found, please reference table",0,1) -> Not found, please reference table
A28: ='Farm Crop Production'!C30 -> 0 | B28: =IF(ISBLANK(A28), "Feed item", _xlfn.XLOOKUP("*"&A28&"*",CFT_DM_ref[Crop],CFT_DM_ref[Crop], "Not found, check", 2, 1)) -> Not found, check | C28: ='Farm Crop Production'!H30 -> 0 | D28: 0 | E28: ='Farm Crop Production'!Z30 -> 0 | F28: ='Farm Crop Production'!F30 -> 0 | G28: 0 | H28: ='Farm Crop Production'!AA30 ->  | I28: =_xlfn.XLOOKUP(B28,CFT_DM_ref[Crop],CFT_DM_ref[DM %], "Not found, please reference table",0,1) -> Not found, please reference table
A29: ='Farm Crop Production'!C31 -> 0 | B29: =IF(ISBLANK(A29), "Feed item", _xlfn.XLOOKUP("*"&A29&"*",CFT_DM_ref[Crop],CFT_DM_ref[Crop], "Not found, check", 2, 1)) -> Not found, check | C29: ='Farm Crop Production'!H31 -> 0 | D29: 0 | E29: ='Farm Crop Production'!Z31 -> 0 | F29: ='Farm Crop Production'!F31 -> 0 | G29: 0 | H29: ='Farm Crop Production'!AA31 ->  | I29: =_xlfn.XLOOKUP(B29,CFT_DM_ref[Crop],CFT_DM_ref[DM %], "Not found, please reference table",0,1) -> Not found, please reference table
A50: Crop | B50: DM %
A51: Alfalfa hay | B51: 0.851
A52: Alfalfa haylage | B52: 0.403
A53: Barley grain | B53: 0.869
A54: Beans | B54: 0.862
A55: Clover hay | B55: 0.83
A56: Corn grain | B56: 0.872
A57: Corn silage | B57: 0.283
A58: Fodder beet | B58: 0.143
A59: Grass hay | B59: 0.845
A60: Grass haylage | B60: 0.472
A61: Oats grain | B61: 0.889
A62: Other cereal grain | B62: 0.877
A63: Other fodder | B63: 0.387
A64: Other pulses | B64: 0.871
A65: Other root crops | B65: 0.441
A66: Peas | B66: 0.867
A67: Rye grain | B67: 0.872
A68: Sorghum grain | B68: 0.882
A69: Soybeans | B69: 0.885
A70: Straw | B70: 0.902
A71: Wheat grain | B71: 0.868

Sheet Feed imports and diets
D6: Check here if you have attached feed management data: | L6: FALSE | M6: =IF(L6=TRUE, "Please ensure feed management data includes feed to ALL animal categories. If not, please add missing information in this sheet.", "") -> 
D10: Imports: Purchased feed | M10: Indicate what percentage of each feed is given to each animal category | T10: Homegrown Feed Fed - a representative diet can be submitted
D11: Feed | E11: Amount tons / year | F11: % DM | G11: Use book values? | H11: % CP | I11: % P | J11: % K | K11: % NDF | L11: Distance transported/ purchase location (one way) | M11: Feed given to: | N11: % | P11: Feed additive | R11: Amount fed | T11: Crop Name | U11: Total Amount Fed | V11: % CP as of % DM | W11: %NDF | X11: %DM | Y11: Feed given to: | Z11: %
C12: Inputted? | H12: as of % DM | I12: as of % DM | J12: as of % DM
G13: FALSE | H13: =IF($G13=TRUE, _xlfn.XLOOKUP("*"&D13&"*",'Feed book values'!$A$2:$A$159,'Feed book values'!$C$2:$C$159,"Book value not found",2,1), "") ->  | I13: =IF($G13=TRUE, _xlfn.XLOOKUP("*"&D13&"*",Table3[Crop],Table3[P],"Book value not found",2,1), "") ->  | J13: =IF($G13=TRUE, _xlfn.XLOOKUP("*"&$D13&"*",Table3[Crop],Table3[K],"Book value not found",2,1), "") ->  | M13: Lactating cows | O13: =IF(D13="", "", IF(SUM(N13:N17)=1," ","Percents do not add to 100%. Please check")) ->  | P13: Monensin/Rumensin | Y13: Lactating cows | AA13: =IF(T13="", "", IF(SUM(Z13:Z17)=1," ","Percents do not add to 100%. Please check")) -> 
C14: FALSE | M14: Dry cows | P14: 3-NOP/Bovaer | Y14: Dry cows
M15: Heifers: breeding to calving | P15: Other (specify): | Y15: Heifers: breeding to calving | AB15: Comments
M16: Heifers: weaning to breeding | Y16: Heifers: weaning to breeding | AG16: Feed item | AH16: Tons imported | AI16: DM | AJ16: CP | AK16: P | AL16: K | AM16: %NDF | AN16: Feed to herd | AO16: Concat
M17: Calves | P17: Comments: | Y17: Calves | AG17: =D13 -> 0 | AH17: =IF(ISBLANK(D13), "No crop", IF(ISBLANK(E13),"Missing tons imported","Good")) -> No crop | AI17: =IF(ISBLANK(F13),"Missing %DM","Good") -> Missing %DM | AJ17: =IF(ISBLANK(H13),"Missing %CP","Good") -> Good | AK17: =IF(ISBLANK(I13),"Missing %P","Good") -> Good | AL17: =IF(ISBLANK(J13),"Missing %K","Good") -> Good | AM17: =IF(ISBLANK(K13),"Missing NDF%","Good") -> Missing NDF% | AN17: =IF(ISBLANK(L13),"Missing %feed to herd","Good") -> Missing %feed to herd | AO17: =IF(SUMPRODUCT(--ISNUMBER(SEARCH("No crop", AH17:AN17)))>0, "", IF(SUMPRODUCT(--ISNUMBER(SEARCH("missing", AH17:AN17)))>0, AG17 & ": " & _xlfn.TEXTJOIN(" , ", TRUE, _xlfn._xlws.FILTER(AH17:AN17, ISNUMBER(SEARCH("missing", AH17:AN17)))), "")) -> 
C18: FALSE | G18: FALSE | I18: =IF($G18=TRUE, _xlfn.XLOOKUP("*"&D18&"*",Table3[Crop],Table3[P],"Book value not found",2,1), "") ->  | J18: =IF($G18=TRUE, _xlfn.XLOOKUP("*"&$D18&"*",Table3[Crop],Table3[K],"Book value not found",2,1), "") ->  | M18: Lactating cows | O18: =IF(D18="", "", IF(SUM(N18:N22)=1," ","Percents do not add to 100%. Please check")) ->  | Y18: Lactating cows | AA18: =IF(T18="", "", IF(SUM(Z18:Z22)=1," ","Percents do not add to 100%. Please check")) ->  | AG18: =D18 -> 0 | AH18: =IF(ISBLANK(D18),"No crop",IF(ISBLANK(E18),"Missing tons imported","Good")) -> No crop | AI18: =IF(ISBLANK(F18),"Missing %DM","Good") -> Missing %DM | AJ18: =IF(ISBLANK(H18),"Missin %CP","Good") -> Missin %CP | AK18: =IF(ISBLANK(I18),"Missing %P","Good") -> Good | AL18: =IF(ISBLANK(J18),"Missing %K","Good") -> Good | AM18: =IF(ISBLANK(K18),"Missing NDF%","Good") -> Missing NDF% | AN18: =IF(ISBLANK(L18),"Missing %feed to herd","Good") -> Missing %feed to herd | AO18: =IF(SUMPRODUCT(--ISNUMBER(SEARCH("No crop", AH18:AN18)))>0, "", IF(SUMPRODUCT(--ISNUMBER(SEARCH("missing", AH18:AN18)))>0, AG18 & ": " & _xlfn.TEXTJOIN(" , ", TRUE, _xlfn._xlws.FILTER(AH18:AN18, ISNUMBER(SEARCH("missing", AH18:AN18)))), "")) -> 
M19: Dry cows | Y19: Dry cows | AG19: =D23 -> 0 | AH19: =IF(ISBLANK(D23), "No crop", IF(ISBLANK(E23),"Missing tons imported","Good")) -> No crop | AI19: =IF(ISBLANK(F23),"Missing %DM","Good") -> Missing %DM | AJ19: =IF(ISBLANK(H23),"Missing %CP","Good") -> Good | AK19: =IF(ISBLANK(I23),"Missing %P","Good") -> Missing %P | AL19: =IF(ISBLANK(J23),"Missing %K","Good") -> Good | AM19: =IF(ISBLANK(K23),"Missing NDF%","Good") -> Missing NDF% | AN19: =IF(ISBLANK(L23),"Missing %feed to herd","Good") -> Missing %feed to herd | AO19: =IF(SUMPRODUCT(--ISNUMBER(SEARCH("No crop", AH19:AN19)))>0, "", IF(SUMPRODUCT(--ISNUMBER(SEARCH("missing", AH19:AN19)))>0, AG19 & ": " & _xlfn.TEXTJOIN(" , ", TRUE, _xlfn._xlws.FILTER(AH19:AN19, ISNUMBER(SEARCH("missing", AH19:AN19)))), "")) -> 
M20: Heifers: breeding to calving | Y20: Heifers: breeding to calving | AG20: =D28 -> 0 | AH20: =IF(ISBLANK(E28), "No crop", IF(ISBLANK(E28),"Missing tons imported","Good")) -> No crop | AI20: =IF(ISBLANK(F28),"Missing %DM","Good") -> Missing %DM | AJ20: =IF(ISBLANK(H28),"Missing %CP","Good") -> Good | AK20: =IF(ISBLANK(I28),"Missing %P","Good") -> Good | AL20: =IF(ISBLANK(J28),"Missing %K","Good") -> Good | AM20: =IF(ISBLANK(K28),"Missing NDF%","Good") -> Missing NDF% | AN20: =IF(ISBLANK(L28),"Missing %feed to herd","Good") -> Missing %feed to herd | AO20: =IF(SUMPRODUCT(--ISNUMBER(SEARCH("No crop", AH20:AN20)))>0, "", IF(SUMPRODUCT(--ISNUMBER(SEARCH("missing", AH20:AN20)))>0, AG20 & ": " & _xlfn.TEXTJOIN(" , ", TRUE, _xlfn._xlws.FILTER(AH20:AN20, ISNUMBER(SEARCH("missing", AH20:AN20)))), "")) -> 
M21: Heifers: weaning to breeding | Y21: Heifers: weaning to breeding | AG21: =D33 -> 0 | AH21: =IF(ISBLANK(D33), "No crop", IF(ISBLANK(E33),"Missing tons imported","Good")) -> No crop | AI21: =IF(ISBLANK(F33),"Missing %DM","Good") -> Missing %DM | AJ21: =IF(ISBLANK(H33),"Missing %CP","Good") -> Good | AK21: =IF(ISBLANK(I33),"Missing %P","Good") -> Good | AL21: =IF(ISBLANK(J33),"Missing %K","Good") -> Missing %K | AM21: =IF(ISBLANK(K33),"Missing NDF%","Good") -> Missing NDF% | AN21: =IF(ISBLANK(L33),"Missing %feed to herd","Good") -> Missing %feed to herd | AO21: =IF(SUMPRODUCT(--ISNUMBER(SEARCH("No crop", AH21:AN21)))>0, "", IF(SUMPRODUCT(--ISNUMBER(SEARCH("missing", AH21:AN21)))>0, AG21 & ": " & _xlfn.TEXTJOIN(" , ", TRUE, _xlfn._xlws.FILTER(AH21:AN21, ISNUMBER(SEARCH("missing", AH21:AN21)))), "")) -> 
M22: Calves | Y22: Calves | AG22: =D38 -> 0 | AH22: =IF(ISBLANK(D33), "No crop",IF(ISBLANK(E38),"Missing tons imported","Good")) -> No crop | AI22: =IF(ISBLANK(F38),"Missing %DM","Good") -> Missing %DM | AJ22: =IF(ISBLANK(H38),"Missing %CP","Good") -> Good | AK22: =IF(ISBLANK(I38),"Missing %P","Good") -> Good | AL22: =IF(ISBLANK(J38),"Missing %K","Good") -> Good | AM22: =IF(ISBLANK(K38),"Missing NDF%","Good") -> Missing NDF% | AN22: =IF(ISBLANK(L38),"Missing %feed to herd","Good") -> Missing %feed to herd | AO22: =IF(SUMPRODUCT(--ISNUMBER(SEARCH("No crop", AH22:AN22)))>0, "", IF(SUMPRODUCT(--ISNUMBER(SEARCH("missing", AH22:AN22)))>0, AG22 & ": " & _xlfn.TEXTJOIN(" , ", TRUE, _xlfn._xlws.FILTER(AH22:AN22, ISNUMBER(SEARCH("missing", AH22:AN22)))), "")) -> 
C23: FALSE | G23: FALSE | H23: =IF($G23=TRUE, _xlfn.XLOOKUP("*"&D23&"*",'Feed book values'!$A$2:$A$159,'Feed book values'!$C$2:$C$159,"Book value not found",2,1), "") ->  | J23: =IF($G23=TRUE, _xlfn.XLOOKUP("*"&$D23&"*",Table3[Crop],Table3[K],"Book value not found",2,1), "") ->  | M23: Lactating cows | O23: =IF(D23="", "", IF(SUM(N23:N27)=1," ","Percents do not add to 100%. Please check")) ->  | Y23: Lactating cows | AA23: =IF(T23="", "", IF(SUM(Z23:Z27)=1," ","Percents do not add to 100%. Please check")) ->  | AG23: =D43 -> 0 | AH23: =IF(ISBLANK(D33), "No crop", IF(ISBLANK(E43),"Missing tons imported","Good")) -> No crop | AI23: =IF(ISBLANK(F43),"Missing %DM","Good") -> Missing %DM | AJ23: =IF(ISBLANK(H43),"Missing %CP","Good") -> Good | AK23: =IF(ISBLANK(I43),"Missing %P","Good") -> Good | AL23: =IF(ISBLANK(J43),"Missing %K","Good") -> Good | AM23: =IF(ISBLANK(K43),"Missing NDF%","Good") -> Missing NDF% | AN23: =IF(ISBLANK(L43),"Missing %feed to herd","Good") -> Missing %feed to herd | AO23: =IF(SUMPRODUCT(--ISNUMBER(SEARCH("No crop", AH23:AN23)))>0, "", IF(SUMPRODUCT(--ISNUMBER(SEARCH("missing", AH23:AN23)))>0, AG23 & ": " & _xlfn.TEXTJOIN(" , ", TRUE, _xlfn._xlws.FILTER(AH23:AN23, ISNUMBER(SEARCH("missing", AH23:AN23)))), "")) -> 
M24: Dry cows | Y24: Dry cows | AG24: =D48 -> 0 | AH24: =IF(ISBLANK(D33), "No crop", IF(ISBLANK(E48),"Missing tons imported","Good")) -> No crop | AI24: =IF(ISBLANK(F48),"Missing %DM","Good") -> Missing %DM | AJ24: =IF(ISBLANK(H48),"Missing %CP","Good") -> Good | AK24: =IF(ISBLANK(I48),"Missing %P","Good") -> Good | AL24: =IF(ISBLANK(J48),"Missing %K","Good") -> Good | AM24: =IF(ISBLANK(K48),"Missing NDF%","Good") -> Missing NDF% | AN24: =IF(ISBLANK(L48),"Missing %feed to herd","Good") -> Missing %feed to herd | AO24: =IF(SUMPRODUCT(--ISNUMBER(SEARCH("No crop", AH24:AN24)))>0, "", IF(SUMPRODUCT(--ISNUMBER(SEARCH("missing", AH24:AN24)))>0, AG24 & ": " & _xlfn.TEXTJOIN(" , ", TRUE, _xlfn._xlws.FILTER(AH24:AN24, ISNUMBER(SEARCH("missing", AH24:AN24)))), "")) -> 
M25: Heifers: breeding to calving | Y25: Heifers: breeding to calving | AG25: =D53 -> 0 | AH25: =IF(ISBLANK(D33), "No crop", IF(ISBLANK(F53),"Missing tons imported","Good")) -> No crop | AI25: =IF(ISBLANK(F53),"Missing %DM","Good") -> Missing %DM | AJ25: =IF(ISBLANK(H53),"Missing %CP","Good") -> Good | AK25: =IF(ISBLANK(I53),"Missing %P","Good") -> Good | AL25: =IF(ISBLANK(J53),"Missing %K","Good") -> Good | AM25: =IF(ISBLANK(K53),"Missing NDF%","Good") -> Missing NDF% | AN25: =IF(ISBLANK(L53),"Missing %feed to herd","Good") -> Missing %feed to herd | AO25: =IF(SUMPRODUCT(--ISNUMBER(SEARCH("No crop", AH25:AN25)))>0, "", IF(SUMPRODUCT(--ISNUMBER(SEARCH("missing", AH25:AN25)))>0, AG25 & ": " & _xlfn.TEXTJOIN(" , ", TRUE, _xlfn._xlws.FILTER(AH25:AN25, ISNUMBER(SEARCH("missing", AH25:AN25)))), "")) -> 
M26: Heifers: weaning to breeding | Y26: Heifers: weaning to breeding | AG26: =D58 -> 0 | AH26: =IF(ISBLANK(D33), "No crop",IF(ISBLANK(E58),"Missing tons imported","Good")) -> No crop | AI26: =IF(ISBLANK(F58),"Missing %DM","Good") -> Missing %DM | AJ26: =IF(ISBLANK(H58),"Missing %CP","Good") -> Good | AK26: =IF(ISBLANK(I58),"Missing %P","Good") -> Good | AL26: =IF(ISBLANK(J58),"Missing %K","Good") -> Good | AM26: =IF(ISBLANK(K58),"Missing NDF%","Good") -> Missing NDF% | AN26: =IF(ISBLANK(L58),"Missing %feed to herd","Good") -> Missing %feed to herd | AO26: =IF(SUMPRODUCT(--ISNUMBER(SEARCH("No crop", AH26:AN26)))>0, "", IF(SUMPRODUCT(--ISNUMBER(SEARCH("missing", AH26:AN26)))>0, AG26 & ": " & _xlfn.TEXTJOIN(" , ", TRUE, _xlfn._xlws.FILTER(AH26:AN26, ISNUMBER(SEARCH("missing", AH26:AN26)))), "")) -> 
M27: Calves | Y27: Calves | AG27: =D63 -> 0 | AH27: =IF(ISBLANK(D33), "No crop", IF(ISBLANK(E63),"Missing tons imported","Good")) -> No crop | AI27: =IF(ISBLANK(F63),"Missing %DM","Good") -> Missing %DM | AJ27: =IF(ISBLANK(H63),"Missing %CP","Good") -> Good | AK27: =IF(ISBLANK(I63),"Missing %P","Good") -> Good | AL27: =IF(ISBLANK(J63),"Missing %K","Good") -> Good | AM27: =IF(ISBLANK(K63),"Missing NDF%","Good") -> Missing NDF% | AN27: =IF(ISBLANK(L63),"Missing %feed to herd","Good") -> Missing %feed to herd | AO27: =IF(SUMPRODUCT(--ISNUMBER(SEARCH("No crop", AH27:AN27)))>0, "", IF(SUMPRODUCT(--ISNUMBER(SEARCH("missing", AH27:AN27)))>0, AG27 & ": " & _xlfn.TEXTJOIN(" , ", TRUE, _xlfn._xlws.FILTER(AH27:AN27, ISNUMBER(SEARCH("missing", AH27:AN27)))), "")) -> 
C28: FALSE | G28: FALSE | H28: =IF($G28=TRUE, _xlfn.XLOOKUP("*"&D28&"*",'Feed book values'!$A$2:$A$159,'Feed book values'!$C$2:$C$159,"Book value not found",2,1), "") ->  | I28: =IF($G28=TRUE, _xlfn.XLOOKUP("*"&D28&"*",Table3[Crop],Table3[P],"Book value not found",2,1), "") ->  | J28: =IF($G28=TRUE, _xlfn.XLOOKUP("*"&$D28&"*",Table3[Crop],Table3[K],"Book value not found",2,1), "") ->  | M28: Lactating cows | O28: =IF(D28="", "", IF(SUM(N28:N32)=1," ","Percents do not add to 100%. Please check")) ->  | Y28: Lactating cows | AA28: =IF(T28="", "", IF(SUM(Z28:Z32)=1," ","Percents do not add to 100%. Please check")) ->  | AG28: =D68 -> 0 | AH28: =IF(ISBLANK(D33), "No crop", IF(ISBLANK(E68),"Missing tons imported","Good")) -> No crop | AI28: =IF(ISBLANK(F68),"Missing %DM","Good") -> Missing %DM | AJ28: =IF(ISBLANK(H68),"Missing %CP","Good") -> Good | AK28: =IF(ISBLANK(I68),"Missing %P","Good") -> Good | AL28: =IF(ISBLANK(J68),"Missing %K","Good") -> Good | AM28: =IF(ISBLANK(K68),"Missing NDF%","Good") -> Missing NDF% | AN28: =IF(ISBLANK(L68),"Missing %feed to herd","Good") -> Missing %feed to herd | AO28: =IF(SUMPRODUCT(--ISNUMBER(SEARCH("No crop", AH28:AN28)))>0, "", IF(SUMPRODUCT(--ISNUMBER(SEARCH("missing", AH28:AN28)))>0, AG28 & ": " & _xlfn.TEXTJOIN(" , ", TRUE, _xlfn._xlws.FILTER(AH28:AN28, ISNUMBER(SEARCH("missing", AH28:AN28)))), "")) -> 
M29: Dry cows | Y29: Dry cows | AG29: =D73 -> 0 | AH29: =IF(ISBLANK(D33), "No crop", IF(ISBLANK(E73),"Missing tons imported","Good")) -> No crop | AI29: =IF(ISBLANK(F73),"Missing %DM","Good") -> Missing %DM | AJ29: =IF(ISBLANK(H73),"Missing %CP","Good") -> Good | AK29: =IF(ISBLANK(I73),"Missing %P","Good") -> Good | AL29: =IF(ISBLANK(J73),"Missing %K","Good") -> Good | AM29: =IF(ISBLANK(K73),"Missing NDF%","Good") -> Missing NDF% | AN29: =IF(ISBLANK(L73),"Missing %feed to herd ","Good") -> Missing %feed to herd | AO29: =IF(SUMPRODUCT(--ISNUMBER(SEARCH("No crop", AH29:AN29)))>0, "", IF(SUMPRODUCT(--ISNUMBER(SEARCH("missing", AH29:AN29)))>0, AG29 & ": " & _xlfn.TEXTJOIN(" , ", TRUE, _xlfn._xlws.FILTER(AH29:AN29, ISNUMBER(SEARCH("missing", AH29:AN29)))), "")) -> 
M30: Heifers: breeding to calving | Y30: Heifers: breeding to calving | AG30: =D78 -> 0 | AH30: =IF(ISBLANK(D33), "No crop", IF(ISBLANK(E78),"Missing tons imported","Good")) -> No crop | AI30: =IF(ISBLANK(F78),"Missing %DM","Good") -> Missing %DM | AJ30: =IF(ISBLANK(H78),"Missing CP","Good") -> Good | AK30: =IF(ISBLANK(I78),"Missing %P","Good") -> Good | AL30: =IF(ISBLANK(J78),"Missing %K","Good") -> Good | AM30: =IF(ISBLANK(K78),"Missing NDF%","Good") -> Missing NDF% | AN30: =IF(ISBLANK(L78),"Missing %feed to herd","Good") -> Missing %feed to herd | AO30: =IF(SUMPRODUCT(--ISNUMBER(SEARCH("No crop", AH30:AN30)))>0, "", IF(SUMPRODUCT(--ISNUMBER(SEARCH("missing", AH30:AN30)))>0, AG30 & ": " & _xlfn.TEXTJOIN(" , ", TRUE, _xlfn._xlws.FILTER(AH30:AN30, ISNUMBER(SEARCH("missing", AH30:AN30)))), "")) -> 
M31: Heifers: weaning to breeding | Y31: Heifers: weaning to breeding | AG31: =D83 -> 0 | AH31: =IF(ISBLANK(D33), "No crop", IF(ISBLANK(E83),"Missing tons imported","Good")) -> No crop | AI31: =IF(ISBLANK(F83),"Missing %DM","Good") -> Missing %DM | AJ31: =IF(ISBLANK(H83),"Missing %CP","Good") -> Good | AK31: =IF(ISBLANK(I83),"Missing %P","Good") -> Good | AL31: =IF(ISBLANK(J83),"Missing %K","Good") -> Good | AM31: =IF(ISBLANK(K83),"Missing NDF%","Good") -> Missing NDF% | AN31: =IF(ISBLANK(L83),"Missing %feed to herd","Good") -> Missing %feed to herd | AO31: =IF(SUMPRODUCT(--ISNUMBER(SEARCH("No crop", AH31:AN31)))>0, "", IF(SUMPRODUCT(--ISNUMBER(SEARCH("missing", AH31:AN31)))>0, AG31 & ": " & _xlfn.TEXTJOIN(" , ", TRUE, _xlfn._xlws.FILTER(AH31:AN31, ISNUMBER(SEARCH("missing", AH31:AN31)))), "")) -> 
M32: Calves | Y32: Calves | AG32: =D88 -> 0 | AH32: =IF(ISBLANK(D33), "No crop", IF(ISBLANK(E88),"Missing tons imported","Good")) -> No crop | AI32: =IF(ISBLANK(F88),"Missing %DM","Good") -> Missing %DM | AJ32: =IF(ISBLANK(H88),"Missing %CP","Good") -> Good | AK32: =IF(ISBLANK(I88),"Missing %P","Good") -> Good | AL32: =IF(ISBLANK(J88),"Missing %K","Good") -> Good | AM32: =IF(ISBLANK(K88),"Missing tons NDF%","Good") -> Missing tons NDF% | AN32: =IF(ISBLANK(L88),"Missing %feed to herd","Good") -> Missing %feed to herd | AO32: =IF(SUMPRODUCT(--ISNUMBER(SEARCH("No crop", AH32:AN32)))>0, "", IF(SUMPRODUCT(--ISNUMBER(SEARCH("missing", AH32:AN32)))>0, AG32 & ": " & _xlfn.TEXTJOIN(" , ", TRUE, _xlfn._xlws.FILTER(AH32:AN32, ISNUMBER(SEARCH("missing", AH32:AN32)))), "")) -> 
C33: FALSE | G33: FALSE | H33: =IF($G33=TRUE, _xlfn.XLOOKUP("*"&D33&"*",'Feed book values'!$A$2:$A$159,'Feed book values'!$C$2:$C$159,"Book value not found",2,1), "") ->  | I33: =IF($G33=TRUE, _xlfn.XLOOKUP("*"&D33&"*",Table3[Crop],Table3[P],"Book value not found",2,1), "") ->  | M33: Lactating cows | O33: =IF(D33="", "", IF(SUM(N33:N37)=1," ","Percents do not add to 100%. Please check")) ->  | Y33: Lactating cows | AA33: =IF(T33="", "", IF(SUM(Z33:Z37)=1," ","Percents do not add to 100%. Please check")) ->  | AG33: =D93 -> 0 | AH33: =IF(ISBLANK(D33), "No crop", IF(ISBLANK(E93),"Missing tons imported","Good")) -> No crop | AI33: =IF(ISBLANK(F93),"Missing %DM","Good") -> Missing %DM | AJ33: =IF(ISBLANK(H93),"Missing %CP","Good") -> Good | AK33: =IF(ISBLANK(I93),"Missing %P","Good") -> Good | AL33: =IF(ISBLANK(J93),"Missing %K","Good") -> Good | AM33: =IF(ISBLANK(K93),"Missing tons NDF%","Good") -> Missing tons NDF% | AN33: =IF(ISBLANK(L93),"Missing %feed to herd","Good") -> Missing %feed to herd | AO33: =IF(SUMPRODUCT(--ISNUMBER(SEARCH("No crop", AH33:AN33)))>0, "", IF(SUMPRODUCT(--ISNUMBER(SEARCH("missing", AH33:AN33)))>0, AG33 & ": " & _xlfn.TEXTJOIN(" , ", TRUE, _xlfn._xlws.FILTER(AH33:AN33, ISNUMBER(SEARCH("missing", AH33:AN33)))), "")) -> 
M34: Dry cows | Y34: Dry cows | AG34: =D98 -> 0 | AH34: =IF(ISBLANK(D33), "No crop", IF(ISBLANK(E98),"Missing tons imported","Good")) -> No crop | AI34: =IF(ISBLANK(F98),"Missing %DM","Good") -> Missing %DM | AJ34: =IF(ISBLANK(H98),"Missing %CP","Good") -> Good | AK34: =IF(ISBLANK(I98),"Missing %P","Good") -> Good | AL34: =IF(ISBLANK(J98),"Missing %K","Good") -> Good | AM34: =IF(ISBLANK(K98),"Missing tons NDF%","Good") -> Missing tons NDF% | AN34: =IF(ISBLANK(L98),"Missing %feed to herd","Good") -> Missing %feed to herd | AO34: =IF(SUMPRODUCT(--ISNUMBER(SEARCH("No crop", AH34:AN34)))>0, "", IF(SUMPRODUCT(--ISNUMBER(SEARCH("missing", AH34:AN34)))>0, AG34 & ": " & _xlfn.TEXTJOIN(" , ", TRUE, _xlfn._xlws.FILTER(AH34:AN34, ISNUMBER(SEARCH("missing", AH34:AN34)))), "")) -> 
M35: Heifers: breeding to calving | Y35: Heifers: breeding to calving | AG35: =D103 -> 0 | AH35: =IF(ISBLANK(D34), "No crop", IF(ISBLANK(E99),"Missing tons imported","Good")) -> No crop | AI35: =IF(ISBLANK(F103),"Missing %DM","Good") -> Missing %DM | AJ35: =IF(ISBLANK(H103),"Missing %CP","Good") -> Good | AK35: =IF(ISBLANK(I103),"Missing %P","Good") -> Good | AL35: =IF(ISBLANK(J103),"Missing %K","Good") -> Good | AM35: =IF(ISBLANK(K103),"Missing NDF%","Good") -> Missing NDF% | AN35: =IF(ISBLANK(L103),"Missing %feed to herd","Good") -> Missing %feed to herd | AO35: =IF(SUMPRODUCT(--ISNUMBER(SEARCH("No crop", AH35:AN35)))>0, "", IF(SUMPRODUCT(--ISNUMBER(SEARCH("missing", AH35:AN35)))>0, AG35 & ": " & _xlfn.TEXTJOIN(" , ", TRUE, _xlfn._xlws.FILTER(AH35:AN35, ISNUMBER(SEARCH("missing", AH35:AN35)))), "")) -> 
M36: Heifers: weaning to breeding | Y36: Heifers: weaning to breeding | AG36: =D108 -> 0 | AH36: =IF(ISBLANK(D33), "No crop", IF(ISBLANK(E108),"Missing tons imported","Good")) -> No crop | AI36: =IF(ISBLANK(F108),"Missing %DM", "Good") -> Missing %DM | AJ36: =IF(ISBLANK(H108),"Missing %CP","Good") -> Good | AK36: =IF(ISBLANK(I108),"Missing %P","Good") -> Good | AL36: =IF(ISBLANK(J108),"Missing %K","Good") -> Good | AM36: =IF(ISBLANK(K108),"Missing NDF%","Good") -> Missing NDF% | AN36: =IF(ISBLANK(L113),"Missing %feed to herd","Good") -> Missing %feed to herd | AO36: =IF(SUMPRODUCT(--ISNUMBER(SEARCH("No crop", AH36:AN36)))>0, "", IF(SUMPRODUCT(--ISNUMBER(SEARCH("missing", AH36:AN36)))>0, AG36 & ": " & _xlfn.TEXTJOIN(" , ", TRUE, _xlfn._xlws.FILTER(AH36:AN36, ISNUMBER(SEARCH("missing", AH36:AN36)))), "")) -> 
M37: Calves | Y37: Calves
C38: FALSE | G38: FALSE | H38: =IF($G38=TRUE, _xlfn.XLOOKUP("*"&D38&"*",'Feed book values'!$A$2:$A$159,'Feed book values'!$C$2:$C$159,"Book value not found",2,1), "") ->  | I38: =IF($G38=TRUE, _xlfn.XLOOKUP("*"&D38&"*",Table3[Crop],Table3[P],"Book value not found",2,1), "") ->  | J38: =IF($G38=TRUE, _xlfn.XLOOKUP("*"&$D38&"*",Table3[Crop],Table3[K],"Book value not found",2,1), "") ->  | M38: Lactating cows | O38: =IF(D38="", "", IF(SUM(N38:N42)=1," ","Percents do not add to 100%. Please check")) ->  | Y38: Lactating cows | AA38: =IF(T38="", "", IF(SUM(Z38:Z42)=1," ","Percents do not add to 100%. Please check")) -> 
M39: Dry cows | Y39: Dry cows
M40: Heifers: breeding to calving | Y40: Heifers: breeding to calving
M41: Heifers: weaning to breeding | Y41: Heifers: weaning to breeding
M42: Calves | Y42: Calves
C43: FALSE | G43: FALSE | H43: =IF($G43=TRUE, _xlfn.XLOOKUP("*"&D43&"*",'Feed book values'!$A$2:$A$159,'Feed book values'!$C$2:$C$159,"Book value not found",2,1), "") ->  | I43: =IF($G43=TRUE, _xlfn.XLOOKUP("*"&D43&"*",Table3[Crop],Table3[P],"Book value not found",2,1), "") ->  | J43: =IF($G43=TRUE, _xlfn.XLOOKUP("*"&$D43&"*",Table3[Crop],Table3[K],"Book value not found",2,1), "") ->  | M43: Lactating cows | O43: =IF(D43="", "", IF(SUM(N43:N47)=1," ","Percents do not add to 100%. Please check")) ->  | Y43: Lactating cows | AA43: =IF(T43="", "", IF(SUM(Z43:Z47)=1," ","Percents do not add to 100%. Please check")) -> 
M44: Dry cows | Y44: Dry cows
M45: Heifers: breeding to calving | Y45: Heifers: breeding to calving
M46: Heifers: weaning to breeding | Y46: Heifers: weaning to breeding
M47: Calves | Y47: Calves
C48: FALSE | G48: FALSE | H48: =IF($G48=TRUE, _xlfn.XLOOKUP("*"&D48&"*",'Feed book values'!$A$2:$A$159,'Feed book values'!$C$2:$C$159,"Book value not found",2,1), "") ->  | I48: =IF($G48=TRUE, _xlfn.XLOOKUP("*"&D48&"*",Table3[Crop],Table3[P],"Book value not found",2,1), "") ->  | J48: =IF($G48=TRUE, _xlfn.XLOOKUP("*"&$D48&"*",Table3[Crop],Table3[K],"Book value not found",2,1), "") ->  | M48: Lactating cows | O48: =IF(D48="", "", IF(SUM(N48:N52)=1," ","Percents do not add to 100%. Please check")) ->  | Y48: Lactating cows | AA48: =IF(T48="", "", IF(SUM(Z48:Z52)=1," ","Percents do not add to 100%. Please check")) -> 
M49: Dry cows | Y49: Dry cows
M50: Heifers: breeding to calving | Y50: Heifers: breeding to calving
M51: Heifers: weaning to breeding | Y51: Heifers: weaning to breeding
M52: Calves | Y52: Calves
C53: FALSE | G53: FALSE | H53: =IF($G53=TRUE, _xlfn.XLOOKUP("*"&D53&"*",'Feed book values'!$A$2:$A$159,'Feed book values'!$C$2:$C$159,"Book value not found",2,1), "") ->  | I53: =IF($G53=TRUE, _xlfn.XLOOKUP("*"&D53&"*",Table3[Crop],Table3[P],"Book value not found",2,1), "") ->  | J53: =IF($G53=TRUE, _xlfn.XLOOKUP("*"&$D53&"*",Table3[Crop],Table3[K],"Book value not found",2,1), "") ->  | M53: Lactating cows | O53: =IF(D53="", "", IF(SUM(N53:N57)=1," ","Percents do not add to 100%. Please check")) ->  | Y53: Lactating cows | AA53: =IF(T53="", "", IF(SUM(Z53:Z57)=1," ","Percents do not add to 100%. Please check")) -> 
M54: Dry cows | Y54: Dry cows
M55: Heifers: breeding to calving | Y55: Heifers: breeding to calving
M56: Heifers: weaning to breeding | Y56: Heifers: weaning to breeding
M57: Calves | Y57: Calves
C58: FALSE | G58: FALSE | H58: =IF($G58=TRUE, _xlfn.XLOOKUP("*"&D58&"*",'Feed book values'!$A$2:$A$159,'Feed book values'!$C$2:$C$159,"Book value not found",2,1), "") ->  | I58: =IF($G58=TRUE, _xlfn.XLOOKUP("*"&D58&"*",Table3[Crop],Table3[P],"Book value not found",2,1), "") ->  | J58: =IF($G58=TRUE, _xlfn.XLOOKUP("*"&$D58&"*",Table3[Crop],Table3[K],"Book value not found",2,1), "") ->  | M58: Lactating cows | O58: =IF(D58="", "", IF(SUM(N58:N62)=1," ","Percents do not add to 100%. Please check")) ->  | Y58: Lactating cows | AA58: =IF(T58="", "", IF(SUM(Z58:Z62)=1," ","Percents do not add to 100%. Please check")) -> 
M59: Dry cows | Y59: Dry cows
M60: Heifers: breeding to calving | Y60: Heifers: breeding to calving
M61: Heifers: weaning to breeding | Y61: Heifers: weaning to breeding
M62: Calves | Y62: Calves
C63: FALSE | G63: FALSE | H63: =IF($G63=TRUE, _xlfn.XLOOKUP("*"&D63&"*",'Feed book values'!$A$2:$A$159,'Feed book values'!$C$2:$C$159,"Book value not found",2,1), "") ->  | I63: =IF($G63=TRUE, _xlfn.XLOOKUP("*"&D63&"*",Table3[Crop],Table3[P],"Book value not found",2,1), "") ->  | J63: =IF($G63=TRUE, _xlfn.XLOOKUP("*"&$D63&"*",Table3[Crop],Table3[K],"Book value not found",2,1), "") ->  | M63: Lactating cows | O63: =IF(D63="", "", IF(SUM(N63:N67)=1," ","Percents do not add to 100%. Please check")) ->  | Y63: Lactating cows | AA63: =IF(T63="", "", IF(SUM(Z63:Z67)=1," ","Percents do not add to 100%. Please check")) -> 
M64: Dry cows | Y64: Dry cows
M65: Heifers: breeding to calving | Y65: Heifers: breeding to calving
M66: Heifers: weaning to breeding | Y66: Heifers: weaning to breeding
M67: Calves | Y67: Calves
C68: FALSE | G68: FALSE | H68: =IF($G68=TRUE, _xlfn.XLOOKUP("*"&D68&"*",'Feed book values'!$A$2:$A$159,'Feed book values'!$C$2:$C$159,"Book value not found",2,1), "") ->  | I68: =IF($G68=TRUE, _xlfn.XLOOKUP("*"&D68&"*",Table3[Crop],Table3[P],"Book value not found",2,1), "") ->  | J68: =IF($G68=TRUE, _xlfn.XLOOKUP("*"&$D68&"*",Table3[Crop],Table3[K],"Book value not found",2,1), "") ->  | M68: Lactating cows | O68: =IF(D68="", "", IF(SUM(N68:N72)=1," ","Percents do not add to 100%. Please check")) ->  | Y68: Lactating cows | AA68: =IF(T68="", "", IF(SUM(Z68:Z72)=1," ","Percents do not add to 100%. Please check")) -> 
M69: Dry cows | Y69: Dry cows
M70: Heifers: breeding to calving | Y70: Heifers: breeding to calving
M71: Heifers: weaning to breeding | Y71: Heifers: weaning to breeding
M72: Calves | Y72: Calves
C73: FALSE | G73: FALSE | H73: =IF($G73=TRUE, _xlfn.XLOOKUP("*"&D73&"*",'Feed book values'!$A$2:$A$159,'Feed book values'!$C$2:$C$159,"Book value not found",2,1), "") ->  | I73: =IF($G73=TRUE, _xlfn.XLOOKUP("*"&D73&"*",Table3[Crop],Table3[P],"Book value not found",2,1), "") ->  | J73: =IF($G73=TRUE, _xlfn.XLOOKUP("*"&$D73&"*",Table3[Crop],Table3[K],"Book value not found",2,1), "") ->  | M73: Lactating cows | O73: =IF(D73="", "", IF(SUM(N73:N77)=1," ","Percents do not add to 100%. Please check")) ->  | Y73: Lactating cows | AA73: =IF(T73="", "", IF(SUM(Z73:Z77)=1," ","Percents do not add to 100%. Please check")) -> 
M74: Dry cows | Y74: Dry cows
M75: Heifers: breeding to calving | Y75: Heifers: breeding to calving
M76: Heifers: weaning to breeding | Y76: Heifers: weaning to breeding
M77: Calves | Y77: Calves
C78: FALSE | G78: FALSE | H78: =IF($G78=TRUE, _xlfn.XLOOKUP("*"&D78&"*",'Feed book values'!$A$2:$A$159,'Feed book values'!$C$2:$C$159,"Book value not found",2,1), "") ->  | I78: =IF($G78=TRUE, _xlfn.XLOOKUP("*"&D78&"*",Table3[Crop],Table3[P],"Book value not found",2,1), "") ->  | J78: =IF($G78=TRUE, _xlfn.XLOOKUP("*"&$D78&"*",Table3[Crop],Table3[K],"Book value not found",2,1), "") ->  | M78: Lactating cows | O78: =IF(D78="", "", IF(SUM(N78:N82)=1," ","Percents do not add to 100%. Please check")) ->  | Y78: Lactating cows | AA78: =IF(T78="", "", IF(SUM(Z78:Z82)=1," ","Percents do not add to 100%. Please check")) -> 
M79: Dry cows | Y79: Dry cows
M80: Heifers: breeding to calving | Y80: Heifers: breeding to calving
M81: Heifers: weaning to breeding | Y81: Heifers: weaning to breeding
M82: Calves | Y82: Calves
C83: FALSE | G83: FALSE | H83: =IF($G83=TRUE, _xlfn.XLOOKUP("*"&D83&"*",'Feed book values'!$A$2:$A$159,'Feed book values'!$C$2:$C$159,"Book value not found",2,1), "") ->  | I83: =IF($G83=TRUE, _xlfn.XLOOKUP("*"&D83&"*",Table3[Crop],Table3[P],"Book value not found",2,1), "") ->  | J83: =IF($G83=TRUE, _xlfn.XLOOKUP("*"&$D83&"*",Table3[Crop],Table3[K],"Book value not found",2,1), "") ->  | M83: Lactating cows | O83: =IF(D83="", "", IF(SUM(N83:N87)=1," ","Percents do not add to 100%. Please check")) ->  | Y83: Lactating cows | AA83: =IF(T83="", "", IF(SUM(Z83:Z87)=1," ","Percents do not add to 100%. Please check")) -> 
M84: Dry cows | Y84: Dry cows
M85: Heifers: breeding to calving | Y85: Heifers: breeding to calving
M86: Heifers: weaning to breeding | Y86: Heifers: weaning to breeding
M87: Calves | Y87: Calves
C88: FALSE | G88: FALSE | H88: =IF($G88=TRUE, _xlfn.XLOOKUP("*"&D88&"*",'Feed book values'!$A$2:$A$159,'Feed book values'!$C$2:$C$159,"Book value not found",2,1), "") ->  | I88: =IF($G88=TRUE, _xlfn.XLOOKUP("*"&D88&"*",Table3[Crop],Table3[P],"Book value not found",2,1), "") ->  | J88: =IF($G88=TRUE, _xlfn.XLOOKUP("*"&$D88&"*",Table3[Crop],Table3[K],"Book value not found",2,1), "") ->  | M88: Lactating cows | O88: =IF(D88="", "", IF(SUM(N88:N92)=1," ","Percents do not add to 100%. Please check")) ->  | Y88: Lactating cows | AA88: =IF(T88="", "", IF(SUM(Z88:Z92)=1," ","Percents do not add to 100%. Please check")) -> 
M89: Dry cows | Y89: Dry cows
M90: Heifers: breeding to calving | Y90: Heifers: breeding to calving
M91: Heifers: weaning to breeding | Y91: Heifers: weaning to breeding
M92: Calves | Y92: Calves
C93: FALSE | G93: FALSE | H93: =IF($G93=TRUE, _xlfn.XLOOKUP("*"&D93&"*",'Feed book values'!$A$2:$A$159,'Feed book values'!$C$2:$C$159,"Book value not found",2,1), "") ->  | I93: =IF($G93=TRUE, _xlfn.XLOOKUP("*"&D93&"*",Table3[Crop],Table3[P],"Book value not found",2,1), "") ->  | J93: =IF($G93=TRUE, _xlfn.XLOOKUP("*"&$D93&"*",Table3[Crop],Table3[K],"Book value not found",2,1), "") ->  | M93: Lactating cows | Y93: Lactating cows | AA93: =IF(T93="", "", IF(SUM(Z93:Z97)=1," ","Percents do not add to 100%. Please check")) -> 
M94: Dry cows | Y94: Dry cows
M95: Heifers: breeding to calving | Y95: Heifers: breeding to calving
M96: Heifers: weaning to breeding | Y96: Heifers: weaning to breeding
M97: Calves | Y97: Calves
C98: FALSE | G98: FALSE | H98: =IF($G98=TRUE, _xlfn.XLOOKUP("*"&D98&"*",'Feed book values'!$A$2:$A$159,'Feed book values'!$C$2:$C$159,"Book value not found",2,1), "") ->  | I98: =IF($G98=TRUE, _xlfn.XLOOKUP("*"&D98&"*",Table3[Crop],Table3[P],"Book value not found",2,1), "") ->  | J98: =IF($G98=TRUE, _xlfn.XLOOKUP("*"&$D98&"*",Table3[Crop],Table3[K],"Book value not found",2,1), "") ->  | M98: Lactating cows | Y98: Lactating cows | AA98: =IF(T98="", "", IF(SUM(Z98:Z102)=1," ","Percents do not add to 100%. Please check")) -> 
M99: Dry cows | Y99: Dry cows
M100: Heifers: breeding to calving | Y100: Heifers: breeding to calving
M101: Heifers: weaning to breeding | Y101: Heifers: weaning to breeding
M102: Calves | Y102: Calves
C103: FALSE | G103: FALSE | H103: =IF($G103=TRUE, _xlfn.XLOOKUP("*"&D103&"*",'Feed book values'!$A$2:$A$159,'Feed book values'!$C$2:$C$159,"Book value not found",2,1), "") ->  | I103: =IF($G103=TRUE, _xlfn.XLOOKUP("*"&D103&"*",Table3[Crop],Table3[P],"Book value not found",2,1), "") ->  | J103: =IF($G103=TRUE, _xlfn.XLOOKUP("*"&$D103&"*",Table3[Crop],Table3[K],"Book value not found",2,1), "") ->  | M103: Lactating cows | Y103: Lactating cows | AA103: =IF(T103="", "", IF(SUM(Z103:Z107)=1," ","Percents do not add to 100%. Please check")) -> 
M104: Dry cows | Y104: Dry cows
M105: Heifers: breeding to calving | Y105: Heifers: breeding to calving
M106: Heifers: weaning to breeding | Y106: Heifers: weaning to breeding
M107: Calves | Y107: Calves
C108: FALSE | G108: FALSE | H108: =IF($G108=TRUE, _xlfn.XLOOKUP("*"&D108&"*",'Feed book values'!$A$2:$A$159,'Feed book values'!$C$2:$C$159,"Book value not found",2,1), "") ->  | I108: =IF($G108=TRUE, _xlfn.XLOOKUP("*"&D108&"*",Table3[Crop],Table3[P],"Book value not found",2,1), "") ->  | J108: =IF($G108=TRUE, _xlfn.XLOOKUP("*"&$D108&"*",Table3[Crop],Table3[K],"Book value not found",2,1), "") ->  | M108: Lactating cows | Y108: Lactating cows | AA108: =IF(T108="", "", IF(SUM(Z108:Z112)=1," ","Percents do not add to 100%. Please check")) -> 
M109: Dry cows | Y109: Dry cows
M110: Heifers: breeding to calving | Y110: Heifers: breeding to calving
M111: Heifers: weaning to breeding | Y111: Heifers: weaning to breeding
M112: Calves | Y112: Calves
C113: FALSE | G113: FALSE | H113: =IF($G113=TRUE, _xlfn.XLOOKUP("*"&D113&"*",'Feed book values'!$A$2:$A$159,'Feed book values'!$C$2:$C$159,"Book value not found",2,1), "") ->  | I113: =IF($G113=TRUE, _xlfn.XLOOKUP("*"&D113&"*",Table3[Crop],Table3[P],"Book value not found",2,1), "") ->  | J113: =IF($G113=TRUE, _xlfn.XLOOKUP("*"&$D113&"*",Table3[Crop],Table3[K],"Book value not found",2,1), "") ->  | M113: Lactating cows | Y113: Lactating cows | AA113: =IF(T113="", "", IF(SUM(Z113:Z117)=1," ","Percents do not add to 100%. Please check")) -> 
M114: Dry cows | Y114: Dry cows
M115: Heifers: breeding to calving | Y115: Heifers: breeding to calving
M116: Heifers: weaning to breeding | Y116: Heifers: weaning to breeding
M117: Calves | Y117: Calves
C118: FALSE | G118: FALSE | H118: =IF($G118=TRUE, _xlfn.XLOOKUP("*"&D118&"*",'Feed book values'!$A$2:$A$159,'Feed book values'!$C$2:$C$159,"Book value not found",2,1), "") ->  | I118: =IF($G118=TRUE, _xlfn.XLOOKUP("*"&D118&"*",Table3[Crop],Table3[P],"Book value not found",2,1), "") ->  | J118: =IF($G118=TRUE, _xlfn.XLOOKUP("*"&$D118&"*",Table3[Crop],Table3[K],"Book value not found",2,1), "") ->  | M118: Lactating cows | Y118: Lactating cows | AA118: =IF(T118="", "", IF(SUM(Z118:Z122)=1," ","Percents do not add to 100%. Please check")) -> 
M119: Dry cows | Y119: Dry cows
M120: Heifers: breeding to calving | Y120: Heifers: breeding to calving
M121: Heifers: weaning to breeding | Y121: Heifers: weaning to breeding
M122: Calves | Y122: Calves
C123: FALSE | G123: FALSE | H123: =IF($G123=TRUE, _xlfn.XLOOKUP("*"&D123&"*",'Feed book values'!$A$2:$A$159,'Feed book values'!$C$2:$C$159,"Book value not found",2,1), "") ->  | I123: =IF($G123=TRUE, _xlfn.XLOOKUP("*"&D123&"*",Table3[Crop],Table3[P],"Book value not found",2,1), "") ->  | J123: =IF($G123=TRUE, _xlfn.XLOOKUP("*"&$D123&"*",Table3[Crop],Table3[K],"Book value not found",2,1), "") ->  | M123: Lactating cows | Y123: Lactating cows | AA123: =IF(T123="", "", IF(SUM(Z123:Z127)=1," ","Percents do not add to 100%. Please check")) -> 
M124: Dry cows | Y124: Dry cows
M125: Heifers: breeding to calving | Y125: Heifers: breeding to calving
M126: Heifers: weaning to breeding | Y126: Heifers: weaning to breeding
M127: Calves | Y127: Calves
C128: FALSE | G128: FALSE | H128: =IF($G128=TRUE, _xlfn.XLOOKUP("*"&D128&"*",'Feed book values'!$A$2:$A$159,'Feed book values'!$C$2:$C$159,"Book value not found",2,1), "") ->  | I128: =IF($G128=TRUE, _xlfn.XLOOKUP("*"&D128&"*",Table3[Crop],Table3[P],"Book value not found",2,1), "") ->  | J128: =IF($G128=TRUE, _xlfn.XLOOKUP("*"&$D128&"*",Table3[Crop],Table3[K],"Book value not found",2,1), "") ->  | M128: Lactating cows | O128: =IF(D128="", "", IF(SUM(N128:N132)=1," ","Percents do not add to 100%. Please check")) ->  | Y128: Lactating cows | AA128: =IF(T128="", "", IF(SUM(Z128:Z132)=1," ","Percents do not add to 100%. Please check")) -> 
M129: Dry cows | Y129: Dry cows
M130: Heifers: breeding to calving | Y130: Heifers: breeding to calving
M131: Heifers: weaning to breeding | Y131: Heifers: weaning to breeding
M132: Calves | Y132: Calves
C133: FALSE | G133: FALSE | H133: =IF($G133=TRUE, _xlfn.XLOOKUP("*"&D133&"*",'Feed book values'!$A$2:$A$159,'Feed book values'!$C$2:$C$159,"Book value not found",2,1), "") ->  | I133: =IF($G133=TRUE, _xlfn.XLOOKUP("*"&D133&"*",Table3[Crop],Table3[P],"Book value not found",2,1), "") ->  | J133: =IF($G133=TRUE, _xlfn.XLOOKUP("*"&$D133&"*",Table3[Crop],Table3[K],"Book value not found",2,1), "") ->  | M133: Lactating cows | O133: =IF(D133="", "", IF(SUM(N133:N137)=1," ","Percents do not add to 100%. Please check")) ->  | Y133: Lactating cows | AA133: =IF(T133="", "", IF(SUM(Z133:Z137)=1," ","Percents do not add to 100%. Please check")) -> 
M134: Dry cows | Y134: Dry cows
M135: Heifers: breeding to calving | Y135: Heifers: breeding to calving
M136: Heifers: weaning to breeding | Y136: Heifers: weaning to breeding
M137: Calves | Y137: Calves
C138: FALSE | G138: FALSE | H138: =IF($G138=TRUE, _xlfn.XLOOKUP("*"&D138&"*",'Feed book values'!$A$2:$A$159,'Feed book values'!$C$2:$C$159,"Book value not found",2,1), "") ->  | I138: =IF($G138=TRUE, _xlfn.XLOOKUP("*"&D138&"*",Table3[Crop],Table3[P],"Book value not found",2,1), "") ->  | J138: =IF($G138=TRUE, _xlfn.XLOOKUP("*"&$D138&"*",Table3[Crop],Table3[K],"Book value not found",2,1), "") ->  | M138: Lactating cows | O138: =IF(D138="", "", IF(SUM(N138:N142)=1," ","Percents do not add to 100%. Please check")) ->  | Y138: Lactating cows | AA138: =IF(T138="", "", IF(SUM(Z138:Z142)=1," ","Percents do not add to 100%. Please check")) -> 
M139: Dry cows | Y139: Dry cows
M140: Heifers: breeding to calving | Y140: Heifers: breeding to calving
M141: Heifers: weaning to breeding | Y141: Heifers: weaning to breeding
M142: Calves | Y142: Calves
C143: FALSE | G143: FALSE | H143: =IF($G143=TRUE, _xlfn.XLOOKUP("*"&D143&"*",'Feed book values'!$A$2:$A$159,'Feed book values'!$C$2:$C$159,"Book value not found",2,1), "") ->  | I143: =IF($G143=TRUE, _xlfn.XLOOKUP("*"&D143&"*",Table3[Crop],Table3[P],"Book value not found",2,1), "") ->  | J143: =IF($G143=TRUE, _xlfn.XLOOKUP("*"&$D143&"*",Table3[Crop],Table3[K],"Book value not found",2,1), "") ->  | M143: Lactating cows | O143: =IF(D143="", "", IF(SUM(N143:N147)=1," ","Percents do not add to 100%. Please check")) ->  | Y143: Lactating cows | AA143: =IF(T143="", "", IF(SUM(Z143:Z147)=1," ","Percents do not add to 100%. Please check")) -> 
M144: Dry cows | Y144: Dry cows
M145: Heifers: breeding to calving | Y145: Heifers: breeding to calving
M146: Heifers: weaning to breeding | Y146: Heifers: weaning to breeding
M147: Calves | Y147: Calves
C148: FALSE | G148: FALSE | H148: =IF($G148=TRUE, _xlfn.XLOOKUP("*"&D148&"*",'Feed book values'!$A$2:$A$159,'Feed book values'!$C$2:$C$159,"Book value not found",2,1), "") ->  | I148: =IF($G148=TRUE, _xlfn.XLOOKUP("*"&D148&"*",Table3[Crop],Table3[P],"Book value not found",2,1), "") ->  | J148: =IF($G148=TRUE, _xlfn.XLOOKUP("*"&$D148&"*",Table3[Crop],Table3[K],"Book value not found",2,1), "") ->  | M148: Lactating cows | O148: =IF(D148="", "", IF(SUM(N148:N152)=1," ","Percents do not add to 100%. Please check")) ->  | Y148: Lactating cows | AA148: =IF(T148="", "", IF(SUM(Z148:Z152)=1," ","Percents do not add to 100%. Please check")) -> 
M149: Dry cows | Y149: Dry cows
M150: Heifers: breeding to calving | Y150: Heifers: breeding to calving
M151: Heifers: weaning to breeding | Y151: Heifers: weaning to breeding
M152: Calves | Y152: Calves
C153: FALSE | G153: FALSE | H153: =IF($G153=TRUE, _xlfn.XLOOKUP("*"&D153&"*",'Feed book values'!$A$2:$A$159,'Feed book values'!$C$2:$C$159,"Book value not found",2,1), "") ->  | I153: =IF($G153=TRUE, _xlfn.XLOOKUP("*"&D153&"*",Table3[Crop],Table3[P],"Book value not found",2,1), "") ->  | J153: =IF($G153=TRUE, _xlfn.XLOOKUP("*"&$D153&"*",Table3[Crop],Table3[K],"Book value not found",2,1), "") ->  | M153: Lactating cows | O153: =IF(D153="", "", IF(SUM(N153:N157)=1," ","Percents do not add to 100%. Please check")) ->  | Y153: Lactating cows | AA153: =IF(T153="", "", IF(SUM(Z153:Z157)=1," ","Percents do not add to 100%. Please check")) -> 
M154: Dry cows | Y154: Dry cows
M155: Heifers: breeding to calving | Y155: Heifers: breeding to calving
M156: Heifers: weaning to breeding | Y156: Heifers: weaning to breeding
M157: Calves | Y157: Calves
C158: FALSE | G158: FALSE | H158: =IF($G158=TRUE, _xlfn.XLOOKUP("*"&D158&"*",'Feed book values'!$A$2:$A$159,'Feed book values'!$C$2:$C$159,"Book value not found",2,1), "") ->  | I158: =IF($G158=TRUE, _xlfn.XLOOKUP("*"&D158&"*",Table3[Crop],Table3[P],"Book value not found",2,1), "") ->  | J158: =IF($G158=TRUE, _xlfn.XLOOKUP("*"&$D158&"*",Table3[Crop],Table3[K],"Book value not found",2,1), "") ->  | M158: Lactating cows | O158: =IF(D158="", "", IF(SUM(N158:N162)=1," ","Percents do not add to 100%. Please check")) ->  | Y158: Lactating cows | AA158: =IF(T158="", "", IF(SUM(Z158:Z162)=1," ","Percents do not add to 100%. Please check")) -> 
M159: Dry cows | Y159: Dry cows
M160: Heifers: breeding to calving | Y160: Heifers: breeding to calving
M161: Heifers: weaning to breeding | Y161: Heifers: weaning to breeding
M162: Calves | Y162: Calves

Sheet CFT_ESHelper_Feed to herd (2) (hidden)
A1: Correcting DM of home-grown feeds:
A2: When using the feed to herd option, the DM of homegrown feed needs to be corrected for the enteric and manure calculations to be accurate. | I2: Rows I-O can be hidden to simplify the table.
A3: Enter this | B3: Select from dropdown | D3: Enter this | E3: Enter this | F3: Automated | G3: Automated | I3: % given to animal group | P3: Lbs/head/day given to CFT animal group | X3: Farm ES LBs DM groups | AJ3: Grass fresh managed - off farm | AK3: 0.16
A4: Feed | I4: You will need to manual input hg feed herd %s. I still need to fix the formula | P4: CFT DMI per animal | X4: Farm ES DMI per animal | AJ4: Grass fresh managed - on farm | AK4: 0.16
A5: Homegrown feeds: | B5: CFT feed | C5: FarmES feed | D5: Tons | E5: Reported DM | F5: CFT DM | G5: CFT As-fed tons | H5: ES Dry matter tons | I5: Lactating | J5: Dry | K5: Heif: B-C | L5: Heif: W-B | M5: Calves | N5: % CHECK | P5: Lactating | Q5: 5 | R5: Dry | S5: 2 | T5: Heifers | U5: 3 | V5: Dairy Calves | W5: 4 | X5: Lactating | Y5: 6 | Z5: Dry | AB5: Heifers | AC5: 7 | AD5: Dairy Calves | AF5: Feed to herd (2) instructions | AJ5: Grass fresh (extensive) | AK5: 0.16
A6: =CFTHelper_CROPY!A6 -> 0 | B6: =IF(ISBLANK(A6), "Feed item", _xlfn.XLOOKUP("*"&A6&"*",Table2[Short name],Table2[Feed item],"Manual input needed",2, 1)) -> Manual input needed | D6: =CFTHelper_CROPY!G6 -> 0 | E6: =CFTHelper_CROPY!H6 ->  | F6: =_xlfn.XLOOKUP(Table5[[#This Row],[CFT feed]],Table2[Feed item], Table2[DM %], "Manual input needed",2,1) -> Manual input needed | G6: =IFERROR(D6*E6/F6, 0) -> 0 | H6: =Table5[[#This Row],[ Tons]]*Table5[[#This Row],[Reported DM]] ->  | I6: =_xlfn.XLOOKUP(Table5[[#This Row],[Homegrown feeds:]],Table6[Crop],Table6[LACT],"not found, check", 2, 1) -> 0 | J6: =_xlfn.XLOOKUP(Table5[[#This Row],[Homegrown feeds:]],Table6[Crop],Table6[DRY],"not found, check", 2, 1) -> 0 | K6: =_xlfn.XLOOKUP(Table5[[#This Row],[Homegrown feeds:]],Table6[Crop],Table6[HEF BC],"not found, check", 2, 1) -> 0 | L6: =_xlfn.XLOOKUP(Table5[[#This Row],[Homegrown feeds:]],Table6[Crop],Table6[HEF WB],"not found, check", 2, 1) -> 0 | M6: =_xlfn.XLOOKUP(Table5[[#This Row],[Homegrown feeds:]],Table6[Crop],Table6[CALF],"not found, check", 2, 1) -> 0 | N6: =SUM(I6:M6) -> 0 | P6: =(G6*2000)*I6/CFT_ESHelper_HERD!$G$4/365*F6 ->  | R6: =G6*2000*J6/CFT_ESHelper_HERD!$G$5/365*F6 ->  | T6: =G6*2000*K6/CFT_ESHelper_HERD!$D$18/365*F6 ->  | V6: =G6*2000*(L6*(10/12)+M6*(2/12))/CFT_ESHelper_HERD!$D$17/365*F6 ->  | X6: =H6*2000*I6/CFT_ESHelper_HERD!$G$4/365 ->  | Z6: =H6*2000*J6/CFT_ESHelper_HERD!$G$5/365 ->  | AB6: =H6*2000*(Table5[[#This Row],[Heif: W-B]]+Table5[[#This Row],[Heif: B-C]])/CFT_ESHelper_HERD!$C$27/365 ->  | AD6: =H6*2000*M6/CFT_ESHelper_HERD!$C$28/365 ->  | AF6: This sheet is for entering feed as lbs of DM per animal type. Columns in BLUE are for Cool Farm tool DM (adjusts using CFT DM%s), columns in PINK are for Farm ES. Note that the animal categories are calculated differently for the two tools, so DMI numbers cannot be used interchangeably between tools. | AJ6: Grass hay - on farm | AK6: 0.845
A7: =CFTHelper_CROPY!A7 -> 0 | B7: =IF(ISBLANK(A7), "Feed item", _xlfn.XLOOKUP("*"&A7&"*",Table2[Short name],Table2[Feed item],"Manual input needed",2, 1)) -> Manual input needed | D7: =CFTHelper_CROPY!G7 -> 0 | E7: =CFTHelper_CROPY!H7 ->  | F7: =_xlfn.XLOOKUP(Table5[[#This Row],[CFT feed]],Table2[Feed item], Table2[DM %], "Manual input needed",2,1) -> Manual input needed | G7: 0 | H7: =Table5[[#This Row],[ Tons]]*Table5[[#This Row],[Reported DM]] ->  | I7: =_xlfn.XLOOKUP(Table5[[#This Row],[Homegrown feeds:]],Table6[Crop],Table6[LACT],"not found, check", 2, 1) -> 0 | J7: =_xlfn.XLOOKUP(Table5[[#This Row],[Homegrown feeds:]],Table6[Crop],Table6[DRY],"not found, check", 2, 1) -> 0 | K7: =_xlfn.XLOOKUP(Table5[[#This Row],[Homegrown feeds:]],Table6[Crop],Table6[HEF BC],"not found, check", 2, 1) -> 0 | L7: =_xlfn.XLOOKUP(Table5[[#This Row],[Homegrown feeds:]],Table6[Crop],Table6[HEF WB],"not found, check", 2, 1) -> 0 | M7: =_xlfn.XLOOKUP(Table5[[#This Row],[Homegrown feeds:]],Table6[Crop],Table6[CALF],"not found, check", 2, 1) -> 0 | N7: =SUM(I7:M7) -> 0 | P7: =(G7*2000)*I7/CFT_ESHelper_HERD!$G$4/365*F7 ->  | R7: =G7*2000*J7/CFT_ESHelper_HERD!$G$5/365*F7 ->  | T7: =G7*2000*K7/CFT_ESHelper_HERD!$D$18/365*F7 ->  | V7: =G7*2000*(L7*(10/12)+M7*(2/12))/CFT_ESHelper_HERD!$D$17/365*F7 ->  | X7: =H7*2000*I7/CFT_ESHelper_HERD!$G$4/365 ->  | Z7: =H7*2000*J7/CFT_ESHelper_HERD!$G$5/365 ->  | AB7: =H7*2000*(Table5[[#This Row],[Heif: W-B]]+Table5[[#This Row],[Heif: B-C]])/CFT_ESHelper_HERD!$C$27/365 ->  | AD7: =H7*2000*M7/CFT_ESHelper_HERD!$C$28/365 ->  | AJ7: Grass hay - off farm | AK7: 0.845
A8: =CFTHelper_CROPY!A8 -> 0 | B8: =IF(ISBLANK(A8), "Feed item", _xlfn.XLOOKUP("*"&A8&"*",Table2[Short name],Table2[Feed item],"Manual input needed",2, 1)) -> Manual input needed | D8: =CFTHelper_CROPY!G8 -> 0 | E8: =CFTHelper_CROPY!H8 ->  | F8: =_xlfn.XLOOKUP(Table5[[#This Row],[CFT feed]],Table2[Feed item], Table2[DM %], "Manual input needed",2,1) -> Manual input needed | G8: 0 | H8: =Table5[[#This Row],[ Tons]]*Table5[[#This Row],[Reported DM]] ->  | I8: =_xlfn.XLOOKUP(Table5[[#This Row],[Homegrown feeds:]],Table6[Crop],Table6[LACT],"not found, check", 2, 1) -> 0 | J8: =_xlfn.XLOOKUP(Table5[[#This Row],[Homegrown feeds:]],Table6[Crop],Table6[DRY],"not found, check", 2, 1) -> 0 | K8: =_xlfn.XLOOKUP(Table5[[#This Row],[Homegrown feeds:]],Table6[Crop],Table6[HEF BC],"not found, check", 2, 1) -> 0 | L8: =_xlfn.XLOOKUP(Table5[[#This Row],[Homegrown feeds:]],Table6[Crop],Table6[HEF WB],"not found, check", 2, 1) -> 0 | M8: =_xlfn.XLOOKUP(Table5[[#This Row],[Homegrown feeds:]],Table6[Crop],Table6[CALF],"not found, check", 2, 1) -> 0 | N8: 0 | P8: =(G8*2000)*I8/CFT_ESHelper_HERD!$G$4/365*F8 ->  | R8: =G8*2000*J8/CFT_ESHelper_HERD!$G$5/365*F8 ->  | T8: =G8*2000*K8/CFT_ESHelper_HERD!$D$18/365*F8 ->  | V8: =G8*2000*(L8*(10/12)+M8*(2/12))/CFT_ESHelper_HERD!$D$17/365*F8 ->  | X8: =H8*2000*I8/CFT_ESHelper_HERD!$G$4/365 ->  | Z8: =H8*2000*J8/CFT_ESHelper_HERD!$G$5/365 ->  | AB8: =H8*2000*(Table5[[#This Row],[Heif: W-B]]+Table5[[#This Row],[Heif: B-C]])/CFT_ESHelper_HERD!$C$27/365 ->  | AD8: =H8*2000*M8/CFT_ESHelper_HERD!$C$28/365 ->  | AJ8: Grass silage - on farm | AK8: 0.472
A9: =CFTHelper_CROPY!A9 -> 0 | B9: =IF(ISBLANK(A9), "Feed item", _xlfn.XLOOKUP("*"&A9&"*",Table2[Short name],Table2[Feed item],"Manual input needed",2, 1)) -> Manual input needed | D9: =CFTHelper_CROPY!G9 -> 0 | E9: =CFTHelper_CROPY!H9 ->  | F9: =_xlfn.XLOOKUP(Table5[[#This Row],[CFT feed]],Table2[Feed item], Table2[DM %], "Manual input needed",2,1) -> Manual input needed | G9: 0 | H9: =Table5[[#This Row],[ Tons]]*Table5[[#This Row],[Reported DM]] ->  | I9: =_xlfn.XLOOKUP(Table5[[#This Row],[Homegrown feeds:]],Table6[Crop],Table6[LACT],"not found, check", 2, 1) -> 0 | J9: =_xlfn.XLOOKUP(Table5[[#This Row],[Homegrown feeds:]],Table6[Crop],Table6[DRY],"not found, check", 2, 1) -> 0 | K9: =_xlfn.XLOOKUP(Table5[[#This Row],[Homegrown feeds:]],Table6[Crop],Table6[HEF BC],"not found, check", 2, 1) -> 0 | L9: =_xlfn.XLOOKUP(Table5[[#This Row],[Homegrown feeds:]],Table6[Crop],Table6[HEF WB],"not found, check", 2, 1) -> 0 | M9: =_xlfn.XLOOKUP(Table5[[#This Row],[Homegrown feeds:]],Table6[Crop],Table6[CALF],"not found, check", 2, 1) -> 0 | N9: 0 | P9: =(G9*2000)*I9/CFT_ESHelper_HERD!$G$4/365*F9 ->  | R9: =G9*2000*J9/CFT_ESHelper_HERD!$G$5/365*F9 ->  | T9: =G9*2000*K9/CFT_ESHelper_HERD!$D$18/365*F9 ->  | V9: =G9*2000*(L9*(10/12)+M9*(2/12))/CFT_ESHelper_HERD!$D$17/365*F9 ->  | X9: =H9*2000*I9/CFT_ESHelper_HERD!$G$4/365 ->  | Z9: =H9*2000*J9/CFT_ESHelper_HERD!$G$5/365 ->  | AB9: =H9*2000*(Table5[[#This Row],[Heif: W-B]]+Table5[[#This Row],[Heif: B-C]])/CFT_ESHelper_HERD!$C$27/365 ->  | AD9: =H9*2000*M9/CFT_ESHelper_HERD!$C$28/365 ->  | AJ9: Grass silage - off farm | AK9: 0.472
A10: =CFTHelper_CROPY!A10 -> 0 | B10: =IF(ISBLANK(A10), "Feed item", _xlfn.XLOOKUP("*"&A10&"*",Table2[Short name],Table2[Feed item],"Manual input needed",2, 1)) -> Manual input needed | D10: =CFTHelper_CROPY!G10 -> 0 | E10: =CFTHelper_CROPY!H10 ->  | F10: =_xlfn.XLOOKUP(Table5[[#This Row],[CFT feed]],Table2[Feed item], Table2[DM %], "Manual input needed",2,1) -> Manual input needed | G10: 0 | H10: =Table5[[#This Row],[ Tons]]*Table5[[#This Row],[Reported DM]] ->  | I10: =_xlfn.XLOOKUP(Table5[[#This Row],[Homegrown feeds:]],Table6[Crop],Table6[LACT],"not found, check", 2, 1) -> 0 | J10: =_xlfn.XLOOKUP(Table5[[#This Row],[Homegrown feeds:]],Table6[Crop],Table6[DRY],"not found, check", 2, 1) -> 0 | K10: =_xlfn.XLOOKUP(Table5[[#This Row],[Homegrown feeds:]],Table6[Crop],Table6[HEF BC],"not found, check", 2, 1) -> 0 | L10: =_xlfn.XLOOKUP(Table5[[#This Row],[Homegrown feeds:]],Table6[Crop],Table6[HEF WB],"not found, check", 2, 1) -> 0 | M10: =_xlfn.XLOOKUP(Table5[[#This Row],[Homegrown feeds:]],Table6[Crop],Table6[CALF],"not found, check", 2, 1) -> 0 | N10: 0 | P10: =(G10*2000)*I10/CFT_ESHelper_HERD!$G$4/365*F10 ->  | R10: =G10*2000*J10/CFT_ESHelper_HERD!$G$5/365*F10 ->  | T10: =G10*2000*K10/CFT_ESHelper_HERD!$D$18/365*F10 ->  | V10: =G10*2000*(L10*(10/12)+M10*(2/12))/CFT_ESHelper_HERD!$D$17/365*F10 ->  | X10: =H10*2000*I10/CFT_ESHelper_HERD!$G$4/365 ->  | Z10: =H10*2000*J10/CFT_ESHelper_HERD!$G$5/365 ->  | AB10: =H10*2000*(Table5[[#This Row],[Heif: W-B]]+Table5[[#This Row],[Heif: B-C]])/CFT_ESHelper_HERD!$C$27/365 ->  | AD10: =H10*2000*M10/CFT_ESHelper_HERD!$C$28/365 ->  | AJ10: Maize silage | AK10: 0.283
A11: =CFTHelper_CROPY!A11 -> 0 | B11: =IF(ISBLANK(A11), "Feed item", _xlfn.XLOOKUP("*"&A11&"*",Table2[Short name],Table2[Feed item],"Manual input needed",2, 1)) -> Manual input needed | D11: =CFTHelper_CROPY!G11 -> 0 | E11: =CFTHelper_CROPY!H11 ->  | F11: =_xlfn.XLOOKUP(Table5[[#This Row],[CFT feed]],Table2[Feed item], Table2[DM %], "Manual input needed",2,1) -> Manual input needed | G11: 0 | H11: =Table5[[#This Row],[ Tons]]*Table5[[#This Row],[Reported DM]] ->  | I11: =_xlfn.XLOOKUP(Table5[[#This Row],[Homegrown feeds:]],Table6[Crop],Table6[LACT],"not found, check", 2, 1) -> 0 | J11: =_xlfn.XLOOKUP(Table5[[#This Row],[Homegrown feeds:]],Table6[Crop],Table6[DRY],"not found, check", 2, 1) -> 0 | K11: =_xlfn.XLOOKUP(Table5[[#This Row],[Homegrown feeds:]],Table6[Crop],Table6[HEF BC],"not found, check", 2, 1) -> 0 | L11: =_xlfn.XLOOKUP(Table5[[#This Row],[Homegrown feeds:]],Table6[Crop],Table6[HEF WB],"not found, check", 2, 1) -> 0 | M11: =_xlfn.XLOOKUP(Table5[[#This Row],[Homegrown feeds:]],Table6[Crop],Table6[CALF],"not found, check", 2, 1) -> 0 | N11: 0 | P11: =(G11*2000)*I11/CFT_ESHelper_HERD!$G$4/365*F11 ->  | R11: =G11*2000*J11/CFT_ESHelper_HERD!$G$5/365*F11 ->  | T11: =G11*2000*K11/CFT_ESHelper_HERD!$D$18/365*F11 ->  | V11: =G11*2000*(L11*(10/12)+M11*(2/12))/CFT_ESHelper_HERD!$D$17/365*F11 ->  | X11: =H11*2000*I11/CFT_ESHelper_HERD!$G$4/365 ->  | Z11: =H11*2000*J11/CFT_ESHelper_HERD!$G$5/365 ->  | AB11: =H11*2000*(Table5[[#This Row],[Heif: W-B]]+Table5[[#This Row],[Heif: B-C]])/CFT_ESHelper_HERD!$C$27/365 ->  | AD11: =H11*2000*M11/CFT_ESHelper_HERD!$C$28/365 ->  | AJ11: Lucerne / Alfalfa silage | AK11: 0.403
A12: =CFTHelper_CROPY!A12 -> 0 | B12: =IF(ISBLANK(A12), "Feed item", _xlfn.XLOOKUP("*"&A12&"*",Table2[Short name],Table2[Feed item],"Manual input needed",2, 1)) -> Manual input needed | D12: =CFTHelper_CROPY!G12 -> 0 | E12: =CFTHelper_CROPY!H12 ->  | F12: =_xlfn.XLOOKUP(Table5[[#This Row],[CFT feed]],Table2[Feed item], Table2[DM %], "Manual input needed",2,1) -> Manual input needed | G12: 0 | H12: =Table5[[#This Row],[ Tons]]*Table5[[#This Row],[Reported DM]] ->  | I12: =_xlfn.XLOOKUP(Table5[[#This Row],[Homegrown feeds:]],Table6[Crop],Table6[LACT],"not found, check", 2, 1) -> 0 | J12: =_xlfn.XLOOKUP(Table5[[#This Row],[Homegrown feeds:]],Table6[Crop],Table6[DRY],"not found, check", 2, 1) -> 0 | K12: =_xlfn.XLOOKUP(Table5[[#This Row],[Homegrown feeds:]],Table6[Crop],Table6[HEF BC],"not found, check", 2, 1) -> 0 | L12: =_xlfn.XLOOKUP(Table5[[#This Row],[Homegrown feeds:]],Table6[Crop],Table6[HEF WB],"not found, check", 2, 1) -> 0 | M12: =_xlfn.XLOOKUP(Table5[[#This Row],[Homegrown feeds:]],Table6[Crop],Table6[CALF],"not found, check", 2, 1) -> 0 | N12: 0 | P12: =(G12*2000)*I12/CFT_ESHelper_HERD!$G$4/365*F12 ->  | R12: =G12*2000*J12/CFT_ESHelper_HERD!$G$5/365*F12 ->  | T12: =G12*2000*K12/CFT_ESHelper_HERD!$D$18/365*F12 ->  | V12: =G12*2000*(L12*(10/12)+M12*(2/12))/CFT_ESHelper_HERD!$D$17/365*F12 ->  | X12: =H12*2000*I12/CFT_ESHelper_HERD!$G$4/365 ->  | Z12: =H12*2000*J12/CFT_ESHelper_HERD!$G$5/365 ->  | AB12: =H12*2000*(Table5[[#This Row],[Heif: W-B]]+Table5[[#This Row],[Heif: B-C]])/CFT_ESHelper_HERD!$C$27/365 ->  | AD12: =H12*2000*M12/CFT_ESHelper_HERD!$C$28/365 ->  | AJ12: Other fodder | AK12: 0.387
A13: =CFTHelper_CROPY!A13 -> 0 | B13: =IF(ISBLANK(A13), "Feed item", _xlfn.XLOOKUP("*"&A13&"*",Table2[Short name],Table2[Feed item],"Manual input needed",2, 1)) -> Manual input needed | D13: =CFTHelper_CROPY!G13 -> 0 | E13: =CFTHelper_CROPY!H13 ->  | F13: =_xlfn.XLOOKUP(Table5[[#This Row],[CFT feed]],Table2[Feed item], Table2[DM %], "Manual input needed",2,1) -> Manual input needed | G13: 0 | H13: =Table5[[#This Row],[ Tons]]*Table5[[#This Row],[Reported DM]] ->  | I13: =_xlfn.XLOOKUP(Table5[[#This Row],[Homegrown feeds:]],Table6[Crop],Table6[LACT],"not found, check", 2, 1) -> 0 | J13: =_xlfn.XLOOKUP(Table5[[#This Row],[Homegrown feeds:]],Table6[Crop],Table6[DRY],"not found, check", 2, 1) -> 0 | K13: =_xlfn.XLOOKUP(Table5[[#This Row],[Homegrown feeds:]],Table6[Crop],Table6[HEF BC],"not found, check", 2, 1) -> 0 | L13: =_xlfn.XLOOKUP(Table5[[#This Row],[Homegrown feeds:]],Table6[Crop],Table6[HEF WB],"not found, check", 2, 1) -> 0 | M13: =_xlfn.XLOOKUP(Table5[[#This Row],[Homegrown feeds:]],Table6[Crop],Table6[CALF],"not found, check", 2, 1) -> 0 | N13: 0 | P13: =(G13*2000)*I13/CFT_ESHelper_HERD!$G$4/365*F13 ->  | R13: =G13*2000*J13/CFT_ESHelper_HERD!$G$5/365*F13 ->  | T13: =G13*2000*K13/CFT_ESHelper_HERD!$D$18/365*F13 ->  | V13: =G13*2000*(L13*(10/12)+M13*(2/12))/CFT_ESHelper_HERD!$D$17/365*F13 ->  | X13: =H13*2000*I13/CFT_ESHelper_HERD!$G$4/365 ->  | Z13: =H13*2000*J13/CFT_ESHelper_HERD!$G$5/365 ->  | AB13: =H13*2000*(Table5[[#This Row],[Heif: W-B]]+Table5[[#This Row],[Heif: B-C]])/CFT_ESHelper_HERD!$C$27/365 ->  | AD13: =H13*2000*M13/CFT_ESHelper_HERD!$C$28/365 ->  | AJ13: Straw | AK13: 0.902
A14: =CFTHelper_CROPY!A14 -> 0 | B14: =IF(ISBLANK(A14), "Feed item", _xlfn.XLOOKUP("*"&A14&"*",Table2[Short name],Table2[Feed item],"Manual input needed",2, 1)) -> Manual input needed | D14: =CFTHelper_CROPY!G14 -> 0 | E14: =CFTHelper_CROPY!H14 ->  | F14: =_xlfn.XLOOKUP(Table5[[#This Row],[CFT feed]],Table2[Feed item], Table2[DM %], "Manual input needed",2,1) -> Manual input needed | G14: 0 | H14: =Table5[[#This Row],[ Tons]]*Table5[[#This Row],[Reported DM]] ->  | I14: =_xlfn.XLOOKUP(Table5[[#This Row],[Homegrown feeds:]],Table6[Crop],Table6[LACT],"not found, check", 2, 1) -> 0 | J14: =_xlfn.XLOOKUP(Table5[[#This Row],[Homegrown feeds:]],Table6[Crop],Table6[DRY],"not found, check", 2, 1) -> 0 | K14: =_xlfn.XLOOKUP(Table5[[#This Row],[Homegrown feeds:]],Table6[Crop],Table6[HEF BC],"not found, check", 2, 1) -> 0 | L14: =_xlfn.XLOOKUP(Table5[[#This Row],[Homegrown feeds:]],Table6[Crop],Table6[HEF WB],"not found, check", 2, 1) -> 0 | M14: =_xlfn.XLOOKUP(Table5[[#This Row],[Homegrown feeds:]],Table6[Crop],Table6[CALF],"not found, check", 2, 1) -> 0 | N14: 0 | P14: =(G14*2000)*I14/CFT_ESHelper_HERD!$G$4/365*F14 ->  | R14: =G14*2000*J14/CFT_ESHelper_HERD!$G$5/365*F14 ->  | T14: =G14*2000*K14/CFT_ESHelper_HERD!$D$18/365*F14 ->  | V14: =G14*2000*(L14*(10/12)+M14*(2/12))/CFT_ESHelper_HERD!$D$17/365*F14 ->  | X14: =H14*2000*I14/CFT_ESHelper_HERD!$G$4/365 ->  | Z14: =H14*2000*J14/CFT_ESHelper_HERD!$G$5/365 ->  | AB14: =H14*2000*(Table5[[#This Row],[Heif: W-B]]+Table5[[#This Row],[Heif: B-C]])/CFT_ESHelper_HERD!$C$27/365 ->  | AD14: =H14*2000*M14/CFT_ESHelper_HERD!$C$28/365 ->  | AJ14: Other crop residues | AK14: 0.115
A15: =CFTHelper_CROPY!A15 -> 0 | B15: =IF(ISBLANK(A15), "Feed item", _xlfn.XLOOKUP("*"&A15&"*",Table2[Short name],Table2[Feed item],"Manual input needed",2, 1)) -> Manual input needed | D15: =CFTHelper_CROPY!G15 -> 0 | E15: =CFTHelper_CROPY!H15 ->  | F15: =_xlfn.XLOOKUP(Table5[[#This Row],[CFT feed]],Table2[Feed item], Table2[DM %], "Manual input needed",2,1) -> Manual input needed | G15: 0 | H15: =Table5[[#This Row],[ Tons]]*Table5[[#This Row],[Reported DM]] ->  | I15: =_xlfn.XLOOKUP(Table5[[#This Row],[Homegrown feeds:]],Table6[Crop],Table6[LACT],"not found, check", 2, 1) -> 0 | J15: =_xlfn.XLOOKUP(Table5[[#This Row],[Homegrown feeds:]],Table6[Crop],Table6[DRY],"not found, check", 2, 1) -> 0 | K15: =_xlfn.XLOOKUP(Table5[[#This Row],[Homegrown feeds:]],Table6[Crop],Table6[HEF BC],"not found, check", 2, 1) -> 0 | L15: =_xlfn.XLOOKUP(Table5[[#This Row],[Homegrown feeds:]],Table6[Crop],Table6[HEF WB],"not found, check", 2, 1) -> 0 | M15: =_xlfn.XLOOKUP(Table5[[#This Row],[Homegrown feeds:]],Table6[Crop],Table6[CALF],"not found, check", 2, 1) -> 0 | N15: 0 | P15: =(G15*2000)*I15/CFT_ESHelper_HERD!$G$4/365*F15 ->  | R15: =G15*2000*J15/CFT_ESHelper_HERD!$G$5/365*F15 ->  | T15: =G15*2000*K15/CFT_ESHelper_HERD!$D$18/365*F15 ->  | V15: =G15*2000*(L15*(10/12)+M15*(2/12))/CFT_ESHelper_HERD!$D$17/365*F15 ->  | X15: =H15*2000*I15/CFT_ESHelper_HERD!$G$4/365 ->  | Z15: =H15*2000*J15/CFT_ESHelper_HERD!$G$5/365 ->  | AB15: =H15*2000*(Table5[[#This Row],[Heif: W-B]]+Table5[[#This Row],[Heif: B-C]])/CFT_ESHelper_HERD!$C$27/365 ->  | AD15: =H15*2000*M15/CFT_ESHelper_HERD!$C$28/365 ->  | AF15: Enter the DMI of each ingredient for each animal group (ex: lactating cows: 15.5 lbs corn silage, 12 lbs 47% soybean solvent meal, 5 lbs corn grain, 7 lbs alfalfa haylage, 4 lbs grass haylage). | AJ15: Grass hay | AK15: 0.845
A16: =CFTHelper_CROPY!A16 -> 0 | B16: =IF(ISBLANK(A16), "Feed item", _xlfn.XLOOKUP("*"&A16&"*",Table2[Short name],Table2[Feed item],"Manual input needed",2, 1)) -> Manual input needed | D16: =CFTHelper_CROPY!G16 -> 0 | E16: =CFTHelper_CROPY!H16 ->  | F16: =_xlfn.XLOOKUP(Table5[[#This Row],[CFT feed]],Table2[Feed item], Table2[DM %], "Manual input needed",2,1) -> Manual input needed | G16: 0 | H16: =Table5[[#This Row],[ Tons]]*Table5[[#This Row],[Reported DM]] ->  | I16: =_xlfn.XLOOKUP(Table5[[#This Row],[Homegrown feeds:]],Table6[Crop],Table6[LACT],"not found, check", 2, 1) -> 0 | J16: =_xlfn.XLOOKUP(Table5[[#This Row],[Homegrown feeds:]],Table6[Crop],Table6[DRY],"not found, check", 2, 1) -> 0 | K16: =_xlfn.XLOOKUP(Table5[[#This Row],[Homegrown feeds:]],Table6[Crop],Table6[HEF BC],"not found, check", 2, 1) -> 0 | L16: =_xlfn.XLOOKUP(Table5[[#This Row],[Homegrown feeds:]],Table6[Crop],Table6[HEF WB],"not found, check", 2, 1) -> 0 | M16: =_xlfn.XLOOKUP(Table5[[#This Row],[Homegrown feeds:]],Table6[Crop],Table6[CALF],"not found, check", 2, 1) -> 0 | N16: 0 | P16: =(G16*2000)*I16/CFT_ESHelper_HERD!$G$4/365*F16 ->  | R16: =G16*2000*J16/CFT_ESHelper_HERD!$G$5/365*F16 ->  | T16: =G16*2000*K16/CFT_ESHelper_HERD!$D$18/365*F16 ->  | V16: =G16*2000*(L16*(10/12)+M16*(2/12))/CFT_ESHelper_HERD!$D$17/365*F16 ->  | X16: =H16*2000*I16/CFT_ESHelper_HERD!$G$4/365 ->  | Z16: =H16*2000*J16/CFT_ESHelper_HERD!$G$5/365 ->  | AB16: =H16*2000*(Table5[[#This Row],[Heif: W-B]]+Table5[[#This Row],[Heif: B-C]])/CFT_ESHelper_HERD!$C$27/365 ->  | AD16: =H16*2000*M16/CFT_ESHelper_HERD!$C$28/365 ->  | AJ16: Lucerne / Alfalfa hay | AK16: 0.851
A17: =CFTHelper_CROPY!A17 -> 0 | B17: =IF(ISBLANK(A17), "Feed item", _xlfn.XLOOKUP("*"&A17&"*",Table2[Short name],Table2[Feed item],"Manual input needed",2, 1)) -> Manual input needed | D17: =CFTHelper_CROPY!G17 -> 0 | E17: =CFTHelper_CROPY!H17 ->  | F17: =_xlfn.XLOOKUP(Table5[[#This Row],[CFT feed]],Table2[Feed item], Table2[DM %], "Manual input needed",2,1) -> Manual input needed | G17: 0 | H17: =Table5[[#This Row],[ Tons]]*Table5[[#This Row],[Reported DM]] ->  | I17: =_xlfn.XLOOKUP(Table5[[#This Row],[Homegrown feeds:]],Table6[Crop],Table6[LACT],"not found, check", 2, 1) -> 0 | J17: =_xlfn.XLOOKUP(Table5[[#This Row],[Homegrown feeds:]],Table6[Crop],Table6[DRY],"not found, check", 2, 1) -> 0 | K17: =_xlfn.XLOOKUP(Table5[[#This Row],[Homegrown feeds:]],Table6[Crop],Table6[HEF BC],"not found, check", 2, 1) -> 0 | L17: =_xlfn.XLOOKUP(Table5[[#This Row],[Homegrown feeds:]],Table6[Crop],Table6[HEF WB],"not found, check", 2, 1) -> 0 | M17: =_xlfn.XLOOKUP(Table5[[#This Row],[Homegrown feeds:]],Table6[Crop],Table6[CALF],"not found, check", 2, 1) -> 0 | N17: 0 | P17: =(G17*2000)*I17/CFT_ESHelper_HERD!$G$4/365*F17 ->  | R17: =G17*2000*J17/CFT_ESHelper_HERD!$G$5/365*F17 ->  | T17: =G17*2000*K17/CFT_ESHelper_HERD!$D$18/365*F17 ->  | V17: =G17*2000*(L17*(10/12)+M17*(2/12))/CFT_ESHelper_HERD!$D$17/365*F17 ->  | X17: =H17*2000*I17/CFT_ESHelper_HERD!$G$4/365 ->  | Z17: =H17*2000*J17/CFT_ESHelper_HERD!$G$5/365 ->  | AB17: =H17*2000*(Table5[[#This Row],[Heif: W-B]]+Table5[[#This Row],[Heif: B-C]])/CFT_ESHelper_HERD!$C$27/365 ->  | AD17: =H17*2000*M17/CFT_ESHelper_HERD!$C$28/365 ->  | AJ17: Clover hay | AK17: 0.83
A18: =CFTHelper_CROPY!A18 -> 0 | B18: =IF(ISBLANK(A18), "Feed item", _xlfn.XLOOKUP("*"&A18&"*",Table2[Short name],Table2[Feed item],"Manual input needed",2, 1)) -> Manual input needed | D18: =CFTHelper_CROPY!G18 -> 0 | E18: =CFTHelper_CROPY!H18 ->  | F18: =_xlfn.XLOOKUP(Table5[[#This Row],[CFT feed]],Table2[Feed item], Table2[DM %], "Manual input needed",2,1) -> Manual input needed | G18: 0 | H18: =Table5[[#This Row],[ Tons]]*Table5[[#This Row],[Reported DM]] ->  | I18: =_xlfn.XLOOKUP(Table5[[#This Row],[Homegrown feeds:]],Table6[Crop],Table6[LACT],"not found, check", 2, 1) -> 0 | J18: =_xlfn.XLOOKUP(Table5[[#This Row],[Homegrown feeds:]],Table6[Crop],Table6[DRY],"not found, check", 2, 1) -> 0 | K18: =_xlfn.XLOOKUP(Table5[[#This Row],[Homegrown feeds:]],Table6[Crop],Table6[HEF BC],"not found, check", 2, 1) -> 0 | L18: =_xlfn.XLOOKUP(Table5[[#This Row],[Homegrown feeds:]],Table6[Crop],Table6[HEF WB],"not found, check", 2, 1) -> 0 | M18: =_xlfn.XLOOKUP(Table5[[#This Row],[Homegrown feeds:]],Table6[Crop],Table6[CALF],"not found, check", 2, 1) -> 0 | N18: 0 | P18: =(G18*2000)*I18/CFT_ESHelper_HERD!$G$4/365*F18 ->  | R18: =G18*2000*J18/CFT_ESHelper_HERD!$G$5/365*F18 ->  | T18: =G18*2000*K18/CFT_ESHelper_HERD!$D$18/365*F18 ->  | V18: =G18*2000*(L18*(10/12)+M18*(2/12))/CFT_ESHelper_HERD!$D$17/365*F18 ->  | X18: =H18*2000*I18/CFT_ESHelper_HERD!$G$4/365 ->  | Z18: =H18*2000*J18/CFT_ESHelper_HERD!$G$5/365 ->  | AB18: =H18*2000*(Table5[[#This Row],[Heif: W-B]]+Table5[[#This Row],[Heif: B-C]])/CFT_ESHelper_HERD!$C$27/365 ->  | AD18: =H18*2000*M18/CFT_ESHelper_HERD!$C$28/365 ->  | AJ18: Oat hay | AK18: 0.281
A19: =CFTHelper_CROPY!A19 -> 0 | B19: =IF(ISBLANK(A19), "Feed item", _xlfn.XLOOKUP("*"&A19&"*",Table2[Short name],Table2[Feed item],"Manual input needed",2, 1)) -> Manual input needed | D19: =CFTHelper_CROPY!G19 -> 0 | E19: =CFTHelper_CROPY!H19 ->  | F19: =_xlfn.XLOOKUP(Table5[[#This Row],[CFT feed]],Table2[Feed item], Table2[DM %], "Manual input needed",2,1) -> Manual input needed | G19: 0 | H19: =Table5[[#This Row],[ Tons]]*Table5[[#This Row],[Reported DM]] ->  | I19: =_xlfn.XLOOKUP(Table5[[#This Row],[Homegrown feeds:]],Table6[Crop],Table6[LACT],"not found, check", 2, 1) -> 0 | J19: =_xlfn.XLOOKUP(Table5[[#This Row],[Homegrown feeds:]],Table6[Crop],Table6[DRY],"not found, check", 2, 1) -> 0 | K19: =_xlfn.XLOOKUP(Table5[[#This Row],[Homegrown feeds:]],Table6[Crop],Table6[HEF BC],"not found, check", 2, 1) -> 0 | L19: =_xlfn.XLOOKUP(Table5[[#This Row],[Homegrown feeds:]],Table6[Crop],Table6[HEF WB],"not found, check", 2, 1) -> 0 | M19: =_xlfn.XLOOKUP(Table5[[#This Row],[Homegrown feeds:]],Table6[Crop],Table6[CALF],"not found, check", 2, 1) -> 0 | N19: 0 | P19: =(G19*2000)*I19/CFT_ESHelper_HERD!$G$4/365*F19 ->  | R19: =G19*2000*J19/CFT_ESHelper_HERD!$G$5/365*F19 ->  | T19: =G19*2000*K19/CFT_ESHelper_HERD!$D$18/365*F19 ->  | V19: =G19*2000*(L19*(10/12)+M19*(2/12))/CFT_ESHelper_HERD!$D$17/365*F19 ->  | X19: =H19*2000*I19/CFT_ESHelper_HERD!$G$4/365 ->  | Z19: =H19*2000*J19/CFT_ESHelper_HERD!$G$5/365 ->  | AB19: =H19*2000*(Table5[[#This Row],[Heif: W-B]]+Table5[[#This Row],[Heif: B-C]])/CFT_ESHelper_HERD!$C$27/365 ->  | AD19: =H19*2000*M19/CFT_ESHelper_HERD!$C$28/365 ->  | AJ19: Sorghum silage | AK19: 0.83
A20: =CFTHelper_CROPY!A20 -> 0 | B20: =IF(ISBLANK(A20), "Feed item", _xlfn.XLOOKUP("*"&A20&"*",Table2[Short name],Table2[Feed item],"Manual input needed",2, 1)) -> Manual input needed | D20: =CFTHelper_CROPY!G20 -> 0 | E20: =CFTHelper_CROPY!H20 ->  | F20: =_xlfn.XLOOKUP(Table5[[#This Row],[CFT feed]],Table2[Feed item], Table2[DM %], "Manual input needed",2,1) -> Manual input needed | G20: 0 | H20: =Table5[[#This Row],[ Tons]]*Table5[[#This Row],[Reported DM]] ->  | I20: =_xlfn.XLOOKUP(Table5[[#This Row],[Homegrown feeds:]],Table6[Crop],Table6[LACT],"not found, check", 2, 1) -> 0 | J20: =_xlfn.XLOOKUP(Table5[[#This Row],[Homegrown feeds:]],Table6[Crop],Table6[DRY],"not found, check", 2, 1) -> 0 | K20: =_xlfn.XLOOKUP(Table5[[#This Row],[Homegrown feeds:]],Table6[Crop],Table6[HEF BC],"not found, check", 2, 1) -> 0 | L20: =_xlfn.XLOOKUP(Table5[[#This Row],[Homegrown feeds:]],Table6[Crop],Table6[HEF WB],"not found, check", 2, 1) -> 0 | M20: =_xlfn.XLOOKUP(Table5[[#This Row],[Homegrown feeds:]],Table6[Crop],Table6[CALF],"not found, check", 2, 1) -> 0 | N20: 0 | P20: =(G20*2000)*I20/CFT_ESHelper_HERD!$G$4/365*F20 ->  | R20: =G20*2000*J20/CFT_ESHelper_HERD!$G$5/365*F20 ->  | T20: =G20*2000*K20/CFT_ESHelper_HERD!$D$18/365*F20 ->  | V20: =G20*2000*(L20*(10/12)+M20*(2/12))/CFT_ESHelper_HERD!$D$17/365*F20 ->  | X20: =H20*2000*I20/CFT_ESHelper_HERD!$G$4/365 ->  | Z20: =H20*2000*J20/CFT_ESHelper_HERD!$G$5/365 ->  | AB20: =H20*2000*(Table5[[#This Row],[Heif: W-B]]+Table5[[#This Row],[Heif: B-C]])/CFT_ESHelper_HERD!$C$27/365 ->  | AD20: =H20*2000*M20/CFT_ESHelper_HERD!$C$28/365 ->  | AJ20: Wheat | AK20: 0.868
A21: =CFTHelper_CROPY!A21 -> 0 | B21: =IF(ISBLANK(A21), "Feed item", _xlfn.XLOOKUP("*"&A21&"*",Table2[Short name],Table2[Feed item],"Manual input needed",2, 1)) -> Manual input needed | D21: =CFTHelper_CROPY!G21 -> 0 | E21: =CFTHelper_CROPY!H21 ->  | F21: =_xlfn.XLOOKUP(Table5[[#This Row],[CFT feed]],Table2[Feed item], Table2[DM %], "Manual input needed",2,1) -> Manual input needed | G21: 0 | H21: =Table5[[#This Row],[ Tons]]*Table5[[#This Row],[Reported DM]] ->  | I21: =_xlfn.XLOOKUP(Table5[[#This Row],[Homegrown feeds:]],Table6[Crop],Table6[LACT],"not found, check", 2, 1) -> 0 | J21: =_xlfn.XLOOKUP(Table5[[#This Row],[Homegrown feeds:]],Table6[Crop],Table6[DRY],"not found, check", 2, 1) -> 0 | K21: =_xlfn.XLOOKUP(Table5[[#This Row],[Homegrown feeds:]],Table6[Crop],Table6[HEF BC],"not found, check", 2, 1) -> 0 | L21: =_xlfn.XLOOKUP(Table5[[#This Row],[Homegrown feeds:]],Table6[Crop],Table6[HEF WB],"not found, check", 2, 1) -> 0 | M21: =_xlfn.XLOOKUP(Table5[[#This Row],[Homegrown feeds:]],Table6[Crop],Table6[CALF],"not found, check", 2, 1) -> 0 | N21: 0 | P21: =(G21*2000)*I21/CFT_ESHelper_HERD!$G$4/365*F21 ->  | R21: =G21*2000*J21/CFT_ESHelper_HERD!$G$5/365*F21 ->  | T21: =G21*2000*K21/CFT_ESHelper_HERD!$D$18/365*F21 ->  | V21: =G21*2000*(L21*(10/12)+M21*(2/12))/CFT_ESHelper_HERD!$D$17/365*F21 ->  | X21: =H21*2000*I21/CFT_ESHelper_HERD!$G$4/365 ->  | Z21: =H21*2000*J21/CFT_ESHelper_HERD!$G$5/365 ->  | AB21: =H21*2000*(Table5[[#This Row],[Heif: W-B]]+Table5[[#This Row],[Heif: B-C]])/CFT_ESHelper_HERD!$C$27/365 ->  | AD21: =H21*2000*M21/CFT_ESHelper_HERD!$C$28/365 ->  | AJ21: Barley | AK21: 0.869
A22: =CFTHelper_CROPY!A22 -> 0 | B22: =IF(ISBLANK(A22), "Feed item", _xlfn.XLOOKUP("*"&A22&"*",Table2[Short name],Table2[Feed item],"Manual input needed",2, 1)) -> Manual input needed | D22: =CFTHelper_CROPY!G22 -> 0 | E22: =CFTHelper_CROPY!H22 ->  | F22: =_xlfn.XLOOKUP(Table5[[#This Row],[CFT feed]],Table2[Feed item], Table2[DM %], "Manual input needed",2,1) -> Manual input needed | G22: 0 | H22: =Table5[[#This Row],[ Tons]]*Table5[[#This Row],[Reported DM]] ->  | I22: =_xlfn.XLOOKUP(Table5[[#This Row],[Homegrown feeds:]],Table6[Crop],Table6[LACT],"not found, check", 2, 1) -> 0 | J22: =_xlfn.XLOOKUP(Table5[[#This Row],[Homegrown feeds:]],Table6[Crop],Table6[DRY],"not found, check", 2, 1) -> 0 | K22: =_xlfn.XLOOKUP(Table5[[#This Row],[Homegrown feeds:]],Table6[Crop],Table6[HEF BC],"not found, check", 2, 1) -> 0 | L22: =_xlfn.XLOOKUP(Table5[[#This Row],[Homegrown feeds:]],Table6[Crop],Table6[HEF WB],"not found, check", 2, 1) -> 0 | M22: =_xlfn.XLOOKUP(Table5[[#This Row],[Homegrown feeds:]],Table6[Crop],Table6[CALF],"not found, check", 2, 1) -> 0 | N22: 0 | P22: =(G22*2000)*I22/CFT_ESHelper_HERD!$G$4/365*F22 ->  | R22: =G22*2000*J22/CFT_ESHelper_HERD!$G$5/365*F22 ->  | T22: =G22*2000*K22/CFT_ESHelper_HERD!$D$18/365*F22 ->  | V22: =G22*2000*(L22*(10/12)+M22*(2/12))/CFT_ESHelper_HERD!$D$17/365*F22 ->  | X22: =H22*2000*I22/CFT_ESHelper_HERD!$G$4/365 ->  | Z22: =H22*2000*J22/CFT_ESHelper_HERD!$G$5/365 ->  | AB22: =H22*2000*(Table5[[#This Row],[Heif: W-B]]+Table5[[#This Row],[Heif: B-C]])/CFT_ESHelper_HERD!$C$27/365 ->  | AD22: =H22*2000*M22/CFT_ESHelper_HERD!$C$28/365 ->  | AJ22: Maize / corn grain | AK22: 0.872
A23: =CFTHelper_CROPY!A23 -> 0 | B23: =IF(ISBLANK(A23), "Feed item", _xlfn.XLOOKUP("*"&A23&"*",Table2[Short name],Table2[Feed item],"Manual input needed",2, 1)) -> Manual input needed | D23: =CFTHelper_CROPY!G23 -> 0 | E23: =CFTHelper_CROPY!H23 ->  | F23: =_xlfn.XLOOKUP(Table5[[#This Row],[CFT feed]],Table2[Feed item], Table2[DM %], "Manual input needed",2,1) -> Manual input needed | G23: 0 | H23: =Table5[[#This Row],[ Tons]]*Table5[[#This Row],[Reported DM]] ->  | I23: =_xlfn.XLOOKUP(Table5[[#This Row],[Homegrown feeds:]],Table6[Crop],Table6[LACT],"not found, check", 2, 1) -> 0 | J23: =_xlfn.XLOOKUP(Table5[[#This Row],[Homegrown feeds:]],Table6[Crop],Table6[DRY],"not found, check", 2, 1) -> 0 | K23: =_xlfn.XLOOKUP(Table5[[#This Row],[Homegrown feeds:]],Table6[Crop],Table6[HEF BC],"not found, check", 2, 1) -> 0 | L23: =_xlfn.XLOOKUP(Table5[[#This Row],[Homegrown feeds:]],Table6[Crop],Table6[HEF WB],"not found, check", 2, 1) -> 0 | M23: =_xlfn.XLOOKUP(Table5[[#This Row],[Homegrown feeds:]],Table6[Crop],Table6[CALF],"not found, check", 2, 1) -> 0 | N23: 0 | P23: =(G23*2000)*I23/CFT_ESHelper_HERD!$G$4/365*F23 ->  | R23: =G23*2000*J23/CFT_ESHelper_HERD!$G$5/365*F23 ->  | T23: =G23*2000*K23/CFT_ESHelper_HERD!$D$18/365*F23 ->  | V23: =G23*2000*(L23*(10/12)+M23*(2/12))/CFT_ESHelper_HERD!$D$17/365*F23 ->  | X23: =H23*2000*I23/CFT_ESHelper_HERD!$G$4/365 ->  | Z23: =H23*2000*J23/CFT_ESHelper_HERD!$G$5/365 ->  | AB23: =H23*2000*(Table5[[#This Row],[Heif: W-B]]+Table5[[#This Row],[Heif: B-C]])/CFT_ESHelper_HERD!$C$27/365 ->  | AD23: =H23*2000*M23/CFT_ESHelper_HERD!$C$28/365 -> 
AJ24: Oats | AK24: 0.889
A25: Imported feeds: | B25: CFT feed | C25: Column1 | D25: Tons | E25: Reported DM | F25: CFT DM | G25: CFT As-fed tons | H25: ES Dry matter tons | I25: Lactating | J25: Dry | K25: Heif: B-C | L25: Heif: W-B | M25: Calves | N25: % CHECK | O25: Column3 | P25: Lactating | Q25: Column5 | R25: Dry | S25: Column7 | T25: Heifers | U25: Column8 | V25: Dairy Calves | W25: Column9 | X25: Lactating | Y25: Column11 | Z25: Dry | AA25: Column13 | AB25: Heifers | AC25: Column15 | AD25: Dairy Calves | AJ25: Rice | AK25: 0.886
A26: =INDEX('Feed imports and diets'!$D:$D, 5*ROW(A1) + 3) -> 0 | B26: =IF(ISBLANK(A26), "Feed item", _xlfn.XLOOKUP("*"&A26&"*",Table2[Short name],Table2[Feed item],"Manual input needed",2, 1)) -> Manual input needed | D26: =INDEX('Feed imports and diets'!$E:$E, 5*ROW(A1) + 3) -> 0 | E26: =INDEX('Feed imports and diets'!$F:$F, 5*ROW(A1) + 3) -> 0 | F26: =_xlfn.XLOOKUP(Table4[[#This Row],[CFT feed]],Table2[Feed item], Table2[DM %], "Manual input needed",2,1) -> Manual input needed | G26: =IFERROR(D26*(E26/F26),0) -> 0 | H26: =Table4[[#This Row],[Reported DM]]*Table4[[#This Row],[Tons]] -> 0 | I26: =INDEX('Feed imports and diets'!$N:$N, 5*ROW($A1) + 3) -> 0 | J26: =INDEX('Feed imports and diets'!$N:$N, 5*ROW($A1) + 4) -> 0 | K26: =INDEX('Feed imports and diets'!$N:$N, 5*ROW($A1) + 5) -> 0 | L26: =INDEX('Feed imports and diets'!$N:$N, 5*ROW($A1) + 6) -> % | M26: =INDEX('Feed imports and diets'!$N:$N, 5*ROW($A1) + 7) -> 0 | N26: =SUM(I26:M26) -> 0 | P26: =G26*2000*I26/CFT_ESHelper_HERD!$G$4/365*F26 ->  | R26: =G26*2000*J26/CFT_ESHelper_HERD!$G$5/365*F26 ->  | T26: =G26*2000*K26/CFT_ESHelper_HERD!$D$18/365*F26 ->  | V26: =G26*2000*(L26*(10/12)+M26*(2/12))/CFT_ESHelper_HERD!$D$17/365*F26 ->  | X26: =H26*2000*I26/CFT_ESHelper_HERD!$G$4/365 ->  | Z26: =H26*2000*J26/CFT_ESHelper_HERD!$G$5/365 ->  | AB26: =H26*2000*(K26+L26)/CFT_ESHelper_HERD!$C$27/365 ->  | AD26: =H26*2000*M26/CFT_ESHelper_HERD!$C$28/365 ->  | AJ26: Rye | AK26: 0.872
A27: =INDEX('Feed imports and diets'!$D:$D, 5*ROW(A2) + 3) -> 0 | B27: =IF(ISBLANK(A27), "Feed item", _xlfn.XLOOKUP("*"&A27&"*",Table2[Short name],Table2[Feed item],"Manual input needed",2, 1)) -> Manual input needed | D27: =INDEX('Feed imports and diets'!$E:$E, 5*ROW(A2) + 3) -> 0 | E27: =INDEX('Feed imports and diets'!$F:$F, 5*ROW(A2) + 3) -> 0 | F27: =_xlfn.XLOOKUP(Table4[[#This Row],[CFT feed]],Table2[Feed item], Table2[DM %], "Manual input needed",2,1) -> Manual input needed | G27: 0 | H27: =Table4[[#This Row],[Reported DM]]*Table4[[#This Row],[Tons]] -> 0 | I27: =INDEX('Feed imports and diets'!$N:$N, 5*ROW($A2) + 3) -> 0 | J27: =INDEX('Feed imports and diets'!$N:$N, 5*ROW($A2) + 4) -> 0 | K27: =INDEX('Feed imports and diets'!$N:$N, 5*ROW($A2) + 5) -> 0 | L27: =INDEX('Feed imports and diets'!$N:$N, 5*ROW($A2) + 6) -> 0 | M27: =INDEX('Feed imports and diets'!$N:$N, 5*ROW($A2) + 7) -> 0 | N27: 0 | P27: =G27*2000*I27/CFT_ESHelper_HERD!$G$4/365*F27 ->  | R27: =G27*2000*J27/CFT_ESHelper_HERD!$G$5/365*F27 ->  | T27: =G27*2000*K27/CFT_ESHelper_HERD!$D$18/365*F27 ->  | V27: =G27*2000*(L27*(10/12)+M27*(2/12))/CFT_ESHelper_HERD!$D$17/365*F27 ->  | X27: =H27*2000*I27/CFT_ESHelper_HERD!$G$4/365 ->  | Z27: =H27*2000*J27/CFT_ESHelper_HERD!$G$5/365 ->  | AB27: =H27*2000*(K27+L27)/CFT_ESHelper_HERD!$C$27/365 ->  | AD27: =H27*2000*M27/CFT_ESHelper_HERD!$C$28/365 ->  | AJ27: Sorghum silage | AK27: 0.882
A28: =INDEX('Feed imports and diets'!$D:$D, 5*ROW(A3) + 3) -> 0 | B28: =IF(ISBLANK(A28), "Feed item", _xlfn.XLOOKUP("*"&A28&"*",Table2[Short name],Table2[Feed item],"Manual input needed",2, 1)) -> Manual input needed | D28: =INDEX('Feed imports and diets'!$E:$E, 5*ROW(A3) + 3) -> 0 | E28: =INDEX('Feed imports and diets'!$F:$F, 5*ROW(A3) + 3) -> 0 | F28: =_xlfn.XLOOKUP(Table4[[#This Row],[CFT feed]],Table2[Feed item], Table2[DM %], "Manual input needed",2,1) -> Manual input needed | G28: 0 | H28: =Table4[[#This Row],[Reported DM]]*Table4[[#This Row],[Tons]] -> 0 | I28: =INDEX('Feed imports and diets'!$N:$N, 5*ROW($A3) + 3) -> 0 | J28: =INDEX('Feed imports and diets'!$N:$N, 5*ROW($A3) + 4) -> 0 | K28: =INDEX('Feed imports and diets'!$N:$N, 5*ROW($A3) + 5) -> 0 | L28: =INDEX('Feed imports and diets'!$N:$N, 5*ROW($A3) + 6) -> 0 | M28: =INDEX('Feed imports and diets'!$N:$N, 5*ROW($A3) + 7) -> 0 | N28: 0 | P28: =G28*2000*I28/CFT_ESHelper_HERD!$G$4/365*F28 ->  | R28: =G28*2000*J28/CFT_ESHelper_HERD!$G$5/365*F28 ->  | T28: =G28*2000*K28/CFT_ESHelper_HERD!$D$18/365*F28 ->  | V28: =G28*2000*(L28*(10/12)+M28*(2/12))/CFT_ESHelper_HERD!$D$17/365*F28 ->  | X28: =H28*2000*I28/CFT_ESHelper_HERD!$G$4/365 ->  | Z28: =H28*2000*J28/CFT_ESHelper_HERD!$G$5/365 ->  | AB28: =H28*2000*(K28+L28)/CFT_ESHelper_HERD!$C$27/365 ->  | AD28: =H28*2000*M28/CFT_ESHelper_HERD!$C$28/365 ->  | AJ28: Other cereals | AK28: 0.877
A29: =INDEX('Feed imports and diets'!$D:$D, 5*ROW(A4) + 3) -> 0 | B29: =IF(ISBLANK(A29), "Feed item", _xlfn.XLOOKUP("*"&A29&"*",Table2[Short name],Table2[Feed item],"Manual input needed",2, 1)) -> Manual input needed | D29: =INDEX('Feed imports and diets'!$E:$E, 5*ROW(A4) + 3) -> 0 | E29: =INDEX('Feed imports and diets'!$F:$F, 5*ROW(A4) + 3) -> 0 | F29: =_xlfn.XLOOKUP(Table4[[#This Row],[CFT feed]],Table2[Feed item], Table2[DM %], "Manual input needed",2,1) -> Manual input needed | G29: 0 | H29: =Table4[[#This Row],[Reported DM]]*Table4[[#This Row],[Tons]] -> 0 | I29: =INDEX('Feed imports and diets'!$N:$N, 5*ROW($A4) + 3) -> 0 | J29: =INDEX('Feed imports and diets'!$N:$N, 5*ROW($A4) + 4) -> 0 | K29: =INDEX('Feed imports and diets'!$N:$N, 5*ROW($A4) + 5) -> 0 | L29: =INDEX('Feed imports and diets'!$N:$N, 5*ROW($A4) + 6) -> 0 | M29: =INDEX('Feed imports and diets'!$N:$N, 5*ROW($A4) + 7) -> 0 | N29: 0 | P29: =G29*2000*I29/CFT_ESHelper_HERD!$G$4/365*F29 ->  | R29: =G29*2000*J29/CFT_ESHelper_HERD!$G$5/365*F29 ->  | T29: =G29*2000*K29/CFT_ESHelper_HERD!$D$18/365*F29 ->  | V29: =G29*2000*(L29*(10/12)+M29*(2/12))/CFT_ESHelper_HERD!$D$17/365*F29 ->  | X29: =H29*2000*I29/CFT_ESHelper_HERD!$G$4/365 ->  | Z29: =H29*2000*J29/CFT_ESHelper_HERD!$G$5/365 ->  | AB29: =H29*2000*(K29+L29)/CFT_ESHelper_HERD!$C$27/365 ->  | AD29: =H29*2000*M29/CFT_ESHelper_HERD!$C$28/365 ->  | AJ29: Brans | AK29: 0.883
A30: =INDEX('Feed imports and diets'!$D:$D, 5*ROW(A5) + 3) -> 0 | B30: =IF(ISBLANK(A30), "Feed item", _xlfn.XLOOKUP("*"&A30&"*",Table2[Short name],Table2[Feed item],"Manual input needed",2, 1)) -> Manual input needed | D30: =INDEX('Feed imports and diets'!$E:$E, 5*ROW(A5) + 3) -> 0 | E30: =INDEX('Feed imports and diets'!$F:$F, 5*ROW(A5) + 3) -> 0 | F30: =_xlfn.XLOOKUP(Table4[[#This Row],[CFT feed]],Table2[Feed item], Table2[DM %], "Manual input needed",2,1) -> Manual input needed | G30: 0 | H30: =Table4[[#This Row],[Reported DM]]*Table4[[#This Row],[Tons]] -> 0 | I30: =INDEX('Feed imports and diets'!$N:$N, 5*ROW($A5) + 3) -> 0 | J30: =INDEX('Feed imports and diets'!$N:$N, 5*ROW($A5) + 4) -> 0 | K30: =INDEX('Feed imports and diets'!$N:$N, 5*ROW($A5) + 5) -> 0 | L30: =INDEX('Feed imports and diets'!$N:$N, 5*ROW($A5) + 6) -> 0 | M30: =INDEX('Feed imports and diets'!$N:$N, 5*ROW($A5) + 7) -> 0 | N30: 0 | P30: =G30*2000*I30/CFT_ESHelper_HERD!$G$4/365*F30 ->  | R30: =G30*2000*J30/CFT_ESHelper_HERD!$G$5/365*F30 ->  | T30: =G30*2000*K30/CFT_ESHelper_HERD!$D$18/365*F30 ->  | V30: =G30*2000*(L30*(10/12)+M30*(2/12))/CFT_ESHelper_HERD!$D$17/365*F30 ->  | X30: =H30*2000*I30/CFT_ESHelper_HERD!$G$4/365 ->  | Z30: =H30*2000*J30/CFT_ESHelper_HERD!$G$5/365 ->  | AB30: =H30*2000*(K30+L30)/CFT_ESHelper_HERD!$C$27/365 ->  | AD30: =H30*2000*M30/CFT_ESHelper_HERD!$C$28/365 ->  | AJ30: Maize / Corn gluten feed | AK30: 0.892
A31: =INDEX('Feed imports and diets'!$D:$D, 5*ROW(A6) + 3) -> 0 | B31: =IF(ISBLANK(A31), "Feed item", _xlfn.XLOOKUP("*"&A31&"*",Table2[Short name],Table2[Feed item],"Manual input needed",2, 1)) -> Manual input needed | D31: =INDEX('Feed imports and diets'!$E:$E, 5*ROW(A6) + 3) -> 0 | E31: =INDEX('Feed imports and diets'!$F:$F, 5*ROW(A6) + 3) -> 0 | F31: =_xlfn.XLOOKUP(Table4[[#This Row],[CFT feed]],Table2[Feed item], Table2[DM %], "Manual input needed",2,1) -> Manual input needed | G31: 0 | H31: =Table4[[#This Row],[Reported DM]]*Table4[[#This Row],[Tons]] -> 0 | I31: =INDEX('Feed imports and diets'!$N:$N, 5*ROW($A6) + 3) -> 0 | J31: =INDEX('Feed imports and diets'!$N:$N, 5*ROW($A6) + 4) -> 0 | K31: =INDEX('Feed imports and diets'!$N:$N, 5*ROW($A6) + 5) -> 0 | L31: =INDEX('Feed imports and diets'!$N:$N, 5*ROW($A6) + 6) -> 0 | M31: =INDEX('Feed imports and diets'!$N:$N, 5*ROW($A6) + 7) -> 0 | N31: 0 | P31: =G31*2000*I31/CFT_ESHelper_HERD!$G$4/365*F31 ->  | R31: =G31*2000*J31/CFT_ESHelper_HERD!$G$5/365*F31 ->  | T31: =G31*2000*K31/CFT_ESHelper_HERD!$D$18/365*F31 ->  | V31: =G31*2000*(L31*(10/12)+M31*(2/12))/CFT_ESHelper_HERD!$D$17/365*F31 ->  | X31: =H31*2000*I31/CFT_ESHelper_HERD!$G$4/365 ->  | Z31: =H31*2000*J31/CFT_ESHelper_HERD!$G$5/365 ->  | AB31: =H31*2000*(K31+L31)/CFT_ESHelper_HERD!$C$27/365 ->  | AD31: =H31*2000*M31/CFT_ESHelper_HERD!$C$28/365 ->  | AJ31: Dried distillers grains / Draff | AK31: 0.901
A32: =INDEX('Feed imports and diets'!$D:$D, 5*ROW(A7) + 3) -> 0 | B32: =IF(ISBLANK(A32), "Feed item", _xlfn.XLOOKUP("*"&A32&"*",Table2[Short name],Table2[Feed item],"Manual input needed",2, 1)) -> Manual input needed | D32: =INDEX('Feed imports and diets'!$E:$E, 5*ROW(A7) + 3) -> 0 | E32: =INDEX('Feed imports and diets'!$F:$F, 5*ROW(A7) + 3) -> 0 | F32: =_xlfn.XLOOKUP(Table4[[#This Row],[CFT feed]],Table2[Feed item], Table2[DM %], "Manual input needed",2,1) -> Manual input needed | G32: 0 | H32: =Table4[[#This Row],[Reported DM]]*Table4[[#This Row],[Tons]] -> 0 | I32: =INDEX('Feed imports and diets'!$N:$N, 5*ROW($A7) + 3) -> 0 | J32: =INDEX('Feed imports and diets'!$N:$N, 5*ROW($A7) + 4) -> 0 | K32: =INDEX('Feed imports and diets'!$N:$N, 5*ROW($A7) + 5) -> 0 | L32: =INDEX('Feed imports and diets'!$N:$N, 5*ROW($A7) + 6) -> 0 | M32: =INDEX('Feed imports and diets'!$N:$N, 5*ROW($A7) + 7) -> 0 | N32: 0 | P32: =G32*2000*I32/CFT_ESHelper_HERD!$G$4/365*F32 ->  | R32: =G32*2000*J32/CFT_ESHelper_HERD!$G$5/365*F32 ->  | T32: =G32*2000*K32/CFT_ESHelper_HERD!$D$18/365*F32 ->  | V32: =G32*2000*(L32*(10/12)+M32*(2/12))/CFT_ESHelper_HERD!$D$17/365*F32 ->  | X32: =H32*2000*I32/CFT_ESHelper_HERD!$G$4/365 ->  | Z32: =H32*2000*J32/CFT_ESHelper_HERD!$G$5/365 ->  | AB32: =H32*2000*(K32+L32)/CFT_ESHelper_HERD!$C$27/365 ->  | AD32: =H32*2000*M32/CFT_ESHelper_HERD!$C$28/365 ->  | AJ32: Bewer's grain | AK32: 0.903
A33: =INDEX('Feed imports and diets'!$D:$D, 5*ROW(A8) + 3) -> 0 | B33: =IF(ISBLANK(A33), "Feed item", _xlfn.XLOOKUP("*"&A33&"*",Table2[Short name],Table2[Feed item],"Manual input needed",2, 1)) -> Manual input needed | D33: =INDEX('Feed imports and diets'!$E:$E, 5*ROW(A8) + 3) -> 0 | E33: =INDEX('Feed imports and diets'!$F:$F, 5*ROW(A8) + 3) -> 0 | F33: =_xlfn.XLOOKUP(Table4[[#This Row],[CFT feed]],Table2[Feed item], Table2[DM %], "Manual input needed",2,1) -> Manual input needed | G33: 0 | H33: =Table4[[#This Row],[Reported DM]]*Table4[[#This Row],[Tons]] -> 0 | I33: =INDEX('Feed imports and diets'!$N:$N, 5*ROW($A8) + 3) -> 0 | J33: =INDEX('Feed imports and diets'!$N:$N, 5*ROW($A8) + 4) -> 0 | K33: =INDEX('Feed imports and diets'!$N:$N, 5*ROW($A8) + 5) -> 0 | L33: =INDEX('Feed imports and diets'!$N:$N, 5*ROW($A8) + 6) -> 0 | M33: =INDEX('Feed imports and diets'!$N:$N, 5*ROW($A8) + 7) -> 0 | N33: 0 | P33: =G33*2000*I33/CFT_ESHelper_HERD!$G$4/365*F33 ->  | R33: =G33*2000*J33/CFT_ESHelper_HERD!$G$5/365*F33 ->  | T33: =G33*2000*K33/CFT_ESHelper_HERD!$D$18/365*F33 ->  | V33: =G33*2000*(L33*(10/12)+M33*(2/12))/CFT_ESHelper_HERD!$D$17/365*F33 ->  | X33: =H33*2000*I33/CFT_ESHelper_HERD!$G$4/365 ->  | Z33: =H33*2000*J33/CFT_ESHelper_HERD!$G$5/365 ->  | AB33: =H33*2000*(K33+L33)/CFT_ESHelper_HERD!$C$27/365 ->  | AD33: =H33*2000*M33/CFT_ESHelper_HERD!$C$28/365 ->  | AJ33: Potato starch | AK33: 0.877
A34: =INDEX('Feed imports and diets'!$D:$D, 5*ROW(A9) + 3) -> 0 | B34: =IF(ISBLANK(A34), "Feed item", _xlfn.XLOOKUP("*"&A34&"*",Table2[Short name],Table2[Feed item],"Manual input needed",2, 1)) -> Manual input needed | D34: =INDEX('Feed imports and diets'!$E:$E, 5*ROW(A9) + 3) -> 0 | E34: =INDEX('Feed imports and diets'!$F:$F, 5*ROW(A9) + 3) -> 0 | F34: =_xlfn.XLOOKUP(Table4[[#This Row],[CFT feed]],Table2[Feed item], Table2[DM %], "Manual input needed",2,1) -> Manual input needed | G34: 0 | H34: =Table4[[#This Row],[Reported DM]]*Table4[[#This Row],[Tons]] -> 0 | I34: =INDEX('Feed imports and diets'!$N:$N, 5*ROW($A9) + 3) -> 0 | J34: =INDEX('Feed imports and diets'!$N:$N, 5*ROW($A9) + 4) -> 0 | K34: =INDEX('Feed imports and diets'!$N:$N, 5*ROW($A9) + 5) -> 0 | L34: =INDEX('Feed imports and diets'!$N:$N, 5*ROW($A9) + 6) -> 0 | M34: =INDEX('Feed imports and diets'!$N:$N, 5*ROW($A9) + 7) -> 0 | N34: 0 | P34: =G34*2000*I34/CFT_ESHelper_HERD!$G$4/365*F34 ->  | R34: =G34*2000*J34/CFT_ESHelper_HERD!$G$5/365*F34 ->  | T34: =G34*2000*K34/CFT_ESHelper_HERD!$D$18/365*F34 ->  | V34: =G34*2000*(L34*(10/12)+M34*(2/12))/CFT_ESHelper_HERD!$D$17/365*F34 ->  | X34: =H34*2000*I34/CFT_ESHelper_HERD!$G$4/365 ->  | Z34: =H34*2000*J34/CFT_ESHelper_HERD!$G$5/365 ->  | AB34: =H34*2000*(K34+L34)/CFT_ESHelper_HERD!$C$27/365 ->  | AD34: =H34*2000*M34/CFT_ESHelper_HERD!$C$28/365 ->  | AJ34: Sugarbeet / sugarcane molasses | AK34: 0.723
A35: =INDEX('Feed imports and diets'!$D:$D, 5*ROW(A10) + 3) -> 0 | B35: =IF(ISBLANK(A35), "Feed item", _xlfn.XLOOKUP("*"&A35&"*",Table2[Short name],Table2[Feed item],"Manual input needed",2, 1)) -> Manual input needed | D35: =INDEX('Feed imports and diets'!$E:$E, 5*ROW(A10) + 3) -> 0 | E35: =INDEX('Feed imports and diets'!$F:$F, 5*ROW(A10) + 3) -> 0 | F35: =_xlfn.XLOOKUP(Table4[[#This Row],[CFT feed]],Table2[Feed item], Table2[DM %], "Manual input needed",2,1) -> Manual input needed | G35: 0 | H35: =Table4[[#This Row],[Reported DM]]*Table4[[#This Row],[Tons]] -> 0 | I35: =INDEX('Feed imports and diets'!$N:$N, 5*ROW($A10) + 3) -> 0 | J35: =INDEX('Feed imports and diets'!$N:$N, 5*ROW($A10) + 4) -> 0 | K35: =INDEX('Feed imports and diets'!$N:$N, 5*ROW($A10) + 5) -> 0 | L35: =INDEX('Feed imports and diets'!$N:$N, 5*ROW($A10) + 6) -> 0 | M35: =INDEX('Feed imports and diets'!$N:$N, 5*ROW($A10) + 7) -> 0 | N35: 0 | P35: =G35*2000*I35/CFT_ESHelper_HERD!$G$4/365*F35 ->  | R35: =G35*2000*J35/CFT_ESHelper_HERD!$G$5/365*F35 ->  | T35: =G35*2000*K35/CFT_ESHelper_HERD!$D$18/365*F35 ->  | V35: =G35*2000*(L35*(10/12)+M35*(2/12))/CFT_ESHelper_HERD!$D$17/365*F35 ->  | X35: =H35*2000*I35/CFT_ESHelper_HERD!$G$4/365 ->  | Z35: =H35*2000*J35/CFT_ESHelper_HERD!$G$5/365 ->  | AB35: =H35*2000*(K35+L35)/CFT_ESHelper_HERD!$C$27/365 ->  | AD35: =H35*2000*M35/CFT_ESHelper_HERD!$C$28/365 ->  | AJ35: Soy hull | AK35: 0.883
A36: =INDEX('Feed imports and diets'!$D:$D, 5*ROW(A11) + 3) -> 0 | B36: =IF(ISBLANK(A36), "Feed item", _xlfn.XLOOKUP("*"&A36&"*",Table2[Short name],Table2[Feed item],"Manual input needed",2, 1)) -> Manual input needed | D36: =INDEX('Feed imports and diets'!$E:$E, 5*ROW(A11) + 3) -> 0 | E36: =INDEX('Feed imports and diets'!$F:$F, 5*ROW(A11) + 3) -> 0 | F36: =_xlfn.XLOOKUP(Table4[[#This Row],[CFT feed]],Table2[Feed item], Table2[DM %], "Manual input needed",2,1) -> Manual input needed | G36: 0 | H36: =Table4[[#This Row],[Reported DM]]*Table4[[#This Row],[Tons]] -> 0 | I36: =INDEX('Feed imports and diets'!$N:$N, 5*ROW($A11) + 3) -> 0 | J36: =INDEX('Feed imports and diets'!$N:$N, 5*ROW($A11) + 4) -> 0 | K36: =INDEX('Feed imports and diets'!$N:$N, 5*ROW($A11) + 5) -> 0 | L36: =INDEX('Feed imports and diets'!$N:$N, 5*ROW($A11) + 6) -> 0 | M36: =INDEX('Feed imports and diets'!$N:$N, 5*ROW($A11) + 7) -> 0 | N36: 0 | P36: =G36*2000*I36/CFT_ESHelper_HERD!$G$4/365*F36 ->  | R36: =G36*2000*J36/CFT_ESHelper_HERD!$G$5/365*F36 ->  | T36: =G36*2000*K36/CFT_ESHelper_HERD!$D$18/365*F36 ->  | V36: =G36*2000*(L36*(10/12)+M36*(2/12))/CFT_ESHelper_HERD!$D$17/365*F36 ->  | X36: =H36*2000*I36/CFT_ESHelper_HERD!$G$4/365 ->  | Z36: =H36*2000*J36/CFT_ESHelper_HERD!$G$5/365 ->  | AB36: =H36*2000*(K36+L36)/CFT_ESHelper_HERD!$C$27/365 ->  | AD36: =H36*2000*M36/CFT_ESHelper_HERD!$C$28/365 ->  | AJ36: Bypass fat | AK36: 0.994
A37: =INDEX('Feed imports and diets'!$D:$D, 5*ROW(A12) + 3) -> 0 | B37: =IF(ISBLANK(A37), "Feed item", _xlfn.XLOOKUP("*"&A37&"*",Table2[Short name],Table2[Feed item],"Manual input needed",2, 1)) -> Manual input needed | D37: =INDEX('Feed imports and diets'!$E:$E, 5*ROW(A12) + 3) -> 0 | E37: =INDEX('Feed imports and diets'!$F:$F, 5*ROW(A12) + 3) -> 0 | F37: =_xlfn.XLOOKUP(Table4[[#This Row],[CFT feed]],Table2[Feed item], Table2[DM %], "Manual input needed",2,1) -> Manual input needed | G37: 0 | H37: =Table4[[#This Row],[Reported DM]]*Table4[[#This Row],[Tons]] -> 0 | I37: =INDEX('Feed imports and diets'!$N:$N, 5*ROW($A12) + 3) -> 0 | J37: =INDEX('Feed imports and diets'!$N:$N, 5*ROW($A12) + 4) -> 0 | K37: =INDEX('Feed imports and diets'!$N:$N, 5*ROW($A12) + 5) -> 0 | L37: =INDEX('Feed imports and diets'!$N:$N, 5*ROW($A12) + 6) -> 0 | M37: =INDEX('Feed imports and diets'!$N:$N, 5*ROW($A12) + 7) -> 0 | N37: 0 | P37: =G37*2000*I37/CFT_ESHelper_HERD!$G$4/365*F37 ->  | R37: =G37*2000*J37/CFT_ESHelper_HERD!$G$5/365*F37 ->  | T37: =G37*2000*K37/CFT_ESHelper_HERD!$D$18/365*F37 ->  | V37: =G37*2000*(L37*(10/12)+M37*(2/12))/CFT_ESHelper_HERD!$D$17/365*F37 ->  | X37: =H37*2000*I37/CFT_ESHelper_HERD!$G$4/365 ->  | Z37: =H37*2000*J37/CFT_ESHelper_HERD!$G$5/365 ->  | AB37: =H37*2000*(K37+L37)/CFT_ESHelper_HERD!$C$27/365 ->  | AD37: =H37*2000*M37/CFT_ESHelper_HERD!$C$28/365 ->  | AJ37: Molasses | AK37: 0.723
A38: =INDEX('Feed imports and diets'!$D:$D, 5*ROW(A13) + 3) -> 0 | B38: =IF(ISBLANK(A38), "Feed item", _xlfn.XLOOKUP("*"&A38&"*",Table2[Short name],Table2[Feed item],"Manual input needed",2, 1)) -> Manual input needed | D38: =INDEX('Feed imports and diets'!$E:$E, 5*ROW(A13) + 3) -> 0 | E38: =INDEX('Feed imports and diets'!$F:$F, 5*ROW(A13) + 3) -> 0 | F38: =_xlfn.XLOOKUP(Table4[[#This Row],[CFT feed]],Table2[Feed item], Table2[DM %], "Manual input needed",2,1) -> Manual input needed | G38: 0 | H38: =Table4[[#This Row],[Reported DM]]*Table4[[#This Row],[Tons]] -> 0 | I38: =INDEX('Feed imports and diets'!$N:$N, 5*ROW($A13) + 3) -> 0 | J38: =INDEX('Feed imports and diets'!$N:$N, 5*ROW($A13) + 4) -> 0 | K38: =INDEX('Feed imports and diets'!$N:$N, 5*ROW($A13) + 5) -> 0 | L38: =INDEX('Feed imports and diets'!$N:$N, 5*ROW($A13) + 6) -> 0 | M38: =INDEX('Feed imports and diets'!$N:$N, 5*ROW($A13) + 7) -> 0 | N38: 0 | P38: =G38*2000*I38/CFT_ESHelper_HERD!$G$4/365*F38 ->  | R38: =G38*2000*J38/CFT_ESHelper_HERD!$G$5/365*F38 ->  | T38: =G38*2000*K38/CFT_ESHelper_HERD!$D$18/365*F38 ->  | V38: =G38*2000*(L38*(10/12)+M38*(2/12))/CFT_ESHelper_HERD!$D$17/365*F38 ->  | X38: =H38*2000*I38/CFT_ESHelper_HERD!$G$4/365 ->  | Z38: =H38*2000*J38/CFT_ESHelper_HERD!$G$5/365 ->  | AB38: =H38*2000*(K38+L38)/CFT_ESHelper_HERD!$C$27/365 ->  | AD38: =H38*2000*M38/CFT_ESHelper_HERD!$C$28/365 ->  | AJ38: Whey powder | AK38: 0.98
A39: =INDEX('Feed imports and diets'!$D:$D, 5*ROW(A14) + 3) -> 0 | B39: =IF(ISBLANK(A39), "Feed item", _xlfn.XLOOKUP("*"&A39&"*",Table2[Short name],Table2[Feed item],"Manual input needed",2, 1)) -> Manual input needed | D39: =INDEX('Feed imports and diets'!$E:$E, 5*ROW(A14) + 3) -> 0 | E39: =INDEX('Feed imports and diets'!$F:$F, 5*ROW(A14) + 3) -> 0 | F39: =_xlfn.XLOOKUP(Table4[[#This Row],[CFT feed]],Table2[Feed item], Table2[DM %], "Manual input needed",2,1) -> Manual input needed | G39: 0 | H39: =Table4[[#This Row],[Reported DM]]*Table4[[#This Row],[Tons]] -> 0 | I39: =INDEX('Feed imports and diets'!$N:$N, 5*ROW($A14) + 3) -> 0 | J39: =INDEX('Feed imports and diets'!$N:$N, 5*ROW($A14) + 4) -> 0 | K39: =INDEX('Feed imports and diets'!$N:$N, 5*ROW($A14) + 5) -> 0 | L39: =INDEX('Feed imports and diets'!$N:$N, 5*ROW($A14) + 6) -> 0 | M39: =INDEX('Feed imports and diets'!$N:$N, 5*ROW($A14) + 7) -> 0 | N39: 0 | P39: =G39*2000*I39/CFT_ESHelper_HERD!$G$4/365*F39 ->  | R39: =G39*2000*J39/CFT_ESHelper_HERD!$G$5/365*F39 ->  | T39: =G39*2000*K39/CFT_ESHelper_HERD!$D$18/365*F39 ->  | V39: =G39*2000*(L39*(10/12)+M39*(2/12))/CFT_ESHelper_HERD!$D$17/365*F39 ->  | X39: =H39*2000*I39/CFT_ESHelper_HERD!$G$4/365 ->  | Z39: =H39*2000*J39/CFT_ESHelper_HERD!$G$5/365 ->  | AB39: =H39*2000*(K39+L39)/CFT_ESHelper_HERD!$C$27/365 ->  | AD39: =H39*2000*M39/CFT_ESHelper_HERD!$C$28/365 ->  | AJ39: Soybean cake/meal | AK39: 0.874
A40: =INDEX('Feed imports and diets'!$D:$D, 5*ROW(A15) + 3) -> 0 | B40: =IF(ISBLANK(A40), "Feed item", _xlfn.XLOOKUP("*"&A40&"*",Table2[Short name],Table2[Feed item],"Manual input needed",2, 1)) -> Manual input needed | D40: =INDEX('Feed imports and diets'!$E:$E, 5*ROW(A15) + 3) -> 0 | E40: =INDEX('Feed imports and diets'!$F:$F, 5*ROW(A15) + 3) -> 0 | F40: =_xlfn.XLOOKUP(Table4[[#This Row],[CFT feed]],Table2[Feed item], Table2[DM %], "Manual input needed",2,1) -> Manual input needed | G40: 0 | H40: =Table4[[#This Row],[Reported DM]]*Table4[[#This Row],[Tons]] -> 0 | I40: =INDEX('Feed imports and diets'!$N:$N, 5*ROW($A15) + 3) -> 0 | J40: =INDEX('Feed imports and diets'!$N:$N, 5*ROW($A15) + 4) -> 0 | K40: =INDEX('Feed imports and diets'!$N:$N, 5*ROW($A15) + 5) -> 0 | L40: =INDEX('Feed imports and diets'!$N:$N, 5*ROW($A15) + 6) -> 0 | M40: =INDEX('Feed imports and diets'!$N:$N, 5*ROW($A15) + 7) -> 0 | N40: 0 | P40: =G40*2000*I40/CFT_ESHelper_HERD!$G$4/365*F40 ->  | R40: =G40*2000*J40/CFT_ESHelper_HERD!$G$5/365*F40 ->  | T40: =G40*2000*K40/CFT_ESHelper_HERD!$D$18/365*F40 ->  | V40: =G40*2000*(L40*(10/12)+M40*(2/12))/CFT_ESHelper_HERD!$D$17/365*F40 ->  | X40: =H40*2000*I40/CFT_ESHelper_HERD!$G$4/365 ->  | Z40: =H40*2000*J40/CFT_ESHelper_HERD!$G$5/365 ->  | AB40: =H40*2000*(K40+L40)/CFT_ESHelper_HERD!$C$27/365 ->  | AD40: =H40*2000*M40/CFT_ESHelper_HERD!$C$28/365 ->  | AJ40: Rapeseed cake/meal | AK40: 0.872
A41: =INDEX('Feed imports and diets'!$D:$D, 5*ROW(A16) + 3) -> 0 | B41: =IF(ISBLANK(A41), "Feed item", _xlfn.XLOOKUP("*"&A41&"*",Table2[Short name],Table2[Feed item],"Manual input needed",2, 1)) -> Manual input needed | D41: =INDEX('Feed imports and diets'!$E:$E, 5*ROW(A16) + 3) -> 0 | E41: =INDEX('Feed imports and diets'!$F:$F, 5*ROW(A16) + 3) -> 0 | F41: =_xlfn.XLOOKUP(Table4[[#This Row],[CFT feed]],Table2[Feed item], Table2[DM %], "Manual input needed",2,1) -> Manual input needed | G41: 0 | H41: =Table4[[#This Row],[Reported DM]]*Table4[[#This Row],[Tons]] -> 0 | I41: =INDEX('Feed imports and diets'!$N:$N, 5*ROW($A16) + 3) -> 0 | J41: =INDEX('Feed imports and diets'!$N:$N, 5*ROW($A16) + 4) -> 0 | K41: =INDEX('Feed imports and diets'!$N:$N, 5*ROW($A16) + 5) -> 0 | L41: =INDEX('Feed imports and diets'!$N:$N, 5*ROW($A16) + 6) -> 0 | M41: =INDEX('Feed imports and diets'!$N:$N, 5*ROW($A16) + 7) -> 0 | N41: 0 | P41: =G41*2000*I41/CFT_ESHelper_HERD!$G$4/365*F41 ->  | R41: =G41*2000*J41/CFT_ESHelper_HERD!$G$5/365*F41 ->  | T41: =G41*2000*K41/CFT_ESHelper_HERD!$D$18/365*F41 ->  | V41: =G41*2000*(L41*(10/12)+M41*(2/12))/CFT_ESHelper_HERD!$D$17/365*F41 ->  | X41: =H41*2000*I41/CFT_ESHelper_HERD!$G$4/365 ->  | Z41: =H41*2000*J41/CFT_ESHelper_HERD!$G$5/365 ->  | AB41: =H41*2000*(K41+L41)/CFT_ESHelper_HERD!$C$27/365 ->  | AD41: =H41*2000*M41/CFT_ESHelper_HERD!$C$28/365 ->  | AJ41: Sunflower cake/meal | AK41: 0.89
A42: =INDEX('Feed imports and diets'!$D:$D, 5*ROW(A17) + 3) -> 0 | B42: =IF(ISBLANK(A42), "Feed item", _xlfn.XLOOKUP("*"&A42&"*",Table2[Short name],Table2[Feed item],"Manual input needed",2, 1)) -> Manual input needed | D42: =INDEX('Feed imports and diets'!$E:$E, 5*ROW(A17) + 3) -> 0 | E42: =INDEX('Feed imports and diets'!$F:$F, 5*ROW(A17) + 3) -> 0 | F42: =_xlfn.XLOOKUP(Table4[[#This Row],[CFT feed]],Table2[Feed item], Table2[DM %], "Manual input needed",2,1) -> Manual input needed | G42: 0 | H42: =Table4[[#This Row],[Reported DM]]*Table4[[#This Row],[Tons]] -> 0 | I42: =INDEX('Feed imports and diets'!$N:$N, 5*ROW($A17) + 3) -> 0 | J42: =INDEX('Feed imports and diets'!$N:$N, 5*ROW($A17) + 4) -> 0 | K42: =INDEX('Feed imports and diets'!$N:$N, 5*ROW($A17) + 5) -> 0 | L42: =INDEX('Feed imports and diets'!$N:$N, 5*ROW($A17) + 6) -> 0 | M42: =INDEX('Feed imports and diets'!$N:$N, 5*ROW($A17) + 7) -> 0 | N42: 0 | P42: =G42*2000*I42/CFT_ESHelper_HERD!$G$4/365*F42 ->  | R42: =G42*2000*J42/CFT_ESHelper_HERD!$G$5/365*F42 ->  | T42: =G42*2000*K42/CFT_ESHelper_HERD!$D$18/365*F42 ->  | V42: =G42*2000*(L42*(10/12)+M42*(2/12))/CFT_ESHelper_HERD!$D$17/365*F42 ->  | X42: =H42*2000*I42/CFT_ESHelper_HERD!$G$4/365 ->  | Z42: =H42*2000*J42/CFT_ESHelper_HERD!$G$5/365 ->  | AB42: =H42*2000*(K42+L42)/CFT_ESHelper_HERD!$C$27/365 ->  | AD42: =H42*2000*M42/CFT_ESHelper_HERD!$C$28/365 ->  | AJ42: Cottonseed cake/meal | AK42: 0.941
A43: =INDEX('Feed imports and diets'!$D:$D, 5*ROW(A18) + 3) -> 0 | B43: =IF(ISBLANK(A43), "Feed item", _xlfn.XLOOKUP("*"&A43&"*",Table2[Short name],Table2[Feed item],"Manual input needed",2, 1)) -> Manual input needed | D43: =INDEX('Feed imports and diets'!$E:$E, 5*ROW(A18) + 3) -> 0 | E43: =INDEX('Feed imports and diets'!$F:$F, 5*ROW(A18) + 3) -> 0 | F43: =_xlfn.XLOOKUP(Table4[[#This Row],[CFT feed]],Table2[Feed item], Table2[DM %], "Manual input needed",2,1) -> Manual input needed | G43: 0 | H43: =Table4[[#This Row],[Reported DM]]*Table4[[#This Row],[Tons]] -> 0 | I43: =INDEX('Feed imports and diets'!$N:$N, 5*ROW($A18) + 3) -> 0 | J43: =INDEX('Feed imports and diets'!$N:$N, 5*ROW($A18) + 4) -> 0 | K43: =INDEX('Feed imports and diets'!$N:$N, 5*ROW($A18) + 5) -> 0 | L43: =INDEX('Feed imports and diets'!$N:$N, 5*ROW($A18) + 6) -> 0 | M43: =INDEX('Feed imports and diets'!$N:$N, 5*ROW($A18) + 7) -> 0 | N43: 0 | P43: =G43*2000*I43/CFT_ESHelper_HERD!$G$4/365*F43 ->  | R43: =G43*2000*J43/CFT_ESHelper_HERD!$G$5/365*F43 ->  | T43: =G43*2000*K43/CFT_ESHelper_HERD!$D$18/365*F43 ->  | V43: =G43*2000*(L43*(10/12)+M43*(2/12))/CFT_ESHelper_HERD!$D$17/365*F43 ->  | X43: =H43*2000*I43/CFT_ESHelper_HERD!$G$4/365 ->  | Z43: =H43*2000*J43/CFT_ESHelper_HERD!$G$5/365 ->  | AB43: =H43*2000*(K43+L43)/CFT_ESHelper_HERD!$C$27/365 ->  | AD43: =H43*2000*M43/CFT_ESHelper_HERD!$C$28/365 ->  | AJ43: Palm kernel cake/meal | AK43: 0.88
A44: =INDEX('Feed imports and diets'!$D:$D, 5*ROW(A19) + 3) -> 0 | B44: =IF(ISBLANK(A44), "Feed item", _xlfn.XLOOKUP("*"&A44&"*",Table2[Short name],Table2[Feed item],"Manual input needed",2, 1)) -> Manual input needed | D44: =INDEX('Feed imports and diets'!$E:$E, 5*ROW(A19) + 3) -> 0 | E44: =INDEX('Feed imports and diets'!$F:$F, 5*ROW(A19) + 3) -> 0 | F44: =_xlfn.XLOOKUP(Table4[[#This Row],[CFT feed]],Table2[Feed item], Table2[DM %], "Manual input needed",2,1) -> Manual input needed | G44: 0 | H44: =Table4[[#This Row],[Reported DM]]*Table4[[#This Row],[Tons]] -> 0 | I44: =INDEX('Feed imports and diets'!$N:$N, 5*ROW($A19) + 3) -> 0 | J44: =INDEX('Feed imports and diets'!$N:$N, 5*ROW($A19) + 4) -> 0 | K44: =INDEX('Feed imports and diets'!$N:$N, 5*ROW($A19) + 5) -> 0 | L44: =INDEX('Feed imports and diets'!$N:$N, 5*ROW($A19) + 6) -> 0 | M44: =INDEX('Feed imports and diets'!$N:$N, 5*ROW($A19) + 7) -> 0 | N44: 0 | P44: =G44*2000*I44/CFT_ESHelper_HERD!$G$4/365*F44 ->  | R44: =G44*2000*J44/CFT_ESHelper_HERD!$G$5/365*F44 ->  | T44: =G44*2000*K44/CFT_ESHelper_HERD!$D$18/365*F44 ->  | V44: =G44*2000*(L44*(10/12)+M44*(2/12))/CFT_ESHelper_HERD!$D$17/365*F44 ->  | X44: =H44*2000*I44/CFT_ESHelper_HERD!$G$4/365 ->  | Z44: =H44*2000*J44/CFT_ESHelper_HERD!$G$5/365 ->  | AB44: =H44*2000*(K44+L44)/CFT_ESHelper_HERD!$C$27/365 ->  | AD44: =H44*2000*M44/CFT_ESHelper_HERD!$C$28/365 ->  | AJ44: Other oil cake/meal | AK44: 0.891
A45: =INDEX('Feed imports and diets'!$D:$D, 5*ROW(A20) + 3) -> 0 | B45: =IF(ISBLANK(A45), "Feed item", _xlfn.XLOOKUP("*"&A45&"*",Table2[Short name],Table2[Feed item],"Manual input needed",2, 1)) -> Manual input needed | D45: =INDEX('Feed imports and diets'!$E:$E, 5*ROW(A20) + 3) -> 0 | E45: =INDEX('Feed imports and diets'!$F:$F, 5*ROW(A20) + 3) -> 0 | F45: =_xlfn.XLOOKUP(Table4[[#This Row],[CFT feed]],Table2[Feed item], Table2[DM %], "Manual input needed",2,1) -> Manual input needed | G45: 0 | H45: =Table4[[#This Row],[Reported DM]]*Table4[[#This Row],[Tons]] -> 0 | I45: =INDEX('Feed imports and diets'!$N:$N, 5*ROW($A20) + 3) -> 0 | J45: =INDEX('Feed imports and diets'!$N:$N, 5*ROW($A20) + 4) -> 0 | K45: =INDEX('Feed imports and diets'!$N:$N, 5*ROW($A20) + 5) -> 0 | L45: =INDEX('Feed imports and diets'!$N:$N, 5*ROW($A20) + 6) -> 0 | M45: =INDEX('Feed imports and diets'!$N:$N, 5*ROW($A20) + 7) -> 0 | N45: 0 | P45: =G45*2000*I45/CFT_ESHelper_HERD!$G$4/365*F45 ->  | R45: =G45*2000*J45/CFT_ESHelper_HERD!$G$5/365*F45 ->  | T45: =G45*2000*K45/CFT_ESHelper_HERD!$D$18/365*F45 ->  | V45: =G45*2000*(L45*(10/12)+M45*(2/12))/CFT_ESHelper_HERD!$D$17/365*F45 ->  | X45: =H45*2000*I45/CFT_ESHelper_HERD!$G$4/365 ->  | Z45: =H45*2000*J45/CFT_ESHelper_HERD!$G$5/365 ->  | AB45: =H45*2000*(K45+L45)/CFT_ESHelper_HERD!$C$27/365 ->  | AD45: =H45*2000*M45/CFT_ESHelper_HERD!$C$28/365 -> 
D46: Total DM Tons | F46: CFT DM Tons | H46: ES DM tons | L46: Total per day lbs | P46: =_xlfn.AGGREGATE(9,6,P6:P45) -> 0 | R46: =_xlfn.AGGREGATE(9,6,R6:R45) -> 0 | T46: 0 | V46: 0 | X46: =_xlfn.AGGREGATE(9,6,X6:X45) -> 0 | Z46: =_xlfn.AGGREGATE(9,6,Z6:Z45) -> 0 | AB46: =_xlfn.AGGREGATE(9,6,AB6:AB45) -> 0 | AD46: =_xlfn.AGGREGATE(9,6,AD6:AD45) -> 0
D47: =SUMPRODUCT(D5:D45,E5:E45) -> 0 | F47: =SUMPRODUCT(F6:F45,G6:G45) -> 0 | H47: =_xlfn.AGGREGATE(9,6, H6:H45) -> 0 | L47: Total tons in a year (per animal) | P47: =P46*365/2000 -> 0 | R47: =R46*365/2000 -> 0 | T47: 0 | V47: 0 | X47: =X46*365/2000 -> 0 | Z47: =Z46*365/2000 -> 0 | AB47: =AB46*365/2000 -> 0 | AD47: =AD46*365/2000 -> 0
D48: DM CHECK | E48: =IF(AND(D47=F47, F47=H47, D47=H47), "GOOD", "CHECK") -> GOOD | F48: ↑ | G48: These numbers should be the same ↑
L49: Total per day kg | P49: =P46*0.45359237 -> 0 | R49: =R46*0.45359237 -> 0 | T49: 0 | V49: 0 | X49: 0 | Z49: 0 | AB49: 0 | AD49: 0
H67: % HG feeds
H68: Crop | I68: LACT | J68: DRY | K68: HEF BC | L68: HEF WB | M68: CALF
H69: =INDEX('Feed imports and diets'!$T:$T, 5*ROW(A1)+8) -> 0 | I69: =INDEX('Feed imports and diets'!$Z:$Z, 5*ROW(A2) + 3) -> 0 | J69: =INDEX('Feed imports and diets'!$Z:$Z, 5*ROW(A2) + 4) -> 0 | K69: =INDEX('Feed imports and diets'!$Z:$Z, 5*ROW(A2) + 5) -> 0 | L69: =INDEX('Feed imports and diets'!$Z:$Z, 5*ROW(A2) + 6) -> 0 | M69: =INDEX('Feed imports and diets'!$Z:$Z, 5*ROW(A2) + 7) -> 0
H70: =INDEX('Feed imports and diets'!$T:$T, 5*ROW(A2)+8) -> 0 | I70: =INDEX('Feed imports and diets'!$Z:$Z, 5*ROW(A3) + 3) -> 0 | J70: =INDEX('Feed imports and diets'!$Z:$Z, 5*ROW(A3) + 4) -> 0 | K70: =INDEX('Feed imports and diets'!$Z:$Z, 5*ROW(A3) + 5) -> 0 | L70: =INDEX('Feed imports and diets'!$Z:$Z, 5*ROW(A3) + 6) -> 0 | M70: =INDEX('Feed imports and diets'!$Z:$Z, 5*ROW(A3) + 7) -> 0
H71: =INDEX('Feed imports and diets'!$T:$T, 5*ROW(A3)+8) -> 0 | I71: =INDEX('Feed imports and diets'!$Z:$Z, 5*ROW(A4) + 3) -> 0 | J71: =INDEX('Feed imports and diets'!$Z:$Z, 5*ROW(A4) + 4) -> 0 | K71: =INDEX('Feed imports and diets'!$Z:$Z, 5*ROW(A4) + 5) -> 0 | L71: =INDEX('Feed imports and diets'!$Z:$Z, 5*ROW(A4) + 6) -> 0 | M71: =INDEX('Feed imports and diets'!$Z:$Z, 5*ROW(A4) + 7) -> 0
H72: =INDEX('Feed imports and diets'!$T:$T, 5*ROW(A4)+8) -> 0 | I72: =INDEX('Feed imports and diets'!$Z:$Z, 5*ROW(A5) + 3) -> 0 | J72: =INDEX('Feed imports and diets'!$Z:$Z, 5*ROW(A5) + 4) -> 0 | K72: =INDEX('Feed imports and diets'!$Z:$Z, 5*ROW(A5) + 5) -> 0 | L72: =INDEX('Feed imports and diets'!$Z:$Z, 5*ROW(A5) + 6) -> 0 | M72: =INDEX('Feed imports and diets'!$Z:$Z, 5*ROW(A5) + 7) -> 0
H73: =INDEX('Feed imports and diets'!$T:$T, 5*ROW(A5)+8) -> 0 | I73: =INDEX('Feed imports and diets'!$Z:$Z, 5*ROW(A6) + 3) -> 0 | J73: =INDEX('Feed imports and diets'!$Z:$Z, 5*ROW(A6) + 4) -> 0 | K73: =INDEX('Feed imports and diets'!$Z:$Z, 5*ROW(A6) + 5) -> 0 | L73: =INDEX('Feed imports and diets'!$Z:$Z, 5*ROW(A6) + 6) -> 0 | M73: =INDEX('Feed imports and diets'!$Z:$Z, 5*ROW(A6) + 7) -> 0
H74: =INDEX('Feed imports and diets'!$T:$T, 5*ROW(A6)+8) -> 0 | I74: =INDEX('Feed imports and diets'!$Z:$Z, 5*ROW(A7) + 3) -> 0 | J74: =INDEX('Feed imports and diets'!$Z:$Z, 5*ROW(A7) + 4) -> 0 | K74: =INDEX('Feed imports and diets'!$Z:$Z, 5*ROW(A7) + 5) -> 0 | L74: =INDEX('Feed imports and diets'!$Z:$Z, 5*ROW(A7) + 6) -> 0 | M74: =INDEX('Feed imports and diets'!$Z:$Z, 5*ROW(A7) + 7) -> 0
H75: =INDEX('Feed imports and diets'!$T:$T, 5*ROW(A7)+8) -> 0 | I75: =INDEX('Feed imports and diets'!$Z:$Z, 5*ROW(A8) + 3) -> 0 | J75: =INDEX('Feed imports and diets'!$Z:$Z, 5*ROW(A8) + 4) -> 0 | K75: =INDEX('Feed imports and diets'!$Z:$Z, 5*ROW(A8) + 5) -> 0 | L75: =INDEX('Feed imports and diets'!$Z:$Z, 5*ROW(A8) + 6) -> 0 | M75: =INDEX('Feed imports and diets'!$Z:$Z, 5*ROW(A8) + 7) -> 0
H76: =INDEX('Feed imports and diets'!$T:$T, 5*ROW(A8)+8) -> 0 | I76: =INDEX('Feed imports and diets'!$Z:$Z, 5*ROW(A9) + 3) -> 0 | J76: =INDEX('Feed imports and diets'!$Z:$Z, 5*ROW(A9) + 4) -> 0 | K76: =INDEX('Feed imports and diets'!$Z:$Z, 5*ROW(A9) + 5) -> 0 | L76: =INDEX('Feed imports and diets'!$Z:$Z, 5*ROW(A9) + 6) -> 0 | M76: =INDEX('Feed imports and diets'!$Z:$Z, 5*ROW(A9) + 7) -> 0
H77: =INDEX('Feed imports and diets'!$T:$T, 5*ROW(A9)+8) -> 0 | I77: =INDEX('Feed imports and diets'!$Z:$Z, 5*ROW(A10) + 3) -> 0 | J77: =INDEX('Feed imports and diets'!$Z:$Z, 5*ROW(A10) + 4) -> 0 | K77: =INDEX('Feed imports and diets'!$Z:$Z, 5*ROW(A10) + 5) -> 0 | L77: =INDEX('Feed imports and diets'!$Z:$Z, 5*ROW(A10) + 6) -> 0 | M77: =INDEX('Feed imports and diets'!$Z:$Z, 5*ROW(A10) + 7) -> 0
H78: =INDEX('Feed imports and diets'!$T:$T, 5*ROW(A10)+8) -> 0 | I78: =INDEX('Feed imports and diets'!$Z:$Z, 5*ROW(A11) + 3) -> 0 | J78: =INDEX('Feed imports and diets'!$Z:$Z, 5*ROW(A11) + 4) -> 0 | K78: =INDEX('Feed imports and diets'!$Z:$Z, 5*ROW(A11) + 5) -> 0 | L78: =INDEX('Feed imports and diets'!$Z:$Z, 5*ROW(A11) + 6) -> 0 | M78: =INDEX('Feed imports and diets'!$Z:$Z, 5*ROW(A11) + 7) -> 0
H79: =INDEX('Feed imports and diets'!$T:$T, 5*ROW(A11)+8) -> 0 | I79: =INDEX('Feed imports and diets'!$Z:$Z, 5*ROW(A12) + 3) -> 0 | J79: =INDEX('Feed imports and diets'!$Z:$Z, 5*ROW(A12) + 4) -> 0 | K79: =INDEX('Feed imports and diets'!$Z:$Z, 5*ROW(A12) + 5) -> 0 | L79: =INDEX('Feed imports and diets'!$Z:$Z, 5*ROW(A12) + 6) -> 0 | M79: =INDEX('Feed imports and diets'!$Z:$Z, 5*ROW(A12) + 7) -> 0
H80: =INDEX('Feed imports and diets'!$T:$T, 5*ROW(A12)+8) -> 0 | I80: =INDEX('Feed imports and diets'!$Z:$Z, 5*ROW(A13) + 3) -> 0 | J80: =INDEX('Feed imports and diets'!$Z:$Z, 5*ROW(A13) + 4) -> 0 | K80: =INDEX('Feed imports and diets'!$Z:$Z, 5*ROW(A13) + 5) -> 0 | L80: =INDEX('Feed imports and diets'!$Z:$Z, 5*ROW(A13) + 6) -> 0 | M80: =INDEX('Feed imports and diets'!$Z:$Z, 5*ROW(A13) + 7) -> 0
H81: =INDEX('Feed imports and diets'!$T:$T, 5*ROW(A13)+8) -> 0 | I81: =INDEX('Feed imports and diets'!$Z:$Z, 5*ROW(A14) + 3) -> 0 | J81: =INDEX('Feed imports and diets'!$Z:$Z, 5*ROW(A14) + 4) -> 0 | K81: =INDEX('Feed imports and diets'!$Z:$Z, 5*ROW(A14) + 5) -> 0 | L81: =INDEX('Feed imports and diets'!$Z:$Z, 5*ROW(A14) + 6) -> 0 | M81: =INDEX('Feed imports and diets'!$Z:$Z, 5*ROW(A14) + 7) -> 0
H82: =INDEX('Feed imports and diets'!$T:$T, 5*ROW(A14)+8) -> 0 | I82: =INDEX('Feed imports and diets'!$Z:$Z, 5*ROW(A15) + 3) -> 0 | J82: =INDEX('Feed imports and diets'!$Z:$Z, 5*ROW(A15) + 4) -> 0 | K82: =INDEX('Feed imports and diets'!$Z:$Z, 5*ROW(A15) + 5) -> 0 | L82: =INDEX('Feed imports and diets'!$Z:$Z, 5*ROW(A15) + 6) -> 0 | M82: =INDEX('Feed imports and diets'!$Z:$Z, 5*ROW(A15) + 7) -> 0
H83: =INDEX('Feed imports and diets'!$T:$T, 5*ROW(A15)+8) -> 0 | I83: =INDEX('Feed imports and diets'!$Z:$Z, 5*ROW(A16) + 3) -> 0 | J83: =INDEX('Feed imports and diets'!$Z:$Z, 5*ROW(A16) + 4) -> 0 | K83: =INDEX('Feed imports and diets'!$Z:$Z, 5*ROW(A16) + 5) -> 0 | L83: =INDEX('Feed imports and diets'!$Z:$Z, 5*ROW(A16) + 6) -> 0 | M83: =INDEX('Feed imports and diets'!$Z:$Z, 5*ROW(A16) + 7) -> 0
H84: =INDEX('Feed imports and diets'!$T:$T, 5*ROW(A16)+8) -> 0 | I84: =INDEX('Feed imports and diets'!$Z:$Z, 5*ROW(A17) + 3) -> 0 | J84: =INDEX('Feed imports and diets'!$Z:$Z, 5*ROW(A17) + 4) -> 0 | K84: =INDEX('Feed imports and diets'!$Z:$Z, 5*ROW(A17) + 5) -> 0 | L84: =INDEX('Feed imports and diets'!$Z:$Z, 5*ROW(A17) + 6) -> 0 | M84: =INDEX('Feed imports and diets'!$Z:$Z, 5*ROW(A17) + 7) -> 0
H85: =INDEX('Feed imports and diets'!$T:$T, 5*ROW(A17)+8) -> 0 | I85: =INDEX('Feed imports and diets'!$Z:$Z, 5*ROW(A18) + 3) -> 0 | J85: =INDEX('Feed imports and diets'!$Z:$Z, 5*ROW(A18) + 4) -> 0 | K85: =INDEX('Feed imports and diets'!$Z:$Z, 5*ROW(A18) + 5) -> 0 | L85: =INDEX('Feed imports and diets'!$Z:$Z, 5*ROW(A18) + 6) -> 0 | M85: =INDEX('Feed imports and diets'!$Z:$Z, 5*ROW(A18) + 7) -> 0
H86: =INDEX('Feed imports and diets'!$T:$T, 5*ROW(A18)+8) -> 0 | I86: =INDEX('Feed imports and diets'!$Z:$Z, 5*ROW(A19) + 3) -> 0 | J86: =INDEX('Feed imports and diets'!$Z:$Z, 5*ROW(A19) + 4) -> 0 | K86: =INDEX('Feed imports and diets'!$Z:$Z, 5*ROW(A19) + 5) -> 0 | L86: =INDEX('Feed imports and diets'!$Z:$Z, 5*ROW(A19) + 6) -> 0 | M86: =INDEX('Feed imports and diets'!$Z:$Z, 5*ROW(A19) + 7) -> 0
H87: =INDEX('Feed imports and diets'!$T:$T, 5*ROW(A19)+8) -> 0 | I87: =INDEX('Feed imports and diets'!$Z:$Z, 5*ROW(A20) + 3) -> 0 | J87: =INDEX('Feed imports and diets'!$Z:$Z, 5*ROW(A20) + 4) -> 0 | K87: =INDEX('Feed imports and diets'!$Z:$Z, 5*ROW(A20) + 5) -> 0 | L87: =INDEX('Feed imports and diets'!$Z:$Z, 5*ROW(A20) + 6) -> 0 | M87: =INDEX('Feed imports and diets'!$Z:$Z, 5*ROW(A20) + 7) -> 0
H88: =INDEX('Feed imports and diets'!$T:$T, 5*ROW(A20)+8) -> 0 | I88: =INDEX('Feed imports and diets'!$Z:$Z, 5*ROW(A21) + 3) -> 0 | J88: =INDEX('Feed imports and diets'!$Z:$Z, 5*ROW(A21) + 4) -> 0 | K88: =INDEX('Feed imports and diets'!$Z:$Z, 5*ROW(A21) + 5) -> 0 | L88: =INDEX('Feed imports and diets'!$Z:$Z, 5*ROW(A21) + 6) -> 0 | M88: =INDEX('Feed imports and diets'!$Z:$Z, 5*ROW(A21) + 7) -> 0
H89: =INDEX('Feed imports and diets'!$T:$T, 5*ROW(A21)+8) -> 0 | I89: =INDEX('Feed imports and diets'!$Z:$Z, 5*ROW(A22) + 3) -> 0 | J89: =INDEX('Feed imports and diets'!$Z:$Z, 5*ROW(A22) + 4) -> 0 | K89: =INDEX('Feed imports and diets'!$Z:$Z, 5*ROW(A22) + 5) -> 0 | L89: =INDEX('Feed imports and diets'!$Z:$Z, 5*ROW(A22) + 6) -> 0 | M89: =INDEX('Feed imports and diets'!$Z:$Z, 5*ROW(A22) + 7) -> 0
H90: =INDEX('Feed imports and diets'!$T:$T, 5*ROW(A22)+8) -> 0 | I90: =INDEX('Feed imports and diets'!$Z:$Z, 5*ROW(A23) + 3) -> 0 | J90: =INDEX('Feed imports and diets'!$Z:$Z, 5*ROW(A23) + 4) -> 0 | K90: =INDEX('Feed imports and diets'!$Z:$Z, 5*ROW(A23) + 5) -> 0 | L90: =INDEX('Feed imports and diets'!$Z:$Z, 5*ROW(A23) + 6) -> 0 | M90: =INDEX('Feed imports and diets'!$Z:$Z, 5*ROW(A23) + 7) -> 0

Sheet CFTHelper_FEED2HERD (hidden)
A1: Correcting DM of home-grown feeds:
A2: When using the feed to herd option, the DM of homegrown feed needs to be corrected for the enteric and manure calculations to be accurate. | N2: NO TOUCH THIS TABLE OR IT WILL BREAK
A3: AUTO CFT FEEDS WILL NEED TO BE CHECKED | N3: Short name | O3: Feed item | P3: DM %
A4: Feed | B4: CFT feed | C4: Tons | D4: Reported DM | E4: CFT DM | F4: New tons as-fed | G4: % of feed to herd | H4: % of feed to herd | N4: Alfalfa hay | O4: Alfalfa hay | P4: 0.851 | R4: CFT DM info in hidden columns KLM
A5: Autofill | B5: Autofill | C5: Autofill | D5: Autofill | E5: Autofill | F5: Autofill | G5: Use this: | H5: DM basis for checks | K5: Feed to herd (1) instructions | N5: Alfalfa silage | O5: Lucerne / alfalfa silage | P5: 0.403
A6: Homegrown feeds: | B6: CHECK THIS COL: | K6: Feed to herd (1) is used to determine the % of each ingredient in the whole-farm ration. For example, corn silage is 65% of the diet for the whole herd, 10% is soybean meal, and 25% is grass haylage. | N6: Bakery | O6: Organic household waste | P6: 0.25
A7: =CFTHelper_CROPY!A6 -> 0 | B7: =IF(ISBLANK(A7), "Feed item", _xlfn.XLOOKUP("*"&A7&"*",Table2[Short name],Table2[Feed item],"Manual input needed",2, 1)) -> Manual input needed | C7: =CFTHelper_CROPY!G6 -> 0 | D7: =CFTHelper_CROPY!H6 ->  | E7: =VLOOKUP(B7, O:P, 2, FALSE) ->  | F7: =IFERROR(C7*D7/E7, 0) -> 0 | G7: =F7/SUM($F$6:$F$58) ->  | H7: =(C7*D7)/SUMPRODUCT($C$7:$C$44,$D$7:$D$44) ->  | N7: Barley | O7: Barley | P7: 0.869
A8: =CFTHelper_CROPY!A7 -> 0 | B8: =IF(ISBLANK(A8), "Feed item", _xlfn.XLOOKUP("*"&A8&"*",Table2[Short name],Table2[Feed item],"Manual input needed",2, 1)) -> Manual input needed | C8: =CFTHelper_CROPY!G7 -> 0 | D8: =CFTHelper_CROPY!H7 ->  | F8: 0 | G8: =F8/SUM($F$6:$F$58) ->  | N8: Beans | O8: Beans | P8: 0.862
A9: =CFTHelper_CROPY!A8 -> 0 | B9: =IF(ISBLANK(A9), "Feed item", _xlfn.XLOOKUP("*"&A9&"*",Table2[Short name],Table2[Feed item],"Manual input needed",2, 1)) -> Manual input needed | C9: =CFTHelper_CROPY!G9 -> 0 | D9: =CFTHelper_CROPY!H8 ->  | F9: 0 | N9: Brans | O9: Brans | P9: 0.883
A10: =CFTHelper_CROPY!A9 -> 0 | B10: =IF(ISBLANK(A10), "Feed item", _xlfn.XLOOKUP("*"&A10&"*",Table2[Short name],Table2[Feed item],"Manual input needed",2, 1)) -> Manual input needed | C10: =CFTHelper_CROPY!G11 -> 0 | D10: =CFTHelper_CROPY!H9 ->  | F10: 0 | N10: Brewer's grain | O10: Brewer's grain | P10: 0.903
A11: =CFTHelper_CROPY!A10 -> 0 | B11: =IF(ISBLANK(A11), "Feed item", _xlfn.XLOOKUP("*"&A11&"*",Table2[Short name],Table2[Feed item],"Manual input needed",2, 1)) -> Manual input needed | C11: =CFTHelper_CROPY!G12 -> 0 | D11: =CFTHelper_CROPY!H10 ->  | F11: 0 | N11: Bypass fat | O11: Bypass fat | P11: 0.994
A12: =CFTHelper_CROPY!A11 -> 0 | B12: =IF(ISBLANK(A12), "Feed item", _xlfn.XLOOKUP("*"&A12&"*",Table2[Short name],Table2[Feed item],"Manual input needed",2, 1)) -> Manual input needed | C12: =CFTHelper_CROPY!G13 -> 0 | D12: =CFTHelper_CROPY!H11 ->  | F12: 0 | N12: Calf | O12: Default Compound feed | P12: 0.9
A13: =CFTHelper_CROPY!A12 -> 0 | B13: =IF(ISBLANK(A13), "Feed item", _xlfn.XLOOKUP("*"&A13&"*",Table2[Short name],Table2[Feed item],"Manual input needed",2, 1)) -> Manual input needed | C13: =CFTHelper_CROPY!G14 -> 0 | D13: =CFTHelper_CROPY!H12 ->  | F13: 0 | N13: Canola | O13: Rapeseed cake/meal | P13: 0.872
A14: =CFTHelper_CROPY!A13 -> 0 | B14: =IF(ISBLANK(A14), "Feed item", _xlfn.XLOOKUP("*"&A14&"*",Table2[Short name],Table2[Feed item],"Manual input needed",2, 1)) -> Manual input needed | C14: =CFTHelper_CROPY!G15 -> 0 | D14: =CFTHelper_CROPY!H13 ->  | F14: 0 | N14: Cassava/tapioca | O14: Cassava/tapioca | P14: 0.88
A15: =CFTHelper_CROPY!A14 -> 0 | B15: =IF(ISBLANK(A15), "Feed item", _xlfn.XLOOKUP("*"&A15&"*",Table2[Short name],Table2[Feed item],"Manual input needed",2, 1)) -> Manual input needed | C15: =CFTHelper_CROPY!G16 -> 0 | D15: =CFTHelper_CROPY!H14 ->  | F15: 0 | N15: Citrus pulp | O15: Citrus pulp | P15: 0.908
A16: =CFTHelper_CROPY!A15 -> 0 | B16: =IF(ISBLANK(A16), "Feed item", _xlfn.XLOOKUP("*"&A16&"*",Table2[Short name],Table2[Feed item],"Manual input needed",2, 1)) -> Manual input needed | C16: =CFTHelper_CROPY!G17 -> 0 | D16: =CFTHelper_CROPY!H15 ->  | F16: 0 | N16: Clover hay | O16: Clover hay | P16: 0.83
A17: =CFTHelper_CROPY!A16 -> 0 | B17: =IF(ISBLANK(A17), "Feed item", _xlfn.XLOOKUP("*"&A17&"*",Table2[Short name],Table2[Feed item],"Manual input needed",2, 1)) -> Manual input needed | C17: =CFTHelper_CROPY!G18 -> 0 | D17: =CFTHelper_CROPY!H16 ->  | F17: 0 | N17: Corn gluten feed | O17: Maize / corn gluten feed | P17: 0.892
A18: =CFTHelper_CROPY!A17 -> 0 | B18: =IF(ISBLANK(A18), "Feed item", _xlfn.XLOOKUP("*"&A18&"*",Table2[Short name],Table2[Feed item],"Manual input needed",2, 1)) -> Manual input needed | C18: =CFTHelper_CROPY!G19 -> 0 | D18: =CFTHelper_CROPY!H17 ->  | F18: 0 | K18: This sheet will autofill with information from the Crop Production and Feed Imports. Make sure to double check that the CFT feed makes sense and that all the information is correct. This sheet is for CFT ONLY. | N18: Corn grain | O18: Maize / corn grain | P18: 0.872
A19: =CFTHelper_CROPY!A18 -> 0 | B19: =IF(ISBLANK(A19), "Feed item", _xlfn.XLOOKUP("*"&A19&"*",Table2[Short name],Table2[Feed item],"Manual input needed",2, 1)) -> Manual input needed | C19: =CFTHelper_CROPY!G20 -> 0 | D19: =CFTHelper_CROPY!H18 ->  | F19: 0 | N19: Corn silage | O19: Maize silage | P19: 0.283
A20: =CFTHelper_CROPY!A19 -> 0 | B20: =IF(ISBLANK(A20), "Feed item", _xlfn.XLOOKUP("*"&A20&"*",Table2[Short name],Table2[Feed item],"Manual input needed",2, 1)) -> Manual input needed | C20: =CFTHelper_CROPY!G21 -> 0 | D20: =CFTHelper_CROPY!H19 ->  | F20: 0 | N20: Cottonseed | O20: Cottonseed cake/meal | P20: 0.941
A21: =CFTHelper_CROPY!A20 -> 0 | B21: =IF(ISBLANK(A21), "Feed item", _xlfn.XLOOKUP("*"&A21&"*",Table2[Short name],Table2[Feed item],"Manual input needed",2, 1)) -> Manual input needed | C21: =CFTHelper_CROPY!G22 -> 0 | D21: =CFTHelper_CROPY!H20 ->  | F21: 0 | N21: Dried distillers grains / Draff | O21: Dried distillers grains / Draff | P21: 0.901
A22: =CFTHelper_CROPY!A21 -> 0 | B22: =IF(ISBLANK(A22), "Feed item", _xlfn.XLOOKUP("*"&A22&"*",Table2[Short name],Table2[Feed item],"Manual input needed",2, 1)) -> Manual input needed | C22: =CFTHelper_CROPY!G23 -> 0 | D22: =CFTHelper_CROPY!H21 ->  | F22: 0 | N22: Fodder beet | O22: Fodder beet | P22: 0.143
A23: =CFTHelper_CROPY!A22 -> 0 | B23: =IF(ISBLANK(A23), "Feed item", _xlfn.XLOOKUP("*"&A23&"*",Table2[Short name],Table2[Feed item],"Manual input needed",2, 1)) -> Manual input needed | C23: =CFTHelper_CROPY!G24 -> 0 | D23: =CFTHelper_CROPY!H22 ->  | F23: 0 | N23: Fresh | O23: High Compound feed | P23: 0.9
A24: Imported feeds: | N24: Fresh grass | O24: Grass fresh (extensive) | P24: 0.16
A25: ='Feed imports and diets'!D18 -> 0 | B25: =IF(ISBLANK(A25), "Feed item", _xlfn.XLOOKUP("*"&A25&"*",Table2[Short name],Table2[Feed item],"Manual input needed",2, 1)) -> Manual input needed | C25: ='Feed imports and diets'!E13 -> 0 | D25: ='Feed imports and diets'!F13 -> 0 | E25: =VLOOKUP(B25, O:P, 2, FALSE) ->  | F25: =IFERROR(C25*D25/E25, 0) -> 0 | G25: =F25/SUM($F$6:$F$58) ->  | N25: Gras silage- off farm | O25: Grass silage - off farm | P25: 0.472
A26: ='Feed imports and diets'!D13 -> 0 | B26: =IF(ISBLANK(A26), "Feed item", _xlfn.XLOOKUP("*"&A26&"*",Table2[Short name],Table2[Feed item],"Manual input needed",2, 1)) -> Manual input needed | C26: ='Feed imports and diets'!E18 -> 0 | D26: ='Feed imports and diets'!F18 -> 0 | F26: 0 | N26: Grass hay | O26: Grass hay - on farm | P26: 0.845
A27: ='Feed imports and diets'!D23 -> 0 | B27: =IF(ISBLANK(A27), "Feed item", _xlfn.XLOOKUP("*"&A27&"*",Table2[Short name],Table2[Feed item],"Manual input needed",2, 1)) -> Manual input needed | C27: ='Feed imports and diets'!E23 -> 0 | D27: ='Feed imports and diets'!F23 -> 0 | F27: 0 | N27: Grass hay | O27: Grass hay | P27: 0.845
A28: ='Feed imports and diets'!D28 -> 0 | B28: =IF(ISBLANK(A28), "Feed item", _xlfn.XLOOKUP("*"&A28&"*",Table2[Short name],Table2[Feed item],"Manual input needed",2, 1)) -> Manual input needed | C28: ='Feed imports and diets'!E28 -> 0 | D28: ='Feed imports and diets'!F28 -> 0 | F28: 0 | N28: Grass hay- off farm | O28: Grass hay - off farm | P28: 0.845
A29: ='Feed imports and diets'!D33 -> 0 | B29: =IF(ISBLANK(A29), "Feed item", _xlfn.XLOOKUP("*"&A29&"*",Table2[Short name],Table2[Feed item],"Manual input needed",2, 1)) -> Manual input needed | C29: ='Feed imports and diets'!E33 -> 0 | D29: ='Feed imports and diets'!F33 -> 0 | F29: 0 | N29: Grass silage | O29: Grass fresh managed - on farm | P29: 0.16
A30: ='Feed imports and diets'!D38 -> 0 | B30: =IF(ISBLANK(A30), "Feed item", _xlfn.XLOOKUP("*"&A30&"*",Table2[Short name],Table2[Feed item],"Manual input needed",2, 1)) -> Manual input needed | C30: ='Feed imports and diets'!E38 -> 0 | D30: ='Feed imports and diets'!F38 -> 0 | F30: 0 | N30: Grass silage | O30: Grass silage - on farm | P30: 0.472
A31: ='Feed imports and diets'!D43 -> 0 | B31: =IF(ISBLANK(A31), "Feed item", _xlfn.XLOOKUP("*"&A31&"*",Table2[Short name],Table2[Feed item],"Manual input needed",2, 1)) -> Manual input needed | C31: ='Feed imports and diets'!E43 -> 0 | D31: ='Feed imports and diets'!F43 -> 0 | F31: 0 | N31: Grass silage- off farm | O31: Grass fresh managed - off farm | P31: 0.16
A32: ='Feed imports and diets'!D48 -> 0 | B32: =IF(ISBLANK(A32), "Feed item", _xlfn.XLOOKUP("*"&A32&"*",Table2[Short name],Table2[Feed item],"Manual input needed",2, 1)) -> Manual input needed | C32: ='Feed imports and diets'!E48 -> 0 | D32: ='Feed imports and diets'!F48 -> 0 | F32: 0 | N32: High | O32: High Compound feed | P32: 0.9
A33: ='Feed imports and diets'!D53 -> 0 | B33: =IF(ISBLANK(A33), "Feed item", _xlfn.XLOOKUP("*"&A33&"*",Table2[Short name],Table2[Feed item],"Manual input needed",2, 1)) -> Manual input needed | C33: ='Feed imports and diets'!E53 -> 0 | D33: ='Feed imports and diets'!F53 -> 0 | F33: 0 | N33: Lactating | O33: High Compound feed | P33: 0.9
A34: ='Feed imports and diets'!D58 -> 0 | B34: =IF(ISBLANK(A34), "Feed item", _xlfn.XLOOKUP("*"&A34&"*",Table2[Short name],Table2[Feed item],"Manual input needed",2, 1)) -> Manual input needed | C34: ='Feed imports and diets'!E58 -> 0 | D34: ='Feed imports and diets'!F58 -> 0 | F34: 0 | N34: Low | O34: Default Compound feed | P34: 0.9
A35: ='Feed imports and diets'!D63 -> 0 | B35: =IF(ISBLANK(A35), "Feed item", _xlfn.XLOOKUP("*"&A35&"*",Table2[Short name],Table2[Feed item],"Manual input needed",2, 1)) -> Manual input needed | C35: ='Feed imports and diets'!E63 -> 0 | D35: ='Feed imports and diets'!F63 -> 0 | F35: 0 | N35: Low compound feed | O35: Low Compound feed | P35: 0.9
A36: ='Feed imports and diets'!D68 -> 0 | B36: =IF(ISBLANK(A36), "Feed item", _xlfn.XLOOKUP("*"&A36&"*",Table2[Short name],Table2[Feed item],"Manual input needed",2, 1)) -> Manual input needed | C36: ='Feed imports and diets'!E68 -> 0 | D36: ='Feed imports and diets'!F68 -> 0 | F36: 0 | N36: Milk replacer | O36: Milk powder | P36: 0.963
A37: ='Feed imports and diets'!D73 -> 0 | B37: =IF(ISBLANK(A37), "Feed item", _xlfn.XLOOKUP("*"&A37&"*",Table2[Short name],Table2[Feed item],"Manual input needed",2, 1)) -> Manual input needed | C37: ='Feed imports and diets'!E73 -> 0 | D37: ='Feed imports and diets'!F73 -> 0 | F37: 0 | N37: Mineral | O37: Mineral mix | P37: 0.95
A38: ='Feed imports and diets'!D78 -> 0 | B38: =IF(ISBLANK(A38), "Feed item", _xlfn.XLOOKUP("*"&A38&"*",Table2[Short name],Table2[Feed item],"Manual input needed",2, 1)) -> Manual input needed | C38: ='Feed imports and diets'!E78 -> 0 | D38: ='Feed imports and diets'!F78 -> 0 | F38: 0 | N38: Molasses | O38: Molasses | P38: 0.723
A39: ='Feed imports and diets'!D83 -> 0 | B39: =IF(ISBLANK(A39), "Feed item", _xlfn.XLOOKUP("*"&A39&"*",Table2[Short name],Table2[Feed item],"Manual input needed",2, 1)) -> Manual input needed | C39: ='Feed imports and diets'!E83 -> 0 | D39: ='Feed imports and diets'!F83 -> 0 | F39: 0 | N39: Oat | O39: Oats | P39: 0.889
A40: ='Feed imports and diets'!D88 -> 0 | B40: =IF(ISBLANK(A40), "Feed item", _xlfn.XLOOKUP("*"&A40&"*",Table2[Short name],Table2[Feed item],"Manual input needed",2, 1)) -> Manual input needed | C40: ='Feed imports and diets'!E88 -> 0 | D40: ='Feed imports and diets'!F88 -> 0 | F40: 0 | N40: Oat hay | O40: Oat hay | P40: 0.281
A41: ='Feed imports and diets'!D93 -> 0 | B41: =IF(ISBLANK(A41), "Feed item", _xlfn.XLOOKUP("*"&A41&"*",Table2[Short name],Table2[Feed item],"Manual input needed",2, 1)) -> Manual input needed | C41: ='Feed imports and diets'!E93 -> 0 | D41: ='Feed imports and diets'!F93 -> 0 | F41: 0 | N41: Other cereals | O41: Other cereals | P41: 0.877
A42: ='Feed imports and diets'!D98 -> 0 | B42: =IF(ISBLANK(A42), "Feed item", _xlfn.XLOOKUP("*"&A42&"*",Table2[Short name],Table2[Feed item],"Manual input needed",2, 1)) -> Manual input needed | C42: ='Feed imports and diets'!E98 -> 0 | D42: ='Feed imports and diets'!F98 -> 0 | F42: 0 | N42: Other crop residues | O42: Other crop residues | P42: 0.115
A43: ='Feed imports and diets'!D103 -> 0 | B43: =IF(ISBLANK(A43), "Feed item", _xlfn.XLOOKUP("*"&A43&"*",Table2[Short name],Table2[Feed item],"Manual input needed",2, 1)) -> Manual input needed | C43: ='Feed imports and diets'!E103 -> 0 | D43: ='Feed imports and diets'!F103 -> 0 | F43: 0 | N43: Other feed | O43: Other feed | P43: 0.73
A44: ='Feed imports and diets'!D108 -> 0 | B44: =IF(ISBLANK(A44), "Feed item", _xlfn.XLOOKUP("*"&A44&"*",Table2[Short name],Table2[Feed item],"Manual input needed",2, 1)) -> Manual input needed | C44: ='Feed imports and diets'!E108 -> 0 | D44: ='Feed imports and diets'!F108 -> 0 | F44: 0 | N44: Other fodder | O44: Other fodder | P44: 0.387
N45: Other oil cake/meal | O45: Other oil cake/meal | P45: 0.891
A46: Compound Feed Note | C46: Miles | D46: Tons | N46: Other pulses | O46: Other pulses | P46: 0.871
A47: If CP close to | D47: =SUMIF($M$25:$M$44,C47,$C$25:$C$44) -> 0 | N47: Other root crops | O47: Other root crops | P47: 0.441
A48: 15.8 | B48: Default | D48: =SUMIF($M$25:$M$44,C48,$C$25:$C$44) -> 0 | N48: Palm kernel meal | O48: Palm kernel cake/meal | P48: 0.88
A49: 34.3 | B49: Hi | D49: 0 | N49: Peas | O49: Peas | P49: 0.867
A50: 21.9 | B50: Low | D50: 0 | N50: Potato starch | O50: Potato starch | P50: 0.877
D51: 0 | N51: Rice | O51: Rice | P51: 0.886
D52: 0 | N52: Rye | O52: Rye | P52: 0.872
D53: 0 | N53: Sorghum silage | O53: Sorghum silage | P53: 0.83
D54: 0 | N54: Sorghum silage | O54: Sorghum silage | P54: 0.882
N55: Soy hull | O55: Soy hull | P55: 0.883
N56: Soybean | O56: Soybean | P56: 0.885
N57: Soybean meal | O57: Soybean cake/meal | P57: 0.874
N58: Straw | O58: Straw | P58: 0.902
N59: Sugarbeet | O59: Sugarbeet pulp | P59: 0.907
N60: Sugarbeet / sugarcane molasses | O60: Sugarbeet / sugarcane molasses | P60: 0.723
N61: Sunflower meal | O61: Sunflower cake/meal | P61: 0.89
N62: Sweet potato | O62: Sweet potato | P62: 0.3
N63: Vegetable residues | O63: Vegetable residues | P63: 0.061
N64: Wheat | O64: Wheat | P64: 0.868
N65: Whey | O65: Organic household waste | P65: 0.25
N66: Whey powder | O66: Whey powder | P66: 0.98

Sheet Feed book values (hidden)
A1: Crop | B1: DM | C1: CP | D1: P | E1: K | F1: https://fdc.nal.usda.gov/help#bkmk 2
A2: Alfalfa Meal | B2: 0.903 | C2: 0.192 | D2: 0.0028 | E2: 0.0237 | G2: 100
A3: Alfalfa Seed | B3: 0.072 | C3: 0.0399 | D3: 0.0007 | E3: 0.0008
A4: Alimet | B4: 0.98 | C4: 0 | D4: 0 | E4: 0
A5: Amino Plus | B5: 0.88 | C5: 0.512 | D5: 0.0069 | E5: 0.0236
A6: Aminoplus CNY | B6: 0.877 | C6: 0.5 | D6: 0.0075 | E6: 0.025
A7: Ammonium chloride | B7: 0.98 | C7: 0.239 | D7: 0 | E7: 0
A8: Amplisource Max Candy Meal | B8: 0.916 | C8: 0.155 | D8: 0.0045 | E8: 0.0127
A9: Apple Pomace (dried) | B9: 0.912 | C9: 0.047 | D9: 0.0014 | E9: 0.0019
A10: Apple Pomace (fresh) | B10: 0.208 | C10: 0.068 | D10: 0.0011 | E10: 0.0068 | F10: Average | G10: % DM | H10: CP(%DM) | I10: P (%DM) | J10: K(%DM)
A11: Bakery Meal | B11: 0.847 | C11: 0.125 | D11: 0.0036 | E11: 0.0042 | G11: =AVERAGE(B10:B11) -> 0.5275 | H11: =AVERAGE(C10:C11) -> 0.0965 | I11: =AVERAGE(D10:D11) -> 0.00235 | J11: =AVERAGE(E10:E11) -> 0.0055
A12: Barley | B12: 0.88 | C12: 0.125 | D12: 0.0046 | E12: 0.0052
A13: Barley Hay | B13: 0.9 | C13: 0.0919 | D13: 0.0028 | E13: 0.0184
A14: Barley Silage | B14: 0.45 | C14: 0.115 | D14: 0.0031 | E14: 0.0029
A15: Beet Pulp | B15: 0.883 | C15: 0.1 | D15: 0.0009 | E15: 0.0096
A16: Beets | B16: 0.118 | C16: 0.143 | D16: 0.0029 | E16: 0.029
A17: Bergafat | B17: 0.98 | C17: 0 | D17: 0 | E17: 0
A18: Blood Meal | B18: 0.902 | C18: 0.955 | D18: 0.003 | E18: 0.0033
A19: BNI Elite Calf Starter GoldStar | B19: 0.879 | C19: 0.22 | D19: 0.0069 | E19: 0.0114
A20: BNI Elite Calf Starter RD | B20: 0.8814 | C20: 0.2167 | D20: 0.0063 | E20: 0.0135
A21: BNI Elite Calf Starter RD Repmix PI | B21: 0.8929 | C21: 0.2534 | D21: 0.0074 | E21: 0.0145
A22: Bread | B22: 0.683 | C22: 0.15 | D22: 0.0014 | E22: 0.0023 | F22: N content for bedding = | G22: =C22/6.25 -> 0.024
A23: Butternut Squash | B23: 0.15 | C23: 0.0667 | D23: 0.0022 | E23: 0.0267 | F23: N content for bedding = | G23: 0.77
A24: Cabbage | B24: 0.081 | C24: 0.1185 | D24: 0.0033 | E24: 0.0256
A25: Calcium salts | B25: 0.98 | C25: 0 | D25: 0 | E25: 0
A26: Calcium sulfate | B26: 0.98 | C26: 0 | D26: 0 | E26: 0
A27: Candy Meal | B27: 0.89 | C27: 0.119 | D27: 0.003 | E27: 0.0118
A28: Cargill Calf Grain | B28: =(AVERAGE(89.7,89))/100 -> 0.8935 | C28: =(AVERAGE(24.6,18))/100 -> 0.213 | D28: =(AVERAGE(0.81,0.75))/100 -> 0.0078 | E28: =(AVERAGE(1.32,1.1))/100 -> 0.0121
A29: Cargill Calf Stater | B29: 0.9 | C29: 0.21 | D29: 0.0068 | E29: 0.0112
A30: Cargill Grower | B30: 0.9 | C30: 0.1825 | D30: 0.0066 | E30: 0.0108
A31: Cayuga Milk Ingredients | B31: 0.0709 | C31: 0.03 | D31: 0.008 | E31: 0.025
A32: Cereal | B32: 0.885 | C32: 0.091 | D32: 0.0029 | E32: 0.0033
A33: Chobani | B33: 0.046 | C33: 0.245 | D33: 0.019 | E33: 0.0396
A34: Chocolate | B34: 0.952 | C34: 0.119 | D34: 0.003 | E34: 0.0118
A35: Chromium propionate .04% | B35: 0.95 | C35: 0.0675 | D35: 0.0013 | E35: 0.0044
A36: Citrus Pulp | B36: 0.8857 | C36: 0.0734 | D36: 0.001 | E36: 0.0107
A37: Clover Pasture | B37: 0.2 | C37: 0.28 | D37: 0.0036 | E37: 0.0273
A38: Clover Silage | B38: 0.4 | C38: 0.19 | D38: 0.003 | E38: 0.0242
A39: CMI Milk Replacer | B39: 0.97 | C39: 0.24 | D39: 0.007 | E39: 0
A40: CMI Skim Milk Powder | B40: 0.92 | C40: 0.22 | D40: 0.005 | E40: 0.009
A41: CNY Calf Grain | B41: 0.879 | C41: 0.22 | D41: 0.0069 | E41: 0.0114
A42: CNY Calf Pellets | B42: 0.9 | C42: 0.232 | D42: 0.0073 | E42: 0.0129
A43: Colostrum Replacer | B43: 0.92 | C43: 0.22 | D43: 0.005 | E43: 0.009
A44: Cookies | B44: 0.901 | C44: 0.097 | D44: 0.0029 | E44: 0.0046
A45: Corn Gluten Feed | B45: 0.8965 | C45: 0.2533 | D45: 0.0139 | E45: 0.014
A46: Corn Gluten Meal | B46: 0.9158 | C46: 0.655 | D46: 0.0056 | E46: 0.003
A47: Corn Grain | B47: 0.88 | C47: 0.09 | D47: 0.003 | E47: 0.0042 | F47: Usually solvent extracted
A48: Corn HM Grain | B48: 0.73 | C48: 0.0904 | D48: 0.003 | E48: 0.0032 | G48: =B48*0.6 -> 0.438 | H48: =C48*0.6 -> 0.05424 | I48: =D48*0.6 -> 0.0018 | J48: =E48*0.6 -> 0.00192
A49: Corn HM Ear | B49: 0.73 | C49: 0.0808 | D49: 0.003 | E49: 0.0032
A50: Corn Hominy | B50: 0.884 | C50: 0.11 | D50: 0.0035 | E50: 0.0054
A51: Corn Shelled | B51: 0.881 | C51: 0.094 | D51: 0.003 | E51: 0.0042
A52: Corn Silage | B52: 0.325 | C52: 0.0875 | D52: 0.0026 | E52: 0.0109
A53: Cottonseed Meal | B53: 0.905 | C53: 0.449 | D53: 0.0115 | E53: 0.0164
A54: Cottonseed with Hulls | B54: 0.89 | C54: 0.062 | D54: 0.0012 | E54: 0.0116
A55: Cottonseed with Lint | B55: 0.901 | C55: 0.235 | D55: 0.006 | E55: 0.0113
A56: Dry Brewer's Grain | B56: 0.9265 | C56: 0.265 | D56: 0.007 | E56: 0.0031
A57: Dry Distiller's Grain | B57: 0.91 | C57: 0.304 | D57: 0.0096 | E57: 0.0104 | G57: =B57*0.4 -> 0.364 | H57: =C57*0.4 -> 0.1216 | I57: =D57*0.4 -> 0.00384 | J57: =E57*0.4 -> 0.00416
A58: Dry Whey | B58: 0.93 | C58: 0.179 | D58: 0.0118 | E58: 0.0316
A59: EnergII/Energ2/Energy 2 | B59: 1 | C59: 0 | D59: 0 | E59: 0 | G59: =SUM(G48:G58) -> 0.802 | H59: =SUM(H48:H58) -> 0.17584 | I59: =SUM(I48:I58) -> 0.00564 | J59: =SUM(J48:J58) -> 0.00608
A60: Expelled | B60: 0.95 | C60: 0.378 | D60: 0.0109 | E60: 0.0126
A61: Fage | B61: 0.053 | C61: 0.04 | D61: 0.0068 | E61: 0.026
A62: Fish Meal | B62: 0.912 | C62: 0.685 | D62: 0.0305 | E62: 0.0074
A63: Grass Hay | B63: 0.89 | C63: 0.115 | D63: 0.0032 | E63: 0.0229
A64: Grass Pasture | B64: 0.24 | C64: 0.2 | D64: 0.0033 | E64: 0.026
A65: Grass Silage | B65: 0.375 | C65: 0.135 | D65: 0.0036 | E65: 0.0277
A66: Gypsum | B66: 0.95 | C66: 0 | D66: 0 | E66: 0
A67: Hydrolyzed Feather Meal | B67: 0.933 | C67: 0.92 | D67: 0.005 | E67: 0.0033
A68: Integral | B68: 0.98 | C68: 0 | D68: 0 | E68: 0
A69: Kraft condensed | B69: 0.21 | C69: 0.07 | D69: 0.0009 | E69: 0.021
A70: Land O' Lakes (LoL) Milk Replacer | B70: 0.85 | C70: 0.24 | D70: 0.008 | E70: 0.01
A71: Legume Hay | B71: 0.9 | C71: 0.21 | D71: 0.0031 | E71: 0.0265
A72: Legume Pasture | B72: 0.205 | C72: 0.26 | D72: 0.0036 | E72: 0.0273
A73: Legume Silage | B73: 0.35 | C73: 0.21 | D73: 0.0029 | E73: 0.026
A74: Leuvecell yeast 10 gm | B74: 0.95 | C74: 0.054 | D74: 0.0011 | E74: 0.0036
A75: Limestone | B75: 0.99 | C75: 0 | D75: 0 | E75: 0
A76: Linseed Meal | B76: 0.88 | C76: 0.33 | D76: 0.0075 | E76: 0.0119
A77: Lupins | B77: 0.938 | C77: 0.342 | D77: 0.0041 | E77: 0.0087
A78: Magnesium oxide | B78: 0.98 | C78: 0 | D78: 0 | E78: 0
A79: Magnesium sulfate | B79: 0.95 | C79: 0 | D79: 0 | E79: 0
A80: Malt Sprouts | B80: 0.905 | C80: 0.201 | D80: 0.0051 | E80: 0.0119
A81: Meat and Bone Meal | B81: 0.94 | C81: 0.542 | D81: 0.0473 | E81: 0.0102
A82: metAAtein | B82: 0.922 | C82: 0.805 | D82: 0.01 | E82: 0.005
A83: Milk replacer | B83: 0.92 | C83: 0.22 | D83: 0.005 | E83: 0.009
A84: Minerals | B84: 0.98 | C84: 0 | D84: 0 | E84: 0
A85: Mixed Mostly Grass Hay | B85: 0.87 | C85: 0.13 | D85: 0.0034 | E85: 0.0336
A86: Mixed Mostly Grass Pasture | B86: 0.22 | C86: 0.2 | D86: 0.0031 | E86: 0.0259
A87: Mixed Mostly Grass Silage | B87: 0.4 | C87: 0.13 | D87: 0.0034 | E87: 0.0336
A88: Mixed Mostly Legume Hay | B88: 0.87 | C88: 0.18 | D88: 0.0032 | E88: 0.0386
A89: Mixed Mostly Legume Pasture | B89: 0.21 | C89: 0.26 | D89: 0.0031 | E89: 0.0259
A90: Mixed Mostly Legume Silage | B90: 0.4 | C90: 0.18 | D90: 0.0032 | E90: 0.0386
A91: Molasses | B91: 0.743 | C91: 0.058 | D91: 0.001 | E91: 0.0401
A92: Nurisol Feed Supplement | B92: 0.97 | C92: 0 | D92: 0 | E92: 0
A93: Nutritek | B93: 0.89 | C93: 0.18 | D93: 0.0076 | E93: 0.0336
A94: Oat Hay | B94: 0.91 | C94: 0.09 | D94: 0.0023 | E94: 0.0187
A95: Oat Straw | B95: 0.926 | C95: 0.04 | D95: 0.0013 | E95: 0.0165
A96: Oatlage | B96: 0.3237 | C96: 0.1245 | D96: 0.0034 | E96: 0.0266
A97: Oats | B97: 0.9155 | C97: 0.129 | D97: 0.0049 | E97: 0.0056
A98: Palmit 80 | B98: 0.99 | C98: 0 | D98: 0 | E98: 0
A99: Paper bedding | B99: 0.973 | C99: 0.0022 | D99: 0.0003 | E99: 0.0076
A100: Peanut Meal | B100: 0.923 | C100: 0.518 | D100: 0.0064 | E100: 0.0132
A101: Peas | B101: 0.128 | C101: 0.1405 | D101: 0.0023 | E101: 0.014
A102: Potato Meal | B102: 0.354 | C102: 0.105 | D102: 0.0029 | E102: 0.0104
A103: Pro Max | B103: 0.996 | C103: 0.457 | D103: 0.0068 | E103: 0.0228
A104: Pumpkins | B104: 0.093 | C104: 0.1616 | D104: 0.0039 | E104: 0.0278
A105: Rapp Calf Starter | B105: 0.8979 | C105: 0.2266 | D105: 0.0076 | E105: 0.0129
A106: Reashure choline | B106: 0.98 | C106: 0 | D106: 0 | E106: 0
A107: Rumensin 26400 | B107: 0.95 | C107: 0.0405 | D107: 0.0009 | E107: 0.0028
A108: Rye | B108: 0.88 | C108: 0.1092 | D108: 0.0036 | E108: 0.0052
A109: Ryegrass Hay | B109: 0.91 | C109: 0.1275 | D109: 0.0042 | E109: 0.0334
A110: Ryelage | B110: 0.35 | C110: =((21+14.7+9)/3)/100 -> 0.149 | D110: 0.0042 | E110: 0.0334
A111: Salt | B111: 0.996 | C111: 0 | D111: 0 | E111: 0
A112: Sand | B112: 0.99 | C112: 0 | D112: 0 | E112: 0
A113: Smartamine | B113: 0.995 | C113: 0.75 | D113: 0 | E113: 0
A114: Smartamine MI | B114: 0.98 | C114: 0.7653 | D114: 0 | E114: 0
A115: Snap Beans | B115: 0.12 | C115: 0.187 | D115: 0.005 | E115: 0.023
A116: Sodium bicarbonate | B116: 0.99 | C116: 0 | D116: 0 | E116: 0
A117: Solvent Extracted | B117: 0.88 | C117: 0.417 | D117: 0.0112 | E117: 0.0131
A118: Sorghum | B118: 0.87 | C118: 0.117 | D118: 0.0034 | E118: 0.0047
A119: Sorghum Silage | B119: 0.3 | C119: 0.094 | D119: 0.0022 | E119: 0.0172
A120: Soy 47.5 CNY | B120: 0.9 | C120: 0.525 | D120: 0.007 | E120: 0.024
A121: Soy Chlor | B121: 0.878 | C121: 0.2007 | D121: 0.004 | E121: 0.0071
A122: Soy plus | B122: 0.8909 | C122: 0.466 | D122: 0.0078 | E122: 0.0232
A123: Soy Plus CNY | B123: 0.883 | C123: 0.5047 | D123: 0.0068 | E123: 0.0236
A124: Soybean Heated | B124: 0.91 | C124: 0.43 | D124: 0.0064 | E124: 0.0199
A125: Soybean Hulls | B125: 0.91 | C125: 0.121 | D125: 0.0018 | E125: 0.0129
A126: Soybean Meal 44 | B126: 0.9 | C126: 0.49 | D126: 0.0071 | E126: 0.0222
A127: Soybean meal 47.5 Solvent | B127: 0.9 | C127: 0.515 | D127: 0.0071 | E127: 0.0236
A128: Soybean Meal 48 | B128: 0.9 | C128: 0.515 | D128: 0.0071 | E128: 0.0236
A129: Soybean Raw | B129: 0.9 | C129: 0.392 | D129: 0.006 | E129: 0.0199
A130: Soybean Whole | B130: 0.9 | C130: 0.4176 | D130: 0.0065 | E130: 0.0201
A131: Soyeban Meal Expeller | B131: 0.896 | C131: 0.463 | D131: 0.0066 | E131: 0.0212
A132: Spelt | B132: 0.9 | C132: 0.113 | D132: 0.0033 | E132: 0.0043
A133: Springer Pellet | B133: 0.907 | C133: 0.446 | D133: 0.0098 | E133: 0.0131
A134: Squash | B134: 0.06 | C134: 0.166 | D134: 0.0046 | E134: 0.03
A135: Sunflower Meal | B135: 0.922 | C135: 0.284 | D135: 0.01 | E135: 0.015 | F135: 1 | G135: 128
A136: Sunflower Whole | B136: 0.918 | C136: 0.192 | D136: 0.0051 | E136: 0.0106 | F136: 1 | G136: 2400
A137: Sweet Corn | B137: 0.35 | C137: 0.1 | D137: 0.0024 | E137: 0.0251
A138: Tallow | B138: 0.998 | F138: 1 | G138: 375
A139: Triticale | B139: 0.895 | C139: 0.13 | D139: 0.00358 | E139: 0.00332 | F139: 1 | G139: 440 | H139: 1 | I139: 33.5
A140: Triticale Silage | B140: 0.38 | C140: 0.135 | D140: 0.0036 | E140: 0.029
A141: Urea | B141: 0.99 | C141: 2.81 | D141: 0 | E141: 0
A142: Vegetable Oil | B142: 1
A143: Vitamin E | B143: 0.95 | C143: 0 | D143: 0 | E143: 0
A144: Wet Brewer's Grain | B144: 0.2451 | C144: 0.29 | D144: 0.0068 | E144: 0.0026
A145: Wet Distiller's Grain | B145: 0.323 | C145: 0.32 | D145: 0.0089 | E145: 0.0082
A146: Wet Whey | B146: 0.07 | C146: 0.142 | D146: 0.0071 | E146: 0.0275
A147: Wheat | B147: 0.89 | C147: 0.15 | D147: 0.0042 | E147: 0.0041
A148: Wheat Bran | B148: 0.891 | C148: 0.173 | D148: 0.0118 | E148: 0.0132
A149: Wheat Hay | B149: 0.904 | C149: 0.09 | D149: 0.0025 | E149: 0.0177
A150: Wheat Middlings | B150: 0.89 | C150: 0.184 | D150: 0.0124 | E150: 0.015
A151: Wheat Straw | B151: 0.92 | C151: 0.048 | D151: 0.001 | E151: 0.0155
A152: Wheatlage | B152: 0.33 | C152: 0.12 | D152: 0.0031 | E152: 0.0231
A153: Whey Acid | B153: 0.052 | C153: 0.0085 | D153: 0.0073 | E153: 0.0149
A154: XPC Yeast | B154: 0.89 | C154: 0.15 | D154: 0.0054 | E154: 0.0243
A155: Beet Pulp Dairy 1 | B155: 0.2407 | C155: 0.0957 | D155: 0.0011 | E155: 0.0065
A156: Reed Canary Grass | B156: 0.35 | C156: 0.15 | D156: 0.0024 | E156: 0.0291
A157: Reed Canary Grass | B157: 0.35 | C157: 0.15 | D157: 0.0024 | E157: 0.0291
A158: Sawdust | B158: 0.943 | C158: 0.006875 | D158: 0.0001 | E158: 0
A159: Shavings | B159: 0.943 | C159: 0.006875 | D159: 0.0001 | E159: 0 | F159: 1 yrd = 1,663.08 lbs

Sheet Fert. imports and applications
C5: Imports: fertilizer
C6: Purchased fertilizer | D6: Amount | F6: Units | G6: %N | H6: % P2O5 | I6: % K2O | J6: Distance transported/purchase location (one way)
M7: =IF(COUNTA(G7:I7)=0, "", IF(SUM(G7:I7)<=1, "Valid NPK", "Sum of NPK greater than 100%, please check")) ->  | N7: Comments
M8: =IF(COUNTA(G8:I8)=0, "", IF(SUM(G8:I8)<=1, "Valid NPK", "Sum of NPK greater than 100%, please check")) ->  | AD8: Fertilizer | AE8: Tons imported | AF8: Units | AG8: %N | AH8: %P205 | AI8: %K20 | AJ8: CONCAT
AD9: =C7 -> 0 | AE9: =IF(ISBLANK(C7), "No fertilizer", IF(ISBLANK(D7), "Missing tons of imports, please check", "Good")) -> No fertilizer | AF9: =IF(ISBLANK($C7), "No fertilizer", IF(ISBLANK(F7), "Missing fertilizer import units, please check", "Good")) -> No fertilizer | AG9: =IF(ISBLANK($C7), "No fertilizer", IF(ISBLANK(G7), "Missing %N, please check", "Good")) -> No fertilizer | AH9: =IF(ISBLANK($C7), "No fertilizer", IF(ISBLANK(G7), "Missing %P2O5, please check", "Good")) -> No fertilizer | AI9: =IF(ISBLANK($C7), "No fertilizer", IF(ISBLANK(H7), "Missing %K2O, please check", "Good")) -> No fertilizer | AJ9: =IF(SUMPRODUCT(--ISNUMBER(SEARCH("No fertilizer", AE9:AI9)))>0, "", IF(SUMPRODUCT(--ISNUMBER(SEARCH("missing", AE9:AI9)))>0, AD9 & ": " & _xlfn.TEXTJOIN(" , ", TRUE, _xlfn._xlws.FILTER(AE9:AI9, ISNUMBER(SEARCH("missing", AE9:AI9)))), "")) -> 
AD10: 0 | AE10: No fertilizer | AF10: No fertilizer | AG10: No fertilizer | AH10: No fertilizer | AI10: No fertilizer | AJ10: =IF(SUMPRODUCT(--ISNUMBER(SEARCH("No fertilizer", AE10:AI10)))>0, "", IF(SUMPRODUCT(--ISNUMBER(SEARCH("missing", AE10:AI10)))>0, AD10 & ": " & _xlfn.TEXTJOIN(" , ", TRUE, _xlfn._xlws.FILTER(AE10:AI10, ISNUMBER(SEARCH("missing", AE10:AI10)))), "")) -> 
AD11: 0 | AE11: No fertilizer | AF11: No fertilizer | AG11: No fertilizer | AH11: No fertilizer | AI11: No fertilizer | AJ11: =IF(SUMPRODUCT(--ISNUMBER(SEARCH("No fertilizer", AE11:AI11)))>0, "", IF(SUMPRODUCT(--ISNUMBER(SEARCH("missing", AE11:AI11)))>0, AD11 & ": " & _xlfn.TEXTJOIN(" , ", TRUE, _xlfn._xlws.FILTER(AE11:AI11, ISNUMBER(SEARCH("missing", AE11:AI11)))), "")) -> 
AD12: 0 | AE12: No fertilizer | AF12: No fertilizer | AG12: No fertilizer | AH12: No fertilizer | AI12: No fertilizer | AJ12: =IF(SUMPRODUCT(--ISNUMBER(SEARCH("No fertilizer", AE12:AI12)))>0, "", IF(SUMPRODUCT(--ISNUMBER(SEARCH("missing", AE12:AI12)))>0, AD12 & ": " & _xlfn.TEXTJOIN(" , ", TRUE, _xlfn._xlws.FILTER(AE12:AI12, ISNUMBER(SEARCH("missing", AE12:AI12)))), "")) -> 
AD13: 0 | AE13: No fertilizer | AF13: No fertilizer | AG13: No fertilizer | AH13: No fertilizer | AI13: No fertilizer | AJ13: =IF(SUMPRODUCT(--ISNUMBER(SEARCH("No fertilizer", AE13:AI13)))>0, "", IF(SUMPRODUCT(--ISNUMBER(SEARCH("missing", AE13:AI13)))>0, AD13 & ": " & _xlfn.TEXTJOIN(" , ", TRUE, _xlfn._xlws.FILTER(AE13:AI13, ISNUMBER(SEARCH("missing", AE13:AI13)))), "")) -> 
AD14: 0 | AE14: No fertilizer | AF14: No fertilizer | AG14: No fertilizer | AH14: No fertilizer | AI14: No fertilizer | AJ14: =IF(SUMPRODUCT(--ISNUMBER(SEARCH("No fertilizer", AE14:AI14)))>0, "", IF(SUMPRODUCT(--ISNUMBER(SEARCH("missing", AE14:AI14)))>0, AD14 & ": " & _xlfn.TEXTJOIN(" , ", TRUE, _xlfn._xlws.FILTER(AE14:AI14, ISNUMBER(SEARCH("missing", AE14:AI14)))), "")) -> 
AD15: 0 | AE15: No fertilizer | AF15: No fertilizer | AG15: No fertilizer | AH15: No fertilizer | AI15: No fertilizer | AJ15: =IF(SUMPRODUCT(--ISNUMBER(SEARCH("No fertilizer", AE15:AI15)))>0, "", IF(SUMPRODUCT(--ISNUMBER(SEARCH("missing", AE15:AI15)))>0, AD15 & ": " & _xlfn.TEXTJOIN(" , ", TRUE, _xlfn._xlws.FILTER(AE15:AI15, ISNUMBER(SEARCH("missing", AE15:AI15)))), "")) -> 
AD16: 0 | AE16: No fertilizer | AF16: No fertilizer | AG16: No fertilizer | AH16: No fertilizer | AI16: No fertilizer | AJ16: =IF(SUMPRODUCT(--ISNUMBER(SEARCH("No fertilizer", AE16:AI16)))>0, "", IF(SUMPRODUCT(--ISNUMBER(SEARCH("missing", AE16:AI16)))>0, AD16 & ": " & _xlfn.TEXTJOIN(" , ", TRUE, _xlfn._xlws.FILTER(AE16:AI16, ISNUMBER(SEARCH("missing", AE16:AI16)))), "")) -> 
AD17: 0 | AE17: No fertilizer | AF17: No fertilizer | AG17: No fertilizer | AH17: No fertilizer | AI17: No fertilizer | AJ17: =IF(SUMPRODUCT(--ISNUMBER(SEARCH("No fertilizer", AE17:AI17)))>0, "", IF(SUMPRODUCT(--ISNUMBER(SEARCH("missing", AE17:AI17)))>0, AD17 & ": " & _xlfn.TEXTJOIN(" , ", TRUE, _xlfn._xlws.FILTER(AE17:AI17, ISNUMBER(SEARCH("missing", AE17:AI17)))), "")) -> 
AD18: 0 | AE18: No fertilizer | AF18: No fertilizer | AG18: No fertilizer | AH18: No fertilizer | AI18: No fertilizer | AJ18: =IF(SUMPRODUCT(--ISNUMBER(SEARCH("No fertilizer", AE18:AI18)))>0, "", IF(SUMPRODUCT(--ISNUMBER(SEARCH("missing", AE18:AI18)))>0, AD18 & ": " & _xlfn.TEXTJOIN(" , ", TRUE, _xlfn._xlws.FILTER(AE18:AI18, ISNUMBER(SEARCH("missing", AE18:AI18)))), "")) -> 
AD19: 0 | AE19: No fertilizer | AF19: No fertilizer | AG19: No fertilizer | AH19: No fertilizer | AI19: No fertilizer | AJ19: =IF(SUMPRODUCT(--ISNUMBER(SEARCH("No fertilizer", AE19:AI19)))>0, "", IF(SUMPRODUCT(--ISNUMBER(SEARCH("missing", AE19:AI19)))>0, AD19 & ": " & _xlfn.TEXTJOIN(" , ", TRUE, _xlfn._xlws.FILTER(AE19:AI19, ISNUMBER(SEARCH("missing", AE19:AI19)))), "")) -> 
AD20: 0 | AE20: No fertilizer | AF20: No fertilizer | AG20: No fertilizer | AH20: No fertilizer | AI20: No fertilizer | AJ20: =IF(SUMPRODUCT(--ISNUMBER(SEARCH("No fertilizer", AE20:AI20)))>0, "", IF(SUMPRODUCT(--ISNUMBER(SEARCH("missing", AE20:AI20)))>0, AD20 & ": " & _xlfn.TEXTJOIN(" , ", TRUE, _xlfn._xlws.FILTER(AE20:AI20, ISNUMBER(SEARCH("missing", AE20:AI20)))), "")) -> 
AD21: 0 | AE21: No fertilizer | AF21: No fertilizer | AG21: No fertilizer | AH21: No fertilizer | AI21: No fertilizer | AJ21: =IF(SUMPRODUCT(--ISNUMBER(SEARCH("No fertilizer", AE21:AI21)))>0, "", IF(SUMPRODUCT(--ISNUMBER(SEARCH("missing", AE21:AI21)))>0, AD21 & ": " & _xlfn.TEXTJOIN(" , ", TRUE, _xlfn._xlws.FILTER(AE21:AI21, ISNUMBER(SEARCH("missing", AE21:AI21)))), "")) -> 
M22: =IF(COUNTA(G22:I22)=0, "", IF(SUM(G22:I22)<=1, "Valid NPK", "Sum of NPK greater than 100%, please check")) ->  | AD22: 0 | AE22: No fertilizer | AF22: No fertilizer | AG22: No fertilizer | AH22: No fertilizer | AI22: No fertilizer | AJ22: =IF(SUMPRODUCT(--ISNUMBER(SEARCH("No fertilizer", AE22:AI22)))>0, "", IF(SUMPRODUCT(--ISNUMBER(SEARCH("missing", AE22:AI22)))>0, AD22 & ": " & _xlfn.TEXTJOIN(" , ", TRUE, _xlfn._xlws.FILTER(AE22:AI22, ISNUMBER(SEARCH("missing", AE22:AI22)))), "")) -> 
AD23: 0 | AE23: No fertilizer | AF23: No fertilizer | AG23: No fertilizer | AH23: No fertilizer | AI23: No fertilizer | AJ23: =IF(SUMPRODUCT(--ISNUMBER(SEARCH("No fertilizer", AE23:AI23)))>0, "", IF(SUMPRODUCT(--ISNUMBER(SEARCH("missing", AE23:AI23)))>0, AD23 & ": " & _xlfn.TEXTJOIN(" , ", TRUE, _xlfn._xlws.FILTER(AE23:AI23, ISNUMBER(SEARCH("missing", AE23:AI23)))), "")) -> 
AD24: 0 | AE24: No fertilizer | AF24: No fertilizer | AG24: No fertilizer | AH24: No fertilizer | AI24: No fertilizer | AJ24: =IF(SUMPRODUCT(--ISNUMBER(SEARCH("No fertilizer", AE24:AI24)))>0, "", IF(SUMPRODUCT(--ISNUMBER(SEARCH("missing", AE24:AI24)))>0, AD24 & ": " & _xlfn.TEXTJOIN(" , ", TRUE, _xlfn._xlws.FILTER(AE24:AI24, ISNUMBER(SEARCH("missing", AE24:AI24)))), "")) -> 
C25: Complete fertilizer and manure applications (keep scolling for manure application table) | AD25: 0 | AE25: No fertilizer | AF25: No fertilizer | AG25: No fertilizer | AH25: No fertilizer | AI25: No fertilizer | AJ25: =IF(SUMPRODUCT(--ISNUMBER(SEARCH("No fertilizer", AE25:AI25)))>0, "", IF(SUMPRODUCT(--ISNUMBER(SEARCH("missing", AE25:AI25)))>0, AD25 & ": " & _xlfn.TEXTJOIN(" , ", TRUE, _xlfn._xlws.FILTER(AE25:AI25, ISNUMBER(SEARCH("missing", AE25:AI25)))), "")) -> 
C26: Fertilizer applications - an updated nutrient management plan with actual applications can be submitted
C27: Check here if ACS sheet attached: | F27: FALSE | AA27: Fert applications:
C28: Fertilizer | D28: % N | E28: % P2O5 | F28: % K2O | G28: Crop applied to | I28: Acres applied to | J28: Rate | K28: Application rate units | L28: Application method | M28: Timing (approximate) | N28: Protected N source?
O29: << Also known as "Enhanced efficiency fertilizer" | AA29: Crop | AB29: Fert | AC29: %N | AD29: %P | AE29: %K | AF29: Crop applied | AG29: Units | AH29: Acres applied | AI29: Rate | AJ29: CONCAT
D30: =IF(ISBLANK(C30), "", _xlfn.XLOOKUP($C30,$C$7:$C$22,G$7:G$22, "", 2, 1)) ->  | E30: =IF(ISBLANK(C30), "", _xlfn.XLOOKUP($C30,$C$7:$C$22,H$7:H$22, "", 2, 1)) ->  | F30: =IF(ISBLANK(C30), "", _xlfn.XLOOKUP($C30,$C$7:$C$22,I$7:I$22, "", 2, 1)) ->  | AA30: =G30 -> 0 | AB30: =C30 -> 0 | AC30: =IF(ISBLANK($C30), "No applications", IF(ISBLANK(D30), "%N, please check", "Good")) -> No applications | AD30: =IF(ISBLANK($C30), "No applications", IF(ISBLANK(E30), "Missing %P2O5, please check", "Good")) -> No applications | AE30: =IF(ISBLANK($C30), "No applications", IF(ISBLANK(F30), "Missing %K2O, please check", "Good")) -> No applications | AF30: =IF(ISBLANK($C30), "No applications", IF(ISBLANK(G30), "Missing crops applied, please check", "Good")) -> No applications | AG30: =IF(ISBLANK($C30), "No applications", IF(ISBLANK(K30), "Missing application units", "Good")) -> No applications | AH30: =IF(ISBLANK($C30), "No applications", IF(ISBLANK(I30), "Missing application units", "Good")) -> No applications | AI30: =IF(ISBLANK($C30), "No applications", IF(ISBLANK(J30), "Missing rate", "Good")) -> No applications | AJ30: =IF(SUMPRODUCT(--ISNUMBER(SEARCH("No applications", AC30:AI30)))>0, "", IF(SUMPRODUCT(--ISNUMBER(SEARCH("missing", AC30:AI30)))>0, AA30& " " & AB30 & ": " & _xlfn.TEXTJOIN(" , ", TRUE, _xlfn._xlws.FILTER(AC30:AI30, ISNUMBER(SEARCH("Missing", AC30:AI30)))), "")) -> 
D31: =IF(ISBLANK(C31), "", _xlfn.XLOOKUP($C31,$C$7:$C$22,G$7:G$22, "", 2, 1)) ->  | AA31: 0 | AB31: 0 | AC31: No applications | AD31: No applications | AE31: No applications | AF31: No applications | AG31: No applications | AH31: No applications | AI31: No applications | AJ31: =IF(SUMPRODUCT(--ISNUMBER(SEARCH("No applications", AC31:AI31)))>0, "", IF(SUMPRODUCT(--ISNUMBER(SEARCH("missing", AC31:AI31)))>0, AA31& " " & AB31 & ": " & _xlfn.TEXTJOIN(" , ", TRUE, _xlfn._xlws.FILTER(AC31:AI31, ISNUMBER(SEARCH("Missing", AC31:AI31)))), "")) -> 
AA32: 0 | AB32: 0 | AC32: No applications | AD32: No applications | AE32: No applications | AF32: No applications | AG32: No applications | AH32: No applications | AI32: No applications | AJ32: =IF(SUMPRODUCT(--ISNUMBER(SEARCH("No applications", AC32:AI32)))>0, "", IF(SUMPRODUCT(--ISNUMBER(SEARCH("missing", AC32:AI32)))>0, AA32& " " & AB32 & ": " & _xlfn.TEXTJOIN(" , ", TRUE, _xlfn._xlws.FILTER(AC32:AI32, ISNUMBER(SEARCH("Missing", AC32:AI32)))), "")) -> 
AA33: 0 | AB33: 0 | AC33: No applications | AD33: No applications | AE33: No applications | AF33: No applications | AG33: No applications | AH33: No applications | AI33: No applications | AJ33: =IF(SUMPRODUCT(--ISNUMBER(SEARCH("No applications", AC33:AI33)))>0, "", IF(SUMPRODUCT(--ISNUMBER(SEARCH("missing", AC33:AI33)))>0, AA33& " " & AB33 & ": " & _xlfn.TEXTJOIN(" , ", TRUE, _xlfn._xlws.FILTER(AC33:AI33, ISNUMBER(SEARCH("Missing", AC33:AI33)))), "")) -> 
E34: =IF(ISBLANK(C34), "", _xlfn.XLOOKUP($C34,$C$7:$C$22,H$7:H$22, "", 2, 1)) ->  | AA34: 0 | AB34: 0 | AC34: No applications | AD34: No applications | AE34: No applications | AF34: No applications | AG34: No applications | AH34: No applications | AI34: No applications | AJ34: =IF(SUMPRODUCT(--ISNUMBER(SEARCH("No applications", AC34:AI34)))>0, "", IF(SUMPRODUCT(--ISNUMBER(SEARCH("missing", AC34:AI34)))>0, AA34& " " & AB34 & ": " & _xlfn.TEXTJOIN(" , ", TRUE, _xlfn._xlws.FILTER(AC34:AI34, ISNUMBER(SEARCH("Missing", AC34:AI34)))), "")) -> 
AA35: 0 | AB35: 0 | AC35: No applications | AD35: No applications | AE35: No applications | AF35: No applications | AG35: No applications | AH35: No applications | AI35: No applications | AJ35: =IF(SUMPRODUCT(--ISNUMBER(SEARCH("No applications", AC35:AI35)))>0, "", IF(SUMPRODUCT(--ISNUMBER(SEARCH("missing", AC35:AI35)))>0, AA35& " " & AB35 & ": " & _xlfn.TEXTJOIN(" , ", TRUE, _xlfn._xlws.FILTER(AC35:AI35, ISNUMBER(SEARCH("Missing", AC35:AI35)))), "")) -> 
AA36: 0 | AB36: 0 | AC36: No applications | AD36: No applications | AE36: No applications | AF36: No applications | AG36: No applications | AH36: No applications | AI36: No applications | AJ36: =IF(SUMPRODUCT(--ISNUMBER(SEARCH("No applications", AC36:AI36)))>0, "", IF(SUMPRODUCT(--ISNUMBER(SEARCH("missing", AC36:AI36)))>0, AA36& " " & AB36 & ": " & _xlfn.TEXTJOIN(" , ", TRUE, _xlfn._xlws.FILTER(AC36:AI36, ISNUMBER(SEARCH("Missing", AC36:AI36)))), "")) -> 
AA37: 0 | AB37: 0 | AC37: No applications | AD37: No applications | AE37: No applications | AF37: No applications | AG37: No applications | AH37: No applications | AI37: No applications | AJ37: =IF(SUMPRODUCT(--ISNUMBER(SEARCH("No applications", AC37:AI37)))>0, "", IF(SUMPRODUCT(--ISNUMBER(SEARCH("missing", AC37:AI37)))>0, AA37& " " & AB37 & ": " & _xlfn.TEXTJOIN(" , ", TRUE, _xlfn._xlws.FILTER(AC37:AI37, ISNUMBER(SEARCH("Missing", AC37:AI37)))), "")) -> 
AA38: 0 | AB38: 0 | AC38: No applications | AD38: No applications | AE38: No applications | AF38: No applications | AG38: No applications | AH38: No applications | AI38: No applications | AJ38: =IF(SUMPRODUCT(--ISNUMBER(SEARCH("No applications", AC38:AI38)))>0, "", IF(SUMPRODUCT(--ISNUMBER(SEARCH("missing", AC38:AI38)))>0, AA38& " " & AB38 & ": " & _xlfn.TEXTJOIN(" , ", TRUE, _xlfn._xlws.FILTER(AC38:AI38, ISNUMBER(SEARCH("Missing", AC38:AI38)))), "")) -> 
AA39: 0 | AB39: 0 | AC39: No applications | AD39: No applications | AE39: No applications | AF39: No applications | AG39: No applications | AH39: No applications | AI39: No applications | AJ39: =IF(SUMPRODUCT(--ISNUMBER(SEARCH("No applications", AC39:AI39)))>0, "", IF(SUMPRODUCT(--ISNUMBER(SEARCH("missing", AC39:AI39)))>0, AA39& " " & AB39 & ": " & _xlfn.TEXTJOIN(" , ", TRUE, _xlfn._xlws.FILTER(AC39:AI39, ISNUMBER(SEARCH("Missing", AC39:AI39)))), "")) -> 
AA40: 0 | AB40: 0 | AC40: No applications | AD40: No applications | AE40: No applications | AF40: No applications | AG40: No applications | AH40: No applications | AI40: No applications | AJ40: =IF(SUMPRODUCT(--ISNUMBER(SEARCH("No applications", AC40:AI40)))>0, "", IF(SUMPRODUCT(--ISNUMBER(SEARCH("missing", AC40:AI40)))>0, AA40& " " & AB40 & ": " & _xlfn.TEXTJOIN(" , ", TRUE, _xlfn._xlws.FILTER(AC40:AI40, ISNUMBER(SEARCH("Missing", AC40:AI40)))), "")) -> 
AA41: 0 | AB41: 0 | AC41: No applications | AD41: No applications | AE41: No applications | AF41: No applications | AG41: No applications | AH41: No applications | AI41: No applications | AJ41: =IF(SUMPRODUCT(--ISNUMBER(SEARCH("No applications", AC41:AI41)))>0, "", IF(SUMPRODUCT(--ISNUMBER(SEARCH("missing", AC41:AI41)))>0, AA41& " " & AB41 & ": " & _xlfn.TEXTJOIN(" , ", TRUE, _xlfn._xlws.FILTER(AC41:AI41, ISNUMBER(SEARCH("Missing", AC41:AI41)))), "")) -> 
AA42: 0 | AB42: 0 | AC42: No applications | AD42: No applications | AE42: No applications | AF42: No applications | AG42: No applications | AH42: No applications | AI42: No applications | AJ42: =IF(SUMPRODUCT(--ISNUMBER(SEARCH("No applications", AC42:AI42)))>0, "", IF(SUMPRODUCT(--ISNUMBER(SEARCH("missing", AC42:AI42)))>0, AA42& " " & AB42 & ": " & _xlfn.TEXTJOIN(" , ", TRUE, _xlfn._xlws.FILTER(AC42:AI42, ISNUMBER(SEARCH("Missing", AC42:AI42)))), "")) -> 
AA43: 0 | AB43: 0 | AC43: No applications | AD43: No applications | AE43: No applications | AF43: No applications | AG43: No applications | AH43: No applications | AI43: No applications | AJ43: =IF(SUMPRODUCT(--ISNUMBER(SEARCH("No applications", AC43:AI43)))>0, "", IF(SUMPRODUCT(--ISNUMBER(SEARCH("missing", AC43:AI43)))>0, AA43& " " & AB43 & ": " & _xlfn.TEXTJOIN(" , ", TRUE, _xlfn._xlws.FILTER(AC43:AI43, ISNUMBER(SEARCH("Missing", AC43:AI43)))), "")) -> 
AA44: 0 | AB44: 0 | AC44: No applications | AD44: No applications | AE44: No applications | AF44: No applications | AG44: No applications | AH44: No applications | AI44: No applications | AJ44: =IF(SUMPRODUCT(--ISNUMBER(SEARCH("No applications", AC44:AI44)))>0, "", IF(SUMPRODUCT(--ISNUMBER(SEARCH("missing", AC44:AI44)))>0, AA44& " " & AB44 & ": " & _xlfn.TEXTJOIN(" , ", TRUE, _xlfn._xlws.FILTER(AC44:AI44, ISNUMBER(SEARCH("Missing", AC44:AI44)))), "")) -> 
AA45: 0 | AB45: 0 | AC45: No applications | AD45: No applications | AE45: No applications | AF45: No applications | AG45: No applications | AH45: No applications | AI45: No applications | AJ45: =IF(SUMPRODUCT(--ISNUMBER(SEARCH("No applications", AC45:AI45)))>0, "", IF(SUMPRODUCT(--ISNUMBER(SEARCH("missing", AC45:AI45)))>0, AA45& " " & AB45 & ": " & _xlfn.TEXTJOIN(" , ", TRUE, _xlfn._xlws.FILTER(AC45:AI45, ISNUMBER(SEARCH("Missing", AC45:AI45)))), "")) -> 
AA46: 0 | AB46: 0 | AC46: No applications | AD46: No applications | AE46: No applications | AF46: No applications | AG46: No applications | AH46: No applications | AI46: No applications | AJ46: =IF(SUMPRODUCT(--ISNUMBER(SEARCH("No applications", AC46:AI46)))>0, "", IF(SUMPRODUCT(--ISNUMBER(SEARCH("missing", AC46:AI46)))>0, AA46& " " & AB46 & ": " & _xlfn.TEXTJOIN(" , ", TRUE, _xlfn._xlws.FILTER(AC46:AI46, ISNUMBER(SEARCH("Missing", AC46:AI46)))), "")) -> 
D47: =IF(ISBLANK(C47), "", _xlfn.XLOOKUP($C47,$C$7:$C$22,G$7:G$22, "", 2, 1)) ->  | E47: =IF(ISBLANK(C47), "", _xlfn.XLOOKUP($C47,$C$7:$C$22,H$7:H$22, "", 2, 1)) ->  | F47: =IF(ISBLANK(C47), "", _xlfn.XLOOKUP($C47,$C$7:$C$22,I$7:I$22, "", 2, 1)) ->  | AA47: 0 | AB47: 0 | AC47: No applications | AD47: No applications | AE47: No applications | AF47: No applications | AG47: No applications | AH47: No applications | AI47: No applications | AJ47: =IF(SUMPRODUCT(--ISNUMBER(SEARCH("No applications", AC47:AI47)))>0, "", IF(SUMPRODUCT(--ISNUMBER(SEARCH("missing", AC47:AI47)))>0, AA47& " " & AB47 & ": " & _xlfn.TEXTJOIN(" , ", TRUE, _xlfn._xlws.FILTER(AC47:AI47, ISNUMBER(SEARCH("Missing", AC47:AI47)))), "")) -> 
O48: Application date: | Q48: / | S48: / | AA48: 0 | AB48: 0 | AC48: No applications | AD48: No applications | AE48: No applications | AF48: No applications | AG48: No applications | AH48: No applications | AI48: No applications | AJ48: =IF(SUMPRODUCT(--ISNUMBER(SEARCH("No applications", AC48:AI48)))>0, "", IF(SUMPRODUCT(--ISNUMBER(SEARCH("missing", AC48:AI48)))>0, AA48& " " & AB48 & ": " & _xlfn.TEXTJOIN(" , ", TRUE, _xlfn._xlws.FILTER(AC48:AI48, ISNUMBER(SEARCH("Missing", AC48:AI48)))), "")) -> 
O49: Application date: | Q49: / | S49: / | AA49: 0 | AB49: 0 | AC49: No applications | AD49: No applications | AE49: No applications | AF49: No applications | AG49: No applications | AH49: No applications | AI49: No applications | AJ49: =IF(SUMPRODUCT(--ISNUMBER(SEARCH("No applications", AC49:AI49)))>0, "", IF(SUMPRODUCT(--ISNUMBER(SEARCH("missing", AC49:AI49)))>0, AA49& " " & AB49 & ": " & _xlfn.TEXTJOIN(" , ", TRUE, _xlfn._xlws.FILTER(AC49:AI49, ISNUMBER(SEARCH("Missing", AC49:AI49)))), "")) -> 
D50: =IF(ISBLANK(C50), "", _xlfn.XLOOKUP($C50,$C$7:$C$22,G$7:G$22, "", 2, 1)) ->  | E50: =IFERROR(VLOOKUP($C50, $C$7:$H$22, 4, F), "") ->  | F50: =IFERROR(VLOOKUP($C50, $C$7:$H$22, 5, F), "") ->  | O50: Application date: | Q50: / | S50: / | AA50: 0 | AB50: 0 | AC50: No applications | AD50: No applications | AE50: No applications | AF50: No applications | AG50: No applications | AH50: No applications | AI50: No applications | AJ50: =IF(SUMPRODUCT(--ISNUMBER(SEARCH("No applications", AC50:AI50)))>0, "", IF(SUMPRODUCT(--ISNUMBER(SEARCH("missing", AC50:AI50)))>0, AA50& " " & AB50 & ": " & _xlfn.TEXTJOIN(" , ", TRUE, _xlfn._xlws.FILTER(AC50:AI50, ISNUMBER(SEARCH("Missing", AC50:AI50)))), "")) -> 
E51: =IFERROR(VLOOKUP($C51, $C$7:$H$22, 4, F), "") ->  | F51: =IFERROR(VLOOKUP($C51, $C$7:$H$22, 5, F), "") ->  | O51: Application date: | Q51: / | S51: / | AA51: 0 | AB51: 0 | AC51: No applications | AD51: No applications | AE51: No applications | AF51: No applications | AG51: No applications | AH51: No applications | AI51: No applications | AJ51: =IF(SUMPRODUCT(--ISNUMBER(SEARCH("No applications", AC51:AI51)))>0, "", IF(SUMPRODUCT(--ISNUMBER(SEARCH("missing", AC51:AI51)))>0, AA51& " " & AB51 & ": " & _xlfn.TEXTJOIN(" , ", TRUE, _xlfn._xlws.FILTER(AC51:AI51, ISNUMBER(SEARCH("Missing", AC51:AI51)))), "")) -> 
E52: =IFERROR(VLOOKUP($C52, $C$7:$H$22, 4, F), "") ->  | F52: =IFERROR(VLOOKUP($C52, $C$7:$H$22, 5, F), "") ->  | O52: Application date: | Q52: / | S52: / | AA52: 0 | AB52: 0 | AC52: No applications | AD52: No applications | AE52: No applications | AF52: No applications | AG52: No applications | AH52: No applications | AI52: No applications | AJ52: =IF(SUMPRODUCT(--ISNUMBER(SEARCH("No applications", AC52:AI52)))>0, "", IF(SUMPRODUCT(--ISNUMBER(SEARCH("missing", AC52:AI52)))>0, AA52& " " & AB52 & ": " & _xlfn.TEXTJOIN(" , ", TRUE, _xlfn._xlws.FILTER(AC52:AI52, ISNUMBER(SEARCH("Missing", AC52:AI52)))), "")) -> 
E53: =IFERROR(VLOOKUP($C53, $C$7:$H$22, 4, F), "") ->  | F53: =IFERROR(VLOOKUP($C53, $C$7:$H$22, 5, F), "") ->  | O53: Application date: | Q53: / | S53: / | AA53: 0 | AB53: 0 | AC53: No applications | AD53: No applications | AE53: No applications | AF53: No applications | AG53: No applications | AH53: No applications | AI53: No applications | AJ53: =IF(SUMPRODUCT(--ISNUMBER(SEARCH("No applications", AC53:AI53)))>0, "", IF(SUMPRODUCT(--ISNUMBER(SEARCH("missing", AC53:AI53)))>0, AA53& " " & AB53 & ": " & _xlfn.TEXTJOIN(" , ", TRUE, _xlfn._xlws.FILTER(AC53:AI53, ISNUMBER(SEARCH("Missing", AC53:AI53)))), "")) -> 
E54: =IFERROR(VLOOKUP($C54, $C$7:$H$22, 4, F), "") ->  | F54: =IFERROR(VLOOKUP($C54, $C$7:$H$22, 5, F), "") ->  | O54: Application date: | Q54: / | S54: / | AA54: 0 | AB54: 0 | AC54: No applications | AD54: No applications | AE54: No applications | AF54: No applications | AG54: No applications | AH54: No applications | AI54: No applications | AJ54: =IF(SUMPRODUCT(--ISNUMBER(SEARCH("No applications", AC54:AI54)))>0, "", IF(SUMPRODUCT(--ISNUMBER(SEARCH("missing", AC54:AI54)))>0, AA54& " " & AB54 & ": " & _xlfn.TEXTJOIN(" , ", TRUE, _xlfn._xlws.FILTER(AC54:AI54, ISNUMBER(SEARCH("Missing", AC54:AI54)))), "")) -> 
E55: =IFERROR(VLOOKUP($C55, $C$7:$H$22, 4, F), "") ->  | F55: =IFERROR(VLOOKUP($C55, $C$7:$H$22, 5, F), "") ->  | O55: Application date: | Q55: / | S55: / | AA55: 0 | AB55: 0 | AC55: No applications | AD55: No applications | AE55: No applications | AF55: No applications | AG55: No applications | AH55: No applications | AI55: No applications | AJ55: =IF(SUMPRODUCT(--ISNUMBER(SEARCH("No applications", AC55:AI55)))>0, "", IF(SUMPRODUCT(--ISNUMBER(SEARCH("missing", AC55:AI55)))>0, AA55& " " & AB55 & ": " & _xlfn.TEXTJOIN(" , ", TRUE, _xlfn._xlws.FILTER(AC55:AI55, ISNUMBER(SEARCH("Missing", AC55:AI55)))), "")) -> 
E56: =IFERROR(VLOOKUP($C56, $C$7:$H$22, 4, F), "") ->  | F56: =IFERROR(VLOOKUP($C56, $C$7:$H$22, 5, F), "") ->  | O56: Application date: | Q56: / | S56: / | AA56: 0 | AB56: 0 | AC56: No applications | AD56: No applications | AE56: No applications | AF56: No applications | AG56: No applications | AH56: No applications | AI56: No applications | AJ56: =IF(SUMPRODUCT(--ISNUMBER(SEARCH("No applications", AC56:AI56)))>0, "", IF(SUMPRODUCT(--ISNUMBER(SEARCH("missing", AC56:AI56)))>0, AA56& " " & AB56 & ": " & _xlfn.TEXTJOIN(" , ", TRUE, _xlfn._xlws.FILTER(AC56:AI56, ISNUMBER(SEARCH("Missing", AC56:AI56)))), "")) -> 
E57: =IFERROR(VLOOKUP($C57, $C$7:$H$22, 4, F), "") ->  | F57: =IFERROR(VLOOKUP($C57, $C$7:$H$22, 5, F), "") ->  | O57: Application date: | Q57: / | S57: / | AA57: 0 | AB57: 0 | AC57: No applications | AD57: No applications | AE57: No applications | AF57: No applications | AG57: No applications | AH57: No applications | AI57: No applications | AJ57: =IF(SUMPRODUCT(--ISNUMBER(SEARCH("No applications", AC57:AI57)))>0, "", IF(SUMPRODUCT(--ISNUMBER(SEARCH("missing", AC57:AI57)))>0, AA57& " " & AB57 & ": " & _xlfn.TEXTJOIN(" , ", TRUE, _xlfn._xlws.FILTER(AC57:AI57, ISNUMBER(SEARCH("Missing", AC57:AI57)))), "")) -> 
E58: =IFERROR(VLOOKUP($C58, $C$7:$H$22, 4, F), "") ->  | F58: =IFERROR(VLOOKUP($C58, $C$7:$H$22, 5, F), "") ->  | O58: Application date: | Q58: / | S58: / | AA58: 0 | AB58: 0 | AC58: No applications | AD58: No applications | AE58: No applications | AF58: No applications | AG58: No applications | AH58: No applications | AI58: No applications | AJ58: =IF(SUMPRODUCT(--ISNUMBER(SEARCH("No applications", AC58:AI58)))>0, "", IF(SUMPRODUCT(--ISNUMBER(SEARCH("missing", AC58:AI58)))>0, AA58& " " & AB58 & ": " & _xlfn.TEXTJOIN(" , ", TRUE, _xlfn._xlws.FILTER(AC58:AI58, ISNUMBER(SEARCH("Missing", AC58:AI58)))), "")) -> 
E59: =IFERROR(VLOOKUP($C59, $C$7:$H$22, 4, F), "") ->  | F59: =IFERROR(VLOOKUP($C59, $C$7:$H$22, 5, F), "") ->  | O59: Application date: | Q59: / | S59: / | AA59: 0 | AB59: 0 | AC59: No applications | AD59: No applications | AE59: No applications | AF59: No applications | AG59: No applications | AH59: No applications | AI59: No applications | AJ59: =IF(SUMPRODUCT(--ISNUMBER(SEARCH("No applications", AC59:AI59)))>0, "", IF(SUMPRODUCT(--ISNUMBER(SEARCH("missing", AC59:AI59)))>0, AA59& " " & AB59 & ": " & _xlfn.TEXTJOIN(" , ", TRUE, _xlfn._xlws.FILTER(AC59:AI59, ISNUMBER(SEARCH("Missing", AC59:AI59)))), "")) -> 
AA60: 0 | AB60: 0 | AC60: No applications | AD60: No applications | AE60: No applications | AF60: No applications | AG60: No applications | AH60: No applications | AI60: No applications | AJ60: =IF(SUMPRODUCT(--ISNUMBER(SEARCH("No applications", AC60:AI60)))>0, "", IF(SUMPRODUCT(--ISNUMBER(SEARCH("missing", AC60:AI60)))>0, AA60& " " & AB60 & ": " & _xlfn.TEXTJOIN(" , ", TRUE, _xlfn._xlws.FILTER(AC60:AI60, ISNUMBER(SEARCH("Missing", AC60:AI60)))), "")) -> 
AA61: 0 | AB61: 0 | AC61: No applications | AD61: No applications | AE61: No applications | AF61: No applications | AG61: No applications | AH61: No applications | AI61: No applications | AJ61: =IF(SUMPRODUCT(--ISNUMBER(SEARCH("No applications", AC61:AI61)))>0, "", IF(SUMPRODUCT(--ISNUMBER(SEARCH("missing", AC61:AI61)))>0, AA61& " " & AB61 & ": " & _xlfn.TEXTJOIN(" , ", TRUE, _xlfn._xlws.FILTER(AC61:AI61, ISNUMBER(SEARCH("Missing", AC61:AI61)))), "")) -> 
AA62: 0 | AB62: 0 | AC62: No applications | AD62: No applications | AE62: No applications | AF62: No applications | AG62: No applications | AH62: No applications | AI62: No applications | AJ62: =IF(SUMPRODUCT(--ISNUMBER(SEARCH("No applications", AC62:AI62)))>0, "", IF(SUMPRODUCT(--ISNUMBER(SEARCH("missing", AC62:AI62)))>0, AA62& " " & AB62 & ": " & _xlfn.TEXTJOIN(" , ", TRUE, _xlfn._xlws.FILTER(AC62:AI62, ISNUMBER(SEARCH("Missing", AC62:AI62)))), "")) -> 
C64: Manure analysis
C65: Check here if manure analysis is attached: | G65: FALSE
C66: Manure storage / source | D66: % solids | E66: Total | F66: Ammonium | G66: P2O5 | H66: K2O | I66: Units | AC66: Manure storage | AD66: Crop applied | AE66: Total N | AF66: Units | AG66: Acres applied | AH66: Rate applied | AI66: Rate units | AJ66: CONCAT
E67: N | F67: N | I67: as sampled | AC67: =C83 -> 0 | AD67: =H83 -> 0 | AE67: =IF(ISBLANK($C83), "No manure application", IF(ISBLANK(D83), "Missing Total manure N", "Good")) -> No manure application | AF67: =IF(ISBLANK($C83), "No manure application", IF(ISBLANK(G83), "Missing manure N units", "Good")) -> No manure application | AG67: =IF(ISBLANK($C83), "No manure application", IF(ISBLANK(J83), "Missing manure acres", "Good")) -> No manure application | AH67: =IF(ISBLANK($C83), "No manure application", IF(ISBLANK(K83), "Missing manure app rate", "Good")) -> No manure application | AI67: =IF(ISBLANK($C83), "No manure application", IF(ISBLANK(L83), "Missing manure application units", "Good")) -> No manure application | AJ67: =IF(SUMPRODUCT(--ISNUMBER(SEARCH("No manure application", AC67:AI67)))>0, "", IF(SUMPRODUCT(--ISNUMBER(SEARCH("missing", AC67:AI67)))>0, AC67 & " "& AD67 & ": " & _xlfn.TEXTJOIN(" , ", TRUE, _xlfn._xlws.FILTER(AC67:AI67, ISNUMBER(SEARCH("Missing", AC67:AI67)))), "")) -> 
AC68: 0 | AD68: 0 | AE68: No manure application | AF68: No manure application | AG68: No manure application | AH68: No manure application | AI68: No manure application | AJ68: =IF(SUMPRODUCT(--ISNUMBER(SEARCH("No manure application", AC68:AI68)))>0, "", IF(SUMPRODUCT(--ISNUMBER(SEARCH("missing", AC68:AI68)))>0, AC68 & " "& AD68 & ": " & _xlfn.TEXTJOIN(" , ", TRUE, _xlfn._xlws.FILTER(AC68:AI68, ISNUMBER(SEARCH("Missing", AC68:AI68)))), "")) -> 
AC69: 0 | AD69: 0 | AE69: No manure application | AF69: No manure application | AG69: No manure application | AH69: No manure application | AI69: No manure application | AJ69: =IF(SUMPRODUCT(--ISNUMBER(SEARCH("No manure application", AC69:AI69)))>0, "", IF(SUMPRODUCT(--ISNUMBER(SEARCH("missing", AC69:AI69)))>0, AC69 & " "& AD69 & ": " & _xlfn.TEXTJOIN(" , ", TRUE, _xlfn._xlws.FILTER(AC69:AI69, ISNUMBER(SEARCH("Missing", AC69:AI69)))), "")) -> 
AC70: 0 | AD70: 0 | AE70: No manure application | AF70: No manure application | AG70: No manure application | AH70: No manure application | AI70: No manure application | AJ70: =IF(SUMPRODUCT(--ISNUMBER(SEARCH("No manure application", AC70:AI70)))>0, "", IF(SUMPRODUCT(--ISNUMBER(SEARCH("missing", AC70:AI70)))>0, AC70 & " "& AD70 & ": " & _xlfn.TEXTJOIN(" , ", TRUE, _xlfn._xlws.FILTER(AC70:AI70, ISNUMBER(SEARCH("Missing", AC70:AI70)))), "")) -> 
AC71: 0 | AD71: 0 | AE71: No manure application | AF71: No manure application | AG71: No manure application | AH71: No manure application | AI71: No manure application | AJ71: =IF(SUMPRODUCT(--ISNUMBER(SEARCH("No manure application", AC71:AI71)))>0, "", IF(SUMPRODUCT(--ISNUMBER(SEARCH("missing", AC71:AI71)))>0, AC71 & " "& AD71 & ": " & _xlfn.TEXTJOIN(" , ", TRUE, _xlfn._xlws.FILTER(AC71:AI71, ISNUMBER(SEARCH("Missing", AC71:AI71)))), "")) -> 
AC72: 0 | AD72: 0 | AE72: No manure application | AF72: No manure application | AG72: No manure application | AH72: No manure application | AI72: No manure application | AJ72: =IF(SUMPRODUCT(--ISNUMBER(SEARCH("No manure application", AC72:AI72)))>0, "", IF(SUMPRODUCT(--ISNUMBER(SEARCH("missing", AC72:AI72)))>0, AC72 & " "& AD72 & ": " & _xlfn.TEXTJOIN(" , ", TRUE, _xlfn._xlws.FILTER(AC72:AI72, ISNUMBER(SEARCH("Missing", AC72:AI72)))), "")) -> 
AC73: 0 | AD73: 0 | AE73: No manure application | AF73: No manure application | AG73: No manure application | AH73: No manure application | AI73: No manure application | AJ73: =IF(SUMPRODUCT(--ISNUMBER(SEARCH("No manure application", AC73:AI73)))>0, "", IF(SUMPRODUCT(--ISNUMBER(SEARCH("missing", AC73:AI73)))>0, AC73 & " "& AD73 & ": " & _xlfn.TEXTJOIN(" , ", TRUE, _xlfn._xlws.FILTER(AC73:AI73, ISNUMBER(SEARCH("Missing", AC73:AI73)))), "")) -> 
AC74: 0 | AD74: 0 | AE74: No manure application | AF74: No manure application | AG74: No manure application | AH74: No manure application | AI74: No manure application | AJ74: =IF(SUMPRODUCT(--ISNUMBER(SEARCH("No manure application", AC74:AI74)))>0, "", IF(SUMPRODUCT(--ISNUMBER(SEARCH("missing", AC74:AI74)))>0, AC74 & " "& AD74 & ": " & _xlfn.TEXTJOIN(" , ", TRUE, _xlfn._xlws.FILTER(AC74:AI74, ISNUMBER(SEARCH("Missing", AC74:AI74)))), "")) -> 
AC75: 0 | AD75: 0 | AE75: No manure application | AF75: No manure application | AG75: No manure application | AH75: No manure application | AI75: No manure application | AJ75: =IF(SUMPRODUCT(--ISNUMBER(SEARCH("No manure application", AC75:AI75)))>0, "", IF(SUMPRODUCT(--ISNUMBER(SEARCH("missing", AC75:AI75)))>0, AC75 & " "& AD75 & ": " & _xlfn.TEXTJOIN(" , ", TRUE, _xlfn._xlws.FILTER(AC75:AI75, ISNUMBER(SEARCH("Missing", AC75:AI75)))), "")) -> 
AC76: 0 | AD76: 0 | AE76: No manure application | AF76: No manure application | AG76: No manure application | AH76: No manure application | AI76: No manure application | AJ76: =IF(SUMPRODUCT(--ISNUMBER(SEARCH("No manure application", AC76:AI76)))>0, "", IF(SUMPRODUCT(--ISNUMBER(SEARCH("missing", AC76:AI76)))>0, AC76 & " "& AD76 & ": " & _xlfn.TEXTJOIN(" , ", TRUE, _xlfn._xlws.FILTER(AC76:AI76, ISNUMBER(SEARCH("Missing", AC76:AI76)))), "")) -> 
AC77: 0 | AD77: 0 | AE77: No manure application | AF77: No manure application | AG77: No manure application | AH77: No manure application | AI77: No manure application | AJ77: =IF(SUMPRODUCT(--ISNUMBER(SEARCH("No manure application", AC77:AI77)))>0, "", IF(SUMPRODUCT(--ISNUMBER(SEARCH("missing", AC77:AI77)))>0, AC77 & " "& AD77 & ": " & _xlfn.TEXTJOIN(" , ", TRUE, _xlfn._xlws.FILTER(AC77:AI77, ISNUMBER(SEARCH("Missing", AC77:AI77)))), "")) -> 
AC78: 0 | AD78: 0 | AE78: No manure application | AF78: No manure application | AG78: No manure application | AH78: No manure application | AI78: No manure application | AJ78: =IF(SUMPRODUCT(--ISNUMBER(SEARCH("No manure application", AC78:AI78)))>0, "", IF(SUMPRODUCT(--ISNUMBER(SEARCH("missing", AC78:AI78)))>0, AC78 & " "& AD78 & ": " & _xlfn.TEXTJOIN(" , ", TRUE, _xlfn._xlws.FILTER(AC78:AI78, ISNUMBER(SEARCH("Missing", AC78:AI78)))), "")) -> 
AC79: 0 | AD79: 0 | AE79: No manure application | AF79: No manure application | AG79: No manure application | AH79: No manure application | AI79: No manure application | AJ79: =IF(SUMPRODUCT(--ISNUMBER(SEARCH("No manure application", AC79:AI79)))>0, "", IF(SUMPRODUCT(--ISNUMBER(SEARCH("missing", AC79:AI79)))>0, AC79 & " "& AD79 & ": " & _xlfn.TEXTJOIN(" , ", TRUE, _xlfn._xlws.FILTER(AC79:AI79, ISNUMBER(SEARCH("Missing", AC79:AI79)))), "")) -> 
C80: Manure applications - an updated nutrient management plan with actual applications can be submitted | AC80: 0 | AD80: 0 | AE80: No manure application | AF80: No manure application | AG80: No manure application | AH80: No manure application | AI80: No manure application | AJ80: =IF(SUMPRODUCT(--ISNUMBER(SEARCH("No manure application", AC80:AI80)))>0, "", IF(SUMPRODUCT(--ISNUMBER(SEARCH("missing", AC80:AI80)))>0, AC80 & " "& AD80 & ": " & _xlfn.TEXTJOIN(" , ", TRUE, _xlfn._xlws.FILTER(AC80:AI80, ISNUMBER(SEARCH("Missing", AC80:AI80)))), "")) -> 
C81: Manure storage / source | D81: Total N | E81: P2O5 | F81: K2O | G81: Units | H81: Crop applied to | J81: Acres applied to | K81: Rate | L81: Application rate units | M81: Application method | N81: Timing (approximate) | O81: Protected N source? | AC81: 0 | AD81: 0 | AE81: No manure application | AF81: No manure application | AG81: No manure application | AH81: No manure application | AI81: No manure application | AJ81: =IF(SUMPRODUCT(--ISNUMBER(SEARCH("No manure application", AC81:AI81)))>0, "", IF(SUMPRODUCT(--ISNUMBER(SEARCH("missing", AC81:AI81)))>0, AC81 & " "& AD81 & ": " & _xlfn.TEXTJOIN(" , ", TRUE, _xlfn._xlws.FILTER(AC81:AI81, ISNUMBER(SEARCH("Missing", AC81:AI81)))), "")) -> 
G82: as sampled | P82: << Also known as "Enhanced efficiency fertilizer" | AC82: 0 | AD82: 0 | AE82: No manure application | AF82: No manure application | AG82: No manure application | AH82: No manure application | AI82: No manure application | AJ82: =IF(SUMPRODUCT(--ISNUMBER(SEARCH("No manure application", AC82:AI82)))>0, "", IF(SUMPRODUCT(--ISNUMBER(SEARCH("missing", AC82:AI82)))>0, AC82 & " "& AD82 & ": " & _xlfn.TEXTJOIN(" , ", TRUE, _xlfn._xlws.FILTER(AC82:AI82, ISNUMBER(SEARCH("Missing", AC82:AI82)))), "")) -> 
D83: =IF(ISBLANK($C83), "", _xlfn.XLOOKUP($C83,$C$68:$C$78,E$68:E$78, "", 2,1)) ->  | E83: =IF(ISBLANK($C83), "", _xlfn.XLOOKUP($C83,$C$68:$C$78,F$68:F$78, "", 2,1)) ->  | F83: =IF(ISBLANK($C83), "", _xlfn.XLOOKUP($C83,$C$68:$C$78,G$68:G$78, "", 2,1)) ->  | G83: =IF(ISBLANK(C83), "", _xlfn.XLOOKUP($C83,$C$68:$C$78,$I$68:$I$78, "", 2,1)) ->  | AC83: 0 | AD83: 0 | AE83: No manure application | AF83: No manure application | AG83: No manure application | AH83: No manure application | AI83: No manure application | AJ83: =IF(SUMPRODUCT(--ISNUMBER(SEARCH("No manure application", AC83:AI83)))>0, "", IF(SUMPRODUCT(--ISNUMBER(SEARCH("missing", AC83:AI83)))>0, AC83 & " "& AD83 & ": " & _xlfn.TEXTJOIN(" , ", TRUE, _xlfn._xlws.FILTER(AC83:AI83, ISNUMBER(SEARCH("Missing", AC83:AI83)))), "")) -> 
D84: =IF(ISBLANK($C84), "", _xlfn.XLOOKUP($C84,$C$68:$C$78,E$68:E$78, "", 2,1)) ->  | G84: =IF(ISBLANK(C84), "", _xlfn.XLOOKUP($C84,$C$68:$C$78,$I$68:$I$78, "", 2,1)) ->  | AC84: 0 | AD84: 0 | AE84: No manure application | AF84: No manure application | AG84: No manure application | AH84: No manure application | AI84: No manure application | AJ84: =IF(SUMPRODUCT(--ISNUMBER(SEARCH("No manure application", AC84:AI84)))>0, "", IF(SUMPRODUCT(--ISNUMBER(SEARCH("missing", AC84:AI84)))>0, AC84 & " "& AD84 & ": " & _xlfn.TEXTJOIN(" , ", TRUE, _xlfn._xlws.FILTER(AC84:AI84, ISNUMBER(SEARCH("Missing", AC84:AI84)))), "")) -> 
D85: =IF(ISBLANK($C85), "", _xlfn.XLOOKUP($C85,$C$68:$C$78,E$68:E$78, "", 2,1)) ->  | AC85: 0 | AD85: 0 | AE85: No manure application | AF85: No manure application | AG85: No manure application | AH85: No manure application | AI85: No manure application | AJ85: =IF(SUMPRODUCT(--ISNUMBER(SEARCH("No manure application", AC85:AI85)))>0, "", IF(SUMPRODUCT(--ISNUMBER(SEARCH("missing", AC85:AI85)))>0, AC85 & " "& AD85 & ": " & _xlfn.TEXTJOIN(" , ", TRUE, _xlfn._xlws.FILTER(AC85:AI85, ISNUMBER(SEARCH("Missing", AC85:AI85)))), "")) -> 
D86: =IF(ISBLANK($C86), "", _xlfn.XLOOKUP($C86,$C$68:$C$78,E$68:E$78, "", 2,1)) ->  | AC86: 0 | AD86: 0 | AE86: No manure application | AF86: No manure application | AG86: No manure application | AH86: No manure application | AI86: No manure application | AJ86: =IF(SUMPRODUCT(--ISNUMBER(SEARCH("No manure application", AC86:AI86)))>0, "", IF(SUMPRODUCT(--ISNUMBER(SEARCH("missing", AC86:AI86)))>0, AC86 & " "& AD86 & ": " & _xlfn.TEXTJOIN(" , ", TRUE, _xlfn._xlws.FILTER(AC86:AI86, ISNUMBER(SEARCH("Missing", AC86:AI86)))), "")) -> 
D87: =IF(ISBLANK($C87), "", _xlfn.XLOOKUP($C87,$C$68:$C$78,E$68:E$78, "", 2,1)) ->  | AC87: 0 | AD87: 0 | AE87: No manure application | AF87: No manure application | AG87: No manure application | AH87: No manure application | AI87: No manure application | AJ87: =IF(SUMPRODUCT(--ISNUMBER(SEARCH("No manure application", AC87:AI87)))>0, "", IF(SUMPRODUCT(--ISNUMBER(SEARCH("missing", AC87:AI87)))>0, AC87 & " "& AD87 & ": " & _xlfn.TEXTJOIN(" , ", TRUE, _xlfn._xlws.FILTER(AC87:AI87, ISNUMBER(SEARCH("Missing", AC87:AI87)))), "")) -> 
D88: =IF(ISBLANK($C88), "", _xlfn.XLOOKUP($C88,$C$68:$C$78,E$68:E$78, "", 2,1)) ->  | E88: =IF(ISBLANK($C88), "", _xlfn.XLOOKUP($C88,$C$68:$C$78,F$68:F$78, "", 2,1)) ->  | AC88: 0 | AD88: 0 | AE88: No manure application | AF88: No manure application | AG88: No manure application | AH88: No manure application | AI88: No manure application | AJ88: =IF(SUMPRODUCT(--ISNUMBER(SEARCH("No manure application", AC88:AI88)))>0, "", IF(SUMPRODUCT(--ISNUMBER(SEARCH("missing", AC88:AI88)))>0, AC88 & " "& AD88 & ": " & _xlfn.TEXTJOIN(" , ", TRUE, _xlfn._xlws.FILTER(AC88:AI88, ISNUMBER(SEARCH("Missing", AC88:AI88)))), "")) -> 
D89: =IF(ISBLANK($C89), "", _xlfn.XLOOKUP($C89,$C$68:$C$78,E$68:E$78, "", 2,1)) ->  | P89: Application date: | V89: / | X89: / | AC89: 0 | AD89: 0 | AE89: No manure application | AF89: No manure application | AG89: No manure application | AH89: No manure application | AI89: No manure application | AJ89: =IF(SUMPRODUCT(--ISNUMBER(SEARCH("No manure application", AC89:AI89)))>0, "", IF(SUMPRODUCT(--ISNUMBER(SEARCH("missing", AC89:AI89)))>0, AC89 & " "& AD89 & ": " & _xlfn.TEXTJOIN(" , ", TRUE, _xlfn._xlws.FILTER(AC89:AI89, ISNUMBER(SEARCH("Missing", AC89:AI89)))), "")) -> 
D90: =IF(ISBLANK($C90), "", _xlfn.XLOOKUP($C90,$C$68:$C$78,E$68:E$78, "", 2,1)) ->  | P90: Application date: | V90: / | X90: / | AC90: 0 | AD90: 0 | AE90: No manure application | AF90: No manure application | AG90: No manure application | AH90: No manure application | AI90: No manure application | AJ90: =IF(SUMPRODUCT(--ISNUMBER(SEARCH("No manure application", AC90:AI90)))>0, "", IF(SUMPRODUCT(--ISNUMBER(SEARCH("missing", AC90:AI90)))>0, AC90 & " "& AD90 & ": " & _xlfn.TEXTJOIN(" , ", TRUE, _xlfn._xlws.FILTER(AC90:AI90, ISNUMBER(SEARCH("Missing", AC90:AI90)))), "")) -> 
D91: =IF(ISBLANK($C91), "", _xlfn.XLOOKUP($C91,$C$68:$C$78,E$68:E$78, "", 2,1)) ->  | P91: Application date: | V91: / | X91: / | AC91: 0 | AD91: 0 | AE91: No manure application | AF91: No manure application | AG91: No manure application | AH91: No manure application | AI91: No manure application | AJ91: =IF(SUMPRODUCT(--ISNUMBER(SEARCH("No manure application", AC91:AI91)))>0, "", IF(SUMPRODUCT(--ISNUMBER(SEARCH("missing", AC91:AI91)))>0, AC91 & " "& AD91 & ": " & _xlfn.TEXTJOIN(" , ", TRUE, _xlfn._xlws.FILTER(AC91:AI91, ISNUMBER(SEARCH("Missing", AC91:AI91)))), "")) -> 
D92: =IF(ISBLANK($C92), "", _xlfn.XLOOKUP($C92,$C$68:$C$78,E$68:E$78, "", 2,1)) ->  | P92: Application date: | V92: / | X92: / | AC92: 0 | AD92: 0 | AE92: No manure application | AF92: No manure application | AG92: No manure application | AH92: No manure application | AI92: No manure application | AJ92: =IF(SUMPRODUCT(--ISNUMBER(SEARCH("No manure application", AC92:AI92)))>0, "", IF(SUMPRODUCT(--ISNUMBER(SEARCH("missing", AC92:AI92)))>0, AC92 & " "& AD92 & ": " & _xlfn.TEXTJOIN(" , ", TRUE, _xlfn._xlws.FILTER(AC92:AI92, ISNUMBER(SEARCH("Missing", AC92:AI92)))), "")) -> 
D93: =IF(ISBLANK($C93), "", _xlfn.XLOOKUP($C93,$C$68:$C$78,E$68:E$78, "", 2,1)) ->  | P93: Application date: | V93: / | X93: / | AC93: 0 | AD93: 0 | AE93: No manure application | AF93: No manure application | AG93: No manure application | AH93: No manure application | AI93: No manure application | AJ93: =IF(SUMPRODUCT(--ISNUMBER(SEARCH("No manure application", AC93:AI93)))>0, "", IF(SUMPRODUCT(--ISNUMBER(SEARCH("missing", AC93:AI93)))>0, AC93 & " "& AD93 & ": " & _xlfn.TEXTJOIN(" , ", TRUE, _xlfn._xlws.FILTER(AC93:AI93, ISNUMBER(SEARCH("Missing", AC93:AI93)))), "")) -> 
D94: =IF(ISBLANK($C94), "", _xlfn.XLOOKUP($C94,$C$68:$C$78,E$68:E$78, "", 2,1)) ->  | P94: Application date: | V94: / | X94: / | AC94: 0 | AD94: 0 | AE94: No manure application | AF94: No manure application | AG94: No manure application | AH94: No manure application | AI94: No manure application | AJ94: =IF(SUMPRODUCT(--ISNUMBER(SEARCH("No manure application", AC94:AI94)))>0, "", IF(SUMPRODUCT(--ISNUMBER(SEARCH("missing", AC94:AI94)))>0, AC94 & " "& AD94 & ": " & _xlfn.TEXTJOIN(" , ", TRUE, _xlfn._xlws.FILTER(AC94:AI94, ISNUMBER(SEARCH("Missing", AC94:AI94)))), "")) -> 
D95: =IF(ISBLANK($C95), "", _xlfn.XLOOKUP($C95,$C$68:$C$78,E$68:E$78, "", 2,1)) ->  | P95: Application date: | V95: / | X95: / | AC95: 0 | AD95: 0 | AE95: No manure application | AF95: No manure application | AG95: No manure application | AH95: No manure application | AI95: No manure application | AJ95: =IF(SUMPRODUCT(--ISNUMBER(SEARCH("No manure application", AC95:AI95)))>0, "", IF(SUMPRODUCT(--ISNUMBER(SEARCH("missing", AC95:AI95)))>0, AC95 & " "& AD95 & ": " & _xlfn.TEXTJOIN(" , ", TRUE, _xlfn._xlws.FILTER(AC95:AI95, ISNUMBER(SEARCH("Missing", AC95:AI95)))), "")) -> 
D96: =IF(ISBLANK($C96), "", _xlfn.XLOOKUP($C96,$C$68:$C$78,E$68:E$78, "", 2,1)) ->  | P96: Application date: | V96: / | X96: / | AC96: 0 | AD96: 0 | AE96: No manure application | AF96: No manure application | AG96: No manure application | AH96: No manure application | AI96: No manure application | AJ96: =IF(SUMPRODUCT(--ISNUMBER(SEARCH("No manure application", AC96:AI96)))>0, "", IF(SUMPRODUCT(--ISNUMBER(SEARCH("missing", AC96:AI96)))>0, AC96 & " "& AD96 & ": " & _xlfn.TEXTJOIN(" , ", TRUE, _xlfn._xlws.FILTER(AC96:AI96, ISNUMBER(SEARCH("Missing", AC96:AI96)))), "")) -> 
D97: =IF(ISBLANK($C97), "", _xlfn.XLOOKUP($C97,$C$68:$C$78,E$68:E$78, "", 2,1)) ->  | P97: Application date: | V97: / | X97: / | AC97: 0 | AD97: 0 | AE97: No manure application | AF97: No manure application | AG97: No manure application | AH97: No manure application | AI97: No manure application | AJ97: =IF(SUMPRODUCT(--ISNUMBER(SEARCH("No manure application", AC97:AI97)))>0, "", IF(SUMPRODUCT(--ISNUMBER(SEARCH("missing", AC97:AI97)))>0, AC97 & " "& AD97 & ": " & _xlfn.TEXTJOIN(" , ", TRUE, _xlfn._xlws.FILTER(AC97:AI97, ISNUMBER(SEARCH("Missing", AC97:AI97)))), "")) -> 
D98: =IF(ISBLANK($C98), "", _xlfn.XLOOKUP($C98,$C$68:$C$78,E$68:E$78, "", 2,1)) ->  | P98: Application date: | V98: / | X98: /
D99: =IF(ISBLANK($C99), "", _xlfn.XLOOKUP($C99,$C$68:$C$78,E$68:E$78, "", 2,1)) ->  | P99: Application date: | V99: / | X99: /
D100: =IF(ISBLANK($C100), "", _xlfn.XLOOKUP($C100,$C$68:$C$78,E$68:E$78, "", 2,1)) ->  | P100: Application date: | V100: / | X100: /
D101: =IF(ISBLANK($C101), "", _xlfn.XLOOKUP($C101,$C$68:$C$78,E$68:E$78, "", 2,1)) ->  | P101: Application date: | V101: / | X101: /
D102: =IF(ISBLANK($C102), "", _xlfn.XLOOKUP($C102,$C$68:$C$78,E$68:E$78, "", 2,1)) ->  | P102: Application date: | V102: / | X102: /
D103: =IF(ISBLANK($C103), "", _xlfn.XLOOKUP($C103,$C$68:$C$78,E$68:E$78, "", 2,1)) ->  | P103: Application date: | V103: / | X103: /
D104: =IF(ISBLANK($C104), "", _xlfn.XLOOKUP($C104,$C$68:$C$78,E$68:E$78, "", 2,1)) ->  | P104: Application date: | V104: / | X104: /
D105: =IF(ISBLANK($C105), "", _xlfn.XLOOKUP($C105,$C$68:$C$78,E$68:E$78, "", 2,1)) ->  | P105: Application date: | V105: / | X105: /
D106: =_xlfn.XLOOKUP($C106,$C$68:$C$78,E$68:E$78, "", 2,1) -> 0 | E106: 0 | F106: 0 | G106: =IFERROR(VLOOKUP($C106, $C$68:$I$78, 7, FALSE), "") ->  | P106: Application date: | V106: / | X106: /
D107: 0 | E107: 0 | F107: 0 | P107: Application date: | V107: / | X107: /
D108: 0 | E108: 0 | F108: 0 | P108: Application date: | V108: / | X108: /
D109: 0 | E109: 0 | F109: 0 | P109: Application date: | V109: / | X109: /
D110: 0 | E110: 0 | F110: 0 | P110: Application date: | V110: / | X110: /
D111: 0 | E111: 0 | F111: 0 | P111: Application date: | V111: / | X111: /
D112: 0 | E112: 0 | F112: 0 | P112: Application date: | V112: / | X112: /

Sheet CFTHelper_FERTADJ (hidden)
A1: CFT Fertilizer/Manure application rate adjustment
A2: Scroll for manure applications
A4: Fertilizer Application adjustment | Z4: Lbs
A5: Fertilizer | B5: Crop | C5: Fert app acres | D5: Crop Production acres | E5: Application units | F5: Application rate(perac) | G5: Adjusted application rate | H5: %N | I5: Amm (as a % of N) | J5: Nit (as a % of N) | K5: Urea (as a % of N) | L5: % P | M5: % K | P5: Fertilizer Adjustment Helper Instructions | Z5: Tons
A6: Autofill | B6: Autofill | C6: Autofill | D6: Autofill | E6: Autofill | F6: Autofill | G6: Use this rate: | H6: Use this: | I6: Use this: | J6: Use this: | K6: Use this: | L6: Use this: | M6: Use this: | P6: This sheet adjusts fertilizer and manure application rates. Farms may only apply fertilizers to a partial number of acres for a whole crop, however, a CFT footprint is based on the whole number of acres for a crop. Therefore, the rate of fertilizer applications must be adjusted so that we are not over or underestimating the total amount of fertilizers applied. Ex: Applying 200lbs/ac for 50 acres of a 200 acre corn field (10,000 total lbs). If we simply put 200lbs/ac into CFT, it would multiply this by the 200 total acres of cornfield, the total would be a large overestimation at 40,000 lbs.
A7: ='Fert. imports and applications'!C30 -> 0 | B7: ='Fert. imports and applications'!G30 -> 0 | C7: ='Fert. imports and applications'!I30 -> 0 | D7: =_xlfn.XLOOKUP("*"&B7&"*",'Farm Crop Production'!$C$8:$C$31,'Farm Crop Production'!$H$8:$H$31, "Acres not found, check",2,1) -> Acres not found, check | E7: ='Fert. imports and applications'!K30 -> 0 | F7: ='Fert. imports and applications'!J30 -> 0 | G7: =F7 * (C7 / D7) * IF(ISNUMBER(SEARCH("gal", E7)), 11, 1) ->  | H7: ='Fert. imports and applications'!D30 ->  | I7: =H7*0.5 ->  | J7: =H7*0.25 ->  | K7: =H7*0.25 ->  | L7: ='Fert. imports and applications'!E30 ->  | M7: ='Fert. imports and applications'!F30 ->  | Z7: Gal
A8: ='Fert. imports and applications'!C31 -> 0 | B8: ='Fert. imports and applications'!G31 -> 0 | C8: ='Fert. imports and applications'!I31 -> 0 | D8: =_xlfn.XLOOKUP("*"&B8&"*",'Farm Crop Production'!$C$8:$C$31,'Farm Crop Production'!$H$8:$H$31, "Acres not found, check",2,1) -> Acres not found, check | E8: ='Fert. imports and applications'!K31 -> 0 | F8: ='Fert. imports and applications'!J31 -> 0 | G8: =F8 * (C8 / D8) * IF(ISNUMBER(SEARCH("gal", E8)), 11.1, 1) ->  | H8: ='Fert. imports and applications'!D31 ->  | I8: =H8*0.5 ->  | J8: =H8*0.25 ->  | K8: =H8*0.25 ->  | L8: ='Fert. imports and applications'!E31 ->  | M8: ='Fert. imports and applications'!F31 ->  | Z8: Kgal
A9: ='Fert. imports and applications'!C32 -> 0 | B9: ='Fert. imports and applications'!G32 -> 0 | C9: ='Fert. imports and applications'!I32 -> 0 | D9: =_xlfn.XLOOKUP("*"&B9&"*",'Farm Crop Production'!$C$8:$C$31,'Farm Crop Production'!$H$8:$H$31, "Acres not found, check",2,1) -> Acres not found, check | E9: ='Fert. imports and applications'!K32 -> 0 | F9: ='Fert. imports and applications'!J32 -> 0 | H9: ='Fert. imports and applications'!D32 ->  | L9: ='Fert. imports and applications'!E32 ->  | M9: ='Fert. imports and applications'!F32 -> 
A10: ='Fert. imports and applications'!C33 -> 0 | B10: ='Fert. imports and applications'!G33 -> 0 | C10: ='Fert. imports and applications'!I33 -> 0 | D10: =_xlfn.XLOOKUP("*"&B10&"*",'Farm Crop Production'!$C$8:$C$31,'Farm Crop Production'!$H$8:$H$31, "Acres not found, check",2,1) -> Acres not found, check | E10: ='Fert. imports and applications'!K33 -> 0 | F10: ='Fert. imports and applications'!J33 -> 0 | H10: ='Fert. imports and applications'!D33 ->  | L10: ='Fert. imports and applications'!E33 ->  | M10: ='Fert. imports and applications'!F33 -> 
A11: ='Fert. imports and applications'!C34 -> 0 | B11: ='Fert. imports and applications'!G34 -> 0 | C11: ='Fert. imports and applications'!I34 -> 0 | D11: =_xlfn.XLOOKUP("*"&B11&"*",'Farm Crop Production'!$C$8:$C$31,'Farm Crop Production'!$H$8:$H$31, "Acres not found, check",2,1) -> Acres not found, check | E11: ='Fert. imports and applications'!K34 -> 0 | F11: ='Fert. imports and applications'!J34 -> 0 | H11: ='Fert. imports and applications'!D34 ->  | L11: ='Fert. imports and applications'!E34 ->  | M11: ='Fert. imports and applications'!F34 -> 
A12: ='Fert. imports and applications'!C35 -> 0 | B12: ='Fert. imports and applications'!G35 -> 0 | C12: ='Fert. imports and applications'!I35 -> 0 | D12: =_xlfn.XLOOKUP("*"&B12&"*",'Farm Crop Production'!$C$8:$C$31,'Farm Crop Production'!$H$8:$H$31, "Acres not found, check",2,1) -> Acres not found, check | E12: ='Fert. imports and applications'!K35 -> 0 | F12: ='Fert. imports and applications'!J35 -> 0 | H12: ='Fert. imports and applications'!D35 ->  | L12: ='Fert. imports and applications'!E35 ->  | M12: ='Fert. imports and applications'!F35 -> 
A13: ='Fert. imports and applications'!C36 -> 0 | B13: ='Fert. imports and applications'!G36 -> 0 | C13: ='Fert. imports and applications'!I36 -> 0 | D13: =_xlfn.XLOOKUP("*"&B13&"*",'Farm Crop Production'!$C$8:$C$31,'Farm Crop Production'!$H$8:$H$31, "Acres not found, check",2,1) -> Acres not found, check | E13: ='Fert. imports and applications'!K36 -> 0 | F13: ='Fert. imports and applications'!J36 -> 0 | H13: ='Fert. imports and applications'!D36 ->  | L13: ='Fert. imports and applications'!E36 ->  | M13: ='Fert. imports and applications'!F36 -> 
A14: ='Fert. imports and applications'!C37 -> 0 | B14: ='Fert. imports and applications'!G37 -> 0 | C14: ='Fert. imports and applications'!I37 -> 0 | D14: =_xlfn.XLOOKUP("*"&B14&"*",'Farm Crop Production'!$C$8:$C$31,'Farm Crop Production'!$H$8:$H$31, "Acres not found, check",2,1) -> Acres not found, check | E14: ='Fert. imports and applications'!K37 -> 0 | F14: ='Fert. imports and applications'!J37 -> 0 | H14: ='Fert. imports and applications'!D37 ->  | L14: ='Fert. imports and applications'!E37 ->  | M14: ='Fert. imports and applications'!F37 -> 
A15: ='Fert. imports and applications'!C38 -> 0 | B15: ='Fert. imports and applications'!G38 -> 0 | C15: ='Fert. imports and applications'!I38 -> 0 | D15: =_xlfn.XLOOKUP("*"&B15&"*",'Farm Crop Production'!$C$8:$C$31,'Farm Crop Production'!$H$8:$H$31, "Acres not found, check",2,1) -> Acres not found, check | E15: ='Fert. imports and applications'!K38 -> 0 | F15: ='Fert. imports and applications'!J38 -> 0 | H15: ='Fert. imports and applications'!D38 ->  | L15: ='Fert. imports and applications'!E38 ->  | M15: ='Fert. imports and applications'!F38 -> 
A16: ='Fert. imports and applications'!C39 -> 0 | B16: ='Fert. imports and applications'!G39 -> 0 | C16: ='Fert. imports and applications'!I39 -> 0 | D16: =_xlfn.XLOOKUP("*"&B16&"*",'Farm Crop Production'!$C$8:$C$31,'Farm Crop Production'!$H$8:$H$31, "Acres not found, check",2,1) -> Acres not found, check | E16: ='Fert. imports and applications'!K39 -> 0 | F16: ='Fert. imports and applications'!J39 -> 0 | H16: ='Fert. imports and applications'!D39 ->  | L16: ='Fert. imports and applications'!E39 ->  | M16: ='Fert. imports and applications'!F39 -> 
A17: ='Fert. imports and applications'!C40 -> 0 | B17: ='Fert. imports and applications'!G40 -> 0 | C17: ='Fert. imports and applications'!I40 -> 0 | D17: =_xlfn.XLOOKUP("*"&B17&"*",'Farm Crop Production'!$C$8:$C$31,'Farm Crop Production'!$H$8:$H$31, "Acres not found, check",2,1) -> Acres not found, check | E17: ='Fert. imports and applications'!K40 -> 0 | F17: ='Fert. imports and applications'!J40 -> 0 | H17: ='Fert. imports and applications'!D40 ->  | L17: ='Fert. imports and applications'!E40 ->  | M17: ='Fert. imports and applications'!F40 -> 
A18: ='Fert. imports and applications'!C41 -> 0 | B18: ='Fert. imports and applications'!G41 -> 0 | C18: ='Fert. imports and applications'!I41 -> 0 | D18: =_xlfn.XLOOKUP("*"&B18&"*",'Farm Crop Production'!$C$8:$C$31,'Farm Crop Production'!$H$8:$H$31, "Acres not found, check",2,1) -> Acres not found, check | E18: ='Fert. imports and applications'!K41 -> 0 | F18: ='Fert. imports and applications'!J41 -> 0 | H18: ='Fert. imports and applications'!D41 ->  | L18: ='Fert. imports and applications'!E41 ->  | M18: ='Fert. imports and applications'!F41 ->  | P18: The information for fertilizer and manure should autofill from the Fert imports sheet. However, these numbers will need to be double checked to ensure correctness- especially for the manure section. For manure, this sheet will ONLY work for manure app rates that are inputted as kga/ac or gal/ac. Manure applied that has a rate in lbs, tons, or other must be calculated by hand. However, many farms list this data as kgal or gal.
A19: ='Fert. imports and applications'!C42 -> 0 | B19: ='Fert. imports and applications'!G42 -> 0 | C19: ='Fert. imports and applications'!I42 -> 0 | D19: =_xlfn.XLOOKUP("*"&B19&"*",'Farm Crop Production'!$C$8:$C$31,'Farm Crop Production'!$H$8:$H$31, "Acres not found, check",2,1) -> Acres not found, check | E19: ='Fert. imports and applications'!K42 -> 0 | F19: ='Fert. imports and applications'!J42 -> 0 | H19: ='Fert. imports and applications'!D42 ->  | L19: ='Fert. imports and applications'!E42 ->  | M19: ='Fert. imports and applications'!F42 -> 
A20: ='Fert. imports and applications'!C43 -> 0 | B20: ='Fert. imports and applications'!G43 -> 0 | C20: ='Fert. imports and applications'!I43 -> 0 | D20: =_xlfn.XLOOKUP("*"&B20&"*",'Farm Crop Production'!$C$8:$C$31,'Farm Crop Production'!$H$8:$H$31, "Acres not found, check",2,1) -> Acres not found, check | E20: ='Fert. imports and applications'!K43 -> 0 | F20: ='Fert. imports and applications'!J43 -> 0 | H20: ='Fert. imports and applications'!D43 ->  | L20: ='Fert. imports and applications'!E43 ->  | M20: ='Fert. imports and applications'!F43 -> 
A21: ='Fert. imports and applications'!C44 -> 0 | B21: ='Fert. imports and applications'!G44 -> 0 | C21: ='Fert. imports and applications'!I44 -> 0 | D21: =_xlfn.XLOOKUP("*"&B21&"*",'Farm Crop Production'!$C$8:$C$31,'Farm Crop Production'!$H$8:$H$31, "Acres not found, check",2,1) -> Acres not found, check | E21: ='Fert. imports and applications'!K44 -> 0 | F21: ='Fert. imports and applications'!J44 -> 0 | H21: ='Fert. imports and applications'!D44 ->  | L21: ='Fert. imports and applications'!E44 ->  | M21: ='Fert. imports and applications'!F44 -> 
A22: ='Fert. imports and applications'!C45 -> 0 | B22: ='Fert. imports and applications'!G45 -> 0 | C22: ='Fert. imports and applications'!I45 -> 0 | D22: =_xlfn.XLOOKUP("*"&B22&"*",'Farm Crop Production'!$C$8:$C$31,'Farm Crop Production'!$H$8:$H$31, "Acres not found, check",2,1) -> Acres not found, check | E22: ='Fert. imports and applications'!K45 -> 0 | F22: ='Fert. imports and applications'!J45 -> 0 | H22: ='Fert. imports and applications'!D45 ->  | L22: ='Fert. imports and applications'!E45 ->  | M22: ='Fert. imports and applications'!F45 -> 
A23: ='Fert. imports and applications'!C46 -> 0 | B23: ='Fert. imports and applications'!G46 -> 0 | C23: ='Fert. imports and applications'!I46 -> 0 | D23: =_xlfn.XLOOKUP("*"&B23&"*",'Farm Crop Production'!$C$8:$C$31,'Farm Crop Production'!$H$8:$H$31, "Acres not found, check",2,1) -> Acres not found, check | E23: ='Fert. imports and applications'!K46 -> 0 | F23: ='Fert. imports and applications'!J46 -> 0 | H23: ='Fert. imports and applications'!D46 ->  | L23: ='Fert. imports and applications'!E46 ->  | M23: ='Fert. imports and applications'!F46 -> 
A24: ='Fert. imports and applications'!C47 -> 0 | B24: ='Fert. imports and applications'!G47 -> 0 | C24: ='Fert. imports and applications'!I47 -> 0 | D24: =_xlfn.XLOOKUP("*"&B24&"*",'Farm Crop Production'!$C$8:$C$31,'Farm Crop Production'!$H$8:$H$31, "Acres not found, check",2,1) -> Acres not found, check | E24: ='Fert. imports and applications'!K47 -> 0 | F24: ='Fert. imports and applications'!J47 -> 0 | H24: ='Fert. imports and applications'!D47 ->  | L24: ='Fert. imports and applications'!E47 ->  | M24: ='Fert. imports and applications'!F47 -> 
A25: ='Fert. imports and applications'!C48 -> 0 | B25: ='Fert. imports and applications'!G48 -> 0 | C25: ='Fert. imports and applications'!I48 -> 0 | D25: =_xlfn.XLOOKUP("*"&B25&"*",'Farm Crop Production'!$C$8:$C$31,'Farm Crop Production'!$H$8:$H$31, "Acres not found, check",2,1) -> Acres not found, check | E25: ='Fert. imports and applications'!K48 -> 0 | F25: ='Fert. imports and applications'!J48 -> 0 | H25: ='Fert. imports and applications'!D48 ->  | L25: ='Fert. imports and applications'!E48 ->  | M25: ='Fert. imports and applications'!F48 -> 
A26: ='Fert. imports and applications'!C49 -> 0 | B26: ='Fert. imports and applications'!G49 -> 0 | C26: ='Fert. imports and applications'!I49 -> 0 | D26: =_xlfn.XLOOKUP("*"&B26&"*",'Farm Crop Production'!$C$8:$C$31,'Farm Crop Production'!$H$8:$H$31, "Acres not found, check",2,1) -> Acres not found, check | E26: ='Fert. imports and applications'!K49 -> 0 | F26: ='Fert. imports and applications'!J49 -> 0 | H26: ='Fert. imports and applications'!D49 ->  | L26: ='Fert. imports and applications'!E49 ->  | M26: ='Fert. imports and applications'!F49 -> 
A27: ='Fert. imports and applications'!C50 -> 0 | B27: ='Fert. imports and applications'!G50 -> 0 | C27: ='Fert. imports and applications'!I50 -> 0 | D27: =_xlfn.XLOOKUP("*"&B27&"*",'Farm Crop Production'!$C$8:$C$31,'Farm Crop Production'!$H$8:$H$31, "Acres not found, check",2,1) -> Acres not found, check | E27: ='Fert. imports and applications'!K50 -> 0 | F27: ='Fert. imports and applications'!J50 -> 0 | H27: ='Fert. imports and applications'!D50 ->  | L27: ='Fert. imports and applications'!E50 ->  | M27: ='Fert. imports and applications'!F50 -> 
A28: ='Fert. imports and applications'!C51 -> 0 | B28: ='Fert. imports and applications'!G51 -> 0 | C28: ='Fert. imports and applications'!I51 -> 0 | D28: =_xlfn.XLOOKUP("*"&B28&"*",'Farm Crop Production'!$C$8:$C$31,'Farm Crop Production'!$H$8:$H$31, "Acres not found, check",2,1) -> Acres not found, check | E28: ='Fert. imports and applications'!K51 -> 0 | F28: ='Fert. imports and applications'!J51 -> 0 | H28: ='Fert. imports and applications'!D51 ->  | J28: =H28*0.25 ->  | L28: ='Fert. imports and applications'!E51 ->  | M28: ='Fert. imports and applications'!F51 -> 
D29: =_xlfn.XLOOKUP("*"&B29&"*",'Farm Crop Production'!C30:C54,'Farm Crop Production'!H30:H54, "Acres not found, check",2,1) -> 0
A33: Manure Applications | C33: NOTE: THIS SHEET WILL ONLY WORK FOR APPLICATIONS IN KGAL/AC OR GAL/AC
A34: Manure storage | B34: Total N | C34: Manure sample units | D34: Crop | E34: Application acres | F34: Crop acres | G34: Application rate | H34: Application units | I34: Adjusted units of N/ac
A35: Autofill | B35: Autofill | C35: Autofill | D35: Autofill | E35: Autofill | F35: Autofill | G35: Autofill | H35: Autofill- must be in kgal or gal | I35: Use this:
A36: ='Fert. imports and applications'!C83 -> 0 | B36: ='Fert. imports and applications'!D83 ->  | C36: ='Fert. imports and applications'!G83 ->  | D36: ='Fert. imports and applications'!H83 -> 0 | E36: ='Fert. imports and applications'!J83 -> 0 | F36: =_xlfn.XLOOKUP(D36,'Farm Crop Production'!$C$8:$C$31,'Farm Crop Production'!$H$8:$H$31, "Acres not found, please check", 0,1) -> Acres not found, please check | G36: ='Fert. imports and applications'!K83 -> 0 | H36: ='Fert. imports and applications'!L83 -> 0 | I36: =(E36/F36)*IF(ISNUMBER(SEARCH("kgal",H36)),(G36*B36),((G36/1000)*B36)) ->  | J36: **Remember to select Units of N when inputting manure
A37: ='Fert. imports and applications'!C84 -> 0 | B37: ='Fert. imports and applications'!D84 ->  | C37: ='Fert. imports and applications'!G84 ->  | D37: ='Fert. imports and applications'!H84 -> 0 | E37: ='Fert. imports and applications'!J84 -> 0 | F37: =_xlfn.XLOOKUP(D37,'Farm Crop Production'!$C$8:$C$31,'Farm Crop Production'!$H$8:$H$31, "Acres not found, please check", 0,1) -> Acres not found, please check | G37: ='Fert. imports and applications'!K84 -> 0 | H37: ='Fert. imports and applications'!L84 -> 0
A38: ='Fert. imports and applications'!C85 -> 0 | B38: ='Fert. imports and applications'!D85 ->  | C38: ='Fert. imports and applications'!G85 ->  | D38: ='Fert. imports and applications'!H85 -> 0 | E38: ='Fert. imports and applications'!J85 -> 0 | F38: =_xlfn.XLOOKUP(D38,'Farm Crop Production'!$C$8:$C$31,'Farm Crop Production'!$H$8:$H$31, "Acres not found, please check", 0,1) -> Acres not found, please check | G38: ='Fert. imports and applications'!K85 -> 0 | H38: ='Fert. imports and applications'!L85 -> 0
A39: ='Fert. imports and applications'!C86 -> 0 | B39: ='Fert. imports and applications'!D86 ->  | C39: ='Fert. imports and applications'!G86 ->  | D39: ='Fert. imports and applications'!H86 -> 0 | E39: ='Fert. imports and applications'!J86 -> 0 | F39: =_xlfn.XLOOKUP(D39,'Farm Crop Production'!$C$8:$C$31,'Farm Crop Production'!$H$8:$H$31, "Acres not found, please check", 0,1) -> Acres not found, please check | G39: ='Fert. imports and applications'!K86 -> 0 | H39: ='Fert. imports and applications'!L86 -> 0
A40: ='Fert. imports and applications'!C87 -> 0 | B40: ='Fert. imports and applications'!D87 ->  | C40: ='Fert. imports and applications'!G87 ->  | D40: ='Fert. imports and applications'!H87 -> 0 | E40: ='Fert. imports and applications'!J87 -> 0 | F40: =_xlfn.XLOOKUP(D40,'Farm Crop Production'!$C$8:$C$31,'Farm Crop Production'!$H$8:$H$31, "Acres not found, please check", 0,1) -> Acres not found, please check | G40: ='Fert. imports and applications'!K87 -> 0 | H40: ='Fert. imports and applications'!L87 -> 0
A41: ='Fert. imports and applications'!C88 -> 0 | B41: ='Fert. imports and applications'!D88 ->  | C41: ='Fert. imports and applications'!G88 ->  | D41: ='Fert. imports and applications'!H88 -> 0 | E41: ='Fert. imports and applications'!J88 -> 0 | F41: =_xlfn.XLOOKUP(D41,'Farm Crop Production'!$C$8:$C$31,'Farm Crop Production'!$H$8:$H$31, "Acres not found, please check", 0,1) -> Acres not found, please check | G41: ='Fert. imports and applications'!K88 -> 0 | H41: ='Fert. imports and applications'!L88 -> 0
A42: ='Fert. imports and applications'!C89 -> 0 | B42: ='Fert. imports and applications'!D89 ->  | C42: ='Fert. imports and applications'!G89 ->  | D42: ='Fert. imports and applications'!H89 -> 0 | E42: ='Fert. imports and applications'!J89 -> 0 | F42: =_xlfn.XLOOKUP(D42,'Farm Crop Production'!$C$8:$C$31,'Farm Crop Production'!$H$8:$H$31, "Acres not found, please check", 0,1) -> Acres not found, please check | G42: ='Fert. imports and applications'!K89 -> 0 | H42: ='Fert. imports and applications'!L89 -> 0
A43: ='Fert. imports and applications'!C90 -> 0 | B43: ='Fert. imports and applications'!D90 ->  | C43: ='Fert. imports and applications'!G90 ->  | D43: ='Fert. imports and applications'!H90 -> 0 | E43: ='Fert. imports and applications'!J90 -> 0 | F43: =_xlfn.XLOOKUP(D43,'Farm Crop Production'!$C$8:$C$31,'Farm Crop Production'!$H$8:$H$31, "Acres not found, please check", 0,1) -> Acres not found, please check | G43: ='Fert. imports and applications'!K90 -> 0 | H43: ='Fert. imports and applications'!L90 -> 0
A44: ='Fert. imports and applications'!C91 -> 0 | B44: ='Fert. imports and applications'!D91 ->  | C44: ='Fert. imports and applications'!G91 ->  | D44: ='Fert. imports and applications'!H91 -> 0 | E44: ='Fert. imports and applications'!J91 -> 0 | F44: =_xlfn.XLOOKUP(D44,'Farm Crop Production'!$C$8:$C$31,'Farm Crop Production'!$H$8:$H$31, "Acres not found, please check", 0,1) -> Acres not found, please check | G44: ='Fert. imports and applications'!K91 -> 0 | H44: ='Fert. imports and applications'!L91 -> 0
A45: ='Fert. imports and applications'!C92 -> 0 | B45: ='Fert. imports and applications'!D92 ->  | C45: ='Fert. imports and applications'!G92 ->  | D45: ='Fert. imports and applications'!H92 -> 0 | E45: ='Fert. imports and applications'!J92 -> 0 | F45: =_xlfn.XLOOKUP(D45,'Farm Crop Production'!$C$8:$C$31,'Farm Crop Production'!$H$8:$H$31, "Acres not found, please check", 0,1) -> Acres not found, please check | G45: ='Fert. imports and applications'!K92 -> 0 | H45: ='Fert. imports and applications'!L92 -> 0
A46: ='Fert. imports and applications'!C93 -> 0 | B46: ='Fert. imports and applications'!D93 ->  | C46: ='Fert. imports and applications'!G93 ->  | D46: ='Fert. imports and applications'!H93 -> 0 | E46: ='Fert. imports and applications'!J93 -> 0 | F46: =_xlfn.XLOOKUP(D46,'Farm Crop Production'!$C$8:$C$31,'Farm Crop Production'!$H$8:$H$31, "Acres not found, please check", 0,1) -> Acres not found, please check | G46: ='Fert. imports and applications'!K93 -> 0 | H46: ='Fert. imports and applications'!L93 -> 0
A47: ='Fert. imports and applications'!C94 -> 0 | B47: ='Fert. imports and applications'!D94 ->  | C47: ='Fert. imports and applications'!G94 ->  | D47: ='Fert. imports and applications'!H94 -> 0 | E47: ='Fert. imports and applications'!J94 -> 0 | F47: =_xlfn.XLOOKUP(D47,'Farm Crop Production'!$C$8:$C$31,'Farm Crop Production'!$H$8:$H$31, "Acres not found, please check", 0,1) -> Acres not found, please check | G47: ='Fert. imports and applications'!K94 -> 0 | H47: ='Fert. imports and applications'!L94 -> 0
A48: ='Fert. imports and applications'!C95 -> 0 | B48: ='Fert. imports and applications'!D95 ->  | C48: ='Fert. imports and applications'!G95 ->  | D48: ='Fert. imports and applications'!H95 -> 0 | E48: ='Fert. imports and applications'!J95 -> 0 | F48: =_xlfn.XLOOKUP(D48,'Farm Crop Production'!$C$8:$C$31,'Farm Crop Production'!$H$8:$H$31, "Acres not found, please check", 0,1) -> Acres not found, please check | G48: ='Fert. imports and applications'!K95 -> 0 | H48: ='Fert. imports and applications'!L95 -> 0
A49: ='Fert. imports and applications'!C96 -> 0 | B49: ='Fert. imports and applications'!D96 ->  | C49: ='Fert. imports and applications'!G96 ->  | D49: ='Fert. imports and applications'!H96 -> 0 | E49: ='Fert. imports and applications'!J96 -> 0 | F49: =_xlfn.XLOOKUP(D49,'Farm Crop Production'!$C$8:$C$31,'Farm Crop Production'!$H$8:$H$31, "Acres not found, please check", 0,1) -> Acres not found, please check | G49: ='Fert. imports and applications'!K96 -> 0 | H49: ='Fert. imports and applications'!L96 -> 0
A50: ='Fert. imports and applications'!C97 -> 0 | B50: ='Fert. imports and applications'!D97 ->  | C50: ='Fert. imports and applications'!G97 ->  | D50: ='Fert. imports and applications'!H97 -> 0 | E50: ='Fert. imports and applications'!J97 -> 0 | F50: =_xlfn.XLOOKUP(D50,'Farm Crop Production'!$C$8:$C$31,'Farm Crop Production'!$H$8:$H$31, "Acres not found, please check", 0,1) -> Acres not found, please check | G50: ='Fert. imports and applications'!K97 -> 0 | H50: ='Fert. imports and applications'!L97 -> 0
A51: ='Fert. imports and applications'!C98 -> 0 | B51: ='Fert. imports and applications'!D98 ->  | C51: ='Fert. imports and applications'!G98 ->  | D51: ='Fert. imports and applications'!H98 -> 0 | E51: ='Fert. imports and applications'!J98 -> 0 | F51: =_xlfn.XLOOKUP(D51,'Farm Crop Production'!$C$8:$C$31,'Farm Crop Production'!$H$8:$H$31, "Acres not found, please check", 0,1) -> Acres not found, please check | G51: ='Fert. imports and applications'!K98 -> 0 | H51: ='Fert. imports and applications'!L98 -> 0

Sheet Animal imports
C5: Imports: Animals
C6: Type | D6: Description | E6: Number | F6: Weight | G6: Distance transported/purchase location (one way) | I6: Comments:
F7: lb / head | Q7: Animals | R7: Number | S7: Weight | T7: CONCAT
Q8: =D8 -> 0 | R8: =IF(ISBLANK($D8), "No animals imported", IF(ISBLANK(E8), "Missing animal numbers", "Good")) -> No animals imported | S8: =IF(ISBLANK($D8), "No animals imported", IF(ISBLANK(F8), "Missing animal weights", "Good")) -> No animals imported | T8: =IF(SUMPRODUCT(--ISNUMBER(SEARCH("No animals imported", R8:S8)))>0, "", IF(SUMPRODUCT(--ISNUMBER(SEARCH("missing", R8:S8)))>0, D8 & ": " & _xlfn.TEXTJOIN(" , ", TRUE, _xlfn._xlws.FILTER(R8:S8, ISNUMBER(SEARCH("missing", R8:S8)))), "")) -> 
Q9: =D9 -> 0 | R9: =IF(ISBLANK($D9), "No animals imported", IF(ISBLANK(E9), "Missing animal numbers", "Good")) -> No animals imported | S9: =IF(ISBLANK($D9), "No animals imported", IF(ISBLANK(F9), "Missing animal weights", "Good")) -> No animals imported | T9: =IF(SUMPRODUCT(--ISNUMBER(SEARCH("No animals imported", R9:S9)))>0, "", IF(SUMPRODUCT(--ISNUMBER(SEARCH("missing", R9:S9)))>0, D9 & ": " & _xlfn.TEXTJOIN(" , ", TRUE, _xlfn._xlws.FILTER(R9:S9, ISNUMBER(SEARCH("missing", R9:S9)))), "")) -> 
Q10: 0 | R10: No animals imported | S10: No animals imported | T10: =IF(SUMPRODUCT(--ISNUMBER(SEARCH("No animals imported", R10:S10)))>0, "", IF(SUMPRODUCT(--ISNUMBER(SEARCH("missing", R10:S10)))>0, D10 & ": " & _xlfn.TEXTJOIN(" , ", TRUE, _xlfn._xlws.FILTER(R10:S10, ISNUMBER(SEARCH("missing", R10:S10)))), "")) -> 
Q11: 0 | R11: No animals imported | S11: No animals imported | T11: =IF(SUMPRODUCT(--ISNUMBER(SEARCH("No animals imported", R11:S11)))>0, "", IF(SUMPRODUCT(--ISNUMBER(SEARCH("missing", R11:S11)))>0, D11 & ": " & _xlfn.TEXTJOIN(" , ", TRUE, _xlfn._xlws.FILTER(R11:S11, ISNUMBER(SEARCH("missing", R11:S11)))), "")) -> 
Q12: 0 | R12: No animals imported | S12: No animals imported | T12: =IF(SUMPRODUCT(--ISNUMBER(SEARCH("No animals imported", R12:S12)))>0, "", IF(SUMPRODUCT(--ISNUMBER(SEARCH("missing", R12:S12)))>0, D12 & ": " & _xlfn.TEXTJOIN(" , ", TRUE, _xlfn._xlws.FILTER(R12:S12, ISNUMBER(SEARCH("missing", R12:S12)))), "")) -> 
Q13: 0 | R13: No animals imported | S13: No animals imported | T13: =IF(SUMPRODUCT(--ISNUMBER(SEARCH("No animals imported", R13:S13)))>0, "", IF(SUMPRODUCT(--ISNUMBER(SEARCH("missing", R13:S13)))>0, D13 & ": " & _xlfn.TEXTJOIN(" , ", TRUE, _xlfn._xlws.FILTER(R13:S13, ISNUMBER(SEARCH("missing", R13:S13)))), "")) -> 
Q14: 0 | R14: No animals imported | S14: No animals imported | T14: =IF(SUMPRODUCT(--ISNUMBER(SEARCH("No animals imported", R14:S14)))>0, "", IF(SUMPRODUCT(--ISNUMBER(SEARCH("missing", R14:S14)))>0, D14 & ": " & _xlfn.TEXTJOIN(" , ", TRUE, _xlfn._xlws.FILTER(R14:S14, ISNUMBER(SEARCH("missing", R14:S14)))), "")) -> 
Q15: 0 | R15: No animals imported | S15: No animals imported | T15: =IF(SUMPRODUCT(--ISNUMBER(SEARCH("No animals imported", R15:S15)))>0, "", IF(SUMPRODUCT(--ISNUMBER(SEARCH("missing", R15:S15)))>0, D15 & ": " & _xlfn.TEXTJOIN(" , ", TRUE, _xlfn._xlws.FILTER(R15:S15, ISNUMBER(SEARCH("missing", R15:S15)))), "")) -> 
Q16: 0 | R16: No animals imported | S16: No animals imported | T16: =IF(SUMPRODUCT(--ISNUMBER(SEARCH("No animals imported", R16:S16)))>0, "", IF(SUMPRODUCT(--ISNUMBER(SEARCH("missing", R16:S16)))>0, D16 & ": " & _xlfn.TEXTJOIN(" , ", TRUE, _xlfn._xlws.FILTER(R16:S16, ISNUMBER(SEARCH("missing", R16:S16)))), "")) -> 
Q17: 0 | R17: No animals imported | S17: No animals imported | T17: =IF(SUMPRODUCT(--ISNUMBER(SEARCH("No animals imported", R17:S17)))>0, "", IF(SUMPRODUCT(--ISNUMBER(SEARCH("missing", R17:S17)))>0, D17 & ": " & _xlfn.TEXTJOIN(" , ", TRUE, _xlfn._xlws.FILTER(R17:S17, ISNUMBER(SEARCH("missing", R17:S17)))), "")) -> 
Q18: 0 | R18: No animals imported | S18: No animals imported | T18: =IF(SUMPRODUCT(--ISNUMBER(SEARCH("No animals imported", R18:S18)))>0, "", IF(SUMPRODUCT(--ISNUMBER(SEARCH("missing", R18:S18)))>0, D18 & ": " & _xlfn.TEXTJOIN(" , ", TRUE, _xlfn._xlws.FILTER(R18:S18, ISNUMBER(SEARCH("missing", R18:S18)))), "")) -> 
C20: - Imports should include any heifers/dry cows/other animals that come back to the farm during the assessment year after a period of time off-farm if you did not provide their feed and handle their manure.

Sheet Miscellaneous imports
C5: Imports: Miscellaneous (bedding, manure, food waste)
C6: Import | D6: Amount | E6: Units | F6: % DM | G6: N | H6: N listed as CP%? | I6: P | J6: K | K6: Units | L6: Distance transported/purchase location (one way) | P6: Import | Q6: Amt | R6: Units | S6: %DM | T6: N | U6: P | V6: K | W6: NPK units | X6: CONCAT
K7: as sampled | P7: =C8 -> 0 | Q7: =IF(ISBLANK($C8), "No misc imports", IF(ISBLANK(D8), "Missing amount imported", "Good")) -> No misc imports | R7: =IF(ISBLANK($C8), "No misc imports", IF(ISBLANK(E8), "Missing import units", "Good")) -> No misc imports | S7: =IF(ISBLANK($C8), "No misc imports", IF(ISBLANK(F8), "Missing import %DM", "Good")) -> No misc imports | T7: =IF(ISBLANK($C8), "No misc imports", IF(ISBLANK(G8), "Missing import %N", "Good")) -> No misc imports | U7: =IF(ISBLANK($C8), "No misc imports", IF(ISBLANK(I8), "Missing import %P", "Good")) -> No misc imports | V7: =IF(ISBLANK($C8), "No misc imports", IF(ISBLANK(J8), "Missing import %K", "Good")) -> No misc imports | W7: =IF(ISBLANK($C8), "No misc imports", IF(ISBLANK(K8), "Missing NPK units as sampled", "Good")) -> No misc imports | X7: =IF(SUMPRODUCT(--ISNUMBER(SEARCH("No misc imports", Q7:W7)))>0, "", IF(SUMPRODUCT(--ISNUMBER(SEARCH("missing", Q7:W7)))>0, P7 & ": " & _xlfn.TEXTJOIN(" , ", TRUE, _xlfn._xlws.FILTER(Q7:W7, ISNUMBER(SEARCH("missing", Q7:W7)))), "")) -> 
H8: FALSE | P8: 0 | Q8: No misc imports | R8: No misc imports | S8: No misc imports | T8: No misc imports | U8: No misc imports | V8: No misc imports | W8: No misc imports | X8: =IF(SUMPRODUCT(--ISNUMBER(SEARCH("No misc imports", Q8:W8)))>0, "", IF(SUMPRODUCT(--ISNUMBER(SEARCH("missing", Q8:W8)))>0, P8 & ": " & _xlfn.TEXTJOIN(" , ", TRUE, _xlfn._xlws.FILTER(Q8:W8, ISNUMBER(SEARCH("missing", Q8:W8)))), "")) -> 
H9: FALSE | P9: 0 | Q9: No misc imports | R9: No misc imports | S9: No misc imports | T9: No misc imports | U9: No misc imports | V9: No misc imports | W9: No misc imports | X9: =IF(SUMPRODUCT(--ISNUMBER(SEARCH("No misc imports", Q9:W9)))>0, "", IF(SUMPRODUCT(--ISNUMBER(SEARCH("missing", Q9:W9)))>0, P9 & ": " & _xlfn.TEXTJOIN(" , ", TRUE, _xlfn._xlws.FILTER(Q9:W9, ISNUMBER(SEARCH("missing", Q9:W9)))), "")) -> 
H10: FALSE | P10: 0 | Q10: No misc imports | R10: No misc imports | S10: No misc imports | T10: No misc imports | U10: No misc imports | V10: No misc imports | W10: No misc imports | X10: =IF(SUMPRODUCT(--ISNUMBER(SEARCH("No misc imports", Q10:W10)))>0, "", IF(SUMPRODUCT(--ISNUMBER(SEARCH("missing", Q10:W10)))>0, P10 & ": " & _xlfn.TEXTJOIN(" , ", TRUE, _xlfn._xlws.FILTER(Q10:W10, ISNUMBER(SEARCH("missing", Q10:W10)))), "")) -> 
H11: FALSE | P11: 0 | Q11: No misc imports | R11: No misc imports | S11: No misc imports | T11: No misc imports | U11: No misc imports | V11: No misc imports | W11: No misc imports | X11: =IF(SUMPRODUCT(--ISNUMBER(SEARCH("No misc imports", Q11:W11)))>0, "", IF(SUMPRODUCT(--ISNUMBER(SEARCH("missing", Q11:W11)))>0, P11 & ": " & _xlfn.TEXTJOIN(" , ", TRUE, _xlfn._xlws.FILTER(Q11:W11, ISNUMBER(SEARCH("missing", Q11:W11)))), "")) -> 
H12: FALSE | P12: 0 | Q12: No misc imports | R12: No misc imports | S12: No misc imports | T12: No misc imports | U12: No misc imports | V12: No misc imports | W12: No misc imports | X12: =IF(SUMPRODUCT(--ISNUMBER(SEARCH("No misc imports", Q12:W12)))>0, "", IF(SUMPRODUCT(--ISNUMBER(SEARCH("missing", Q12:W12)))>0, P12 & ": " & _xlfn.TEXTJOIN(" , ", TRUE, _xlfn._xlws.FILTER(Q12:W12, ISNUMBER(SEARCH("missing", Q12:W12)))), "")) -> 
H13: FALSE | P13: 0 | Q13: No misc imports | R13: No misc imports | S13: No misc imports | T13: No misc imports | U13: No misc imports | V13: No misc imports | W13: No misc imports | X13: =IF(SUMPRODUCT(--ISNUMBER(SEARCH("No misc imports", Q13:W13)))>0, "", IF(SUMPRODUCT(--ISNUMBER(SEARCH("missing", Q13:W13)))>0, P13 & ": " & _xlfn.TEXTJOIN(" , ", TRUE, _xlfn._xlws.FILTER(Q13:W13, ISNUMBER(SEARCH("missing", Q13:W13)))), "")) -> 
H14: FALSE | P14: 0 | Q14: No misc imports | R14: No misc imports | S14: No misc imports | T14: No misc imports | U14: No misc imports | V14: No misc imports | W14: No misc imports | X14: =IF(SUMPRODUCT(--ISNUMBER(SEARCH("No misc imports", Q14:W14)))>0, "", IF(SUMPRODUCT(--ISNUMBER(SEARCH("missing", Q14:W14)))>0, P14 & ": " & _xlfn.TEXTJOIN(" , ", TRUE, _xlfn._xlws.FILTER(Q14:W14, ISNUMBER(SEARCH("missing", Q14:W14)))), "")) -> 
J17: Comments:
C18: Energy and fuel use
C19: Source | D19: Amount used | E19: Amount exported | F19: Units | G19: % used for dairy activities (approx) | H19: The approximate % of each energy type used for strictly dairy operations (cropping, barns, parlor, equipment etc). Non-dairy usage includes household and personal energy use. | U19: Energy source | V19: Amt | W19: Units | X19: CONCAT
U20: =C20 -> 0 | V20: =IF(ISBLANK($C20), "No energy imports", IF(ISBLANK(D20), "Missing energy import units", "Good")) -> No energy imports | W20: =IF(ISBLANK($C20), "No energy imports", IF(ISBLANK(F20), "Missing energy imports", "Good")) -> No energy imports | X20: =IF(SUMPRODUCT(--ISNUMBER(SEARCH("No energy imports", V20:W20)))>0, "", IF(SUMPRODUCT(--ISNUMBER(SEARCH("missing",V20:W20)))>0, U20 & ": " & _xlfn.TEXTJOIN(" , ", TRUE, _xlfn._xlws.FILTER(V20:W20, ISNUMBER(SEARCH("missing", V20:W20)))), "")) -> 
U21: =C21 -> 0 | V21: =IF(ISBLANK($C21), "No energy imports", IF(ISBLANK(D21), "Missing energy import units", "Good")) -> No energy imports | W21: =IF(ISBLANK($C21), "No energy imports", IF(ISBLANK(F21), "Missing energy imports", "Good")) -> No energy imports | X21: =IF(SUMPRODUCT(--ISNUMBER(SEARCH("No energy imports", V21:W21)))>0, "", IF(SUMPRODUCT(--ISNUMBER(SEARCH("missing",V21:W21)))>0, U21 & ": " & _xlfn.TEXTJOIN(" , ", TRUE, _xlfn._xlws.FILTER(V21:W21, ISNUMBER(SEARCH("missing", V21:W21)))), "")) -> 
U22: 0 | V22: No energy imports | W22: No energy imports | X22: =IF(SUMPRODUCT(--ISNUMBER(SEARCH("No energy imports", V22:W22)))>0, "", IF(SUMPRODUCT(--ISNUMBER(SEARCH("missing",V22:W22)))>0, U22 & ": " & _xlfn.TEXTJOIN(" , ", TRUE, _xlfn._xlws.FILTER(V22:W22, ISNUMBER(SEARCH("missing", V22:W22)))), "")) -> 
U23: 0 | V23: No energy imports | W23: No energy imports | X23: =IF(SUMPRODUCT(--ISNUMBER(SEARCH("No energy imports", V23:W23)))>0, "", IF(SUMPRODUCT(--ISNUMBER(SEARCH("missing",V23:W23)))>0, U23 & ": " & _xlfn.TEXTJOIN(" , ", TRUE, _xlfn._xlws.FILTER(V23:W23, ISNUMBER(SEARCH("missing", V23:W23)))), "")) -> 
U24: 0 | V24: No energy imports | W24: No energy imports | X24: =IF(SUMPRODUCT(--ISNUMBER(SEARCH("No energy imports", V24:W24)))>0, "", IF(SUMPRODUCT(--ISNUMBER(SEARCH("missing",V24:W24)))>0, U24 & ": " & _xlfn.TEXTJOIN(" , ", TRUE, _xlfn._xlws.FILTER(V24:W24, ISNUMBER(SEARCH("missing", V24:W24)))), "")) -> 
U25: 0 | V25: No energy imports | W25: No energy imports | X25: =IF(SUMPRODUCT(--ISNUMBER(SEARCH("No energy imports", V25:W25)))>0, "", IF(SUMPRODUCT(--ISNUMBER(SEARCH("missing",V25:W25)))>0, U25 & ": " & _xlfn.TEXTJOIN(" , ", TRUE, _xlfn._xlws.FILTER(V25:W25, ISNUMBER(SEARCH("missing", V25:W25)))), "")) -> 
U26: 0 | V26: No energy imports | W26: No energy imports | X26: =IF(SUMPRODUCT(--ISNUMBER(SEARCH("No energy imports", V26:W26)))>0, "", IF(SUMPRODUCT(--ISNUMBER(SEARCH("missing",V26:W26)))>0, U26 & ": " & _xlfn.TEXTJOIN(" , ", TRUE, _xlfn._xlws.FILTER(V26:W26, ISNUMBER(SEARCH("missing", V26:W26)))), "")) -> 
U27: 0 | V27: No energy imports | W27: No energy imports | X27: =IF(SUMPRODUCT(--ISNUMBER(SEARCH("No energy imports", V27:W27)))>0, "", IF(SUMPRODUCT(--ISNUMBER(SEARCH("missing",V27:W27)))>0, U27 & ": " & _xlfn.TEXTJOIN(" , ", TRUE, _xlfn._xlws.FILTER(V27:W27, ISNUMBER(SEARCH("missing", V27:W27)))), "")) -> 
U28: 0 | V28: No energy imports | W28: No energy imports | X28: =IF(SUMPRODUCT(--ISNUMBER(SEARCH("No energy imports", V28:W28)))>0, "", IF(SUMPRODUCT(--ISNUMBER(SEARCH("missing",V28:W28)))>0, U28 & ": " & _xlfn.TEXTJOIN(" , ", TRUE, _xlfn._xlws.FILTER(V28:W28, ISNUMBER(SEARCH("missing", V28:W28)))), "")) -> 
U29: 0 | V29: No energy imports | W29: No energy imports | X29: =IF(SUMPRODUCT(--ISNUMBER(SEARCH("No energy imports", V29:W29)))>0, "", IF(SUMPRODUCT(--ISNUMBER(SEARCH("missing",V29:W29)))>0, U29 & ": " & _xlfn.TEXTJOIN(" , ", TRUE, _xlfn._xlws.FILTER(V29:W29, ISNUMBER(SEARCH("missing", V29:W29)))), "")) -> 
U30: 0 | V30: No energy imports | W30: No energy imports | X30: =IF(SUMPRODUCT(--ISNUMBER(SEARCH("No energy imports", V30:W30)))>0, "", IF(SUMPRODUCT(--ISNUMBER(SEARCH("missing",V30:W30)))>0, U30 & ": " & _xlfn.TEXTJOIN(" , ", TRUE, _xlfn._xlws.FILTER(V30:W30, ISNUMBER(SEARCH("missing", V30:W30)))), "")) -> 
U31: 0 | V31: No energy imports | W31: No energy imports | X31: =IF(SUMPRODUCT(--ISNUMBER(SEARCH("No energy imports", V31:W31)))>0, "", IF(SUMPRODUCT(--ISNUMBER(SEARCH("missing",V31:W31)))>0, U31 & ": " & _xlfn.TEXTJOIN(" , ", TRUE, _xlfn._xlws.FILTER(V31:W31, ISNUMBER(SEARCH("missing", V31:W31)))), "")) -> 
U32: 0 | V32: No energy imports | W32: No energy imports | X32: =IF(SUMPRODUCT(--ISNUMBER(SEARCH("No energy imports", V32:W32)))>0, "", IF(SUMPRODUCT(--ISNUMBER(SEARCH("missing",V32:W32)))>0, U32 & ": " & _xlfn.TEXTJOIN(" , ", TRUE, _xlfn._xlws.FILTER(V32:W32, ISNUMBER(SEARCH("missing", V32:W32)))), "")) -> 
U33: 0 | V33: No energy imports | W33: No energy imports | X33: =IF(SUMPRODUCT(--ISNUMBER(SEARCH("No energy imports", V33:W33)))>0, "", IF(SUMPRODUCT(--ISNUMBER(SEARCH("missing",V33:W33)))>0, U33 & ": " & _xlfn.TEXTJOIN(" , ", TRUE, _xlfn._xlws.FILTER(V33:W33, ISNUMBER(SEARCH("missing", V33:W33)))), "")) -> 

Sheet CFTHelper_TRANSPORT (hidden)
A1: Transport sheet
A2: Use this sheet to determine the total miles and tons of goods transported
A3: Scroll for instructions
A4: Feed | H4: Fertilizer | O4: Animals | U4: Misc
A5: =A36 -> Total distance | B5: =B36 -> 0 | H5: =H31 -> Total distance | I5: =I31 -> 0 | O5: =O25 -> Total distance | P5: =P25 -> 0 | U5: =U21 -> Total distance | V5: =V21 -> 0
A6: =A37 -> Total tons | B6: =B37 -> 0 | H6: =H32 -> Total tons | I6: =I32 -> 0 | O6: =O26 -> Total tons | P6: =P26 -> 0 | U6: =U22 -> Total tons | V6: =V22 -> 0
A9: Distance | B9: Tons | D9: Distance (N) | E9: Tons (N) | H9: Distance | I9: Tons | K9: Distance (N) | L9: Tons (N) | O9: Distance | P9: Tons | R9: Distance (N) | S9: Tons (N) | U9: Name | V9: Distance | W9: Amount | X9: Units | Y9: Conversion to tons | AA9: Distance (N) | AB9: Tons (N)
A10: =IF(ISBLANK(INDEX('Feed imports and diets'!$D:$D,8+(ROWS(A:A)-1)*5)),"",IF(ISBLANK(INDEX('Feed imports and diets'!L:L,8+(ROWS(A:A)-1)*5)),"Missing distance transported",INDEX('Feed imports and diets'!L:L,8+(ROWS($A$1:A1)-1)*5))) -> 0 | B10: =IF(ISBLANK(INDEX('Feed imports and diets'!$D:$D,8+(ROWS(A:A)-1)*5)),"",IF(ISBLANK(INDEX('Feed imports and diets'!E:E,8+(ROWS(A:A)-1)*5)),"Missing tons",INDEX('Feed imports and diets'!E:E,8+(ROWS($A$1:B1)-1)*5))) -> 0 | D10: =N(A10) -> 0 | E10: =N(B10) -> 0 | H10: ='Fert. imports and applications'!J7 -> 0 | I10: ='Fert. imports and applications'!D7 -> 0 | K10: =N(H10) -> 0 | L10: =N(I10) -> 0 | O10: ='Animal imports'!G8 -> 0 | P10: =('Animal imports'!E8*'Animal imports'!F8)/2000 -> 0 | R10: =N(O10) -> 0 | S10: =N(P10) -> 0 | U10: ='Miscellaneous imports'!C8 -> 0 | V10: ='Miscellaneous imports'!L8 -> 0 | W10: ='Miscellaneous imports'!D8 -> 0 | X10: ='Miscellaneous imports'!E8 -> 0 | Y10: =IF(X10="tons", W10, IF(AND(OR(U10="Sawdust", "Shavings"),X10="yards"), (W10*407.5)/2000, W10)) -> 0
A11: =IF(ISBLANK(INDEX('Feed imports and diets'!D:D,8+(ROWS(A:A)-1)*5)),"",IF(ISBLANK(INDEX('Feed imports and diets'!L:L,8+(ROWS($A$1:A2)-1)*5)),"Missing distance transported",INDEX('Feed imports and diets'!L:L,8+(ROWS($A$1:A2)-1)*5))) -> Missing distance transported | B11: =IF(ISBLANK(INDEX('Feed imports and diets'!$D:$D,8+(ROWS(A:A)-1)*5)),"",IF(ISBLANK(INDEX('Feed imports and diets'!E:E,8+(ROWS(A:A)-1)*5)),"Missing distance transported",INDEX('Feed imports and diets'!E:E,8+(ROWS($A$1:B2)-1)*5))) -> 0 | D11: =N(A11) -> 0 | E11: =N(B11) -> 0 | H11: ='Fert. imports and applications'!J8 -> 0 | I11: ='Fert. imports and applications'!D8 -> 0 | K11: =N(H11) -> 0 | L11: =N(I11) -> 0 | O11: ='Animal imports'!G9 -> 0 | P11: =('Animal imports'!E9*'Animal imports'!F9)/2000 -> 0 | R11: =N(O11) -> 0 | S11: =N(P11) -> 0 | U11: ='Miscellaneous imports'!C9 -> 0 | V11: ='Miscellaneous imports'!L9 -> 0 | W11: ='Miscellaneous imports'!D9 -> 0 | X11: ='Miscellaneous imports'!E9 -> 0 | Y11: =IF(X11="tons", W11, IF(AND(OR(U11="Sawdust", "Shavings"),X11="yards"), (W11*407.5)/2000, W11)) -> 0
A12: =IF(ISBLANK(INDEX('Feed imports and diets'!D:D,8+(ROWS(A:A)-1)*5)),"",IF(ISBLANK(INDEX('Feed imports and diets'!L:L,8+(ROWS($A$1:A4)-1)*5)),"Missing distance transported",INDEX('Feed imports and diets'!L:L,8+(ROWS($A$1:A4)-1)*5))) -> Missing distance transported | B12: =IF(ISBLANK(INDEX('Feed imports and diets'!$D:$D,8+(ROWS(A:A)-1)*5)),"",IF(ISBLANK(INDEX('Feed imports and diets'!E:E,8+(ROWS(A:A)-1)*5)),"Missing distance transported",INDEX('Feed imports and diets'!E:E,8+(ROWS($A$1:B4)-1)*5))) -> 0 | D12: 0 | E12: 0 | H12: ='Fert. imports and applications'!J9 -> 0 | I12: ='Fert. imports and applications'!D9 -> 0 | K12: 0 | L12: 0 | O12: ='Animal imports'!G10 -> 0 | P12: =('Animal imports'!E10*'Animal imports'!F10)/2000 -> 0 | R12: 0 | S12: 0 | U12: ='Miscellaneous imports'!C10 -> 0 | V12: ='Miscellaneous imports'!L10 -> 0 | W12: ='Miscellaneous imports'!D10 -> 0 | X12: ='Miscellaneous imports'!E10 -> 0 | Y12: 0
A13: =IF(ISBLANK(INDEX('Feed imports and diets'!D:D,8+(ROWS(A:A)-1)*5)),"",IF(ISBLANK(INDEX('Feed imports and diets'!L:L,8+(ROWS($A$1:A9)-1)*5)),"Missing distance transported",INDEX('Feed imports and diets'!L:L,8+(ROWS($A$1:A9)-1)*5))) -> Missing distance transported | B13: =IF(ISBLANK(INDEX('Feed imports and diets'!$D:$D,8+(ROWS(A:A)-1)*5)),"",IF(ISBLANK(INDEX('Feed imports and diets'!E:E,8+(ROWS(A:A)-1)*5)),"Missing distance transported",INDEX('Feed imports and diets'!E:E,8+(ROWS($A$1:B9)-1)*5))) -> 0 | D13: 0 | E13: 0 | H13: ='Fert. imports and applications'!J10 -> 0 | I13: ='Fert. imports and applications'!D10 -> 0 | K13: 0 | L13: 0 | O13: ='Animal imports'!G11 -> 0 | P13: =('Animal imports'!E11*'Animal imports'!F11)/2000 -> 0 | R13: 0 | S13: 0 | U13: ='Miscellaneous imports'!C11 -> 0 | V13: ='Miscellaneous imports'!L11 -> 0 | W13: ='Miscellaneous imports'!D11 -> 0 | X13: ='Miscellaneous imports'!E11 -> 0 | Y13: 0
A14: =IF(ISBLANK(INDEX('Feed imports and diets'!D:D,8+(ROWS(A:A)-1)*5)),"",IF(ISBLANK(INDEX('Feed imports and diets'!L:L,8+(ROWS($A$1:A10)-1)*5)),"Missing distance transported",INDEX('Feed imports and diets'!L:L,8+(ROWS($A$1:A10)-1)*5))) -> Missing distance transported | B14: =IF(ISBLANK(INDEX('Feed imports and diets'!$D:$D,8+(ROWS(A:A)-1)*5)),"",IF(ISBLANK(INDEX('Feed imports and diets'!E:E,8+(ROWS(A:A)-1)*5)),"Missing distance transported",INDEX('Feed imports and diets'!E:E,8+(ROWS($A$1:B10)-1)*5))) -> 0 | D14: 0 | E14: 0 | H14: ='Fert. imports and applications'!J11 -> 0 | I14: ='Fert. imports and applications'!D11 -> 0 | K14: 0 | L14: 0 | O14: ='Animal imports'!G12 -> 0 | P14: =('Animal imports'!E12*'Animal imports'!F12)/2000 -> 0 | R14: 0 | S14: 0 | U14: ='Miscellaneous imports'!C12 -> 0 | V14: ='Miscellaneous imports'!L12 -> 0 | W14: ='Miscellaneous imports'!D12 -> 0 | X14: ='Miscellaneous imports'!E12 -> 0 | Y14: 0
A15: =IF(ISBLANK(INDEX('Feed imports and diets'!D:D,8+(ROWS(A:A)-1)*5)),"",IF(ISBLANK(INDEX('Feed imports and diets'!L:L,8+(ROWS($A$1:A11)-1)*5)),"Missing distance transported",INDEX('Feed imports and diets'!L:L,8+(ROWS($A$1:A11)-1)*5))) -> Missing distance transported | B15: =IF(ISBLANK(INDEX('Feed imports and diets'!$D:$D,8+(ROWS(A:A)-1)*5)),"",IF(ISBLANK(INDEX('Feed imports and diets'!E:E,8+(ROWS(A:A)-1)*5)),"Missing distance transported",INDEX('Feed imports and diets'!E:E,8+(ROWS($A$1:B11)-1)*5))) -> 0 | D15: 0 | E15: 0 | H15: ='Fert. imports and applications'!J12 -> 0 | I15: ='Fert. imports and applications'!D12 -> 0 | K15: 0 | L15: 0 | O15: ='Animal imports'!G13 -> 0 | P15: =('Animal imports'!E13*'Animal imports'!F13)/2000 -> 0 | R15: 0 | S15: 0 | U15: ='Miscellaneous imports'!C13 -> 0 | V15: ='Miscellaneous imports'!L13 -> 0 | W15: ='Miscellaneous imports'!D13 -> 0 | X15: ='Miscellaneous imports'!E13 -> 0 | Y15: 0
A16: =IF(ISBLANK(INDEX('Feed imports and diets'!D:D,8+(ROWS(A:A)-1)*5)),"",IF(ISBLANK(INDEX('Feed imports and diets'!L:L,8+(ROWS($A$1:A12)-1)*5)),"Missing distance transported",INDEX('Feed imports and diets'!L:L,8+(ROWS($A$1:A12)-1)*5))) -> Missing distance transported | B16: =IF(ISBLANK(INDEX('Feed imports and diets'!$D:$D,8+(ROWS(A:A)-1)*5)),"",IF(ISBLANK(INDEX('Feed imports and diets'!E:E,8+(ROWS(A:A)-1)*5)),"Missing distance transported",INDEX('Feed imports and diets'!E:E,8+(ROWS($A$1:B12)-1)*5))) -> 0 | D16: 0 | E16: 0 | H16: ='Fert. imports and applications'!J13 -> 0 | I16: ='Fert. imports and applications'!D13 -> 0 | K16: 0 | L16: 0 | O16: ='Animal imports'!G14 -> 0 | P16: =('Animal imports'!E14*'Animal imports'!F14)/2000 -> 0 | R16: 0 | S16: 0 | U16: ='Miscellaneous imports'!C14 -> 0 | V16: ='Miscellaneous imports'!L14 -> 0 | W16: ='Miscellaneous imports'!D14 -> 0 | X16: ='Miscellaneous imports'!E14 -> 0 | Y16: 0
A17: =IF(ISBLANK(INDEX('Feed imports and diets'!D:D,8+(ROWS(A:A)-1)*5)),"",IF(ISBLANK(INDEX('Feed imports and diets'!L:L,8+(ROWS($A$1:A13)-1)*5)),"Missing distance transported",INDEX('Feed imports and diets'!L:L,8+(ROWS($A$1:A13)-1)*5))) -> Missing distance transported | B17: =IF(ISBLANK(INDEX('Feed imports and diets'!$D:$D,8+(ROWS(A:A)-1)*5)),"",IF(ISBLANK(INDEX('Feed imports and diets'!E:E,8+(ROWS(A:A)-1)*5)),"Missing distance transported",INDEX('Feed imports and diets'!E:E,8+(ROWS($A$1:B13)-1)*5))) -> 0 | D17: 0 | E17: 0 | H17: ='Fert. imports and applications'!J14 -> 0 | I17: ='Fert. imports and applications'!D14 -> 0 | K17: 0 | L17: 0 | O17: ='Animal imports'!G15 -> 0 | P17: =('Animal imports'!E15*'Animal imports'!F15)/2000 -> 0 | R17: 0 | S17: 0 | U17: ='Miscellaneous imports'!C15 -> 0 | V17: ='Miscellaneous imports'!L15 -> 0 | W17: ='Miscellaneous imports'!D15 -> 0 | X17: ='Miscellaneous imports'!E15 -> 0 | Y17: 0
A18: =IF(ISBLANK(INDEX('Feed imports and diets'!D:D,8+(ROWS(A:A)-1)*5)),"",IF(ISBLANK(INDEX('Feed imports and diets'!L:L,8+(ROWS($A$1:A14)-1)*5)),"Missing distance transported",INDEX('Feed imports and diets'!L:L,8+(ROWS($A$1:A14)-1)*5))) -> Missing distance transported | B18: =IF(ISBLANK(INDEX('Feed imports and diets'!$D:$D,8+(ROWS(A:A)-1)*5)),"",IF(ISBLANK(INDEX('Feed imports and diets'!E:E,8+(ROWS(A:A)-1)*5)),"Missing distance transported",INDEX('Feed imports and diets'!E:E,8+(ROWS($A$1:B14)-1)*5))) -> 0 | D18: 0 | E18: 0 | H18: ='Fert. imports and applications'!J15 -> 0 | I18: ='Fert. imports and applications'!D15 -> 0 | K18: 0 | L18: 0 | O18: ='Animal imports'!G16 -> 0 | P18: =('Animal imports'!E16*'Animal imports'!F16)/2000 -> 0 | R18: 0 | S18: 0 | U18: ='Miscellaneous imports'!C16 -> 0 | V18: ='Miscellaneous imports'!L16 -> 0 | W18: ='Miscellaneous imports'!D16 -> 0 | X18: ='Miscellaneous imports'!E16 -> 0 | Y18: 0
A19: =IF(ISBLANK(INDEX('Feed imports and diets'!D:D,8+(ROWS(A:A)-1)*5)),"",IF(ISBLANK(INDEX('Feed imports and diets'!L:L,8+(ROWS($A$1:A15)-1)*5)),"Missing distance transported",INDEX('Feed imports and diets'!L:L,8+(ROWS($A$1:A15)-1)*5))) -> Missing distance transported | B19: =IF(ISBLANK(INDEX('Feed imports and diets'!$D:$D,8+(ROWS(A:A)-1)*5)),"",IF(ISBLANK(INDEX('Feed imports and diets'!E:E,8+(ROWS(A:A)-1)*5)),"Missing distance transported",INDEX('Feed imports and diets'!E:E,8+(ROWS($A$1:B15)-1)*5))) -> 0 | D19: 0 | E19: 0 | H19: ='Fert. imports and applications'!J16 -> 0 | I19: ='Fert. imports and applications'!D16 -> 0 | K19: 0 | L19: 0 | O19: ='Animal imports'!G17 -> 0 | P19: =('Animal imports'!E17*'Animal imports'!F17)/2000 -> 0 | R19: =N(O19) -> 0 | S19: =N(P19) -> 0 | U19: ='Miscellaneous imports'!C17 -> 0 | V19: ='Miscellaneous imports'!L17 -> 0 | W19: ='Miscellaneous imports'!D17 -> 0 | X19: ='Miscellaneous imports'!E17 -> 0 | Y19: 0
A20: =IF(ISBLANK(INDEX('Feed imports and diets'!D:D,8+(ROWS(A:A)-1)*5)),"",IF(ISBLANK(INDEX('Feed imports and diets'!L:L,8+(ROWS($A$1:A16)-1)*5)),"Missing distance transported",INDEX('Feed imports and diets'!L:L,8+(ROWS($A$1:A16)-1)*5))) -> Missing distance transported | B20: =IF(ISBLANK(INDEX('Feed imports and diets'!$D:$D,8+(ROWS(A:A)-1)*5)),"",IF(ISBLANK(INDEX('Feed imports and diets'!E:E,8+(ROWS(A:A)-1)*5)),"Missing distance transported",INDEX('Feed imports and diets'!E:E,8+(ROWS($A$1:B16)-1)*5))) -> 0 | D20: 0 | E20: 0 | H20: ='Fert. imports and applications'!J17 -> 0 | I20: ='Fert. imports and applications'!D17 -> 0 | K20: 0 | L20: 0 | O20: ='Animal imports'!G18 -> 0 | P20: =('Animal imports'!E18*'Animal imports'!F18)/2000 -> 0 | R20: =N(O20) -> 0 | S20: =N(P20) -> 0
A21: =IF(ISBLANK(INDEX('Feed imports and diets'!D:D,8+(ROWS(A:A)-1)*5)),"",IF(ISBLANK(INDEX('Feed imports and diets'!L:L,8+(ROWS($A$1:A17)-1)*5)),"Missing distance transported",INDEX('Feed imports and diets'!L:L,8+(ROWS($A$1:A17)-1)*5))) -> Missing distance transported | B21: =IF(ISBLANK(INDEX('Feed imports and diets'!$D:$D,8+(ROWS(A:A)-1)*5)),"",IF(ISBLANK(INDEX('Feed imports and diets'!E:E,8+(ROWS(A:A)-1)*5)),"Missing distance transported",INDEX('Feed imports and diets'!E:E,8+(ROWS($A$1:B17)-1)*5))) -> 0 | D21: 0 | E21: 0 | H21: ='Fert. imports and applications'!J18 -> 0 | I21: ='Fert. imports and applications'!D18 -> 0 | K21: 0 | L21: 0 | O21: ='Animal imports'!G19 -> 0 | P21: =('Animal imports'!E19*'Animal imports'!F19)/2000 -> 0 | R21: 0 | S21: 0 | U21: Total distance | V21: =SUM(V10:V19) -> 0
A22: =IF(ISBLANK(INDEX('Feed imports and diets'!D:D,8+(ROWS(A:A)-1)*5)),"",IF(ISBLANK(INDEX('Feed imports and diets'!L:L,8+(ROWS($A$1:A18)-1)*5)),"Missing distance transported",INDEX('Feed imports and diets'!L:L,8+(ROWS($A$1:A18)-1)*5))) -> Missing distance transported | B22: =IF(ISBLANK(INDEX('Feed imports and diets'!$D:$D,8+(ROWS(A:A)-1)*5)),"",IF(ISBLANK(INDEX('Feed imports and diets'!E:E,8+(ROWS(A:A)-1)*5)),"Missing distance transported",INDEX('Feed imports and diets'!E:E,8+(ROWS($A$1:B18)-1)*5))) -> 0 | D22: 0 | E22: 0 | H22: ='Fert. imports and applications'!J19 -> 0 | I22: ='Fert. imports and applications'!D19 -> 0 | K22: 0 | L22: 0 | O22: ='Animal imports'!G20 -> 0 | P22: =('Animal imports'!E20*'Animal imports'!F20)/2000 -> 0 | R22: 0 | S22: 0 | U22: Total tons | V22: =SUM(Y10:Y19) -> 0
A23: =IF(ISBLANK(INDEX('Feed imports and diets'!D:D,8+(ROWS(A:A)-1)*5)),"",IF(ISBLANK(INDEX('Feed imports and diets'!L:L,8+(ROWS($A$1:A19)-1)*5)),"Missing distance transported",INDEX('Feed imports and diets'!L:L,8+(ROWS($A$1:A19)-1)*5))) -> Missing distance transported | B23: =IF(ISBLANK(INDEX('Feed imports and diets'!$D:$D,8+(ROWS(A:A)-1)*5)),"",IF(ISBLANK(INDEX('Feed imports and diets'!E:E,8+(ROWS(A:A)-1)*5)),"Missing distance transported",INDEX('Feed imports and diets'!E:E,8+(ROWS($A$1:B19)-1)*5))) -> 0 | D23: 0 | E23: 0 | H23: ='Fert. imports and applications'!J20 -> 0 | I23: ='Fert. imports and applications'!D20 -> 0 | K23: 0 | L23: 0 | O23: ='Animal imports'!G21 -> 0 | P23: =('Animal imports'!E21*'Animal imports'!F21)/2000 -> 0 | R23: 0 | S23: 0 | U23: Average distance | V23: =AVERAGE(V10:V20) -> 0
A24: =IF(ISBLANK(INDEX('Feed imports and diets'!D:D,8+(ROWS(A:A)-1)*5)),"",IF(ISBLANK(INDEX('Feed imports and diets'!L:L,8+(ROWS($A$1:A20)-1)*5)),"Missing distance transported",INDEX('Feed imports and diets'!L:L,8+(ROWS($A$1:A20)-1)*5))) -> Missing distance transported | B24: =IF(ISBLANK(INDEX('Feed imports and diets'!$D:$D,8+(ROWS(A:A)-1)*5)),"",IF(ISBLANK(INDEX('Feed imports and diets'!E:E,8+(ROWS(A:A)-1)*5)),"Missing distance transported",INDEX('Feed imports and diets'!E:E,8+(ROWS($A$1:B20)-1)*5))) -> 0 | D24: 0 | E24: 0 | H24: ='Fert. imports and applications'!J21 -> 0 | I24: ='Fert. imports and applications'!D21 -> 0 | K24: 0 | L24: 0 | U24: Average tons | V24: =AVERAGE(W10:W20) -> 0
A25: =IF(ISBLANK(INDEX('Feed imports and diets'!D:D,8+(ROWS(A:A)-1)*5)),"",IF(ISBLANK(INDEX('Feed imports and diets'!L:L,8+(ROWS($A$1:A21)-1)*5)),"Missing distance transported",INDEX('Feed imports and diets'!L:L,8+(ROWS($A$1:A21)-1)*5))) -> Missing distance transported | B25: =IF(ISBLANK(INDEX('Feed imports and diets'!$D:$D,8+(ROWS(A:A)-1)*5)),"",IF(ISBLANK(INDEX('Feed imports and diets'!E:E,8+(ROWS(A:A)-1)*5)),"Missing distance transported",INDEX('Feed imports and diets'!E:E,8+(ROWS($A$1:B21)-1)*5))) -> 0 | D25: 0 | E25: 0 | H25: ='Fert. imports and applications'!J22 -> 0 | I25: ='Fert. imports and applications'!D22 -> 0 | K25: 0 | L25: 0 | O25: Total distance | P25: =SUM(R10:R23) -> 0
A26: =IF(ISBLANK(INDEX('Feed imports and diets'!D:D,8+(ROWS(A:A)-1)*5)),"",IF(ISBLANK(INDEX('Feed imports and diets'!L:L,8+(ROWS($A$1:A22)-1)*5)),"Missing distance transported",INDEX('Feed imports and diets'!L:L,8+(ROWS($A$1:A22)-1)*5))) -> Missing distance transported | B26: =IF(ISBLANK(INDEX('Feed imports and diets'!$D:$D,8+(ROWS(A:A)-1)*5)),"",IF(ISBLANK(INDEX('Feed imports and diets'!E:E,8+(ROWS(A:A)-1)*5)),"Missing distance transported",INDEX('Feed imports and diets'!E:E,8+(ROWS($A$1:B22)-1)*5))) -> 0 | D26: 0 | E26: 0 | H26: ='Fert. imports and applications'!J23 -> 0 | I26: ='Fert. imports and applications'!D23 -> 0 | K26: 0 | L26: 0 | O26: Total tons | P26: =SUM(S10:S23) -> 0
A27: =IF(ISBLANK(INDEX('Feed imports and diets'!D:D,8+(ROWS(A:A)-1)*5)),"",IF(ISBLANK(INDEX('Feed imports and diets'!L:L,8+(ROWS($A$1:A23)-1)*5)),"Missing distance transported",INDEX('Feed imports and diets'!L:L,8+(ROWS($A$1:A23)-1)*5))) -> Missing distance transported | B27: =IF(ISBLANK(INDEX('Feed imports and diets'!$D:$D,8+(ROWS(A:A)-1)*5)),"",IF(ISBLANK(INDEX('Feed imports and diets'!E:E,8+(ROWS(A:A)-1)*5)),"Missing distance transported",INDEX('Feed imports and diets'!E:E,8+(ROWS($A$1:B23)-1)*5))) -> 0 | D27: 0 | E27: 0 | H27: ='Fert. imports and applications'!J24 -> 0 | I27: ='Fert. imports and applications'!D24 -> 0 | K27: 0 | L27: 0 | O27: Average distance | P27: =AVERAGE(O10:O24) -> 0
A28: =IF(ISBLANK(INDEX('Feed imports and diets'!D:D,8+(ROWS(A:A)-1)*5)),"",IF(ISBLANK(INDEX('Feed imports and diets'!L:L,8+(ROWS($A$1:A24)-1)*5)),"Missing distance transported",INDEX('Feed imports and diets'!L:L,8+(ROWS($A$1:A24)-1)*5))) -> Missing distance transported | B28: =IF(ISBLANK(INDEX('Feed imports and diets'!$D:$D,8+(ROWS(A:A)-1)*5)),"",IF(ISBLANK(INDEX('Feed imports and diets'!E:E,8+(ROWS(A:A)-1)*5)),"Missing distance transported",INDEX('Feed imports and diets'!E:E,8+(ROWS($A$1:B24)-1)*5))) -> 0 | D28: 0 | E28: 0 | H28: ='Fert. imports and applications'!J25 -> 0 | I28: ='Fert. imports and applications'!D25 -> 0 | K28: 0 | L28: 0 | O28: Average tons | P28: =AVERAGE(P10:P24) -> 0
A29: =IF(ISBLANK(INDEX('Feed imports and diets'!D:D,8+(ROWS(A:A)-1)*5)),"",IF(ISBLANK(INDEX('Feed imports and diets'!L:L,8+(ROWS($A$1:A25)-1)*5)),"Missing distance transported",INDEX('Feed imports and diets'!L:L,8+(ROWS($A$1:A25)-1)*5))) -> Missing distance transported | B29: =IF(ISBLANK(INDEX('Feed imports and diets'!$D:$D,8+(ROWS(A:A)-1)*5)),"",IF(ISBLANK(INDEX('Feed imports and diets'!E:E,8+(ROWS(A:A)-1)*5)),"Missing distance transported",INDEX('Feed imports and diets'!E:E,8+(ROWS($A$1:B25)-1)*5))) -> 0 | D29: 0 | E29: 0 | H29: ='Fert. imports and applications'!J26 -> 0 | I29: ='Fert. imports and applications'!D26 -> 0 | K29: 0 | L29: 0
A30: =IF(ISBLANK(INDEX('Feed imports and diets'!D:D,8+(ROWS(A:A)-1)*5)),"",IF(ISBLANK(INDEX('Feed imports and diets'!L:L,8+(ROWS($A$1:A26)-1)*5)),"Missing distance transported",INDEX('Feed imports and diets'!L:L,8+(ROWS($A$1:A26)-1)*5))) -> Missing distance transported | B30: =IF(ISBLANK(INDEX('Feed imports and diets'!$D:$D,8+(ROWS(A:A)-1)*5)),"",IF(ISBLANK(INDEX('Feed imports and diets'!E:E,8+(ROWS(A:A)-1)*5)),"Missing distance transported",INDEX('Feed imports and diets'!E:E,8+(ROWS($A$1:B26)-1)*5))) -> 0 | D30: 0 | E30: 0
A31: =IF(ISBLANK(INDEX('Feed imports and diets'!D:D,8+(ROWS(A:A)-1)*5)),"",IF(ISBLANK(INDEX('Feed imports and diets'!L:L,8+(ROWS($A$1:A27)-1)*5)),"Missing distance transported",INDEX('Feed imports and diets'!L:L,8+(ROWS($A$1:A27)-1)*5))) -> Missing distance transported | B31: =IF(ISBLANK(INDEX('Feed imports and diets'!$D:$D,8+(ROWS(A:A)-1)*5)),"",IF(ISBLANK(INDEX('Feed imports and diets'!E:E,8+(ROWS(A:A)-1)*5)),"Missing distance transported",INDEX('Feed imports and diets'!E:E,8+(ROWS($A$1:B27)-1)*5))) -> 0 | D31: 0 | E31: 0 | H31: Total distance | I31: =SUM(K10:K29) -> 0
A32: =IF(ISBLANK(INDEX('Feed imports and diets'!D:D,8+(ROWS(A:A)-1)*5)),"",IF(ISBLANK(INDEX('Feed imports and diets'!L:L,8+(ROWS($A$1:A28)-1)*5)),"Missing distance transported",INDEX('Feed imports and diets'!L:L,8+(ROWS($A$1:A28)-1)*5))) -> Missing distance transported | B32: =IF(ISBLANK(INDEX('Feed imports and diets'!$D:$D,8+(ROWS(A:A)-1)*5)),"",IF(ISBLANK(INDEX('Feed imports and diets'!E:E,8+(ROWS(A:A)-1)*5)),"Missing distance transported",INDEX('Feed imports and diets'!E:E,8+(ROWS($A$1:B28)-1)*5))) -> 0 | D32: 0 | E32: 0 | H32: Total tons | I32: =SUM(L10:L29) -> 0
A33: =IF(ISBLANK(INDEX('Feed imports and diets'!D:D,8+(ROWS(A:A)-1)*5)),"",IF(ISBLANK(INDEX('Feed imports and diets'!L:L,8+(ROWS($A$1:A29)-1)*5)),"Missing distance transported",INDEX('Feed imports and diets'!L:L,8+(ROWS($A$1:A29)-1)*5))) -> Missing distance transported | B33: =IF(ISBLANK(INDEX('Feed imports and diets'!$D:$D,8+(ROWS(A:A)-1)*5)),"",IF(ISBLANK(INDEX('Feed imports and diets'!E:E,8+(ROWS(A:A)-1)*5)),"Missing distance transported",INDEX('Feed imports and diets'!E:E,8+(ROWS($A$1:B29)-1)*5))) -> 0 | D33: 0 | E33: 0 | H33: Average distance | I33: =AVERAGE(K10:K29) -> 0
A34: =IF(ISBLANK(INDEX('Feed imports and diets'!D:D,8+(ROWS(A:A)-1)*5)),"",IF(ISBLANK(INDEX('Feed imports and diets'!L:L,8+(ROWS($A$1:A30)-1)*5)),"Missing distance transported",INDEX('Feed imports and diets'!L:L,8+(ROWS($A$1:A30)-1)*5))) -> Missing distance transported | B34: =IF(ISBLANK(INDEX('Feed imports and diets'!$D:$D,8+(ROWS(A:A)-1)*5)),"",IF(ISBLANK(INDEX('Feed imports and diets'!E:E,8+(ROWS(A:A)-1)*5)),"Missing distance transported",INDEX('Feed imports and diets'!E:E,8+(ROWS($A$1:B30)-1)*5))) -> 0 | D34: 0 | E34: 0 | H34: Average tons | I34: =AVERAGE(L10:L29) -> 0
A35: =IF(ISBLANK(INDEX('Feed imports and diets'!D:D,8+(ROWS(A:A)-1)*5)),"",IF(ISBLANK(INDEX('Feed imports and diets'!L:L,8+(ROWS($A$1:A31)-1)*5)),"Missing distance transported",INDEX('Feed imports and diets'!L:L,8+(ROWS($A$1:A31)-1)*5))) -> Missing distance transported | B35: =IF(ISBLANK(INDEX('Feed imports and diets'!$D:$D,8+(ROWS(A:A)-1)*5)),"",IF(ISBLANK(INDEX('Feed imports and diets'!E:E,8+(ROWS(A:A)-1)*5)),"Missing distance transported",INDEX('Feed imports and diets'!E:E,8+(ROWS($A$1:B31)-1)*5))) -> 0 | D35: 0 | E35: 0
A36: Total distance | B36: =_xlfn.AGGREGATE(9,6,D10:D35) -> 0
A37: Total tons | B37: =SUM(E10:E35) -> 0
A38: Average distance | B38: =AVERAGE(D10:D35) -> 0
A39: Average tons | B39: =AVERAGE(E10:E35) -> 0 | E39: Transport Helper instructions
E40: This sheet autofills with transport information from the import sheets. Use the numbers in the colored boxes for the total distance and total tons. The average distance and average tons are listed below the input columns. Make sure to double check the numbers.

Sheet Milk exports
C5: Exports: Milk
C6: Milk sold | D6: Milk true protein | E6: Milk fat | F6: Milk urea nitrogen (MUN)
C7: lb / year | D7: % | E7: % | F7: mg / dl
H8: Milk yield: | I8: =IFERROR(_xlfn.CONCAT(ROUND(C8/SUM('Herd Information'!G10:G11),0), " lb / cow / year"), " lb / cow / year") -> lb / cow / year | Q8: Milk sold | R8: Protein | S8: Fat | T8: MUN | U8: CONCAT
C9: - Include any direct milk sales from the farm | E9: =IF(E8="","",IF(OR(E8>0.055,E8<0.025),"Please check milk fat","")) ->  | F9: =IF(E8<D8, "Fat less than protein, check", "") ->  | H9: =IFERROR(IF((C8 / SUM('Herd Information'!G10:G11) >= 30000),CONCATENATE("Annual milk yield per cow is ",I8,". "), "Milk yield per cow correct?"), "") ->  | P9: Milk | Q9: =IF(ISBLANK(C8), "Missing lbs milk exported", "Good") -> Missing lbs milk exported | R9: =IF(ISBLANK(D8), "Missing milk protein %", "Good") -> Missing milk protein % | S9: =IF(ISBLANK(E8), "Missing milk fat %", "Good") -> Missing milk fat % | T9: =IF(ISBLANK(F8), "Missing milk MUN", "Good") -> Missing milk MUN | U9: =IF(SUMPRODUCT(--ISNUMBER(SEARCH("missing", Q9:T9)))>0, P9 & ": " & _xlfn.TEXTJOIN(" , ", TRUE, _xlfn._xlws.FILTER( Q9:T9, ISNUMBER(SEARCH("missing", Q9:T9)))), "") -> Milk: Missing lbs milk exported , Missing milk protein % , Missing milk fat % , Missing milk MUN
H10: =IFERROR(IF((C8 / SUM('Herd Information'!G10:G11) >= 30000),"Please check total milk sold and cow numbers (Herd Information tab).", "If not, check total milk sold and cow numbers (Herd Information tab)."), "") -> 
G12: Comments:
C13: Milking information
C14: Milkings per day
C15: Total time out of pen/milking
C16: Distance to milking parlor
C17: Vertical distance (slope)
C18: Horizontal distance

